{"text_format":"1","workbook":"xlsx","n_sheets":11,"sheets":["DataBase","Departamentos","Municipios","Medidas","Productos","Filtro","Consolidado","Programas","Modalidad","Servicios","ControlAcceso"],"not_rendered":{"charts":0,"images":3,"macros":1,"external_links":0,"defined_names":1,"comments":0,"pivot_tables":0},"unopened":[],"bounds":{"document_bytes":16777216,"sheet_cells":100000,"rows_first":2000,"rows_last":500,"rows_between":2000,"halvings":0,"cell_chars":16384,"cell_head_chars":4096},"cells_cut":0,"cells_raw":0,"read":"whole","date_system":"1900"}

{"sheet":"DataBase","index":0,"n_rows":3000,"n_cols":52,"rows_kept":1125,"cut":true,"hidden":false,"merged":[],"bounds":{"rows_first":500,"rows_last":125,"rows_between":500,"halvings":2}}
["Regional","N° Contrato","Año (Vigencia)","Fecha de Inicio","Nombre del Operador","Programa","Modalidad","Servicio Atendido","No. Cupos Asignados","Porcentaje de Compra Local ","Valor Total del Contrato ($)","Tiempo de Ejecución (Meses)","1ra. Adición Valor($)","1ra. Adición (Meses)","1ra. Adición (Cupos)","2da. Adición Valor ($)","2da. Adición (Meses)","2da. Adición (Cupos)","3ra. Adición Valor($)","3ra. Adición (Meses)","3ra. Adición (Cupos)","1ra. Reducción Valor($)","1ra. Reducción (Meses)","1ra. Reducción (Cupos)","2da. Reducción Valor($)","2da. Reducción (Meses)","2da. Reducción (Cupos)","3ra. Reducción Valor($)","3ra. Reducción (Meses)","3ra. Reducción (Cupos)","No.","Mes","Valor Ejecutado Mensual ($) ","Tipo de Compra","Producto/Profesión","Unidad de Medida","Cantidad","Valor Total de Compra/Salario Mensual ($)","Municipio del proveedor/Lugar de nacimiento del profesional","Nombre del proveedor/Profesional","Código","Alimentos","Personal","Dotación","Total",null,null,"Observaciones",null,"Suma Cupos Asignados","suma valor Total del Contrato ($)","Suma Tiempo de Ejecución (Meses)"]
[null,null,null,null,null,null,null,null,null,null,null,null,null,null,null,null,null,null,null,null,null,null,null,null,null,null,null,null,null,null,null,null,null,null,null,null,null,null,null,null,null,{"$f":"IF(AH2=\"Alimento\",AL2/AG2,0)","v":0},{"$f":"IF(AH2=\"Personal\",AL2/AG2,0)","v":0},{"$f":"IF(AH2=\"Dotación\",AL2/AG2,0)","v":0},{"$f":"SUM(AP2:AR2)","v":0},null,"Diciembre_2020",null,null,{"$f":"I2+O2+R2+U2-X2-AA2-AD2","v":0},{"$f":"K2+M2+P2+S2-V2-Y2-AB2","v":0},{"$f":"L2+N2+Q2+T2-W2-Z2-AC2","v":0}]
[null,null,null,null,null,null,null,null,null,null,null,null,null,null,null,null,null,null,null,null,null,null,null,null,null,null,null,null,null,null,null,null,null,null,null,null,null,null,null,null,null,{"$f":"IF(AH3=\"Alimento\",AL3/AG3,0)","v":0},{"$f":"IF(AH3=\"Personal\",AL3/AG3,0)","v":0},{"$f":"IF(AH3=\"Dotación\",AL3/AG3,0)","v":0},{"$f":"SUM(AP3:AR3)","v":0},null,"Enero"]
[null,null,null,null,null,null,null,null,null,null,null,null,null,null,null,null,null,null,null,null,null,null,null,null,null,null,null,null,null,null,null,null,null,null,null,null,null,null,null,null,null,0,0,0,0,null,"Febrero"]
[null,null,null,null,null,null,null,null,null,null,null,null,null,null,null,null,null,null,null,null,null,null,null,null,null,null,null,null,null,null,null,null,null,null,null,null,null,null,null,null,null,0,0,0,0,null,"Marzo"]
[null,null,null,null,null,null,null,null,null,null,null,null,null,null,null,null,null,null,null,null,null,null,null,null,null,null,null,null,null,null,null,null,null,null,null,null,null,null,null,null,null,0,0,0,0,null,"Abril"]
[null,null,null,null,null,null,null,null,null,null,null,null,null,null,null,null,null,null,null,null,null,null,null,null,null,null,null,null,null,null,null,null,null,null,null,null,null,null,null,null,null,0,0,0,0,null,"Mayo"]
[null,null,null,null,null,null,null,null,null,null,null,null,null,null,null,null,null,null,null,null,null,null,null,null,null,null,null,null,null,null,null,null,null,null,null,null,null,null,null,null,null,0,0,0,0,null,"Junio"]
[null,null,null,null,null,null,null,null,null,null,null,null,null,null,null,null,null,null,null,null,null,null,null,null,null,null,null,null,null,null,null,null,null,null,null,null,null,null,null,null,null,0,0,0,0,null,"Julio"]
[null,null,null,null,null,null,null,null,null,null,null,null,null,null,null,null,null,null,null,null,null,null,null,null,null,null,null,null,null,null,null,null,null,null,null,null,null,null,null,null,null,0,0,0,0,null,"Agosto"]
[null,null,null,null,null,null,null,null,null,null,null,null,null,null,null,null,null,null,null,null,null,null,null,null,null,null,null,null,null,null,null,null,null,null,null,null,null,null,null,null,null,0,0,0,0,null,"Septiembre"]
[null,null,null,null,null,null,null,null,null,null,null,null,null,null,null,null,null,null,null,null,null,null,null,null,null,null,null,null,null,null,null,null,null,null,null,null,null,null,null,null,null,0,0,0,0,null,"Octubre"]
[null,null,null,null,null,null,null,null,null,null,null,null,null,null,null,null,null,null,null,null,null,null,null,null,null,null,null,null,null,null,null,null,null,null,null,null,null,null,null,null,null,0,0,0,0,null,"Noviembre"]
[null,null,null,null,null,null,null,null,null,null,null,null,null,null,null,null,null,null,null,null,null,null,null,null,null,null,null,null,null,null,null,null,null,null,null,null,null,null,null,null,null,0,0,0,0,null,"Diciembre"]
[null,null,null,null,null,null,null,null,null,null,null,null,null,null,null,null,null,null,null,null,null,null,null,null,null,null,null,null,null,null,null,null,null,null,null,null,null,null,null,null,null,0,0,0,0]
[null,null,null,null,null,null,null,null,null,null,null,null,null,null,null,null,null,null,null,null,null,null,null,null,null,null,null,null,null,null,null,null,null,null,null,null,null,null,null,null,null,0,0,0,0]
[null,null,null,null,null,null,null,null,null,null,null,null,null,null,null,null,null,null,null,null,null,null,null,null,null,null,null,null,null,null,null,null,null,null,null,null,null,null,null,null,null,0,0,0,0]
[null,null,null,null,null,null,null,null,null,null,null,null,null,null,null,null,null,null,null,null,null,null,null,null,null,null,null,null,null,null,null,null,null,null,null,null,null,null,null,null,null,0,0,0,0]
[null,null,null,null,null,null,null,null,null,null,null,null,null,null,null,null,null,null,null,null,null,null,null,null,null,null,null,null,null,null,null,null,null,null,null,null,null,null,null,null,null,0,0,0,0]
[null,null,null,null,null,null,null,null,null,null,null,null,null,null,null,null,null,null,null,null,null,null,null,null,null,null,null,null,null,null,null,null,null,null,null,null,null,null,null,null,null,0,0,0,0]
[null,null,null,null,null,null,null,null,null,null,null,null,null,null,null,null,null,null,null,null,null,null,null,null,null,null,null,null,null,null,null,null,null,null,null,null,null,null,null,null,null,0,0,0,0]
[null,null,null,null,null,null,null,null,null,null,null,null,null,null,null,null,null,null,null,null,null,null,null,null,null,null,null,null,null,null,null,null,null,null,null,null,null,null,null,null,null,0,0,0,0]
[null,null,null,null,null,null,null,null,null,null,null,null,null,null,null,null,null,null,null,null,null,null,null,null,null,null,null,null,null,null,null,null,null,null,null,null,null,null,null,null,null,0,0,0,0]
[null,null,null,null,null,null,null,null,null,null,null,null,null,null,null,null,null,null,null,null,null,null,null,null,null,null,null,null,null,null,null,null,null,null,null,null,null,null,null,null,null,0,0,0,0]
[null,null,null,null,null,null,null,null,null,null,null,null,null,null,null,null,null,null,null,null,null,null,null,null,null,null,null,null,null,null,null,null,null,null,null,null,null,null,null,null,null,0,0,0,0]
[null,null,null,null,null,null,null,null,null,null,null,null,null,null,null,null,null,null,null,null,null,null,null,null,null,null,null,null,null,null,null,null,null,null,null,null,null,null,null,null,null,0,0,0,0]
[null,null,null,null,null,null,null,null,null,null,null,null,null,null,null,null,null,null,null,null,null,null,null,null,null,null,null,null,null,null,null,null,null,null,null,null,null,null,null,null,null,0,0,0,0]
[null,null,null,null,null,null,null,null,null,null,null,null,null,null,null,null,null,null,null,null,null,null,null,null,null,null,null,null,null,null,null,null,null,null,null,null,null,null,null,null,null,0,0,0,0]
[null,null,null,null,null,null,null,null,null,null,null,null,null,null,null,null,null,null,null,null,null,null,null,null,null,null,null,null,null,null,null,null,null,null,null,null,null,null,null,null,null,0,0,0,0]
[null,null,null,null,null,null,null,null,null,null,null,null,null,null,null,null,null,null,null,null,null,null,null,null,null,null,null,null,null,null,null,null,null,null,null,null,null,null,null,null,null,0,0,0,0]
[null,null,null,null,null,null,null,null,null,null,null,null,null,null,null,null,null,null,null,null,null,null,null,null,null,null,null,null,null,null,null,null,null,null,null,null,null,null,null,null,null,0,0,0,0]
[null,null,null,null,null,null,null,null,null,null,null,null,null,null,null,null,null,null,null,null,null,null,null,null,null,null,null,null,null,null,null,null,null,null,null,null,null,null,null,null,null,0,0,0,0]
[null,null,null,null,null,null,null,null,null,null,null,null,null,null,null,null,null,null,null,null,null,null,null,null,null,null,null,null,null,null,null,null,null,null,null,null,null,null,null,null,null,0,0,0,0]
[null,null,null,null,null,null,null,null,null,null,null,null,null,null,null,null,null,null,null,null,null,null,null,null,null,null,null,null,null,null,null,null,null,null,null,null,null,null,null,null,null,0,0,0,0]
[null,null,null,null,null,null,null,null,null,null,null,null,null,null,null,null,null,null,null,null,null,null,null,null,null,null,null,null,null,null,null,null,null,null,null,null,null,null,null,null,null,0,0,0,0]
[null,null,null,null,null,null,null,null,null,null,null,null,null,null,null,null,null,null,null,null,null,null,null,null,null,null,null,null,null,null,null,null,null,null,null,null,null,null,null,null,null,0,0,0,0]
[null,null,null,null,null,null,null,null,null,null,null,null,null,null,null,null,null,null,null,null,null,null,null,null,null,null,null,null,null,null,null,null,null,null,null,null,null,null,null,null,null,0,0,0,0]
[null,null,null,null,null,null,null,null,null,null,null,null,null,null,null,null,null,null,null,null,null,null,null,null,null,null,null,null,null,null,null,null,null,null,null,null,null,null,null,null,null,0,0,0,0]
[null,null,null,null,null,null,null,null,null,null,null,null,null,null,null,null,null,null,null,null,null,null,null,null,null,null,null,null,null,null,null,null,null,null,null,null,null,null,null,null,null,0,0,0,0]
[null,null,null,null,null,null,null,null,null,null,null,null,null,null,null,null,null,null,null,null,null,null,null,null,null,null,null,null,null,null,null,null,null,null,null,null,null,null,null,null,null,0,0,0,0]
[null,null,null,null,null,null,null,null,null,null,null,null,null,null,null,null,null,null,null,null,null,null,null,null,null,null,null,null,null,null,null,null,null,null,null,null,null,null,null,null,null,0,0,0,0]
[null,null,null,null,null,null,null,null,null,null,null,null,null,null,null,null,null,null,null,null,null,null,null,null,null,null,null,null,null,null,null,null,null,null,null,null,null,null,null,null,null,0,0,0,0]
[null,null,null,null,null,null,null,null,null,null,null,null,null,null,null,null,null,null,null,null,null,null,null,null,null,null,null,null,null,null,null,null,null,null,null,null,null,null,null,null,null,0,0,0,0]
[null,null,null,null,null,null,null,null,null,null,null,null,null,null,null,null,null,null,null,null,null,null,null,null,null,null,null,null,null,null,null,null,null,null,null,null,null,null,null,null,null,0,0,0,0]
[null,null,null,null,null,null,null,null,null,null,null,null,null,null,null,null,null,null,null,null,null,null,null,null,null,null,null,null,null,null,null,null,null,null,null,null,null,null,null,null,null,0,0,0,0]
[null,null,null,null,null,null,null,null,null,null,null,null,null,null,null,null,null,null,null,null,null,null,null,null,null,null,null,null,null,null,null,null,null,null,null,null,null,null,null,null,null,0,0,0,0]
[null,null,null,null,null,null,null,null,null,null,null,null,null,null,null,null,null,null,null,null,null,null,null,null,null,null,null,null,null,null,null,null,null,null,null,null,null,null,null,null,null,0,0,0,0]
[null,null,null,null,null,null,null,null,null,null,null,null,null,null,null,null,null,null,null,null,null,null,null,null,null,null,null,null,null,null,null,null,null,null,null,null,null,null,null,null,null,0,0,0,0]
[null,null,null,null,null,null,null,null,null,null,null,null,null,null,null,null,null,null,null,null,null,null,null,null,null,null,null,null,null,null,null,null,null,null,null,null,null,null,null,null,null,0,0,0,0]
[null,null,null,null,null,null,null,null,null,null,null,null,null,null,null,null,null,null,null,null,null,null,null,null,null,null,null,null,null,null,null,null,null,null,null,null,null,null,null,null,null,0,0,0,0]
[null,null,null,null,null,null,null,null,null,null,null,null,null,null,null,null,null,null,null,null,null,null,null,null,null,null,null,null,null,null,null,null,null,null,null,null,null,null,null,null,null,0,0,0,0]
[null,null,null,null,null,null,null,null,null,null,null,null,null,null,null,null,null,null,null,null,null,null,null,null,null,null,null,null,null,null,null,null,null,null,null,null,null,null,null,null,null,0,0,0,0]
[null,null,null,null,null,null,null,null,null,null,null,null,null,null,null,null,null,null,null,null,null,null,null,null,null,null,null,null,null,null,null,null,null,null,null,null,null,null,null,null,null,0,0,0,0]
[null,null,null,null,null,null,null,null,null,null,null,null,null,null,null,null,null,null,null,null,null,null,null,null,null,null,null,null,null,null,null,null,null,null,null,null,null,null,null,null,null,0,0,0,0]
[null,null,null,null,null,null,null,null,null,null,null,null,null,null,null,null,null,null,null,null,null,null,null,null,null,null,null,null,null,null,null,null,null,null,null,null,null,null,null,null,null,0,0,0,0]
[null,null,null,null,null,null,null,null,null,null,null,null,null,null,null,null,null,null,null,null,null,null,null,null,null,null,null,null,null,null,null,null,null,null,null,null,null,null,null,null,null,0,0,0,0]
[null,null,null,null,null,null,null,null,null,null,null,null,null,null,null,null,null,null,null,null,null,null,null,null,null,null,null,null,null,null,null,null,null,null,null,null,null,null,null,null,null,0,0,0,0]
[null,null,null,null,null,null,null,null,null,null,null,null,null,null,null,null,null,null,null,null,null,null,null,null,null,null,null,null,null,null,null,null,null,null,null,null,null,null,null,null,null,0,0,0,0]
[null,null,null,null,null,null,null,null,null,null,null,null,null,null,null,null,null,null,null,null,null,null,null,null,null,null,null,null,null,null,null,null,null,null,null,null,null,null,null,null,null,0,0,0,0]
[null,null,null,null,null,null,null,null,null,null,null,null,null,null,null,null,null,null,null,null,null,null,null,null,null,null,null,null,null,null,null,null,null,null,null,null,null,null,null,null,null,0,0,0,0]
[null,null,null,null,null,null,null,null,null,null,null,null,null,null,null,null,null,null,null,null,null,null,null,null,null,null,null,null,null,null,null,null,null,null,null,null,null,null,null,null,null,0,0,0,0]
[null,null,null,null,null,null,null,null,null,null,null,null,null,null,null,null,null,null,null,null,null,null,null,null,null,null,null,null,null,null,null,null,null,null,null,null,null,null,null,null,null,0,0,0,0]
[null,null,null,null,null,null,null,null,null,null,null,null,null,null,null,null,null,null,null,null,null,null,null,null,null,null,null,null,null,null,null,null,null,null,null,null,null,null,null,null,null,0,0,0,0]
[null,null,null,null,null,null,null,null,null,null,null,null,null,null,null,null,null,null,null,null,null,null,null,null,null,null,null,null,null,null,null,null,null,null,null,null,null,null,null,null,null,0,0,0,0]
[null,null,null,null,null,null,null,null,null,null,null,null,null,null,null,null,null,null,null,null,null,null,null,null,null,null,null,null,null,null,null,null,null,null,null,null,null,null,null,null,null,0,0,0,0]
[null,null,null,null,null,null,null,null,null,null,null,null,null,null,null,null,null,null,null,null,null,null,null,null,null,null,null,null,null,null,null,null,null,null,null,null,null,null,null,null,null,0,0,0,0]
[null,null,null,null,null,null,null,null,null,null,null,null,null,null,null,null,null,null,null,null,null,null,null,null,null,null,null,null,null,null,null,null,null,null,null,null,null,null,null,null,null,{"$f":"IF(AH67=\"Alimento\",AL67/AG67,0)","v":0},{"$f":"IF(AH67=\"Personal\",AL67/AG67,0)","v":0},{"$f":"IF(AH67=\"Dotación\",AL67/AG67,0)","v":0},{"$f":"SUM(AP67:AR67)","v":0}]
[null,null,null,null,null,null,null,null,null,null,null,null,null,null,null,null,null,null,null,null,null,null,null,null,null,null,null,null,null,null,null,null,null,null,null,null,null,null,null,null,null,0,0,0,0]
[null,null,null,null,null,null,null,null,null,null,null,null,null,null,null,null,null,null,null,null,null,null,null,null,null,null,null,null,null,null,null,null,null,null,null,null,null,null,null,null,null,0,0,0,0]
[null,null,null,null,null,null,null,null,null,null,null,null,null,null,null,null,null,null,null,null,null,null,null,null,null,null,null,null,null,null,null,null,null,null,null,null,null,null,null,null,null,0,0,0,0]
[null,null,null,null,null,null,null,null,null,null,null,null,null,null,null,null,null,null,null,null,null,null,null,null,null,null,null,null,null,null,null,null,null,null,null,null,null,null,null,null,null,0,0,0,0]
[null,null,null,null,null,null,null,null,null,null,null,null,null,null,null,null,null,null,null,null,null,null,null,null,null,null,null,null,null,null,null,null,null,null,null,null,null,null,null,null,null,0,0,0,0]
[null,null,null,null,null,null,null,null,null,null,null,null,null,null,null,null,null,null,null,null,null,null,null,null,null,null,null,null,null,null,null,null,null,null,null,null,null,null,null,null,null,0,0,0,0]
[null,null,null,null,null,null,null,null,null,null,null,null,null,null,null,null,null,null,null,null,null,null,null,null,null,null,null,null,null,null,null,null,null,null,null,null,null,null,null,null,null,0,0,0,0]
[null,null,null,null,null,null,null,null,null,null,null,null,null,null,null,null,null,null,null,null,null,null,null,null,null,null,null,null,null,null,null,null,null,null,null,null,null,null,null,null,null,0,0,0,0]
[null,null,null,null,null,null,null,null,null,null,null,null,null,null,null,null,null,null,null,null,null,null,null,null,null,null,null,null,null,null,null,null,null,null,null,null,null,null,null,null,null,0,0,0,0]
[null,null,null,null,null,null,null,null,null,null,null,null,null,null,null,null,null,null,null,null,null,null,null,null,null,null,null,null,null,null,null,null,null,null,null,null,null,null,null,null,null,0,0,0,0]
[null,null,null,null,null,null,null,null,null,null,null,null,null,null,null,null,null,null,null,null,null,null,null,null,null,null,null,null,null,null,null,null,null,null,null,null,null,null,null,null,null,0,0,0,0]
[null,null,null,null,null,null,null,null,null,null,null,null,null,null,null,null,null,null,null,null,null,null,null,null,null,null,null,null,null,null,null,null,null,null,null,null,null,null,null,null,null,0,0,0,0]
[null,null,null,null,null,null,null,null,null,null,null,null,null,null,null,null,null,null,null,null,null,null,null,null,null,null,null,null,null,null,null,null,null,null,null,null,null,null,null,null,null,0,0,0,0]
[null,null,null,null,null,null,null,null,null,null,null,null,null,null,null,null,null,null,null,null,null,null,null,null,null,null,null,null,null,null,null,null,null,null,null,null,null,null,null,null,null,0,0,0,0]
[null,null,null,null,null,null,null,null,null,null,null,null,null,null,null,null,null,null,null,null,null,null,null,null,null,null,null,null,null,null,null,null,null,null,null,null,null,null,null,null,null,0,0,0,0]
[null,null,null,null,null,null,null,null,null,null,null,null,null,null,null,null,null,null,null,null,null,null,null,null,null,null,null,null,null,null,null,null,null,null,null,null,null,null,null,null,null,0,0,0,0]
[null,null,null,null,null,null,null,null,null,null,null,null,null,null,null,null,null,null,null,null,null,null,null,null,null,null,null,null,null,null,null,null,null,null,null,null,null,null,null,null,null,0,0,0,0]
[null,null,null,null,null,null,null,null,null,null,null,null,null,null,null,null,null,null,null,null,null,null,null,null,null,null,null,null,null,null,null,null,null,null,null,null,null,null,null,null,null,0,0,0,0]
[null,null,null,null,null,null,null,null,null,null,null,null,null,null,null,null,null,null,null,null,null,null,null,null,null,null,null,null,null,null,null,null,null,null,null,null,null,null,null,null,null,0,0,0,0]
[null,null,null,null,null,null,null,null,null,null,null,null,null,null,null,null,null,null,null,null,null,null,null,null,null,null,null,null,null,null,null,null,null,null,null,null,null,null,null,null,null,0,0,0,0]
[null,null,null,null,null,null,null,null,null,null,null,null,null,null,null,null,null,null,null,null,null,null,null,null,null,null,null,null,null,null,null,null,null,null,null,null,null,null,null,null,null,0,0,0,0]
[null,null,null,null,null,null,null,null,null,null,null,null,null,null,null,null,null,null,null,null,null,null,null,null,null,null,null,null,null,null,null,null,null,null,null,null,null,null,null,null,null,0,0,0,0]
[null,null,null,null,null,null,null,null,null,null,null,null,null,null,null,null,null,null,null,null,null,null,null,null,null,null,null,null,null,null,null,null,null,null,null,null,null,null,null,null,null,0,0,0,0]
[null,null,null,null,null,null,null,null,null,null,null,null,null,null,null,null,null,null,null,null,null,null,null,null,null,null,null,null,null,null,null,null,null,null,null,null,null,null,null,null,null,0,0,0,0]
[null,null,null,null,null,null,null,null,null,null,null,null,null,null,null,null,null,null,null,null,null,null,null,null,null,null,null,null,null,null,null,null,null,null,null,null,null,null,null,null,null,0,0,0,0]
[null,null,null,null,null,null,null,null,null,null,null,null,null,null,null,null,null,null,null,null,null,null,null,null,null,null,null,null,null,null,null,null,null,null,null,null,null,null,null,null,null,0,0,0,0]
[null,null,null,null,null,null,null,null,null,null,null,null,null,null,null,null,null,null,null,null,null,null,null,null,null,null,null,null,null,null,null,null,null,null,null,null,null,null,null,null,null,0,0,0,0]
[null,null,null,null,null,null,null,null,null,null,null,null,null,null,null,null,null,null,null,null,null,null,null,null,null,null,null,null,null,null,null,null,null,null,null,null,null,null,null,null,null,0,0,0,0]
[null,null,null,null,null,null,null,null,null,null,null,null,null,null,null,null,null,null,null,null,null,null,null,null,null,null,null,null,null,null,null,null,null,null,null,null,null,null,null,null,null,0,0,0,0]
[null,null,null,null,null,null,null,null,null,null,null,null,null,null,null,null,null,null,null,null,null,null,null,null,null,null,null,null,null,null,null,null,null,null,null,null,null,null,null,null,null,0,0,0,0]
[null,null,null,null,null,null,null,null,null,null,null,null,null,null,null,null,null,null,null,null,null,null,null,null,null,null,null,null,null,null,null,null,null,null,null,null,null,null,null,null,null,0,0,0,0]
[null,null,null,null,null,null,null,null,null,null,null,null,null,null,null,null,null,null,null,null,null,null,null,null,null,null,null,null,null,null,null,null,null,null,null,null,null,null,null,null,null,0,0,0,0]
[null,null,null,null,null,null,null,null,null,null,null,null,null,null,null,null,null,null,null,null,null,null,null,null,null,null,null,null,null,null,null,null,null,null,null,null,null,null,null,null,null,0,0,0,0]
[null,null,null,null,null,null,null,null,null,null,null,null,null,null,null,null,null,null,null,null,null,null,null,null,null,null,null,null,null,null,null,null,null,null,null,null,null,null,null,null,null,0,0,0,0]
[null,null,null,null,null,null,null,null,null,null,null,null,null,null,null,null,null,null,null,null,null,null,null,null,null,null,null,null,null,null,null,null,null,null,null,null,null,null,null,null,null,0,0,0,0]
[null,null,null,null,null,null,null,null,null,null,null,null,null,null,null,null,null,null,null,null,null,null,null,null,null,null,null,null,null,null,null,null,null,null,null,null,null,null,null,null,null,0,0,0,0]
[null,null,null,null,null,null,null,null,null,null,null,null,null,null,null,null,null,null,null,null,null,null,null,null,null,null,null,null,null,null,null,null,null,null,null,null,null,null,null,null,null,0,0,0,0]
[null,null,null,null,null,null,null,null,null,null,null,null,null,null,null,null,null,null,null,null,null,null,null,null,null,null,null,null,null,null,null,null,null,null,null,null,null,null,null,null,null,0,0,0,0]
[null,null,null,null,null,null,null,null,null,null,null,null,null,null,null,null,null,null,null,null,null,null,null,null,null,null,null,null,null,null,null,null,null,null,null,null,null,null,null,null,null,0,0,0,0]
[null,null,null,null,null,null,null,null,null,null,null,null,null,null,null,null,null,null,null,null,null,null,null,null,null,null,null,null,null,null,null,null,null,null,null,null,null,null,null,null,null,0,0,0,0]
[null,null,null,null,null,null,null,null,null,null,null,null,null,null,null,null,null,null,null,null,null,null,null,null,null,null,null,null,null,null,null,null,null,null,null,null,null,null,null,null,null,0,0,0,0]
[null,null,null,null,null,null,null,null,null,null,null,null,null,null,null,null,null,null,null,null,null,null,null,null,null,null,null,null,null,null,null,null,null,null,null,null,null,null,null,null,null,0,0,0,0]
[null,null,null,null,null,null,null,null,null,null,null,null,null,null,null,null,null,null,null,null,null,null,null,null,null,null,null,null,null,null,null,null,null,null,null,null,null,null,null,null,null,0,0,0,0]
[null,null,null,null,null,null,null,null,null,null,null,null,null,null,null,null,null,null,null,null,null,null,null,null,null,null,null,null,null,null,null,null,null,null,null,null,null,null,null,null,null,0,0,0,0]
[null,null,null,null,null,null,null,null,null,null,null,null,null,null,null,null,null,null,null,null,null,null,null,null,null,null,null,null,null,null,null,null,null,null,null,null,null,null,null,null,null,0,0,0,0]
[null,null,null,null,null,null,null,null,null,null,null,null,null,null,null,null,null,null,null,null,null,null,null,null,null,null,null,null,null,null,null,null,null,null,null,null,null,null,null,null,null,0,0,0,0]
[null,null,null,null,null,null,null,null,null,null,null,null,null,null,null,null,null,null,null,null,null,null,null,null,null,null,null,null,null,null,null,null,null,null,null,null,null,null,null,null,null,0,0,0,0]
[null,null,null,null,null,null,null,null,null,null,null,null,null,null,null,null,null,null,null,null,null,null,null,null,null,null,null,null,null,null,null,null,null,null,null,null,null,null,null,null,null,0,0,0,0]
[null,null,null,null,null,null,null,null,null,null,null,null,null,null,null,null,null,null,null,null,null,null,null,null,null,null,null,null,null,null,null,null,null,null,null,null,null,null,null,null,null,0,0,0,0]
[null,null,null,null,null,null,null,null,null,null,null,null,null,null,null,null,null,null,null,null,null,null,null,null,null,null,null,null,null,null,null,null,null,null,null,null,null,null,null,null,null,0,0,0,0]
[null,null,null,null,null,null,null,null,null,null,null,null,null,null,null,null,null,null,null,null,null,null,null,null,null,null,null,null,null,null,null,null,null,null,null,null,null,null,null,null,null,0,0,0,0]
[null,null,null,null,null,null,null,null,null,null,null,null,null,null,null,null,null,null,null,null,null,null,null,null,null,null,null,null,null,null,null,null,null,null,null,null,null,null,null,null,null,0,0,0,0]
[null,null,null,null,null,null,null,null,null,null,null,null,null,null,null,null,null,null,null,null,null,null,null,null,null,null,null,null,null,null,null,null,null,null,null,null,null,null,null,null,null,0,0,0,0]
[null,null,null,null,null,null,null,null,null,null,null,null,null,null,null,null,null,null,null,null,null,null,null,null,null,null,null,null,null,null,null,null,null,null,null,null,null,null,null,null,null,0,0,0,0]
[null,null,null,null,null,null,null,null,null,null,null,null,null,null,null,null,null,null,null,null,null,null,null,null,null,null,null,null,null,null,null,null,null,null,null,null,null,null,null,null,null,0,0,0,0]
[null,null,null,null,null,null,null,null,null,null,null,null,null,null,null,null,null,null,null,null,null,null,null,null,null,null,null,null,null,null,null,null,null,null,null,null,null,null,null,null,null,0,0,0,0]
[null,null,null,null,null,null,null,null,null,null,null,null,null,null,null,null,null,null,null,null,null,null,null,null,null,null,null,null,null,null,null,null,null,null,null,null,null,null,null,null,null,0,0,0,0]
[null,null,null,null,null,null,null,null,null,null,null,null,null,null,null,null,null,null,null,null,null,null,null,null,null,null,null,null,null,null,null,null,null,null,null,null,null,null,null,null,null,0,0,0,0]
[null,null,null,null,null,null,null,null,null,null,null,null,null,null,null,null,null,null,null,null,null,null,null,null,null,null,null,null,null,null,null,null,null,null,null,null,null,null,null,null,null,0,0,0,0]
[null,null,null,null,null,null,null,null,null,null,null,null,null,null,null,null,null,null,null,null,null,null,null,null,null,null,null,null,null,null,null,null,null,null,null,null,null,null,null,null,null,0,0,0,0]
[null,null,null,null,null,null,null,null,null,null,null,null,null,null,null,null,null,null,null,null,null,null,null,null,null,null,null,null,null,null,null,null,null,null,null,null,null,null,null,null,null,0,0,0,0]
[null,null,null,null,null,null,null,null,null,null,null,null,null,null,null,null,null,null,null,null,null,null,null,null,null,null,null,null,null,null,null,null,null,null,null,null,null,null,null,null,null,0,0,0,0]
[null,null,null,null,null,null,null,null,null,null,null,null,null,null,null,null,null,null,null,null,null,null,null,null,null,null,null,null,null,null,null,null,null,null,null,null,null,null,null,null,null,0,0,0,0]
[null,null,null,null,null,null,null,null,null,null,null,null,null,null,null,null,null,null,null,null,null,null,null,null,null,null,null,null,null,null,null,null,null,null,null,null,null,null,null,null,null,{"$f":"IF(AH131=\"Alimento\",AL131/AG131,0)","v":0},{"$f":"IF(AH131=\"Personal\",AL131/AG131,0)","v":0},{"$f":"IF(AH131=\"Dotación\",AL131/AG131,0)","v":0},{"$f":"SUM(AP131:AR131)","v":0}]
[null,null,null,null,null,null,null,null,null,null,null,null,null,null,null,null,null,null,null,null,null,null,null,null,null,null,null,null,null,null,null,null,null,null,null,null,null,null,null,null,null,0,0,0,0]
[null,null,null,null,null,null,null,null,null,null,null,null,null,null,null,null,null,null,null,null,null,null,null,null,null,null,null,null,null,null,null,null,null,null,null,null,null,null,null,null,null,0,0,0,0]
[null,null,null,null,null,null,null,null,null,null,null,null,null,null,null,null,null,null,null,null,null,null,null,null,null,null,null,null,null,null,null,null,null,null,null,null,null,null,null,null,null,0,0,0,0]
[null,null,null,null,null,null,null,null,null,null,null,null,null,null,null,null,null,null,null,null,null,null,null,null,null,null,null,null,null,null,null,null,null,null,null,null,null,null,null,null,null,0,0,0,0]
[null,null,null,null,null,null,null,null,null,null,null,null,null,null,null,null,null,null,null,null,null,null,null,null,null,null,null,null,null,null,null,null,null,null,null,null,null,null,null,null,null,0,0,0,0]
[null,null,null,null,null,null,null,null,null,null,null,null,null,null,null,null,null,null,null,null,null,null,null,null,null,null,null,null,null,null,null,null,null,null,null,null,null,null,null,null,null,0,0,0,0]
[null,null,null,null,null,null,null,null,null,null,null,null,null,null,null,null,null,null,null,null,null,null,null,null,null,null,null,null,null,null,null,null,null,null,null,null,null,null,null,null,null,0,0,0,0]
[null,null,null,null,null,null,null,null,null,null,null,null,null,null,null,null,null,null,null,null,null,null,null,null,null,null,null,null,null,null,null,null,null,null,null,null,null,null,null,null,null,0,0,0,0]
[null,null,null,null,null,null,null,null,null,null,null,null,null,null,null,null,null,null,null,null,null,null,null,null,null,null,null,null,null,null,null,null,null,null,null,null,null,null,null,null,null,0,0,0,0]
[null,null,null,null,null,null,null,null,null,null,null,null,null,null,null,null,null,null,null,null,null,null,null,null,null,null,null,null,null,null,null,null,null,null,null,null,null,null,null,null,null,0,0,0,0]
[null,null,null,null,null,null,null,null,null,null,null,null,null,null,null,null,null,null,null,null,null,null,null,null,null,null,null,null,null,null,null,null,null,null,null,null,null,null,null,null,null,0,0,0,0]
[null,null,null,null,null,null,null,null,null,null,null,null,null,null,null,null,null,null,null,null,null,null,null,null,null,null,null,null,null,null,null,null,null,null,null,null,null,null,null,null,null,0,0,0,0]
[null,null,null,null,null,null,null,null,null,null,null,null,null,null,null,null,null,null,null,null,null,null,null,null,null,null,null,null,null,null,null,null,null,null,null,null,null,null,null,null,null,0,0,0,0]
[null,null,null,null,null,null,null,null,null,null,null,null,null,null,null,null,null,null,null,null,null,null,null,null,null,null,null,null,null,null,null,null,null,null,null,null,null,null,null,null,null,0,0,0,0]
[null,null,null,null,null,null,null,null,null,null,null,null,null,null,null,null,null,null,null,null,null,null,null,null,null,null,null,null,null,null,null,null,null,null,null,null,null,null,null,null,null,0,0,0,0]
[null,null,null,null,null,null,null,null,null,null,null,null,null,null,null,null,null,null,null,null,null,null,null,null,null,null,null,null,null,null,null,null,null,null,null,null,null,null,null,null,null,0,0,0,0]
[null,null,null,null,null,null,null,null,null,null,null,null,null,null,null,null,null,null,null,null,null,null,null,null,null,null,null,null,null,null,null,null,null,null,null,null,null,null,null,null,null,0,0,0,0]
[null,null,null,null,null,null,null,null,null,null,null,null,null,null,null,null,null,null,null,null,null,null,null,null,null,null,null,null,null,null,null,null,null,null,null,null,null,null,null,null,null,0,0,0,0]
[null,null,null,null,null,null,null,null,null,null,null,null,null,null,null,null,null,null,null,null,null,null,null,null,null,null,null,null,null,null,null,null,null,null,null,null,null,null,null,null,null,0,0,0,0]
[null,null,null,null,null,null,null,null,null,null,null,null,null,null,null,null,null,null,null,null,null,null,null,null,null,null,null,null,null,null,null,null,null,null,null,null,null,null,null,null,null,0,0,0,0]
[null,null,null,null,null,null,null,null,null,null,null,null,null,null,null,null,null,null,null,null,null,null,null,null,null,null,null,null,null,null,null,null,null,null,null,null,null,null,null,null,null,0,0,0,0]
[null,null,null,null,null,null,null,null,null,null,null,null,null,null,null,null,null,null,null,null,null,null,null,null,null,null,null,null,null,null,null,null,null,null,null,null,null,null,null,null,null,0,0,0,0]
[null,null,null,null,null,null,null,null,null,null,null,null,null,null,null,null,null,null,null,null,null,null,null,null,null,null,null,null,null,null,null,null,null,null,null,null,null,null,null,null,null,0,0,0,0]
[null,null,null,null,null,null,null,null,null,null,null,null,null,null,null,null,null,null,null,null,null,null,null,null,null,null,null,null,null,null,null,null,null,null,null,null,null,null,null,null,null,0,0,0,0]
[null,null,null,null,null,null,null,null,null,null,null,null,null,null,null,null,null,null,null,null,null,null,null,null,null,null,null,null,null,null,null,null,null,null,null,null,null,null,null,null,null,0,0,0,0]
[null,null,null,null,null,null,null,null,null,null,null,null,null,null,null,null,null,null,null,null,null,null,null,null,null,null,null,null,null,null,null,null,null,null,null,null,null,null,null,null,null,0,0,0,0]
[null,null,null,null,null,null,null,null,null,null,null,null,null,null,null,null,null,null,null,null,null,null,null,null,null,null,null,null,null,null,null,null,null,null,null,null,null,null,null,null,null,0,0,0,0]
[null,null,null,null,null,null,null,null,null,null,null,null,null,null,null,null,null,null,null,null,null,null,null,null,null,null,null,null,null,null,null,null,null,null,null,null,null,null,null,null,null,0,0,0,0]
[null,null,null,null,null,null,null,null,null,null,null,null,null,null,null,null,null,null,null,null,null,null,null,null,null,null,null,null,null,null,null,null,null,null,null,null,null,null,null,null,null,0,0,0,0]
[null,null,null,null,null,null,null,null,null,null,null,null,null,null,null,null,null,null,null,null,null,null,null,null,null,null,null,null,null,null,null,null,null,null,null,null,null,null,null,null,null,0,0,0,0]
[null,null,null,null,null,null,null,null,null,null,null,null,null,null,null,null,null,null,null,null,null,null,null,null,null,null,null,null,null,null,null,null,null,null,null,null,null,null,null,null,null,0,0,0,0]
[null,null,null,null,null,null,null,null,null,null,null,null,null,null,null,null,null,null,null,null,null,null,null,null,null,null,null,null,null,null,null,null,null,null,null,null,null,null,null,null,null,0,0,0,0]
[null,null,null,null,null,null,null,null,null,null,null,null,null,null,null,null,null,null,null,null,null,null,null,null,null,null,null,null,null,null,null,null,null,null,null,null,null,null,null,null,null,0,0,0,0]
[null,null,null,null,null,null,null,null,null,null,null,null,null,null,null,null,null,null,null,null,null,null,null,null,null,null,null,null,null,null,null,null,null,null,null,null,null,null,null,null,null,0,0,0,0]
[null,null,null,null,null,null,null,null,null,null,null,null,null,null,null,null,null,null,null,null,null,null,null,null,null,null,null,null,null,null,null,null,null,null,null,null,null,null,null,null,null,0,0,0,0]
[null,null,null,null,null,null,null,null,null,null,null,null,null,null,null,null,null,null,null,null,null,null,null,null,null,null,null,null,null,null,null,null,null,null,null,null,null,null,null,null,null,0,0,0,0]
[null,null,null,null,null,null,null,null,null,null,null,null,null,null,null,null,null,null,null,null,null,null,null,null,null,null,null,null,null,null,null,null,null,null,null,null,null,null,null,null,null,0,0,0,0]
[null,null,null,null,null,null,null,null,null,null,null,null,null,null,null,null,null,null,null,null,null,null,null,null,null,null,null,null,null,null,null,null,null,null,null,null,null,null,null,null,null,0,0,0,0]
[null,null,null,null,null,null,null,null,null,null,null,null,null,null,null,null,null,null,null,null,null,null,null,null,null,null,null,null,null,null,null,null,null,null,null,null,null,null,null,null,null,0,0,0,0]
[null,null,null,null,null,null,null,null,null,null,null,null,null,null,null,null,null,null,null,null,null,null,null,null,null,null,null,null,null,null,null,null,null,null,null,null,null,null,null,null,null,0,0,0,0]
[null,null,null,null,null,null,null,null,null,null,null,null,null,null,null,null,null,null,null,null,null,null,null,null,null,null,null,null,null,null,null,null,null,null,null,null,null,null,null,null,null,0,0,0,0]
[null,null,null,null,null,null,null,null,null,null,null,null,null,null,null,null,null,null,null,null,null,null,null,null,null,null,null,null,null,null,null,null,null,null,null,null,null,null,null,null,null,0,0,0,0]
[null,null,null,null,null,null,null,null,null,null,null,null,null,null,null,null,null,null,null,null,null,null,null,null,null,null,null,null,null,null,null,null,null,null,null,null,null,null,null,null,null,0,0,0,0]
[null,null,null,null,null,null,null,null,null,null,null,null,null,null,null,null,null,null,null,null,null,null,null,null,null,null,null,null,null,null,null,null,null,null,null,null,null,null,null,null,null,0,0,0,0]
[null,null,null,null,null,null,null,null,null,null,null,null,null,null,null,null,null,null,null,null,null,null,null,null,null,null,null,null,null,null,null,null,null,null,null,null,null,null,null,null,null,0,0,0,0]
[null,null,null,null,null,null,null,null,null,null,null,null,null,null,null,null,null,null,null,null,null,null,null,null,null,null,null,null,null,null,null,null,null,null,null,null,null,null,null,null,null,0,0,0,0]
[null,null,null,null,null,null,null,null,null,null,null,null,null,null,null,null,null,null,null,null,null,null,null,null,null,null,null,null,null,null,null,null,null,null,null,null,null,null,null,null,null,0,0,0,0]
[null,null,null,null,null,null,null,null,null,null,null,null,null,null,null,null,null,null,null,null,null,null,null,null,null,null,null,null,null,null,null,null,null,null,null,null,null,null,null,null,null,0,0,0,0]
[null,null,null,null,null,null,null,null,null,null,null,null,null,null,null,null,null,null,null,null,null,null,null,null,null,null,null,null,null,null,null,null,null,null,null,null,null,null,null,null,null,0,0,0,0]
[null,null,null,null,null,null,null,null,null,null,null,null,null,null,null,null,null,null,null,null,null,null,null,null,null,null,null,null,null,null,null,null,null,null,null,null,null,null,null,null,null,0,0,0,0]
[null,null,null,null,null,null,null,null,null,null,null,null,null,null,null,null,null,null,null,null,null,null,null,null,null,null,null,null,null,null,null,null,null,null,null,null,null,null,null,null,null,0,0,0,0]
[null,null,null,null,null,null,null,null,null,null,null,null,null,null,null,null,null,null,null,null,null,null,null,null,null,null,null,null,null,null,null,null,null,null,null,null,null,null,null,null,null,0,0,0,0]
[null,null,null,null,null,null,null,null,null,null,null,null,null,null,null,null,null,null,null,null,null,null,null,null,null,null,null,null,null,null,null,null,null,null,null,null,null,null,null,null,null,0,0,0,0]
[null,null,null,null,null,null,null,null,null,null,null,null,null,null,null,null,null,null,null,null,null,null,null,null,null,null,null,null,null,null,null,null,null,null,null,null,null,null,null,null,null,0,0,0,0]
[null,null,null,null,null,null,null,null,null,null,null,null,null,null,null,null,null,null,null,null,null,null,null,null,null,null,null,null,null,null,null,null,null,null,null,null,null,null,null,null,null,0,0,0,0]
[null,null,null,null,null,null,null,null,null,null,null,null,null,null,null,null,null,null,null,null,null,null,null,null,null,null,null,null,null,null,null,null,null,null,null,null,null,null,null,null,null,0,0,0,0]
[null,null,null,null,null,null,null,null,null,null,null,null,null,null,null,null,null,null,null,null,null,null,null,null,null,null,null,null,null,null,null,null,null,null,null,null,null,null,null,null,null,0,0,0,0]
[null,null,null,null,null,null,null,null,null,null,null,null,null,null,null,null,null,null,null,null,null,null,null,null,null,null,null,null,null,null,null,null,null,null,null,null,null,null,null,null,null,0,0,0,0]
[null,null,null,null,null,null,null,null,null,null,null,null,null,null,null,null,null,null,null,null,null,null,null,null,null,null,null,null,null,null,null,null,null,null,null,null,null,null,null,null,null,0,0,0,0]
[null,null,null,null,null,null,null,null,null,null,null,null,null,null,null,null,null,null,null,null,null,null,null,null,null,null,null,null,null,null,null,null,null,null,null,null,null,null,null,null,null,0,0,0,0]
[null,null,null,null,null,null,null,null,null,null,null,null,null,null,null,null,null,null,null,null,null,null,null,null,null,null,null,null,null,null,null,null,null,null,null,null,null,null,null,null,null,0,0,0,0]
[null,null,null,null,null,null,null,null,null,null,null,null,null,null,null,null,null,null,null,null,null,null,null,null,null,null,null,null,null,null,null,null,null,null,null,null,null,null,null,null,null,0,0,0,0]
[null,null,null,null,null,null,null,null,null,null,null,null,null,null,null,null,null,null,null,null,null,null,null,null,null,null,null,null,null,null,null,null,null,null,null,null,null,null,null,null,null,0,0,0,0]
[null,null,null,null,null,null,null,null,null,null,null,null,null,null,null,null,null,null,null,null,null,null,null,null,null,null,null,null,null,null,null,null,null,null,null,null,null,null,null,null,null,{"$f":"IF(AH195=\"Alimento\",AL195/AG195,0)","v":0},{"$f":"IF(AH195=\"Personal\",AL195/AG195,0)","v":0},{"$f":"IF(AH195=\"Dotación\",AL195/AG195,0)","v":0},{"$f":"SUM(AP195:AR195)","v":0}]
[null,null,null,null,null,null,null,null,null,null,null,null,null,null,null,null,null,null,null,null,null,null,null,null,null,null,null,null,null,null,null,null,null,null,null,null,null,null,null,null,null,0,0,0,0]
[null,null,null,null,null,null,null,null,null,null,null,null,null,null,null,null,null,null,null,null,null,null,null,null,null,null,null,null,null,null,null,null,null,null,null,null,null,null,null,null,null,0,0,0,0]
[null,null,null,null,null,null,null,null,null,null,null,null,null,null,null,null,null,null,null,null,null,null,null,null,null,null,null,null,null,null,null,null,null,null,null,null,null,null,null,null,null,0,0,0,0]
[null,null,null,null,null,null,null,null,null,null,null,null,null,null,null,null,null,null,null,null,null,null,null,null,null,null,null,null,null,null,null,null,null,null,null,null,null,null,null,null,null,0,0,0,0]
[null,null,null,null,null,null,null,null,null,null,null,null,null,null,null,null,null,null,null,null,null,null,null,null,null,null,null,null,null,null,null,null,null,null,null,null,null,null,null,null,null,0,0,0,0]
[null,null,null,null,null,null,null,null,null,null,null,null,null,null,null,null,null,null,null,null,null,null,null,null,null,null,null,null,null,null,null,null,null,null,null,null,null,null,null,null,null,0,0,0,0]
[null,null,null,null,null,null,null,null,null,null,null,null,null,null,null,null,null,null,null,null,null,null,null,null,null,null,null,null,null,null,null,null,null,null,null,null,null,null,null,null,null,0,0,0,0]
[null,null,null,null,null,null,null,null,null,null,null,null,null,null,null,null,null,null,null,null,null,null,null,null,null,null,null,null,null,null,null,null,null,null,null,null,null,null,null,null,null,0,0,0,0]
[null,null,null,null,null,null,null,null,null,null,null,null,null,null,null,null,null,null,null,null,null,null,null,null,null,null,null,null,null,null,null,null,null,null,null,null,null,null,null,null,null,0,0,0,0]
[null,null,null,null,null,null,null,null,null,null,null,null,null,null,null,null,null,null,null,null,null,null,null,null,null,null,null,null,null,null,null,null,null,null,null,null,null,null,null,null,null,0,0,0,0]
[null,null,null,null,null,null,null,null,null,null,null,null,null,null,null,null,null,null,null,null,null,null,null,null,null,null,null,null,null,null,null,null,null,null,null,null,null,null,null,null,null,0,0,0,0]
[null,null,null,null,null,null,null,null,null,null,null,null,null,null,null,null,null,null,null,null,null,null,null,null,null,null,null,null,null,null,null,null,null,null,null,null,null,null,null,null,null,0,0,0,0]
[null,null,null,null,null,null,null,null,null,null,null,null,null,null,null,null,null,null,null,null,null,null,null,null,null,null,null,null,null,null,null,null,null,null,null,null,null,null,null,null,null,0,0,0,0]
[null,null,null,null,null,null,null,null,null,null,null,null,null,null,null,null,null,null,null,null,null,null,null,null,null,null,null,null,null,null,null,null,null,null,null,null,null,null,null,null,null,0,0,0,0]
[null,null,null,null,null,null,null,null,null,null,null,null,null,null,null,null,null,null,null,null,null,null,null,null,null,null,null,null,null,null,null,null,null,null,null,null,null,null,null,null,null,0,0,0,0]
[null,null,null,null,null,null,null,null,null,null,null,null,null,null,null,null,null,null,null,null,null,null,null,null,null,null,null,null,null,null,null,null,null,null,null,null,null,null,null,null,null,0,0,0,0]
[null,null,null,null,null,null,null,null,null,null,null,null,null,null,null,null,null,null,null,null,null,null,null,null,null,null,null,null,null,null,null,null,null,null,null,null,null,null,null,null,null,0,0,0,0]
[null,null,null,null,null,null,null,null,null,null,null,null,null,null,null,null,null,null,null,null,null,null,null,null,null,null,null,null,null,null,null,null,null,null,null,null,null,null,null,null,null,0,0,0,0]
[null,null,null,null,null,null,null,null,null,null,null,null,null,null,null,null,null,null,null,null,null,null,null,null,null,null,null,null,null,null,null,null,null,null,null,null,null,null,null,null,null,0,0,0,0]
[null,null,null,null,null,null,null,null,null,null,null,null,null,null,null,null,null,null,null,null,null,null,null,null,null,null,null,null,null,null,null,null,null,null,null,null,null,null,null,null,null,0,0,0,0]
[null,null,null,null,null,null,null,null,null,null,null,null,null,null,null,null,null,null,null,null,null,null,null,null,null,null,null,null,null,null,null,null,null,null,null,null,null,null,null,null,null,0,0,0,0]
[null,null,null,null,null,null,null,null,null,null,null,null,null,null,null,null,null,null,null,null,null,null,null,null,null,null,null,null,null,null,null,null,null,null,null,null,null,null,null,null,null,0,0,0,0]
[null,null,null,null,null,null,null,null,null,null,null,null,null,null,null,null,null,null,null,null,null,null,null,null,null,null,null,null,null,null,null,null,null,null,null,null,null,null,null,null,null,0,0,0,0]
[null,null,null,null,null,null,null,null,null,null,null,null,null,null,null,null,null,null,null,null,null,null,null,null,null,null,null,null,null,null,null,null,null,null,null,null,null,null,null,null,null,0,0,0,0]
[null,null,null,null,null,null,null,null,null,null,null,null,null,null,null,null,null,null,null,null,null,null,null,null,null,null,null,null,null,null,null,null,null,null,null,null,null,null,null,null,null,0,0,0,0]
[null,null,null,null,null,null,null,null,null,null,null,null,null,null,null,null,null,null,null,null,null,null,null,null,null,null,null,null,null,null,null,null,null,null,null,null,null,null,null,null,null,0,0,0,0]
[null,null,null,null,null,null,null,null,null,null,null,null,null,null,null,null,null,null,null,null,null,null,null,null,null,null,null,null,null,null,null,null,null,null,null,null,null,null,null,null,null,0,0,0,0]
[null,null,null,null,null,null,null,null,null,null,null,null,null,null,null,null,null,null,null,null,null,null,null,null,null,null,null,null,null,null,null,null,null,null,null,null,null,null,null,null,null,0,0,0,0]
[null,null,null,null,null,null,null,null,null,null,null,null,null,null,null,null,null,null,null,null,null,null,null,null,null,null,null,null,null,null,null,null,null,null,null,null,null,null,null,null,null,0,0,0,0]
[null,null,null,null,null,null,null,null,null,null,null,null,null,null,null,null,null,null,null,null,null,null,null,null,null,null,null,null,null,null,null,null,null,null,null,null,null,null,null,null,null,0,0,0,0]
[null,null,null,null,null,null,null,null,null,null,null,null,null,null,null,null,null,null,null,null,null,null,null,null,null,null,null,null,null,null,null,null,null,null,null,null,null,null,null,null,null,0,0,0,0]
[null,null,null,null,null,null,null,null,null,null,null,null,null,null,null,null,null,null,null,null,null,null,null,null,null,null,null,null,null,null,null,null,null,null,null,null,null,null,null,null,null,0,0,0,0]
[null,null,null,null,null,null,null,null,null,null,null,null,null,null,null,null,null,null,null,null,null,null,null,null,null,null,null,null,null,null,null,null,null,null,null,null,null,null,null,null,null,0,0,0,0]
[null,null,null,null,null,null,null,null,null,null,null,null,null,null,null,null,null,null,null,null,null,null,null,null,null,null,null,null,null,null,null,null,null,null,null,null,null,null,null,null,null,0,0,0,0]
[null,null,null,null,null,null,null,null,null,null,null,null,null,null,null,null,null,null,null,null,null,null,null,null,null,null,null,null,null,null,null,null,null,null,null,null,null,null,null,null,null,0,0,0,0]
[null,null,null,null,null,null,null,null,null,null,null,null,null,null,null,null,null,null,null,null,null,null,null,null,null,null,null,null,null,null,null,null,null,null,null,null,null,null,null,null,null,0,0,0,0]
[null,null,null,null,null,null,null,null,null,null,null,null,null,null,null,null,null,null,null,null,null,null,null,null,null,null,null,null,null,null,null,null,null,null,null,null,null,null,null,null,null,0,0,0,0]
[null,null,null,null,null,null,null,null,null,null,null,null,null,null,null,null,null,null,null,null,null,null,null,null,null,null,null,null,null,null,null,null,null,null,null,null,null,null,null,null,null,0,0,0,0]
[null,null,null,null,null,null,null,null,null,null,null,null,null,null,null,null,null,null,null,null,null,null,null,null,null,null,null,null,null,null,null,null,null,null,null,null,null,null,null,null,null,0,0,0,0]
[null,null,null,null,null,null,null,null,null,null,null,null,null,null,null,null,null,null,null,null,null,null,null,null,null,null,null,null,null,null,null,null,null,null,null,null,null,null,null,null,null,0,0,0,0]
[null,null,null,null,null,null,null,null,null,null,null,null,null,null,null,null,null,null,null,null,null,null,null,null,null,null,null,null,null,null,null,null,null,null,null,null,null,null,null,null,null,0,0,0,0]
[null,null,null,null,null,null,null,null,null,null,null,null,null,null,null,null,null,null,null,null,null,null,null,null,null,null,null,null,null,null,null,null,null,null,null,null,null,null,null,null,null,0,0,0,0]
[null,null,null,null,null,null,null,null,null,null,null,null,null,null,null,null,null,null,null,null,null,null,null,null,null,null,null,null,null,null,null,null,null,null,null,null,null,null,null,null,null,0,0,0,0]
[null,null,null,null,null,null,null,null,null,null,null,null,null,null,null,null,null,null,null,null,null,null,null,null,null,null,null,null,null,null,null,null,null,null,null,null,null,null,null,null,null,0,0,0,0]
[null,null,null,null,null,null,null,null,null,null,null,null,null,null,null,null,null,null,null,null,null,null,null,null,null,null,null,null,null,null,null,null,null,null,null,null,null,null,null,null,null,0,0,0,0]
[null,null,null,null,null,null,null,null,null,null,null,null,null,null,null,null,null,null,null,null,null,null,null,null,null,null,null,null,null,null,null,null,null,null,null,null,null,null,null,null,null,0,0,0,0]
[null,null,null,null,null,null,null,null,null,null,null,null,null,null,null,null,null,null,null,null,null,null,null,null,null,null,null,null,null,null,null,null,null,null,null,null,null,null,null,null,null,0,0,0,0]
[null,null,null,null,null,null,null,null,null,null,null,null,null,null,null,null,null,null,null,null,null,null,null,null,null,null,null,null,null,null,null,null,null,null,null,null,null,null,null,null,null,0,0,0,0]
[null,null,null,null,null,null,null,null,null,null,null,null,null,null,null,null,null,null,null,null,null,null,null,null,null,null,null,null,null,null,null,null,null,null,null,null,null,null,null,null,null,0,0,0,0]
[null,null,null,null,null,null,null,null,null,null,null,null,null,null,null,null,null,null,null,null,null,null,null,null,null,null,null,null,null,null,null,null,null,null,null,null,null,null,null,null,null,0,0,0,0]
[null,null,null,null,null,null,null,null,null,null,null,null,null,null,null,null,null,null,null,null,null,null,null,null,null,null,null,null,null,null,null,null,null,null,null,null,null,null,null,null,null,0,0,0,0]
[null,null,null,null,null,null,null,null,null,null,null,null,null,null,null,null,null,null,null,null,null,null,null,null,null,null,null,null,null,null,null,null,null,null,null,null,null,null,null,null,null,0,0,0,0]
[null,null,null,null,null,null,null,null,null,null,null,null,null,null,null,null,null,null,null,null,null,null,null,null,null,null,null,null,null,null,null,null,null,null,null,null,null,null,null,null,null,0,0,0,0]
[null,null,null,null,null,null,null,null,null,null,null,null,null,null,null,null,null,null,null,null,null,null,null,null,null,null,null,null,null,null,null,null,null,null,null,null,null,null,null,null,null,0,0,0,0]
[null,null,null,null,null,null,null,null,null,null,null,null,null,null,null,null,null,null,null,null,null,null,null,null,null,null,null,null,null,null,null,null,null,null,null,null,null,null,null,null,null,0,0,0,0]
[null,null,null,null,null,null,null,null,null,null,null,null,null,null,null,null,null,null,null,null,null,null,null,null,null,null,null,null,null,null,null,null,null,null,null,null,null,null,null,null,null,0,0,0,0]
[null,null,null,null,null,null,null,null,null,null,null,null,null,null,null,null,null,null,null,null,null,null,null,null,null,null,null,null,null,null,null,null,null,null,null,null,null,null,null,null,null,0,0,0,0]
[null,null,null,null,null,null,null,null,null,null,null,null,null,null,null,null,null,null,null,null,null,null,null,null,null,null,null,null,null,null,null,null,null,null,null,null,null,null,null,null,null,0,0,0,0]
[null,null,null,null,null,null,null,null,null,null,null,null,null,null,null,null,null,null,null,null,null,null,null,null,null,null,null,null,null,null,null,null,null,null,null,null,null,null,null,null,null,0,0,0,0]
[null,null,null,null,null,null,null,null,null,null,null,null,null,null,null,null,null,null,null,null,null,null,null,null,null,null,null,null,null,null,null,null,null,null,null,null,null,null,null,null,null,0,0,0,0]
[null,null,null,null,null,null,null,null,null,null,null,null,null,null,null,null,null,null,null,null,null,null,null,null,null,null,null,null,null,null,null,null,null,null,null,null,null,null,null,null,null,0,0,0,0]
[null,null,null,null,null,null,null,null,null,null,null,null,null,null,null,null,null,null,null,null,null,null,null,null,null,null,null,null,null,null,null,null,null,null,null,null,null,null,null,null,null,0,0,0,0]
[null,null,null,null,null,null,null,null,null,null,null,null,null,null,null,null,null,null,null,null,null,null,null,null,null,null,null,null,null,null,null,null,null,null,null,null,null,null,null,null,null,0,0,0,0]
[null,null,null,null,null,null,null,null,null,null,null,null,null,null,null,null,null,null,null,null,null,null,null,null,null,null,null,null,null,null,null,null,null,null,null,null,null,null,null,null,null,{"$f":"IF(AH259=\"Alimento\",AL259/AG259,0)","v":0},{"$f":"IF(AH259=\"Personal\",AL259/AG259,0)","v":0},{"$f":"IF(AH259=\"Dotación\",AL259/AG259,0)","v":0},{"$f":"SUM(AP259:AR259)","v":0}]
[null,null,null,null,null,null,null,null,null,null,null,null,null,null,null,null,null,null,null,null,null,null,null,null,null,null,null,null,null,null,null,null,null,null,null,null,null,null,null,null,null,0,0,0,0]
[null,null,null,null,null,null,null,null,null,null,null,null,null,null,null,null,null,null,null,null,null,null,null,null,null,null,null,null,null,null,null,null,null,null,null,null,null,null,null,null,null,0,0,0,0]
[null,null,null,null,null,null,null,null,null,null,null,null,null,null,null,null,null,null,null,null,null,null,null,null,null,null,null,null,null,null,null,null,null,null,null,null,null,null,null,null,null,0,0,0,0]
[null,null,null,null,null,null,null,null,null,null,null,null,null,null,null,null,null,null,null,null,null,null,null,null,null,null,null,null,null,null,null,null,null,null,null,null,null,null,null,null,null,0,0,0,0]
[null,null,null,null,null,null,null,null,null,null,null,null,null,null,null,null,null,null,null,null,null,null,null,null,null,null,null,null,null,null,null,null,null,null,null,null,null,null,null,null,null,0,0,0,0]
[null,null,null,null,null,null,null,null,null,null,null,null,null,null,null,null,null,null,null,null,null,null,null,null,null,null,null,null,null,null,null,null,null,null,null,null,null,null,null,null,null,0,0,0,0]
[null,null,null,null,null,null,null,null,null,null,null,null,null,null,null,null,null,null,null,null,null,null,null,null,null,null,null,null,null,null,null,null,null,null,null,null,null,null,null,null,null,0,0,0,0]
[null,null,null,null,null,null,null,null,null,null,null,null,null,null,null,null,null,null,null,null,null,null,null,null,null,null,null,null,null,null,null,null,null,null,null,null,null,null,null,null,null,0,0,0,0]
[null,null,null,null,null,null,null,null,null,null,null,null,null,null,null,null,null,null,null,null,null,null,null,null,null,null,null,null,null,null,null,null,null,null,null,null,null,null,null,null,null,0,0,0,0]
[null,null,null,null,null,null,null,null,null,null,null,null,null,null,null,null,null,null,null,null,null,null,null,null,null,null,null,null,null,null,null,null,null,null,null,null,null,null,null,null,null,0,0,0,0]
[null,null,null,null,null,null,null,null,null,null,null,null,null,null,null,null,null,null,null,null,null,null,null,null,null,null,null,null,null,null,null,null,null,null,null,null,null,null,null,null,null,0,0,0,0]
[null,null,null,null,null,null,null,null,null,null,null,null,null,null,null,null,null,null,null,null,null,null,null,null,null,null,null,null,null,null,null,null,null,null,null,null,null,null,null,null,null,0,0,0,0]
[null,null,null,null,null,null,null,null,null,null,null,null,null,null,null,null,null,null,null,null,null,null,null,null,null,null,null,null,null,null,null,null,null,null,null,null,null,null,null,null,null,0,0,0,0]
[null,null,null,null,null,null,null,null,null,null,null,null,null,null,null,null,null,null,null,null,null,null,null,null,null,null,null,null,null,null,null,null,null,null,null,null,null,null,null,null,null,0,0,0,0]
[null,null,null,null,null,null,null,null,null,null,null,null,null,null,null,null,null,null,null,null,null,null,null,null,null,null,null,null,null,null,null,null,null,null,null,null,null,null,null,null,null,0,0,0,0]
[null,null,null,null,null,null,null,null,null,null,null,null,null,null,null,null,null,null,null,null,null,null,null,null,null,null,null,null,null,null,null,null,null,null,null,null,null,null,null,null,null,0,0,0,0]
[null,null,null,null,null,null,null,null,null,null,null,null,null,null,null,null,null,null,null,null,null,null,null,null,null,null,null,null,null,null,null,null,null,null,null,null,null,null,null,null,null,0,0,0,0]
[null,null,null,null,null,null,null,null,null,null,null,null,null,null,null,null,null,null,null,null,null,null,null,null,null,null,null,null,null,null,null,null,null,null,null,null,null,null,null,null,null,0,0,0,0]
[null,null,null,null,null,null,null,null,null,null,null,null,null,null,null,null,null,null,null,null,null,null,null,null,null,null,null,null,null,null,null,null,null,null,null,null,null,null,null,null,null,0,0,0,0]
[null,null,null,null,null,null,null,null,null,null,null,null,null,null,null,null,null,null,null,null,null,null,null,null,null,null,null,null,null,null,null,null,null,null,null,null,null,null,null,null,null,0,0,0,0]
[null,null,null,null,null,null,null,null,null,null,null,null,null,null,null,null,null,null,null,null,null,null,null,null,null,null,null,null,null,null,null,null,null,null,null,null,null,null,null,null,null,0,0,0,0]
[null,null,null,null,null,null,null,null,null,null,null,null,null,null,null,null,null,null,null,null,null,null,null,null,null,null,null,null,null,null,null,null,null,null,null,null,null,null,null,null,null,0,0,0,0]
[null,null,null,null,null,null,null,null,null,null,null,null,null,null,null,null,null,null,null,null,null,null,null,null,null,null,null,null,null,null,null,null,null,null,null,null,null,null,null,null,null,0,0,0,0]
[null,null,null,null,null,null,null,null,null,null,null,null,null,null,null,null,null,null,null,null,null,null,null,null,null,null,null,null,null,null,null,null,null,null,null,null,null,null,null,null,null,0,0,0,0]
[null,null,null,null,null,null,null,null,null,null,null,null,null,null,null,null,null,null,null,null,null,null,null,null,null,null,null,null,null,null,null,null,null,null,null,null,null,null,null,null,null,0,0,0,0]
[null,null,null,null,null,null,null,null,null,null,null,null,null,null,null,null,null,null,null,null,null,null,null,null,null,null,null,null,null,null,null,null,null,null,null,null,null,null,null,null,null,0,0,0,0]
[null,null,null,null,null,null,null,null,null,null,null,null,null,null,null,null,null,null,null,null,null,null,null,null,null,null,null,null,null,null,null,null,null,null,null,null,null,null,null,null,null,0,0,0,0]
[null,null,null,null,null,null,null,null,null,null,null,null,null,null,null,null,null,null,null,null,null,null,null,null,null,null,null,null,null,null,null,null,null,null,null,null,null,null,null,null,null,0,0,0,0]
[null,null,null,null,null,null,null,null,null,null,null,null,null,null,null,null,null,null,null,null,null,null,null,null,null,null,null,null,null,null,null,null,null,null,null,null,null,null,null,null,null,0,0,0,0]
[null,null,null,null,null,null,null,null,null,null,null,null,null,null,null,null,null,null,null,null,null,null,null,null,null,null,null,null,null,null,null,null,null,null,null,null,null,null,null,null,null,0,0,0,0]
[null,null,null,null,null,null,null,null,null,null,null,null,null,null,null,null,null,null,null,null,null,null,null,null,null,null,null,null,null,null,null,null,null,null,null,null,null,null,null,null,null,0,0,0,0]
[null,null,null,null,null,null,null,null,null,null,null,null,null,null,null,null,null,null,null,null,null,null,null,null,null,null,null,null,null,null,null,null,null,null,null,null,null,null,null,null,null,0,0,0,0]
[null,null,null,null,null,null,null,null,null,null,null,null,null,null,null,null,null,null,null,null,null,null,null,null,null,null,null,null,null,null,null,null,null,null,null,null,null,null,null,null,null,0,0,0,0]
[null,null,null,null,null,null,null,null,null,null,null,null,null,null,null,null,null,null,null,null,null,null,null,null,null,null,null,null,null,null,null,null,null,null,null,null,null,null,null,null,null,0,0,0,0]
[null,null,null,null,null,null,null,null,null,null,null,null,null,null,null,null,null,null,null,null,null,null,null,null,null,null,null,null,null,null,null,null,null,null,null,null,null,null,null,null,null,0,0,0,0]
[null,null,null,null,null,null,null,null,null,null,null,null,null,null,null,null,null,null,null,null,null,null,null,null,null,null,null,null,null,null,null,null,null,null,null,null,null,null,null,null,null,0,0,0,0]
[null,null,null,null,null,null,null,null,null,null,null,null,null,null,null,null,null,null,null,null,null,null,null,null,null,null,null,null,null,null,null,null,null,null,null,null,null,null,null,null,null,0,0,0,0]
[null,null,null,null,null,null,null,null,null,null,null,null,null,null,null,null,null,null,null,null,null,null,null,null,null,null,null,null,null,null,null,null,null,null,null,null,null,null,null,null,null,0,0,0,0]
[null,null,null,null,null,null,null,null,null,null,null,null,null,null,null,null,null,null,null,null,null,null,null,null,null,null,null,null,null,null,null,null,null,null,null,null,null,null,null,null,null,0,0,0,0]
[null,null,null,null,null,null,null,null,null,null,null,null,null,null,null,null,null,null,null,null,null,null,null,null,null,null,null,null,null,null,null,null,null,null,null,null,null,null,null,null,null,0,0,0,0]
[null,null,null,null,null,null,null,null,null,null,null,null,null,null,null,null,null,null,null,null,null,null,null,null,null,null,null,null,null,null,null,null,null,null,null,null,null,null,null,null,null,0,0,0,0]
[null,null,null,null,null,null,null,null,null,null,null,null,null,null,null,null,null,null,null,null,null,null,null,null,null,null,null,null,null,null,null,null,null,null,null,null,null,null,null,null,null,0,0,0,0]
[null,null,null,null,null,null,null,null,null,null,null,null,null,null,null,null,null,null,null,null,null,null,null,null,null,null,null,null,null,null,null,null,null,null,null,null,null,null,null,null,null,0,0,0,0]
[null,null,null,null,null,null,null,null,null,null,null,null,null,null,null,null,null,null,null,null,null,null,null,null,null,null,null,null,null,null,null,null,null,null,null,null,null,null,null,null,null,0,0,0,0]
[null,null,null,null,null,null,null,null,null,null,null,null,null,null,null,null,null,null,null,null,null,null,null,null,null,null,null,null,null,null,null,null,null,null,null,null,null,null,null,null,null,0,0,0,0]
[null,null,null,null,null,null,null,null,null,null,null,null,null,null,null,null,null,null,null,null,null,null,null,null,null,null,null,null,null,null,null,null,null,null,null,null,null,null,null,null,null,0,0,0,0]
[null,null,null,null,null,null,null,null,null,null,null,null,null,null,null,null,null,null,null,null,null,null,null,null,null,null,null,null,null,null,null,null,null,null,null,null,null,null,null,null,null,0,0,0,0]
[null,null,null,null,null,null,null,null,null,null,null,null,null,null,null,null,null,null,null,null,null,null,null,null,null,null,null,null,null,null,null,null,null,null,null,null,null,null,null,null,null,0,0,0,0]
[null,null,null,null,null,null,null,null,null,null,null,null,null,null,null,null,null,null,null,null,null,null,null,null,null,null,null,null,null,null,null,null,null,null,null,null,null,null,null,null,null,0,0,0,0]
[null,null,null,null,null,null,null,null,null,null,null,null,null,null,null,null,null,null,null,null,null,null,null,null,null,null,null,null,null,null,null,null,null,null,null,null,null,null,null,null,null,0,0,0,0]
[null,null,null,null,null,null,null,null,null,null,null,null,null,null,null,null,null,null,null,null,null,null,null,null,null,null,null,null,null,null,null,null,null,null,null,null,null,null,null,null,null,0,0,0,0]
[null,null,null,null,null,null,null,null,null,null,null,null,null,null,null,null,null,null,null,null,null,null,null,null,null,null,null,null,null,null,null,null,null,null,null,null,null,null,null,null,null,0,0,0,0]
[null,null,null,null,null,null,null,null,null,null,null,null,null,null,null,null,null,null,null,null,null,null,null,null,null,null,null,null,null,null,null,null,null,null,null,null,null,null,null,null,null,0,0,0,0]
[null,null,null,null,null,null,null,null,null,null,null,null,null,null,null,null,null,null,null,null,null,null,null,null,null,null,null,null,null,null,null,null,null,null,null,null,null,null,null,null,null,0,0,0,0]
[null,null,null,null,null,null,null,null,null,null,null,null,null,null,null,null,null,null,null,null,null,null,null,null,null,null,null,null,null,null,null,null,null,null,null,null,null,null,null,null,null,0,0,0,0]
[null,null,null,null,null,null,null,null,null,null,null,null,null,null,null,null,null,null,null,null,null,null,null,null,null,null,null,null,null,null,null,null,null,null,null,null,null,null,null,null,null,0,0,0,0]
[null,null,null,null,null,null,null,null,null,null,null,null,null,null,null,null,null,null,null,null,null,null,null,null,null,null,null,null,null,null,null,null,null,null,null,null,null,null,null,null,null,0,0,0,0]
[null,null,null,null,null,null,null,null,null,null,null,null,null,null,null,null,null,null,null,null,null,null,null,null,null,null,null,null,null,null,null,null,null,null,null,null,null,null,null,null,null,0,0,0,0]
[null,null,null,null,null,null,null,null,null,null,null,null,null,null,null,null,null,null,null,null,null,null,null,null,null,null,null,null,null,null,null,null,null,null,null,null,null,null,null,null,null,0,0,0,0]
[null,null,null,null,null,null,null,null,null,null,null,null,null,null,null,null,null,null,null,null,null,null,null,null,null,null,null,null,null,null,null,null,null,null,null,null,null,null,null,null,null,0,0,0,0]
[null,null,null,null,null,null,null,null,null,null,null,null,null,null,null,null,null,null,null,null,null,null,null,null,null,null,null,null,null,null,null,null,null,null,null,null,null,null,null,null,null,0,0,0,0]
[null,null,null,null,null,null,null,null,null,null,null,null,null,null,null,null,null,null,null,null,null,null,null,null,null,null,null,null,null,null,null,null,null,null,null,null,null,null,null,null,null,0,0,0,0]
[null,null,null,null,null,null,null,null,null,null,null,null,null,null,null,null,null,null,null,null,null,null,null,null,null,null,null,null,null,null,null,null,null,null,null,null,null,null,null,null,null,0,0,0,0]
[null,null,null,null,null,null,null,null,null,null,null,null,null,null,null,null,null,null,null,null,null,null,null,null,null,null,null,null,null,null,null,null,null,null,null,null,null,null,null,null,null,{"$f":"IF(AH323=\"Alimento\",AL323/AG323,0)","v":0},{"$f":"IF(AH323=\"Personal\",AL323/AG323,0)","v":0},{"$f":"IF(AH323=\"Dotación\",AL323/AG323,0)","v":0},{"$f":"SUM(AP323:AR323)","v":0}]
[null,null,null,null,null,null,null,null,null,null,null,null,null,null,null,null,null,null,null,null,null,null,null,null,null,null,null,null,null,null,null,null,null,null,null,null,null,null,null,null,null,0,0,0,0]
[null,null,null,null,null,null,null,null,null,null,null,null,null,null,null,null,null,null,null,null,null,null,null,null,null,null,null,null,null,null,null,null,null,null,null,null,null,null,null,null,null,0,0,0,0]
[null,null,null,null,null,null,null,null,null,null,null,null,null,null,null,null,null,null,null,null,null,null,null,null,null,null,null,null,null,null,null,null,null,null,null,null,null,null,null,null,null,0,0,0,0]
[null,null,null,null,null,null,null,null,null,null,null,null,null,null,null,null,null,null,null,null,null,null,null,null,null,null,null,null,null,null,null,null,null,null,null,null,null,null,null,null,null,0,0,0,0]
[null,null,null,null,null,null,null,null,null,null,null,null,null,null,null,null,null,null,null,null,null,null,null,null,null,null,null,null,null,null,null,null,null,null,null,null,null,null,null,null,null,0,0,0,0]
[null,null,null,null,null,null,null,null,null,null,null,null,null,null,null,null,null,null,null,null,null,null,null,null,null,null,null,null,null,null,null,null,null,null,null,null,null,null,null,null,null,0,0,0,0]
[null,null,null,null,null,null,null,null,null,null,null,null,null,null,null,null,null,null,null,null,null,null,null,null,null,null,null,null,null,null,null,null,null,null,null,null,null,null,null,null,null,0,0,0,0]
[null,null,null,null,null,null,null,null,null,null,null,null,null,null,null,null,null,null,null,null,null,null,null,null,null,null,null,null,null,null,null,null,null,null,null,null,null,null,null,null,null,0,0,0,0]
[null,null,null,null,null,null,null,null,null,null,null,null,null,null,null,null,null,null,null,null,null,null,null,null,null,null,null,null,null,null,null,null,null,null,null,null,null,null,null,null,null,0,0,0,0]
[null,null,null,null,null,null,null,null,null,null,null,null,null,null,null,null,null,null,null,null,null,null,null,null,null,null,null,null,null,null,null,null,null,null,null,null,null,null,null,null,null,0,0,0,0]
[null,null,null,null,null,null,null,null,null,null,null,null,null,null,null,null,null,null,null,null,null,null,null,null,null,null,null,null,null,null,null,null,null,null,null,null,null,null,null,null,null,0,0,0,0]
[null,null,null,null,null,null,null,null,null,null,null,null,null,null,null,null,null,null,null,null,null,null,null,null,null,null,null,null,null,null,null,null,null,null,null,null,null,null,null,null,null,0,0,0,0]
[null,null,null,null,null,null,null,null,null,null,null,null,null,null,null,null,null,null,null,null,null,null,null,null,null,null,null,null,null,null,null,null,null,null,null,null,null,null,null,null,null,0,0,0,0]
[null,null,null,null,null,null,null,null,null,null,null,null,null,null,null,null,null,null,null,null,null,null,null,null,null,null,null,null,null,null,null,null,null,null,null,null,null,null,null,null,null,0,0,0,0]
[null,null,null,null,null,null,null,null,null,null,null,null,null,null,null,null,null,null,null,null,null,null,null,null,null,null,null,null,null,null,null,null,null,null,null,null,null,null,null,null,null,0,0,0,0]
[null,null,null,null,null,null,null,null,null,null,null,null,null,null,null,null,null,null,null,null,null,null,null,null,null,null,null,null,null,null,null,null,null,null,null,null,null,null,null,null,null,0,0,0,0]
[null,null,null,null,null,null,null,null,null,null,null,null,null,null,null,null,null,null,null,null,null,null,null,null,null,null,null,null,null,null,null,null,null,null,null,null,null,null,null,null,null,0,0,0,0]
[null,null,null,null,null,null,null,null,null,null,null,null,null,null,null,null,null,null,null,null,null,null,null,null,null,null,null,null,null,null,null,null,null,null,null,null,null,null,null,null,null,0,0,0,0]
[null,null,null,null,null,null,null,null,null,null,null,null,null,null,null,null,null,null,null,null,null,null,null,null,null,null,null,null,null,null,null,null,null,null,null,null,null,null,null,null,null,0,0,0,0]
[null,null,null,null,null,null,null,null,null,null,null,null,null,null,null,null,null,null,null,null,null,null,null,null,null,null,null,null,null,null,null,null,null,null,null,null,null,null,null,null,null,0,0,0,0]
[null,null,null,null,null,null,null,null,null,null,null,null,null,null,null,null,null,null,null,null,null,null,null,null,null,null,null,null,null,null,null,null,null,null,null,null,null,null,null,null,null,0,0,0,0]
[null,null,null,null,null,null,null,null,null,null,null,null,null,null,null,null,null,null,null,null,null,null,null,null,null,null,null,null,null,null,null,null,null,null,null,null,null,null,null,null,null,0,0,0,0]
[null,null,null,null,null,null,null,null,null,null,null,null,null,null,null,null,null,null,null,null,null,null,null,null,null,null,null,null,null,null,null,null,null,null,null,null,null,null,null,null,null,0,0,0,0]
[null,null,null,null,null,null,null,null,null,null,null,null,null,null,null,null,null,null,null,null,null,null,null,null,null,null,null,null,null,null,null,null,null,null,null,null,null,null,null,null,null,0,0,0,0]
[null,null,null,null,null,null,null,null,null,null,null,null,null,null,null,null,null,null,null,null,null,null,null,null,null,null,null,null,null,null,null,null,null,null,null,null,null,null,null,null,null,0,0,0,0]
[null,null,null,null,null,null,null,null,null,null,null,null,null,null,null,null,null,null,null,null,null,null,null,null,null,null,null,null,null,null,null,null,null,null,null,null,null,null,null,null,null,0,0,0,0]
[null,null,null,null,null,null,null,null,null,null,null,null,null,null,null,null,null,null,null,null,null,null,null,null,null,null,null,null,null,null,null,null,null,null,null,null,null,null,null,null,null,0,0,0,0]
[null,null,null,null,null,null,null,null,null,null,null,null,null,null,null,null,null,null,null,null,null,null,null,null,null,null,null,null,null,null,null,null,null,null,null,null,null,null,null,null,null,0,0,0,0]
[null,null,null,null,null,null,null,null,null,null,null,null,null,null,null,null,null,null,null,null,null,null,null,null,null,null,null,null,null,null,null,null,null,null,null,null,null,null,null,null,null,0,0,0,0]
[null,null,null,null,null,null,null,null,null,null,null,null,null,null,null,null,null,null,null,null,null,null,null,null,null,null,null,null,null,null,null,null,null,null,null,null,null,null,null,null,null,0,0,0,0]
[null,null,null,null,null,null,null,null,null,null,null,null,null,null,null,null,null,null,null,null,null,null,null,null,null,null,null,null,null,null,null,null,null,null,null,null,null,null,null,null,null,0,0,0,0]
[null,null,null,null,null,null,null,null,null,null,null,null,null,null,null,null,null,null,null,null,null,null,null,null,null,null,null,null,null,null,null,null,null,null,null,null,null,null,null,null,null,0,0,0,0]
[null,null,null,null,null,null,null,null,null,null,null,null,null,null,null,null,null,null,null,null,null,null,null,null,null,null,null,null,null,null,null,null,null,null,null,null,null,null,null,null,null,0,0,0,0]
[null,null,null,null,null,null,null,null,null,null,null,null,null,null,null,null,null,null,null,null,null,null,null,null,null,null,null,null,null,null,null,null,null,null,null,null,null,null,null,null,null,0,0,0,0]
[null,null,null,null,null,null,null,null,null,null,null,null,null,null,null,null,null,null,null,null,null,null,null,null,null,null,null,null,null,null,null,null,null,null,null,null,null,null,null,null,null,0,0,0,0]
[null,null,null,null,null,null,null,null,null,null,null,null,null,null,null,null,null,null,null,null,null,null,null,null,null,null,null,null,null,null,null,null,null,null,null,null,null,null,null,null,null,0,0,0,0]
[null,null,null,null,null,null,null,null,null,null,null,null,null,null,null,null,null,null,null,null,null,null,null,null,null,null,null,null,null,null,null,null,null,null,null,null,null,null,null,null,null,0,0,0,0]
[null,null,null,null,null,null,null,null,null,null,null,null,null,null,null,null,null,null,null,null,null,null,null,null,null,null,null,null,null,null,null,null,null,null,null,null,null,null,null,null,null,0,0,0,0]
[null,null,null,null,null,null,null,null,null,null,null,null,null,null,null,null,null,null,null,null,null,null,null,null,null,null,null,null,null,null,null,null,null,null,null,null,null,null,null,null,null,0,0,0,0]
[null,null,null,null,null,null,null,null,null,null,null,null,null,null,null,null,null,null,null,null,null,null,null,null,null,null,null,null,null,null,null,null,null,null,null,null,null,null,null,null,null,0,0,0,0]
[null,null,null,null,null,null,null,null,null,null,null,null,null,null,null,null,null,null,null,null,null,null,null,null,null,null,null,null,null,null,null,null,null,null,null,null,null,null,null,null,null,0,0,0,0]
[null,null,null,null,null,null,null,null,null,null,null,null,null,null,null,null,null,null,null,null,null,null,null,null,null,null,null,null,null,null,null,null,null,null,null,null,null,null,null,null,null,0,0,0,0]
[null,null,null,null,null,null,null,null,null,null,null,null,null,null,null,null,null,null,null,null,null,null,null,null,null,null,null,null,null,null,null,null,null,null,null,null,null,null,null,null,null,0,0,0,0]
[null,null,null,null,null,null,null,null,null,null,null,null,null,null,null,null,null,null,null,null,null,null,null,null,null,null,null,null,null,null,null,null,null,null,null,null,null,null,null,null,null,0,0,0,0]
[null,null,null,null,null,null,null,null,null,null,null,null,null,null,null,null,null,null,null,null,null,null,null,null,null,null,null,null,null,null,null,null,null,null,null,null,null,null,null,null,null,0,0,0,0]
[null,null,null,null,null,null,null,null,null,null,null,null,null,null,null,null,null,null,null,null,null,null,null,null,null,null,null,null,null,null,null,null,null,null,null,null,null,null,null,null,null,0,0,0,0]
[null,null,null,null,null,null,null,null,null,null,null,null,null,null,null,null,null,null,null,null,null,null,null,null,null,null,null,null,null,null,null,null,null,null,null,null,null,null,null,null,null,0,0,0,0]
[null,null,null,null,null,null,null,null,null,null,null,null,null,null,null,null,null,null,null,null,null,null,null,null,null,null,null,null,null,null,null,null,null,null,null,null,null,null,null,null,null,0,0,0,0]
[null,null,null,null,null,null,null,null,null,null,null,null,null,null,null,null,null,null,null,null,null,null,null,null,null,null,null,null,null,null,null,null,null,null,null,null,null,null,null,null,null,0,0,0,0]
[null,null,null,null,null,null,null,null,null,null,null,null,null,null,null,null,null,null,null,null,null,null,null,null,null,null,null,null,null,null,null,null,null,null,null,null,null,null,null,null,null,0,0,0,0]
[null,null,null,null,null,null,null,null,null,null,null,null,null,null,null,null,null,null,null,null,null,null,null,null,null,null,null,null,null,null,null,null,null,null,null,null,null,null,null,null,null,0,0,0,0]
[null,null,null,null,null,null,null,null,null,null,null,null,null,null,null,null,null,null,null,null,null,null,null,null,null,null,null,null,null,null,null,null,null,null,null,null,null,null,null,null,null,0,0,0,0]
[null,null,null,null,null,null,null,null,null,null,null,null,null,null,null,null,null,null,null,null,null,null,null,null,null,null,null,null,null,null,null,null,null,null,null,null,null,null,null,null,null,0,0,0,0]
[null,null,null,null,null,null,null,null,null,null,null,null,null,null,null,null,null,null,null,null,null,null,null,null,null,null,null,null,null,null,null,null,null,null,null,null,null,null,null,null,null,0,0,0,0]
[null,null,null,null,null,null,null,null,null,null,null,null,null,null,null,null,null,null,null,null,null,null,null,null,null,null,null,null,null,null,null,null,null,null,null,null,null,null,null,null,null,0,0,0,0]
[null,null,null,null,null,null,null,null,null,null,null,null,null,null,null,null,null,null,null,null,null,null,null,null,null,null,null,null,null,null,null,null,null,null,null,null,null,null,null,null,null,0,0,0,0]
[null,null,null,null,null,null,null,null,null,null,null,null,null,null,null,null,null,null,null,null,null,null,null,null,null,null,null,null,null,null,null,null,null,null,null,null,null,null,null,null,null,0,0,0,0]
[null,null,null,null,null,null,null,null,null,null,null,null,null,null,null,null,null,null,null,null,null,null,null,null,null,null,null,null,null,null,null,null,null,null,null,null,null,null,null,null,null,0,0,0,0]
[null,null,null,null,null,null,null,null,null,null,null,null,null,null,null,null,null,null,null,null,null,null,null,null,null,null,null,null,null,null,null,null,null,null,null,null,null,null,null,null,null,0,0,0,0]
[null,null,null,null,null,null,null,null,null,null,null,null,null,null,null,null,null,null,null,null,null,null,null,null,null,null,null,null,null,null,null,null,null,null,null,null,null,null,null,null,null,0,0,0,0]
[null,null,null,null,null,null,null,null,null,null,null,null,null,null,null,null,null,null,null,null,null,null,null,null,null,null,null,null,null,null,null,null,null,null,null,null,null,null,null,null,null,0,0,0,0]
[null,null,null,null,null,null,null,null,null,null,null,null,null,null,null,null,null,null,null,null,null,null,null,null,null,null,null,null,null,null,null,null,null,null,null,null,null,null,null,null,null,0,0,0,0]
[null,null,null,null,null,null,null,null,null,null,null,null,null,null,null,null,null,null,null,null,null,null,null,null,null,null,null,null,null,null,null,null,null,null,null,null,null,null,null,null,null,0,0,0,0]
[null,null,null,null,null,null,null,null,null,null,null,null,null,null,null,null,null,null,null,null,null,null,null,null,null,null,null,null,null,null,null,null,null,null,null,null,null,null,null,null,null,{"$f":"IF(AH387=\"Alimento\",AL387/AG387,0)","v":0},{"$f":"IF(AH387=\"Personal\",AL387/AG387,0)","v":0},{"$f":"IF(AH387=\"Dotación\",AL387/AG387,0)","v":0},{"$f":"SUM(AP387:AR387)","v":0}]
[null,null,null,null,null,null,null,null,null,null,null,null,null,null,null,null,null,null,null,null,null,null,null,null,null,null,null,null,null,null,null,null,null,null,null,null,null,null,null,null,null,0,0,0,0]
[null,null,null,null,null,null,null,null,null,null,null,null,null,null,null,null,null,null,null,null,null,null,null,null,null,null,null,null,null,null,null,null,null,null,null,null,null,null,null,null,null,0,0,0,0]
[null,null,null,null,null,null,null,null,null,null,null,null,null,null,null,null,null,null,null,null,null,null,null,null,null,null,null,null,null,null,null,null,null,null,null,null,null,null,null,null,null,0,0,0,0]
[null,null,null,null,null,null,null,null,null,null,null,null,null,null,null,null,null,null,null,null,null,null,null,null,null,null,null,null,null,null,null,null,null,null,null,null,null,null,null,null,null,0,0,0,0]
[null,null,null,null,null,null,null,null,null,null,null,null,null,null,null,null,null,null,null,null,null,null,null,null,null,null,null,null,null,null,null,null,null,null,null,null,null,null,null,null,null,0,0,0,0]
[null,null,null,null,null,null,null,null,null,null,null,null,null,null,null,null,null,null,null,null,null,null,null,null,null,null,null,null,null,null,null,null,null,null,null,null,null,null,null,null,null,0,0,0,0]
[null,null,null,null,null,null,null,null,null,null,null,null,null,null,null,null,null,null,null,null,null,null,null,null,null,null,null,null,null,null,null,null,null,null,null,null,null,null,null,null,null,0,0,0,0]
[null,null,null,null,null,null,null,null,null,null,null,null,null,null,null,null,null,null,null,null,null,null,null,null,null,null,null,null,null,null,null,null,null,null,null,null,null,null,null,null,null,0,0,0,0]
[null,null,null,null,null,null,null,null,null,null,null,null,null,null,null,null,null,null,null,null,null,null,null,null,null,null,null,null,null,null,null,null,null,null,null,null,null,null,null,null,null,0,0,0,0]
[null,null,null,null,null,null,null,null,null,null,null,null,null,null,null,null,null,null,null,null,null,null,null,null,null,null,null,null,null,null,null,null,null,null,null,null,null,null,null,null,null,0,0,0,0]
[null,null,null,null,null,null,null,null,null,null,null,null,null,null,null,null,null,null,null,null,null,null,null,null,null,null,null,null,null,null,null,null,null,null,null,null,null,null,null,null,null,0,0,0,0]
[null,null,null,null,null,null,null,null,null,null,null,null,null,null,null,null,null,null,null,null,null,null,null,null,null,null,null,null,null,null,null,null,null,null,null,null,null,null,null,null,null,0,0,0,0]
[null,null,null,null,null,null,null,null,null,null,null,null,null,null,null,null,null,null,null,null,null,null,null,null,null,null,null,null,null,null,null,null,null,null,null,null,null,null,null,null,null,0,0,0,0]
[null,null,null,null,null,null,null,null,null,null,null,null,null,null,null,null,null,null,null,null,null,null,null,null,null,null,null,null,null,null,null,null,null,null,null,null,null,null,null,null,null,0,0,0,0]
[null,null,null,null,null,null,null,null,null,null,null,null,null,null,null,null,null,null,null,null,null,null,null,null,null,null,null,null,null,null,null,null,null,null,null,null,null,null,null,null,null,0,0,0,0]
[null,null,null,null,null,null,null,null,null,null,null,null,null,null,null,null,null,null,null,null,null,null,null,null,null,null,null,null,null,null,null,null,null,null,null,null,null,null,null,null,null,0,0,0,0]
[null,null,null,null,null,null,null,null,null,null,null,null,null,null,null,null,null,null,null,null,null,null,null,null,null,null,null,null,null,null,null,null,null,null,null,null,null,null,null,null,null,0,0,0,0]
[null,null,null,null,null,null,null,null,null,null,null,null,null,null,null,null,null,null,null,null,null,null,null,null,null,null,null,null,null,null,null,null,null,null,null,null,null,null,null,null,null,0,0,0,0]
[null,null,null,null,null,null,null,null,null,null,null,null,null,null,null,null,null,null,null,null,null,null,null,null,null,null,null,null,null,null,null,null,null,null,null,null,null,null,null,null,null,0,0,0,0]
[null,null,null,null,null,null,null,null,null,null,null,null,null,null,null,null,null,null,null,null,null,null,null,null,null,null,null,null,null,null,null,null,null,null,null,null,null,null,null,null,null,0,0,0,0]
[null,null,null,null,null,null,null,null,null,null,null,null,null,null,null,null,null,null,null,null,null,null,null,null,null,null,null,null,null,null,null,null,null,null,null,null,null,null,null,null,null,0,0,0,0]
[null,null,null,null,null,null,null,null,null,null,null,null,null,null,null,null,null,null,null,null,null,null,null,null,null,null,null,null,null,null,null,null,null,null,null,null,null,null,null,null,null,0,0,0,0]
[null,null,null,null,null,null,null,null,null,null,null,null,null,null,null,null,null,null,null,null,null,null,null,null,null,null,null,null,null,null,null,null,null,null,null,null,null,null,null,null,null,0,0,0,0]
[null,null,null,null,null,null,null,null,null,null,null,null,null,null,null,null,null,null,null,null,null,null,null,null,null,null,null,null,null,null,null,null,null,null,null,null,null,null,null,null,null,0,0,0,0]
[null,null,null,null,null,null,null,null,null,null,null,null,null,null,null,null,null,null,null,null,null,null,null,null,null,null,null,null,null,null,null,null,null,null,null,null,null,null,null,null,null,0,0,0,0]
[null,null,null,null,null,null,null,null,null,null,null,null,null,null,null,null,null,null,null,null,null,null,null,null,null,null,null,null,null,null,null,null,null,null,null,null,null,null,null,null,null,0,0,0,0]
[null,null,null,null,null,null,null,null,null,null,null,null,null,null,null,null,null,null,null,null,null,null,null,null,null,null,null,null,null,null,null,null,null,null,null,null,null,null,null,null,null,0,0,0,0]
[null,null,null,null,null,null,null,null,null,null,null,null,null,null,null,null,null,null,null,null,null,null,null,null,null,null,null,null,null,null,null,null,null,null,null,null,null,null,null,null,null,0,0,0,0]
[null,null,null,null,null,null,null,null,null,null,null,null,null,null,null,null,null,null,null,null,null,null,null,null,null,null,null,null,null,null,null,null,null,null,null,null,null,null,null,null,null,0,0,0,0]
[null,null,null,null,null,null,null,null,null,null,null,null,null,null,null,null,null,null,null,null,null,null,null,null,null,null,null,null,null,null,null,null,null,null,null,null,null,null,null,null,null,0,0,0,0]
[null,null,null,null,null,null,null,null,null,null,null,null,null,null,null,null,null,null,null,null,null,null,null,null,null,null,null,null,null,null,null,null,null,null,null,null,null,null,null,null,null,0,0,0,0]
[null,null,null,null,null,null,null,null,null,null,null,null,null,null,null,null,null,null,null,null,null,null,null,null,null,null,null,null,null,null,null,null,null,null,null,null,null,null,null,null,null,0,0,0,0]
[null,null,null,null,null,null,null,null,null,null,null,null,null,null,null,null,null,null,null,null,null,null,null,null,null,null,null,null,null,null,null,null,null,null,null,null,null,null,null,null,null,0,0,0,0]
[null,null,null,null,null,null,null,null,null,null,null,null,null,null,null,null,null,null,null,null,null,null,null,null,null,null,null,null,null,null,null,null,null,null,null,null,null,null,null,null,null,0,0,0,0]
[null,null,null,null,null,null,null,null,null,null,null,null,null,null,null,null,null,null,null,null,null,null,null,null,null,null,null,null,null,null,null,null,null,null,null,null,null,null,null,null,null,0,0,0,0]
[null,null,null,null,null,null,null,null,null,null,null,null,null,null,null,null,null,null,null,null,null,null,null,null,null,null,null,null,null,null,null,null,null,null,null,null,null,null,null,null,null,0,0,0,0]
[null,null,null,null,null,null,null,null,null,null,null,null,null,null,null,null,null,null,null,null,null,null,null,null,null,null,null,null,null,null,null,null,null,null,null,null,null,null,null,null,null,0,0,0,0]
[null,null,null,null,null,null,null,null,null,null,null,null,null,null,null,null,null,null,null,null,null,null,null,null,null,null,null,null,null,null,null,null,null,null,null,null,null,null,null,null,null,0,0,0,0]
[null,null,null,null,null,null,null,null,null,null,null,null,null,null,null,null,null,null,null,null,null,null,null,null,null,null,null,null,null,null,null,null,null,null,null,null,null,null,null,null,null,0,0,0,0]
[null,null,null,null,null,null,null,null,null,null,null,null,null,null,null,null,null,null,null,null,null,null,null,null,null,null,null,null,null,null,null,null,null,null,null,null,null,null,null,null,null,0,0,0,0]
[null,null,null,null,null,null,null,null,null,null,null,null,null,null,null,null,null,null,null,null,null,null,null,null,null,null,null,null,null,null,null,null,null,null,null,null,null,null,null,null,null,0,0,0,0]
[null,null,null,null,null,null,null,null,null,null,null,null,null,null,null,null,null,null,null,null,null,null,null,null,null,null,null,null,null,null,null,null,null,null,null,null,null,null,null,null,null,0,0,0,0]
[null,null,null,null,null,null,null,null,null,null,null,null,null,null,null,null,null,null,null,null,null,null,null,null,null,null,null,null,null,null,null,null,null,null,null,null,null,null,null,null,null,0,0,0,0]
[null,null,null,null,null,null,null,null,null,null,null,null,null,null,null,null,null,null,null,null,null,null,null,null,null,null,null,null,null,null,null,null,null,null,null,null,null,null,null,null,null,0,0,0,0]
[null,null,null,null,null,null,null,null,null,null,null,null,null,null,null,null,null,null,null,null,null,null,null,null,null,null,null,null,null,null,null,null,null,null,null,null,null,null,null,null,null,0,0,0,0]
[null,null,null,null,null,null,null,null,null,null,null,null,null,null,null,null,null,null,null,null,null,null,null,null,null,null,null,null,null,null,null,null,null,null,null,null,null,null,null,null,null,0,0,0,0]
[null,null,null,null,null,null,null,null,null,null,null,null,null,null,null,null,null,null,null,null,null,null,null,null,null,null,null,null,null,null,null,null,null,null,null,null,null,null,null,null,null,0,0,0,0]
[null,null,null,null,null,null,null,null,null,null,null,null,null,null,null,null,null,null,null,null,null,null,null,null,null,null,null,null,null,null,null,null,null,null,null,null,null,null,null,null,null,0,0,0,0]
[null,null,null,null,null,null,null,null,null,null,null,null,null,null,null,null,null,null,null,null,null,null,null,null,null,null,null,null,null,null,null,null,null,null,null,null,null,null,null,null,null,0,0,0,0]
[null,null,null,null,null,null,null,null,null,null,null,null,null,null,null,null,null,null,null,null,null,null,null,null,null,null,null,null,null,null,null,null,null,null,null,null,null,null,null,null,null,0,0,0,0]
[null,null,null,null,null,null,null,null,null,null,null,null,null,null,null,null,null,null,null,null,null,null,null,null,null,null,null,null,null,null,null,null,null,null,null,null,null,null,null,null,null,0,0,0,0]
[null,null,null,null,null,null,null,null,null,null,null,null,null,null,null,null,null,null,null,null,null,null,null,null,null,null,null,null,null,null,null,null,null,null,null,null,null,null,null,null,null,0,0,0,0]
[null,null,null,null,null,null,null,null,null,null,null,null,null,null,null,null,null,null,null,null,null,null,null,null,null,null,null,null,null,null,null,null,null,null,null,null,null,null,null,null,null,0,0,0,0]
[null,null,null,null,null,null,null,null,null,null,null,null,null,null,null,null,null,null,null,null,null,null,null,null,null,null,null,null,null,null,null,null,null,null,null,null,null,null,null,null,null,0,0,0,0]
[null,null,null,null,null,null,null,null,null,null,null,null,null,null,null,null,null,null,null,null,null,null,null,null,null,null,null,null,null,null,null,null,null,null,null,null,null,null,null,null,null,0,0,0,0]
[null,null,null,null,null,null,null,null,null,null,null,null,null,null,null,null,null,null,null,null,null,null,null,null,null,null,null,null,null,null,null,null,null,null,null,null,null,null,null,null,null,0,0,0,0]
[null,null,null,null,null,null,null,null,null,null,null,null,null,null,null,null,null,null,null,null,null,null,null,null,null,null,null,null,null,null,null,null,null,null,null,null,null,null,null,null,null,0,0,0,0]
[null,null,null,null,null,null,null,null,null,null,null,null,null,null,null,null,null,null,null,null,null,null,null,null,null,null,null,null,null,null,null,null,null,null,null,null,null,null,null,null,null,0,0,0,0]
[null,null,null,null,null,null,null,null,null,null,null,null,null,null,null,null,null,null,null,null,null,null,null,null,null,null,null,null,null,null,null,null,null,null,null,null,null,null,null,null,null,0,0,0,0]
[null,null,null,null,null,null,null,null,null,null,null,null,null,null,null,null,null,null,null,null,null,null,null,null,null,null,null,null,null,null,null,null,null,null,null,null,null,null,null,null,null,0,0,0,0]
[null,null,null,null,null,null,null,null,null,null,null,null,null,null,null,null,null,null,null,null,null,null,null,null,null,null,null,null,null,null,null,null,null,null,null,null,null,null,null,null,null,0,0,0,0]
[null,null,null,null,null,null,null,null,null,null,null,null,null,null,null,null,null,null,null,null,null,null,null,null,null,null,null,null,null,null,null,null,null,null,null,null,null,null,null,null,null,0,0,0,0]
[null,null,null,null,null,null,null,null,null,null,null,null,null,null,null,null,null,null,null,null,null,null,null,null,null,null,null,null,null,null,null,null,null,null,null,null,null,null,null,null,null,0,0,0,0]
[null,null,null,null,null,null,null,null,null,null,null,null,null,null,null,null,null,null,null,null,null,null,null,null,null,null,null,null,null,null,null,null,null,null,null,null,null,null,null,null,null,{"$f":"IF(AH451=\"Alimento\",AL451/AG451,0)","v":0},{"$f":"IF(AH451=\"Personal\",AL451/AG451,0)","v":0},{"$f":"IF(AH451=\"Dotación\",AL451/AG451,0)","v":0},{"$f":"SUM(AP451:AR451)","v":0}]
[null,null,null,null,null,null,null,null,null,null,null,null,null,null,null,null,null,null,null,null,null,null,null,null,null,null,null,null,null,null,null,null,null,null,null,null,null,null,null,null,null,0,0,0,0]
[null,null,null,null,null,null,null,null,null,null,null,null,null,null,null,null,null,null,null,null,null,null,null,null,null,null,null,null,null,null,null,null,null,null,null,null,null,null,null,null,null,0,0,0,0]
[null,null,null,null,null,null,null,null,null,null,null,null,null,null,null,null,null,null,null,null,null,null,null,null,null,null,null,null,null,null,null,null,null,null,null,null,null,null,null,null,null,0,0,0,0]
[null,null,null,null,null,null,null,null,null,null,null,null,null,null,null,null,null,null,null,null,null,null,null,null,null,null,null,null,null,null,null,null,null,null,null,null,null,null,null,null,null,0,0,0,0]
[null,null,null,null,null,null,null,null,null,null,null,null,null,null,null,null,null,null,null,null,null,null,null,null,null,null,null,null,null,null,null,null,null,null,null,null,null,null,null,null,null,0,0,0,0]
[null,null,null,null,null,null,null,null,null,null,null,null,null,null,null,null,null,null,null,null,null,null,null,null,null,null,null,null,null,null,null,null,null,null,null,null,null,null,null,null,null,0,0,0,0]
[null,null,null,null,null,null,null,null,null,null,null,null,null,null,null,null,null,null,null,null,null,null,null,null,null,null,null,null,null,null,null,null,null,null,null,null,null,null,null,null,null,0,0,0,0]
[null,null,null,null,null,null,null,null,null,null,null,null,null,null,null,null,null,null,null,null,null,null,null,null,null,null,null,null,null,null,null,null,null,null,null,null,null,null,null,null,null,0,0,0,0]
[null,null,null,null,null,null,null,null,null,null,null,null,null,null,null,null,null,null,null,null,null,null,null,null,null,null,null,null,null,null,null,null,null,null,null,null,null,null,null,null,null,0,0,0,0]
[null,null,null,null,null,null,null,null,null,null,null,null,null,null,null,null,null,null,null,null,null,null,null,null,null,null,null,null,null,null,null,null,null,null,null,null,null,null,null,null,null,0,0,0,0]
[null,null,null,null,null,null,null,null,null,null,null,null,null,null,null,null,null,null,null,null,null,null,null,null,null,null,null,null,null,null,null,null,null,null,null,null,null,null,null,null,null,0,0,0,0]
[null,null,null,null,null,null,null,null,null,null,null,null,null,null,null,null,null,null,null,null,null,null,null,null,null,null,null,null,null,null,null,null,null,null,null,null,null,null,null,null,null,0,0,0,0]
[null,null,null,null,null,null,null,null,null,null,null,null,null,null,null,null,null,null,null,null,null,null,null,null,null,null,null,null,null,null,null,null,null,null,null,null,null,null,null,null,null,0,0,0,0]
[null,null,null,null,null,null,null,null,null,null,null,null,null,null,null,null,null,null,null,null,null,null,null,null,null,null,null,null,null,null,null,null,null,null,null,null,null,null,null,null,null,0,0,0,0]
[null,null,null,null,null,null,null,null,null,null,null,null,null,null,null,null,null,null,null,null,null,null,null,null,null,null,null,null,null,null,null,null,null,null,null,null,null,null,null,null,null,0,0,0,0]
[null,null,null,null,null,null,null,null,null,null,null,null,null,null,null,null,null,null,null,null,null,null,null,null,null,null,null,null,null,null,null,null,null,null,null,null,null,null,null,null,null,0,0,0,0]
[null,null,null,null,null,null,null,null,null,null,null,null,null,null,null,null,null,null,null,null,null,null,null,null,null,null,null,null,null,null,null,null,null,null,null,null,null,null,null,null,null,0,0,0,0]
[null,null,null,null,null,null,null,null,null,null,null,null,null,null,null,null,null,null,null,null,null,null,null,null,null,null,null,null,null,null,null,null,null,null,null,null,null,null,null,null,null,0,0,0,0]
[null,null,null,null,null,null,null,null,null,null,null,null,null,null,null,null,null,null,null,null,null,null,null,null,null,null,null,null,null,null,null,null,null,null,null,null,null,null,null,null,null,0,0,0,0]
[null,null,null,null,null,null,null,null,null,null,null,null,null,null,null,null,null,null,null,null,null,null,null,null,null,null,null,null,null,null,null,null,null,null,null,null,null,null,null,null,null,0,0,0,0]
[null,null,null,null,null,null,null,null,null,null,null,null,null,null,null,null,null,null,null,null,null,null,null,null,null,null,null,null,null,null,null,null,null,null,null,null,null,null,null,null,null,0,0,0,0]
[null,null,null,null,null,null,null,null,null,null,null,null,null,null,null,null,null,null,null,null,null,null,null,null,null,null,null,null,null,null,null,null,null,null,null,null,null,null,null,null,null,0,0,0,0]
[null,null,null,null,null,null,null,null,null,null,null,null,null,null,null,null,null,null,null,null,null,null,null,null,null,null,null,null,null,null,null,null,null,null,null,null,null,null,null,null,null,0,0,0,0]
[null,null,null,null,null,null,null,null,null,null,null,null,null,null,null,null,null,null,null,null,null,null,null,null,null,null,null,null,null,null,null,null,null,null,null,null,null,null,null,null,null,0,0,0,0]
[null,null,null,null,null,null,null,null,null,null,null,null,null,null,null,null,null,null,null,null,null,null,null,null,null,null,null,null,null,null,null,null,null,null,null,null,null,null,null,null,null,0,0,0,0]
[null,null,null,null,null,null,null,null,null,null,null,null,null,null,null,null,null,null,null,null,null,null,null,null,null,null,null,null,null,null,null,null,null,null,null,null,null,null,null,null,null,0,0,0,0]
[null,null,null,null,null,null,null,null,null,null,null,null,null,null,null,null,null,null,null,null,null,null,null,null,null,null,null,null,null,null,null,null,null,null,null,null,null,null,null,null,null,0,0,0,0]
[null,null,null,null,null,null,null,null,null,null,null,null,null,null,null,null,null,null,null,null,null,null,null,null,null,null,null,null,null,null,null,null,null,null,null,null,null,null,null,null,null,0,0,0,0]
[null,null,null,null,null,null,null,null,null,null,null,null,null,null,null,null,null,null,null,null,null,null,null,null,null,null,null,null,null,null,null,null,null,null,null,null,null,null,null,null,null,0,0,0,0]
[null,null,null,null,null,null,null,null,null,null,null,null,null,null,null,null,null,null,null,null,null,null,null,null,null,null,null,null,null,null,null,null,null,null,null,null,null,null,null,null,null,0,0,0,0]
[null,null,null,null,null,null,null,null,null,null,null,null,null,null,null,null,null,null,null,null,null,null,null,null,null,null,null,null,null,null,null,null,null,null,null,null,null,null,null,null,null,0,0,0,0]
[null,null,null,null,null,null,null,null,null,null,null,null,null,null,null,null,null,null,null,null,null,null,null,null,null,null,null,null,null,null,null,null,null,null,null,null,null,null,null,null,null,0,0,0,0]
[null,null,null,null,null,null,null,null,null,null,null,null,null,null,null,null,null,null,null,null,null,null,null,null,null,null,null,null,null,null,null,null,null,null,null,null,null,null,null,null,null,0,0,0,0]
[null,null,null,null,null,null,null,null,null,null,null,null,null,null,null,null,null,null,null,null,null,null,null,null,null,null,null,null,null,null,null,null,null,null,null,null,null,null,null,null,null,0,0,0,0]
[null,null,null,null,null,null,null,null,null,null,null,null,null,null,null,null,null,null,null,null,null,null,null,null,null,null,null,null,null,null,null,null,null,null,null,null,null,null,null,null,null,0,0,0,0]
[null,null,null,null,null,null,null,null,null,null,null,null,null,null,null,null,null,null,null,null,null,null,null,null,null,null,null,null,null,null,null,null,null,null,null,null,null,null,null,null,null,0,0,0,0]
[null,null,null,null,null,null,null,null,null,null,null,null,null,null,null,null,null,null,null,null,null,null,null,null,null,null,null,null,null,null,null,null,null,null,null,null,null,null,null,null,null,0,0,0,0]
[null,null,null,null,null,null,null,null,null,null,null,null,null,null,null,null,null,null,null,null,null,null,null,null,null,null,null,null,null,null,null,null,null,null,null,null,null,null,null,null,null,0,0,0,0]
[null,null,null,null,null,null,null,null,null,null,null,null,null,null,null,null,null,null,null,null,null,null,null,null,null,null,null,null,null,null,null,null,null,null,null,null,null,null,null,null,null,0,0,0,0]
[null,null,null,null,null,null,null,null,null,null,null,null,null,null,null,null,null,null,null,null,null,null,null,null,null,null,null,null,null,null,null,null,null,null,null,null,null,null,null,null,null,0,0,0,0]
[null,null,null,null,null,null,null,null,null,null,null,null,null,null,null,null,null,null,null,null,null,null,null,null,null,null,null,null,null,null,null,null,null,null,null,null,null,null,null,null,null,0,0,0,0]
[null,null,null,null,null,null,null,null,null,null,null,null,null,null,null,null,null,null,null,null,null,null,null,null,null,null,null,null,null,null,null,null,null,null,null,null,null,null,null,null,null,0,0,0,0]
[null,null,null,null,null,null,null,null,null,null,null,null,null,null,null,null,null,null,null,null,null,null,null,null,null,null,null,null,null,null,null,null,null,null,null,null,null,null,null,null,null,0,0,0,0]
[null,null,null,null,null,null,null,null,null,null,null,null,null,null,null,null,null,null,null,null,null,null,null,null,null,null,null,null,null,null,null,null,null,null,null,null,null,null,null,null,null,0,0,0,0]
[null,null,null,null,null,null,null,null,null,null,null,null,null,null,null,null,null,null,null,null,null,null,null,null,null,null,null,null,null,null,null,null,null,null,null,null,null,null,null,null,null,0,0,0,0]
[null,null,null,null,null,null,null,null,null,null,null,null,null,null,null,null,null,null,null,null,null,null,null,null,null,null,null,null,null,null,null,null,null,null,null,null,null,null,null,null,null,0,0,0,0]
[null,null,null,null,null,null,null,null,null,null,null,null,null,null,null,null,null,null,null,null,null,null,null,null,null,null,null,null,null,null,null,null,null,null,null,null,null,null,null,null,null,0,0,0,0]
[null,null,null,null,null,null,null,null,null,null,null,null,null,null,null,null,null,null,null,null,null,null,null,null,null,null,null,null,null,null,null,null,null,null,null,null,null,null,null,null,null,0,0,0,0]
[null,null,null,null,null,null,null,null,null,null,null,null,null,null,null,null,null,null,null,null,null,null,null,null,null,null,null,null,null,null,null,null,null,null,null,null,null,null,null,null,null,0,0,0,0]
[null,null,null,null,null,null,null,null,null,null,null,null,null,null,null,null,null,null,null,null,null,null,null,null,null,null,null,null,null,null,null,null,null,null,null,null,null,null,null,null,null,0,0,0,0]
[null,null,null,null,null,null,null,null,null,null,null,null,null,null,null,null,null,null,null,null,null,null,null,null,null,null,null,null,null,null,null,null,null,null,null,null,null,null,null,null,null,0,0,0,0]
[null,null,null,null,null,null,null,null,null,null,null,null,null,null,null,null,null,null,null,null,null,null,null,null,null,null,null,null,null,null,null,null,null,null,null,null,null,null,null,null,null,0,0,0,0]
[null,null,null,null,null,null,null,null,null,null,null,null,null,null,null,null,null,null,null,null,null,null,null,null,null,null,null,null,null,null,null,null,null,null,null,null,null,null,null,null,null,0,0,0,0]
[null,null,null,null,null,null,null,null,null,null,null,null,null,null,null,null,null,null,null,null,null,null,null,null,null,null,null,null,null,null,null,null,null,null,null,null,null,null,null,null,null,0,0,0,0]
[null,null,null,null,null,null,null,null,null,null,null,null,null,null,null,null,null,null,null,null,null,null,null,null,null,null,null,null,null,null,null,null,null,null,null,null,null,null,null,null,null,0,0,0,0]
[null,null,null,null,null,null,null,null,null,null,null,null,null,null,null,null,null,null,null,null,null,null,null,null,null,null,null,null,null,null,null,null,null,null,null,null,null,null,null,null,null,0,0,0,0]
[null,null,null,null,null,null,null,null,null,null,null,null,null,null,null,null,null,null,null,null,null,null,null,null,null,null,null,null,null,null,null,null,null,null,null,null,null,null,null,null,null,0,0,0,0]
[null,null,null,null,null,null,null,null,null,null,null,null,null,null,null,null,null,null,null,null,null,null,null,null,null,null,null,null,null,null,null,null,null,null,null,null,null,null,null,null,null,0,0,0,0]
[null,null,null,null,null,null,null,null,null,null,null,null,null,null,null,null,null,null,null,null,null,null,null,null,null,null,null,null,null,null,null,null,null,null,null,null,null,null,null,null,null,0,0,0,0]
[null,null,null,null,null,null,null,null,null,null,null,null,null,null,null,null,null,null,null,null,null,null,null,null,null,null,null,null,null,null,null,null,null,null,null,null,null,null,null,null,null,0,0,0,0]
[null,null,null,null,null,null,null,null,null,null,null,null,null,null,null,null,null,null,null,null,null,null,null,null,null,null,null,null,null,null,null,null,null,null,null,null,null,null,null,null,null,0,0,0,0]
[null,null,null,null,null,null,null,null,null,null,null,null,null,null,null,null,null,null,null,null,null,null,null,null,null,null,null,null,null,null,null,null,null,null,null,null,null,null,null,null,null,0,0,0,0]
[null,null,null,null,null,null,null,null,null,null,null,null,null,null,null,null,null,null,null,null,null,null,null,null,null,null,null,null,null,null,null,null,null,null,null,null,null,null,null,null,null,0,0,0,0]
[null,null,null,null,null,null,null,null,null,null,null,null,null,null,null,null,null,null,null,null,null,null,null,null,null,null,null,null,null,null,null,null,null,null,null,null,null,null,null,null,null,0,0,0,0]
[null,null,null,null,null,null,null,null,null,null,null,null,null,null,null,null,null,null,null,null,null,null,null,null,null,null,null,null,null,null,null,null,null,null,null,null,null,null,null,null,null,0,0,0,0]
[null,null,null,null,null,null,null,null,null,null,null,null,null,null,null,null,null,null,null,null,null,null,null,null,null,null,null,null,null,null,null,null,null,null,null,null,null,null,null,null,null,0,0,0,0]
[null,null,null,null,null,null,null,null,null,null,null,null,null,null,null,null,null,null,null,null,null,null,null,null,null,null,null,null,null,null,null,null,null,null,null,null,null,null,null,null,null,0,0,0,0]
[null,null,null,null,null,null,null,null,null,null,null,null,null,null,null,null,null,null,null,null,null,null,null,null,null,null,null,null,null,null,null,null,null,null,null,null,null,null,null,null,null,0,0,0,0]
[null,null,null,null,null,null,null,null,null,null,null,null,null,null,null,null,null,null,null,null,null,null,null,null,null,null,null,null,null,null,null,null,null,null,null,null,null,null,null,null,null,0,0,0,0]
[null,null,null,null,null,null,null,null,null,null,null,null,null,null,null,null,null,null,null,null,null,null,null,null,null,null,null,null,null,null,null,null,null,null,null,null,null,null,null,null,null,0,0,0,0]
[null,null,null,null,null,null,null,null,null,null,null,null,null,null,null,null,null,null,null,null,null,null,null,null,null,null,null,null,null,null,null,null,null,null,null,null,null,null,null,null,null,0,0,0,0]
[null,null,null,null,null,null,null,null,null,null,null,null,null,null,null,null,null,null,null,null,null,null,null,null,null,null,null,null,null,null,null,null,null,null,null,null,null,null,null,null,null,0,0,0,0]
[null,null,null,null,null,null,null,null,null,null,null,null,null,null,null,null,null,null,null,null,null,null,null,null,null,null,null,null,null,null,null,null,null,null,null,null,null,null,null,null,null,0,0,0,0]
[null,null,null,null,null,null,null,null,null,null,null,null,null,null,null,null,null,null,null,null,null,null,null,null,null,null,null,null,null,null,null,null,null,null,null,null,null,null,null,null,null,0,0,0,0]
[null,null,null,null,null,null,null,null,null,null,null,null,null,null,null,null,null,null,null,null,null,null,null,null,null,null,null,null,null,null,null,null,null,null,null,null,null,null,null,null,null,0,0,0,0]
[null,null,null,null,null,null,null,null,null,null,null,null,null,null,null,null,null,null,null,null,null,null,null,null,null,null,null,null,null,null,null,null,null,null,null,null,null,null,null,null,null,0,0,0,0]
[null,null,null,null,null,null,null,null,null,null,null,null,null,null,null,null,null,null,null,null,null,null,null,null,null,null,null,null,null,null,null,null,null,null,null,null,null,null,null,null,null,0,0,0,0]
[null,null,null,null,null,null,null,null,null,null,null,null,null,null,null,null,null,null,null,null,null,null,null,null,null,null,null,null,null,null,null,null,null,null,null,null,null,null,null,null,null,0,0,0,0]
[null,null,null,null,null,null,null,null,null,null,null,null,null,null,null,null,null,null,null,null,null,null,null,null,null,null,null,null,null,null,null,null,null,null,null,null,null,null,null,null,null,0,0,0,0]
[null,null,null,null,null,null,null,null,null,null,null,null,null,null,null,null,null,null,null,null,null,null,null,null,null,null,null,null,null,null,null,null,null,null,null,null,null,null,null,null,null,0,0,0,0]
[null,null,null,null,null,null,null,null,null,null,null,null,null,null,null,null,null,null,null,null,null,null,null,null,null,null,null,null,null,null,null,null,null,null,null,null,null,null,null,null,null,0,0,0,0]
[null,null,null,null,null,null,null,null,null,null,null,null,null,null,null,null,null,null,null,null,null,null,null,null,null,null,null,null,null,null,null,null,null,null,null,null,null,null,null,null,null,0,0,0,0]
[null,null,null,null,null,null,null,null,null,null,null,null,null,null,null,null,null,null,null,null,null,null,null,null,null,null,null,null,null,null,null,null,null,null,null,null,null,null,null,null,null,0,0,0,0]
[null,null,null,null,null,null,null,null,null,null,null,null,null,null,null,null,null,null,null,null,null,null,null,null,null,null,null,null,null,null,null,null,null,null,null,null,null,null,null,null,null,0,0,0,0]
[null,null,null,null,null,null,null,null,null,null,null,null,null,null,null,null,null,null,null,null,null,null,null,null,null,null,null,null,null,null,null,null,null,null,null,null,null,null,null,null,null,0,0,0,0]
[null,null,null,null,null,null,null,null,null,null,null,null,null,null,null,null,null,null,null,null,null,null,null,null,null,null,null,null,null,null,null,null,null,null,null,null,null,null,null,null,null,0,0,0,0]
[null,null,null,null,null,null,null,null,null,null,null,null,null,null,null,null,null,null,null,null,null,null,null,null,null,null,null,null,null,null,null,null,null,null,null,null,null,null,null,null,null,0,0,0,0]
[null,null,null,null,null,null,null,null,null,null,null,null,null,null,null,null,null,null,null,null,null,null,null,null,null,null,null,null,null,null,null,null,null,null,null,null,null,null,null,null,null,0,0,0,0]
[null,null,null,null,null,null,null,null,null,null,null,null,null,null,null,null,null,null,null,null,null,null,null,null,null,null,null,null,null,null,null,null,null,null,null,null,null,null,null,null,null,0,0,0,0]
[null,null,null,null,null,null,null,null,null,null,null,null,null,null,null,null,null,null,null,null,null,null,null,null,null,null,null,null,null,null,null,null,null,null,null,null,null,null,null,null,null,0,0,0,0]
[null,null,null,null,null,null,null,null,null,null,null,null,null,null,null,null,null,null,null,null,null,null,null,null,null,null,null,null,null,null,null,null,null,null,null,null,null,null,null,null,null,0,0,0,0]
[null,null,null,null,null,null,null,null,null,null,null,null,null,null,null,null,null,null,null,null,null,null,null,null,null,null,null,null,null,null,null,null,null,null,null,null,null,null,null,null,null,0,0,0,0]
[null,null,null,null,null,null,null,null,null,null,null,null,null,null,null,null,null,null,null,null,null,null,null,null,null,null,null,null,null,null,null,null,null,null,null,null,null,null,null,null,null,{"$f":"IF(AH707=\"Alimento\",AL707/AG707,0)","v":0},{"$f":"IF(AH707=\"Personal\",AL707/AG707,0)","v":0},{"$f":"IF(AH707=\"Dotación\",AL707/AG707,0)","v":0},{"$f":"SUM(AP707:AR707)","v":0}]
[null,null,null,null,null,null,null,null,null,null,null,null,null,null,null,null,null,null,null,null,null,null,null,null,null,null,null,null,null,null,null,null,null,null,null,null,null,null,null,null,null,0,0,0,0]
[null,null,null,null,null,null,null,null,null,null,null,null,null,null,null,null,null,null,null,null,null,null,null,null,null,null,null,null,null,null,null,null,null,null,null,null,null,null,null,null,null,0,0,0,0]
[null,null,null,null,null,null,null,null,null,null,null,null,null,null,null,null,null,null,null,null,null,null,null,null,null,null,null,null,null,null,null,null,null,null,null,null,null,null,null,null,null,0,0,0,0]
[null,null,null,null,null,null,null,null,null,null,null,null,null,null,null,null,null,null,null,null,null,null,null,null,null,null,null,null,null,null,null,null,null,null,null,null,null,null,null,null,null,0,0,0,0]
[null,null,null,null,null,null,null,null,null,null,null,null,null,null,null,null,null,null,null,null,null,null,null,null,null,null,null,null,null,null,null,null,null,null,null,null,null,null,null,null,null,0,0,0,0]
[null,null,null,null,null,null,null,null,null,null,null,null,null,null,null,null,null,null,null,null,null,null,null,null,null,null,null,null,null,null,null,null,null,null,null,null,null,null,null,null,null,0,0,0,0]
[null,null,null,null,null,null,null,null,null,null,null,null,null,null,null,null,null,null,null,null,null,null,null,null,null,null,null,null,null,null,null,null,null,null,null,null,null,null,null,null,null,0,0,0,0]
[null,null,null,null,null,null,null,null,null,null,null,null,null,null,null,null,null,null,null,null,null,null,null,null,null,null,null,null,null,null,null,null,null,null,null,null,null,null,null,null,null,0,0,0,0]
[null,null,null,null,null,null,null,null,null,null,null,null,null,null,null,null,null,null,null,null,null,null,null,null,null,null,null,null,null,null,null,null,null,null,null,null,null,null,null,null,null,0,0,0,0]
[null,null,null,null,null,null,null,null,null,null,null,null,null,null,null,null,null,null,null,null,null,null,null,null,null,null,null,null,null,null,null,null,null,null,null,null,null,null,null,null,null,0,0,0,0]
[null,null,null,null,null,null,null,null,null,null,null,null,null,null,null,null,null,null,null,null,null,null,null,null,null,null,null,null,null,null,null,null,null,null,null,null,null,null,null,null,null,0,0,0,0]
[null,null,null,null,null,null,null,null,null,null,null,null,null,null,null,null,null,null,null,null,null,null,null,null,null,null,null,null,null,null,null,null,null,null,null,null,null,null,null,null,null,0,0,0,0]
[null,null,null,null,null,null,null,null,null,null,null,null,null,null,null,null,null,null,null,null,null,null,null,null,null,null,null,null,null,null,null,null,null,null,null,null,null,null,null,null,null,0,0,0,0]
[null,null,null,null,null,null,null,null,null,null,null,null,null,null,null,null,null,null,null,null,null,null,null,null,null,null,null,null,null,null,null,null,null,null,null,null,null,null,null,null,null,0,0,0,0]
[null,null,null,null,null,null,null,null,null,null,null,null,null,null,null,null,null,null,null,null,null,null,null,null,null,null,null,null,null,null,null,null,null,null,null,null,null,null,null,null,null,0,0,0,0]
[null,null,null,null,null,null,null,null,null,null,null,null,null,null,null,null,null,null,null,null,null,null,null,null,null,null,null,null,null,null,null,null,null,null,null,null,null,null,null,null,null,0,0,0,0]
[null,null,null,null,null,null,null,null,null,null,null,null,null,null,null,null,null,null,null,null,null,null,null,null,null,null,null,null,null,null,null,null,null,null,null,null,null,null,null,null,null,0,0,0,0]
[null,null,null,null,null,null,null,null,null,null,null,null,null,null,null,null,null,null,null,null,null,null,null,null,null,null,null,null,null,null,null,null,null,null,null,null,null,null,null,null,null,0,0,0,0]
[null,null,null,null,null,null,null,null,null,null,null,null,null,null,null,null,null,null,null,null,null,null,null,null,null,null,null,null,null,null,null,null,null,null,null,null,null,null,null,null,null,0,0,0,0]
[null,null,null,null,null,null,null,null,null,null,null,null,null,null,null,null,null,null,null,null,null,null,null,null,null,null,null,null,null,null,null,null,null,null,null,null,null,null,null,null,null,0,0,0,0]
[null,null,null,null,null,null,null,null,null,null,null,null,null,null,null,null,null,null,null,null,null,null,null,null,null,null,null,null,null,null,null,null,null,null,null,null,null,null,null,null,null,0,0,0,0]
[null,null,null,null,null,null,null,null,null,null,null,null,null,null,null,null,null,null,null,null,null,null,null,null,null,null,null,null,null,null,null,null,null,null,null,null,null,null,null,null,null,0,0,0,0]
[null,null,null,null,null,null,null,null,null,null,null,null,null,null,null,null,null,null,null,null,null,null,null,null,null,null,null,null,null,null,null,null,null,null,null,null,null,null,null,null,null,0,0,0,0]
[null,null,null,null,null,null,null,null,null,null,null,null,null,null,null,null,null,null,null,null,null,null,null,null,null,null,null,null,null,null,null,null,null,null,null,null,null,null,null,null,null,0,0,0,0]
[null,null,null,null,null,null,null,null,null,null,null,null,null,null,null,null,null,null,null,null,null,null,null,null,null,null,null,null,null,null,null,null,null,null,null,null,null,null,null,null,null,0,0,0,0]
[null,null,null,null,null,null,null,null,null,null,null,null,null,null,null,null,null,null,null,null,null,null,null,null,null,null,null,null,null,null,null,null,null,null,null,null,null,null,null,null,null,0,0,0,0]
[null,null,null,null,null,null,null,null,null,null,null,null,null,null,null,null,null,null,null,null,null,null,null,null,null,null,null,null,null,null,null,null,null,null,null,null,null,null,null,null,null,{"$f":"IF(AH835=\"Alimento\",AL835/AG835,0)","v":0},{"$f":"IF(AH835=\"Personal\",AL835/AG835,0)","v":0},{"$f":"IF(AH835=\"Dotación\",AL835/AG835,0)","v":0},{"$f":"SUM(AP835:AR835)","v":0}]
[null,null,null,null,null,null,null,null,null,null,null,null,null,null,null,null,null,null,null,null,null,null,null,null,null,null,null,null,null,null,null,null,null,null,null,null,null,null,null,null,null,0,0,0,0]
[null,null,null,null,null,null,null,null,null,null,null,null,null,null,null,null,null,null,null,null,null,null,null,null,null,null,null,null,null,null,null,null,null,null,null,null,null,null,null,null,null,0,0,0,0]
[null,null,null,null,null,null,null,null,null,null,null,null,null,null,null,null,null,null,null,null,null,null,null,null,null,null,null,null,null,null,null,null,null,null,null,null,null,null,null,null,null,0,0,0,0]
[null,null,null,null,null,null,null,null,null,null,null,null,null,null,null,null,null,null,null,null,null,null,null,null,null,null,null,null,null,null,null,null,null,null,null,null,null,null,null,null,null,0,0,0,0]
[null,null,null,null,null,null,null,null,null,null,null,null,null,null,null,null,null,null,null,null,null,null,null,null,null,null,null,null,null,null,null,null,null,null,null,null,null,null,null,null,null,0,0,0,0]
[null,null,null,null,null,null,null,null,null,null,null,null,null,null,null,null,null,null,null,null,null,null,null,null,null,null,null,null,null,null,null,null,null,null,null,null,null,null,null,null,null,0,0,0,0]
[null,null,null,null,null,null,null,null,null,null,null,null,null,null,null,null,null,null,null,null,null,null,null,null,null,null,null,null,null,null,null,null,null,null,null,null,null,null,null,null,null,0,0,0,0]
[null,null,null,null,null,null,null,null,null,null,null,null,null,null,null,null,null,null,null,null,null,null,null,null,null,null,null,null,null,null,null,null,null,null,null,null,null,null,null,null,null,0,0,0,0]
[null,null,null,null,null,null,null,null,null,null,null,null,null,null,null,null,null,null,null,null,null,null,null,null,null,null,null,null,null,null,null,null,null,null,null,null,null,null,null,null,null,0,0,0,0]
[null,null,null,null,null,null,null,null,null,null,null,null,null,null,null,null,null,null,null,null,null,null,null,null,null,null,null,null,null,null,null,null,null,null,null,null,null,null,null,null,null,0,0,0,0]
[null,null,null,null,null,null,null,null,null,null,null,null,null,null,null,null,null,null,null,null,null,null,null,null,null,null,null,null,null,null,null,null,null,null,null,null,null,null,null,null,null,0,0,0,0]
[null,null,null,null,null,null,null,null,null,null,null,null,null,null,null,null,null,null,null,null,null,null,null,null,null,null,null,null,null,null,null,null,null,null,null,null,null,null,null,null,null,0,0,0,0]
[null,null,null,null,null,null,null,null,null,null,null,null,null,null,null,null,null,null,null,null,null,null,null,null,null,null,null,null,null,null,null,null,null,null,null,null,null,null,null,null,null,0,0,0,0]
[null,null,null,null,null,null,null,null,null,null,null,null,null,null,null,null,null,null,null,null,null,null,null,null,null,null,null,null,null,null,null,null,null,null,null,null,null,null,null,null,null,0,0,0,0]
[null,null,null,null,null,null,null,null,null,null,null,null,null,null,null,null,null,null,null,null,null,null,null,null,null,null,null,null,null,null,null,null,null,null,null,null,null,null,null,null,null,0,0,0,0]
[null,null,null,null,null,null,null,null,null,null,null,null,null,null,null,null,null,null,null,null,null,null,null,null,null,null,null,null,null,null,null,null,null,null,null,null,null,null,null,null,null,0,0,0,0]
[null,null,null,null,null,null,null,null,null,null,null,null,null,null,null,null,null,null,null,null,null,null,null,null,null,null,null,null,null,null,null,null,null,null,null,null,null,null,null,null,null,0,0,0,0]
[null,null,null,null,null,null,null,null,null,null,null,null,null,null,null,null,null,null,null,null,null,null,null,null,null,null,null,null,null,null,null,null,null,null,null,null,null,null,null,null,null,0,0,0,0]
[null,null,null,null,null,null,null,null,null,null,null,null,null,null,null,null,null,null,null,null,null,null,null,null,null,null,null,null,null,null,null,null,null,null,null,null,null,null,null,null,null,0,0,0,0]
[null,null,null,null,null,null,null,null,null,null,null,null,null,null,null,null,null,null,null,null,null,null,null,null,null,null,null,null,null,null,null,null,null,null,null,null,null,null,null,null,null,0,0,0,0]
[null,null,null,null,null,null,null,null,null,null,null,null,null,null,null,null,null,null,null,null,null,null,null,null,null,null,null,null,null,null,null,null,null,null,null,null,null,null,null,null,null,0,0,0,0]
[null,null,null,null,null,null,null,null,null,null,null,null,null,null,null,null,null,null,null,null,null,null,null,null,null,null,null,null,null,null,null,null,null,null,null,null,null,null,null,null,null,0,0,0,0]
[null,null,null,null,null,null,null,null,null,null,null,null,null,null,null,null,null,null,null,null,null,null,null,null,null,null,null,null,null,null,null,null,null,null,null,null,null,null,null,null,null,0,0,0,0]
[null,null,null,null,null,null,null,null,null,null,null,null,null,null,null,null,null,null,null,null,null,null,null,null,null,null,null,null,null,null,null,null,null,null,null,null,null,null,null,null,null,0,0,0,0]
[null,null,null,null,null,null,null,null,null,null,null,null,null,null,null,null,null,null,null,null,null,null,null,null,null,null,null,null,null,null,null,null,null,null,null,null,null,null,null,null,null,0,0,0,0]
[null,null,null,null,null,null,null,null,null,null,null,null,null,null,null,null,null,null,null,null,null,null,null,null,null,null,null,null,null,null,null,null,null,null,null,null,null,null,null,null,null,0,0,0,0]
[null,null,null,null,null,null,null,null,null,null,null,null,null,null,null,null,null,null,null,null,null,null,null,null,null,null,null,null,null,null,null,null,null,null,null,null,null,null,null,null,null,0,0,0,0]
[null,null,null,null,null,null,null,null,null,null,null,null,null,null,null,null,null,null,null,null,null,null,null,null,null,null,null,null,null,null,null,null,null,null,null,null,null,null,null,null,null,0,0,0,0]
[null,null,null,null,null,null,null,null,null,null,null,null,null,null,null,null,null,null,null,null,null,null,null,null,null,null,null,null,null,null,null,null,null,null,null,null,null,null,null,null,null,0,0,0,0]
[null,null,null,null,null,null,null,null,null,null,null,null,null,null,null,null,null,null,null,null,null,null,null,null,null,null,null,null,null,null,null,null,null,null,null,null,null,null,null,null,null,0,0,0,0]
[null,null,null,null,null,null,null,null,null,null,null,null,null,null,null,null,null,null,null,null,null,null,null,null,null,null,null,null,null,null,null,null,null,null,null,null,null,null,null,null,null,0,0,0,0]
[null,null,null,null,null,null,null,null,null,null,null,null,null,null,null,null,null,null,null,null,null,null,null,null,null,null,null,null,null,null,null,null,null,null,null,null,null,null,null,null,null,0,0,0,0]
[null,null,null,null,null,null,null,null,null,null,null,null,null,null,null,null,null,null,null,null,null,null,null,null,null,null,null,null,null,null,null,null,null,null,null,null,null,null,null,null,null,0,0,0,0]
[null,null,null,null,null,null,null,null,null,null,null,null,null,null,null,null,null,null,null,null,null,null,null,null,null,null,null,null,null,null,null,null,null,null,null,null,null,null,null,null,null,0,0,0,0]
[null,null,null,null,null,null,null,null,null,null,null,null,null,null,null,null,null,null,null,null,null,null,null,null,null,null,null,null,null,null,null,null,null,null,null,null,null,null,null,null,null,0,0,0,0]
[null,null,null,null,null,null,null,null,null,null,null,null,null,null,null,null,null,null,null,null,null,null,null,null,null,null,null,null,null,null,null,null,null,null,null,null,null,null,null,null,null,0,0,0,0]
[null,null,null,null,null,null,null,null,null,null,null,null,null,null,null,null,null,null,null,null,null,null,null,null,null,null,null,null,null,null,null,null,null,null,null,null,null,null,null,null,null,0,0,0,0]
[null,null,null,null,null,null,null,null,null,null,null,null,null,null,null,null,null,null,null,null,null,null,null,null,null,null,null,null,null,null,null,null,null,null,null,null,null,null,null,null,null,0,0,0,0]
[null,null,null,null,null,null,null,null,null,null,null,null,null,null,null,null,null,null,null,null,null,null,null,null,null,null,null,null,null,null,null,null,null,null,null,null,null,null,null,null,null,0,0,0,0]
[null,null,null,null,null,null,null,null,null,null,null,null,null,null,null,null,null,null,null,null,null,null,null,null,null,null,null,null,null,null,null,null,null,null,null,null,null,null,null,null,null,0,0,0,0]
[null,null,null,null,null,null,null,null,null,null,null,null,null,null,null,null,null,null,null,null,null,null,null,null,null,null,null,null,null,null,null,null,null,null,null,null,null,null,null,null,null,0,0,0,0]
[null,null,null,null,null,null,null,null,null,null,null,null,null,null,null,null,null,null,null,null,null,null,null,null,null,null,null,null,null,null,null,null,null,null,null,null,null,null,null,null,null,0,0,0,0]
[null,null,null,null,null,null,null,null,null,null,null,null,null,null,null,null,null,null,null,null,null,null,null,null,null,null,null,null,null,null,null,null,null,null,null,null,null,null,null,null,null,0,0,0,0]
[null,null,null,null,null,null,null,null,null,null,null,null,null,null,null,null,null,null,null,null,null,null,null,null,null,null,null,null,null,null,null,null,null,null,null,null,null,null,null,null,null,0,0,0,0]
[null,null,null,null,null,null,null,null,null,null,null,null,null,null,null,null,null,null,null,null,null,null,null,null,null,null,null,null,null,null,null,null,null,null,null,null,null,null,null,null,null,0,0,0,0]
[null,null,null,null,null,null,null,null,null,null,null,null,null,null,null,null,null,null,null,null,null,null,null,null,null,null,null,null,null,null,null,null,null,null,null,null,null,null,null,null,null,0,0,0,0]
[null,null,null,null,null,null,null,null,null,null,null,null,null,null,null,null,null,null,null,null,null,null,null,null,null,null,null,null,null,null,null,null,null,null,null,null,null,null,null,null,null,0,0,0,0]
[null,null,null,null,null,null,null,null,null,null,null,null,null,null,null,null,null,null,null,null,null,null,null,null,null,null,null,null,null,null,null,null,null,null,null,null,null,null,null,null,null,0,0,0,0]
[null,null,null,null,null,null,null,null,null,null,null,null,null,null,null,null,null,null,null,null,null,null,null,null,null,null,null,null,null,null,null,null,null,null,null,null,null,null,null,null,null,0,0,0,0]
[null,null,null,null,null,null,null,null,null,null,null,null,null,null,null,null,null,null,null,null,null,null,null,null,null,null,null,null,null,null,null,null,null,null,null,null,null,null,null,null,null,0,0,0,0]
[null,null,null,null,null,null,null,null,null,null,null,null,null,null,null,null,null,null,null,null,null,null,null,null,null,null,null,null,null,null,null,null,null,null,null,null,null,null,null,null,null,0,0,0,0]
[null,null,null,null,null,null,null,null,null,null,null,null,null,null,null,null,null,null,null,null,null,null,null,null,null,null,null,null,null,null,null,null,null,null,null,null,null,null,null,null,null,0,0,0,0]
[null,null,null,null,null,null,null,null,null,null,null,null,null,null,null,null,null,null,null,null,null,null,null,null,null,null,null,null,null,null,null,null,null,null,null,null,null,null,null,null,null,0,0,0,0]
[null,null,null,null,null,null,null,null,null,null,null,null,null,null,null,null,null,null,null,null,null,null,null,null,null,null,null,null,null,null,null,null,null,null,null,null,null,null,null,null,null,{"$f":"IF(AH1091=\"Alimento\",AL1091/AG1091,0)","v":0},{"$f":"IF(AH1091=\"Personal\",AL1091/AG1091,0)","v":0},{"$f":"IF(AH1091=\"Dotación\",AL1091/AG1091,0)","v":0},{"$f":"SUM(AP1091:AR1091)","v":0}]
[null,null,null,null,null,null,null,null,null,null,null,null,null,null,null,null,null,null,null,null,null,null,null,null,null,null,null,null,null,null,null,null,null,null,null,null,null,null,null,null,null,0,0,0,0]
[null,null,null,null,null,null,null,null,null,null,null,null,null,null,null,null,null,null,null,null,null,null,null,null,null,null,null,null,null,null,null,null,null,null,null,null,null,null,null,null,null,0,0,0,0]
[null,null,null,null,null,null,null,null,null,null,null,null,null,null,null,null,null,null,null,null,null,null,null,null,null,null,null,null,null,null,null,null,null,null,null,null,null,null,null,null,null,0,0,0,0]
[null,null,null,null,null,null,null,null,null,null,null,null,null,null,null,null,null,null,null,null,null,null,null,null,null,null,null,null,null,null,null,null,null,null,null,null,null,null,null,null,null,0,0,0,0]
[null,null,null,null,null,null,null,null,null,null,null,null,null,null,null,null,null,null,null,null,null,null,null,null,null,null,null,null,null,null,null,null,null,null,null,null,null,null,null,null,null,0,0,0,0]
[null,null,null,null,null,null,null,null,null,null,null,null,null,null,null,null,null,null,null,null,null,null,null,null,null,null,null,null,null,null,null,null,null,null,null,null,null,null,null,null,null,0,0,0,0]
[null,null,null,null,null,null,null,null,null,null,null,null,null,null,null,null,null,null,null,null,null,null,null,null,null,null,null,null,null,null,null,null,null,null,null,null,null,null,null,null,null,0,0,0,0]
[null,null,null,null,null,null,null,null,null,null,null,null,null,null,null,null,null,null,null,null,null,null,null,null,null,null,null,null,null,null,null,null,null,null,null,null,null,null,null,null,null,0,0,0,0]
[null,null,null,null,null,null,null,null,null,null,null,null,null,null,null,null,null,null,null,null,null,null,null,null,null,null,null,null,null,null,null,null,null,null,null,null,null,null,null,null,null,0,0,0,0]
[null,null,null,null,null,null,null,null,null,null,null,null,null,null,null,null,null,null,null,null,null,null,null,null,null,null,null,null,null,null,null,null,null,null,null,null,null,null,null,null,null,0,0,0,0]
[null,null,null,null,null,null,null,null,null,null,null,null,null,null,null,null,null,null,null,null,null,null,null,null,null,null,null,null,null,null,null,null,null,null,null,null,null,null,null,null,null,0,0,0,0]
[null,null,null,null,null,null,null,null,null,null,null,null,null,null,null,null,null,null,null,null,null,null,null,null,null,null,null,null,null,null,null,null,null,null,null,null,null,null,null,null,null,0,0,0,0]
[null,null,null,null,null,null,null,null,null,null,null,null,null,null,null,null,null,null,null,null,null,null,null,null,null,null,null,null,null,null,null,null,null,null,null,null,null,null,null,null,null,0,0,0,0]
[null,null,null,null,null,null,null,null,null,null,null,null,null,null,null,null,null,null,null,null,null,null,null,null,null,null,null,null,null,null,null,null,null,null,null,null,null,null,null,null,null,0,0,0,0]
[null,null,null,null,null,null,null,null,null,null,null,null,null,null,null,null,null,null,null,null,null,null,null,null,null,null,null,null,null,null,null,null,null,null,null,null,null,null,null,null,null,0,0,0,0]
[null,null,null,null,null,null,null,null,null,null,null,null,null,null,null,null,null,null,null,null,null,null,null,null,null,null,null,null,null,null,null,null,null,null,null,null,null,null,null,null,null,0,0,0,0]
[null,null,null,null,null,null,null,null,null,null,null,null,null,null,null,null,null,null,null,null,null,null,null,null,null,null,null,null,null,null,null,null,null,null,null,null,null,null,null,null,null,0,0,0,0]
[null,null,null,null,null,null,null,null,null,null,null,null,null,null,null,null,null,null,null,null,null,null,null,null,null,null,null,null,null,null,null,null,null,null,null,null,null,null,null,null,null,0,0,0,0]
[null,null,null,null,null,null,null,null,null,null,null,null,null,null,null,null,null,null,null,null,null,null,null,null,null,null,null,null,null,null,null,null,null,null,null,null,null,null,null,null,null,0,0,0,0]
[null,null,null,null,null,null,null,null,null,null,null,null,null,null,null,null,null,null,null,null,null,null,null,null,null,null,null,null,null,null,null,null,null,null,null,null,null,null,null,null,null,0,0,0,0]
[null,null,null,null,null,null,null,null,null,null,null,null,null,null,null,null,null,null,null,null,null,null,null,null,null,null,null,null,null,null,null,null,null,null,null,null,null,null,null,null,null,0,0,0,0]
[null,null,null,null,null,null,null,null,null,null,null,null,null,null,null,null,null,null,null,null,null,null,null,null,null,null,null,null,null,null,null,null,null,null,null,null,null,null,null,null,null,0,0,0,0]
[null,null,null,null,null,null,null,null,null,null,null,null,null,null,null,null,null,null,null,null,null,null,null,null,null,null,null,null,null,null,null,null,null,null,null,null,null,null,null,null,null,0,0,0,0]
[null,null,null,null,null,null,null,null,null,null,null,null,null,null,null,null,null,null,null,null,null,null,null,null,null,null,null,null,null,null,null,null,null,null,null,null,null,null,null,null,null,0,0,0,0]
[null,null,null,null,null,null,null,null,null,null,null,null,null,null,null,null,null,null,null,null,null,null,null,null,null,null,null,null,null,null,null,null,null,null,null,null,null,null,null,null,null,0,0,0,0]
[null,null,null,null,null,null,null,null,null,null,null,null,null,null,null,null,null,null,null,null,null,null,null,null,null,null,null,null,null,null,null,null,null,null,null,null,null,null,null,null,null,0,0,0,0]
[null,null,null,null,null,null,null,null,null,null,null,null,null,null,null,null,null,null,null,null,null,null,null,null,null,null,null,null,null,null,null,null,null,null,null,null,null,null,null,null,null,0,0,0,0]
[null,null,null,null,null,null,null,null,null,null,null,null,null,null,null,null,null,null,null,null,null,null,null,null,null,null,null,null,null,null,null,null,null,null,null,null,null,null,null,null,null,0,0,0,0]
[null,null,null,null,null,null,null,null,null,null,null,null,null,null,null,null,null,null,null,null,null,null,null,null,null,null,null,null,null,null,null,null,null,null,null,null,null,null,null,null,null,0,0,0,0]
[null,null,null,null,null,null,null,null,null,null,null,null,null,null,null,null,null,null,null,null,null,null,null,null,null,null,null,null,null,null,null,null,null,null,null,null,null,null,null,null,null,0,0,0,0]
[null,null,null,null,null,null,null,null,null,null,null,null,null,null,null,null,null,null,null,null,null,null,null,null,null,null,null,null,null,null,null,null,null,null,null,null,null,null,null,null,null,0,0,0,0]
[null,null,null,null,null,null,null,null,null,null,null,null,null,null,null,null,null,null,null,null,null,null,null,null,null,null,null,null,null,null,null,null,null,null,null,null,null,null,null,null,null,0,0,0,0]
[null,null,null,null,null,null,null,null,null,null,null,null,null,null,null,null,null,null,null,null,null,null,null,null,null,null,null,null,null,null,null,null,null,null,null,null,null,null,null,null,null,0,0,0,0]
[null,null,null,null,null,null,null,null,null,null,null,null,null,null,null,null,null,null,null,null,null,null,null,null,null,null,null,null,null,null,null,null,null,null,null,null,null,null,null,null,null,0,0,0,0]
[null,null,null,null,null,null,null,null,null,null,null,null,null,null,null,null,null,null,null,null,null,null,null,null,null,null,null,null,null,null,null,null,null,null,null,null,null,null,null,null,null,0,0,0,0]
[null,null,null,null,null,null,null,null,null,null,null,null,null,null,null,null,null,null,null,null,null,null,null,null,null,null,null,null,null,null,null,null,null,null,null,null,null,null,null,null,null,0,0,0,0]
[null,null,null,null,null,null,null,null,null,null,null,null,null,null,null,null,null,null,null,null,null,null,null,null,null,null,null,null,null,null,null,null,null,null,null,null,null,null,null,null,null,0,0,0,0]
[null,null,null,null,null,null,null,null,null,null,null,null,null,null,null,null,null,null,null,null,null,null,null,null,null,null,null,null,null,null,null,null,null,null,null,null,null,null,null,null,null,0,0,0,0]
[null,null,null,null,null,null,null,null,null,null,null,null,null,null,null,null,null,null,null,null,null,null,null,null,null,null,null,null,null,null,null,null,null,null,null,null,null,null,null,null,null,0,0,0,0]
[null,null,null,null,null,null,null,null,null,null,null,null,null,null,null,null,null,null,null,null,null,null,null,null,null,null,null,null,null,null,null,null,null,null,null,null,null,null,null,null,null,0,0,0,0]
[null,null,null,null,null,null,null,null,null,null,null,null,null,null,null,null,null,null,null,null,null,null,null,null,null,null,null,null,null,null,null,null,null,null,null,null,null,null,null,null,null,0,0,0,0]
[null,null,null,null,null,null,null,null,null,null,null,null,null,null,null,null,null,null,null,null,null,null,null,null,null,null,null,null,null,null,null,null,null,null,null,null,null,null,null,null,null,0,0,0,0]
[null,null,null,null,null,null,null,null,null,null,null,null,null,null,null,null,null,null,null,null,null,null,null,null,null,null,null,null,null,null,null,null,null,null,null,null,null,null,null,null,null,0,0,0,0]
[null,null,null,null,null,null,null,null,null,null,null,null,null,null,null,null,null,null,null,null,null,null,null,null,null,null,null,null,null,null,null,null,null,null,null,null,null,null,null,null,null,0,0,0,0]
[null,null,null,null,null,null,null,null,null,null,null,null,null,null,null,null,null,null,null,null,null,null,null,null,null,null,null,null,null,null,null,null,null,null,null,null,null,null,null,null,null,0,0,0,0]
[null,null,null,null,null,null,null,null,null,null,null,null,null,null,null,null,null,null,null,null,null,null,null,null,null,null,null,null,null,null,null,null,null,null,null,null,null,null,null,null,null,0,0,0,0]
[null,null,null,null,null,null,null,null,null,null,null,null,null,null,null,null,null,null,null,null,null,null,null,null,null,null,null,null,null,null,null,null,null,null,null,null,null,null,null,null,null,0,0,0,0]
[null,null,null,null,null,null,null,null,null,null,null,null,null,null,null,null,null,null,null,null,null,null,null,null,null,null,null,null,null,null,null,null,null,null,null,null,null,null,null,null,null,0,0,0,0]
[null,null,null,null,null,null,null,null,null,null,null,null,null,null,null,null,null,null,null,null,null,null,null,null,null,null,null,null,null,null,null,null,null,null,null,null,null,null,null,null,null,0,0,0,0]
[null,null,null,null,null,null,null,null,null,null,null,null,null,null,null,null,null,null,null,null,null,null,null,null,null,null,null,null,null,null,null,null,null,null,null,null,null,null,null,null,null,0,0,0,0]
[null,null,null,null,null,null,null,null,null,null,null,null,null,null,null,null,null,null,null,null,null,null,null,null,null,null,null,null,null,null,null,null,null,null,null,null,null,null,null,null,null,0,0,0,0]
[null,null,null,null,null,null,null,null,null,null,null,null,null,null,null,null,null,null,null,null,null,null,null,null,null,null,null,null,null,null,null,null,null,null,null,null,null,null,null,null,null,0,0,0,0]
[null,null,null,null,null,null,null,null,null,null,null,null,null,null,null,null,null,null,null,null,null,null,null,null,null,null,null,null,null,null,null,null,null,null,null,null,null,null,null,null,null,0,0,0,0]
[null,null,null,null,null,null,null,null,null,null,null,null,null,null,null,null,null,null,null,null,null,null,null,null,null,null,null,null,null,null,null,null,null,null,null,null,null,null,null,null,null,0,0,0,0]
[null,null,null,null,null,null,null,null,null,null,null,null,null,null,null,null,null,null,null,null,null,null,null,null,null,null,null,null,null,null,null,null,null,null,null,null,null,null,null,null,null,0,0,0,0]
[null,null,null,null,null,null,null,null,null,null,null,null,null,null,null,null,null,null,null,null,null,null,null,null,null,null,null,null,null,null,null,null,null,null,null,null,null,null,null,null,null,0,0,0,0]
[null,null,null,null,null,null,null,null,null,null,null,null,null,null,null,null,null,null,null,null,null,null,null,null,null,null,null,null,null,null,null,null,null,null,null,null,null,null,null,null,null,0,0,0,0]
[null,null,null,null,null,null,null,null,null,null,null,null,null,null,null,null,null,null,null,null,null,null,null,null,null,null,null,null,null,null,null,null,null,null,null,null,null,null,null,null,null,0,0,0,0]
[null,null,null,null,null,null,null,null,null,null,null,null,null,null,null,null,null,null,null,null,null,null,null,null,null,null,null,null,null,null,null,null,null,null,null,null,null,null,null,null,null,0,0,0,0]
[null,null,null,null,null,null,null,null,null,null,null,null,null,null,null,null,null,null,null,null,null,null,null,null,null,null,null,null,null,null,null,null,null,null,null,null,null,null,null,null,null,0,0,0,0]
[null,null,null,null,null,null,null,null,null,null,null,null,null,null,null,null,null,null,null,null,null,null,null,null,null,null,null,null,null,null,null,null,null,null,null,null,null,null,null,null,null,0,0,0,0]
[null,null,null,null,null,null,null,null,null,null,null,null,null,null,null,null,null,null,null,null,null,null,null,null,null,null,null,null,null,null,null,null,null,null,null,null,null,null,null,null,null,0,0,0,0]
[null,null,null,null,null,null,null,null,null,null,null,null,null,null,null,null,null,null,null,null,null,null,null,null,null,null,null,null,null,null,null,null,null,null,null,null,null,null,null,null,null,0,0,0,0]
[null,null,null,null,null,null,null,null,null,null,null,null,null,null,null,null,null,null,null,null,null,null,null,null,null,null,null,null,null,null,null,null,null,null,null,null,null,null,null,null,null,0,0,0,0]
[null,null,null,null,null,null,null,null,null,null,null,null,null,null,null,null,null,null,null,null,null,null,null,null,null,null,null,null,null,null,null,null,null,null,null,null,null,null,null,null,null,0,0,0,0]
[null,null,null,null,null,null,null,null,null,null,null,null,null,null,null,null,null,null,null,null,null,null,null,null,null,null,null,null,null,null,null,null,null,null,null,null,null,null,null,null,null,0,0,0,0]
[null,null,null,null,null,null,null,null,null,null,null,null,null,null,null,null,null,null,null,null,null,null,null,null,null,null,null,null,null,null,null,null,null,null,null,null,null,null,null,null,null,{"$f":"IF(AH1411=\"Alimento\",AL1411/AG1411,0)","v":0},{"$f":"IF(AH1411=\"Personal\",AL1411/AG1411,0)","v":0},{"$f":"IF(AH1411=\"Dotación\",AL1411/AG1411,0)","v":0},{"$f":"SUM(AP1411:AR1411)","v":0}]
[null,null,null,null,null,null,null,null,null,null,null,null,null,null,null,null,null,null,null,null,null,null,null,null,null,null,null,null,null,null,null,null,null,null,null,null,null,null,null,null,null,0,0,0,0]
[null,null,null,null,null,null,null,null,null,null,null,null,null,null,null,null,null,null,null,null,null,null,null,null,null,null,null,null,null,null,null,null,null,null,null,null,null,null,null,null,null,0,0,0,0]
[null,null,null,null,null,null,null,null,null,null,null,null,null,null,null,null,null,null,null,null,null,null,null,null,null,null,null,null,null,null,null,null,null,null,null,null,null,null,null,null,null,0,0,0,0]
[null,null,null,null,null,null,null,null,null,null,null,null,null,null,null,null,null,null,null,null,null,null,null,null,null,null,null,null,null,null,null,null,null,null,null,null,null,null,null,null,null,0,0,0,0]
[null,null,null,null,null,null,null,null,null,null,null,null,null,null,null,null,null,null,null,null,null,null,null,null,null,null,null,null,null,null,null,null,null,null,null,null,null,null,null,null,null,0,0,0,0]
[null,null,null,null,null,null,null,null,null,null,null,null,null,null,null,null,null,null,null,null,null,null,null,null,null,null,null,null,null,null,null,null,null,null,null,null,null,null,null,null,null,0,0,0,0]
[null,null,null,null,null,null,null,null,null,null,null,null,null,null,null,null,null,null,null,null,null,null,null,null,null,null,null,null,null,null,null,null,null,null,null,null,null,null,null,null,null,0,0,0,0]
[null,null,null,null,null,null,null,null,null,null,null,null,null,null,null,null,null,null,null,null,null,null,null,null,null,null,null,null,null,null,null,null,null,null,null,null,null,null,null,null,null,0,0,0,0]
[null,null,null,null,null,null,null,null,null,null,null,null,null,null,null,null,null,null,null,null,null,null,null,null,null,null,null,null,null,null,null,null,null,null,null,null,null,null,null,null,null,0,0,0,0]
[null,null,null,null,null,null,null,null,null,null,null,null,null,null,null,null,null,null,null,null,null,null,null,null,null,null,null,null,null,null,null,null,null,null,null,null,null,null,null,null,null,0,0,0,0]
[null,null,null,null,null,null,null,null,null,null,null,null,null,null,null,null,null,null,null,null,null,null,null,null,null,null,null,null,null,null,null,null,null,null,null,null,null,null,null,null,null,0,0,0,0]
[null,null,null,null,null,null,null,null,null,null,null,null,null,null,null,null,null,null,null,null,null,null,null,null,null,null,null,null,null,null,null,null,null,null,null,null,null,null,null,null,null,0,0,0,0]
[null,null,null,null,null,null,null,null,null,null,null,null,null,null,null,null,null,null,null,null,null,null,null,null,null,null,null,null,null,null,null,null,null,null,null,null,null,null,null,null,null,0,0,0,0]
[null,null,null,null,null,null,null,null,null,null,null,null,null,null,null,null,null,null,null,null,null,null,null,null,null,null,null,null,null,null,null,null,null,null,null,null,null,null,null,null,null,0,0,0,0]
[null,null,null,null,null,null,null,null,null,null,null,null,null,null,null,null,null,null,null,null,null,null,null,null,null,null,null,null,null,null,null,null,null,null,null,null,null,null,null,null,null,0,0,0,0]
[null,null,null,null,null,null,null,null,null,null,null,null,null,null,null,null,null,null,null,null,null,null,null,null,null,null,null,null,null,null,null,null,null,null,null,null,null,null,null,null,null,0,0,0,0]
[null,null,null,null,null,null,null,null,null,null,null,null,null,null,null,null,null,null,null,null,null,null,null,null,null,null,null,null,null,null,null,null,null,null,null,null,null,null,null,null,null,0,0,0,0]
[null,null,null,null,null,null,null,null,null,null,null,null,null,null,null,null,null,null,null,null,null,null,null,null,null,null,null,null,null,null,null,null,null,null,null,null,null,null,null,null,null,0,0,0,0]
[null,null,null,null,null,null,null,null,null,null,null,null,null,null,null,null,null,null,null,null,null,null,null,null,null,null,null,null,null,null,null,null,null,null,null,null,null,null,null,null,null,0,0,0,0]
[null,null,null,null,null,null,null,null,null,null,null,null,null,null,null,null,null,null,null,null,null,null,null,null,null,null,null,null,null,null,null,null,null,null,null,null,null,null,null,null,null,0,0,0,0]
[null,null,null,null,null,null,null,null,null,null,null,null,null,null,null,null,null,null,null,null,null,null,null,null,null,null,null,null,null,null,null,null,null,null,null,null,null,null,null,null,null,0,0,0,0]
[null,null,null,null,null,null,null,null,null,null,null,null,null,null,null,null,null,null,null,null,null,null,null,null,null,null,null,null,null,null,null,null,null,null,null,null,null,null,null,null,null,0,0,0,0]
[null,null,null,null,null,null,null,null,null,null,null,null,null,null,null,null,null,null,null,null,null,null,null,null,null,null,null,null,null,null,null,null,null,null,null,null,null,null,null,null,null,0,0,0,0]
[null,null,null,null,null,null,null,null,null,null,null,null,null,null,null,null,null,null,null,null,null,null,null,null,null,null,null,null,null,null,null,null,null,null,null,null,null,null,null,null,null,0,0,0,0]
[null,null,null,null,null,null,null,null,null,null,null,null,null,null,null,null,null,null,null,null,null,null,null,null,null,null,null,null,null,null,null,null,null,null,null,null,null,null,null,null,null,0,0,0,0]
[null,null,null,null,null,null,null,null,null,null,null,null,null,null,null,null,null,null,null,null,null,null,null,null,null,null,null,null,null,null,null,null,null,null,null,null,null,null,null,null,null,0,0,0,0]
[null,null,null,null,null,null,null,null,null,null,null,null,null,null,null,null,null,null,null,null,null,null,null,null,null,null,null,null,null,null,null,null,null,null,null,null,null,null,null,null,null,0,0,0,0]
[null,null,null,null,null,null,null,null,null,null,null,null,null,null,null,null,null,null,null,null,null,null,null,null,null,null,null,null,null,null,null,null,null,null,null,null,null,null,null,null,null,0,0,0,0]
[null,null,null,null,null,null,null,null,null,null,null,null,null,null,null,null,null,null,null,null,null,null,null,null,null,null,null,null,null,null,null,null,null,null,null,null,null,null,null,null,null,0,0,0,0]
[null,null,null,null,null,null,null,null,null,null,null,null,null,null,null,null,null,null,null,null,null,null,null,null,null,null,null,null,null,null,null,null,null,null,null,null,null,null,null,null,null,0,0,0,0]
[null,null,null,null,null,null,null,null,null,null,null,null,null,null,null,null,null,null,null,null,null,null,null,null,null,null,null,null,null,null,null,null,null,null,null,null,null,null,null,null,null,0,0,0,0]
[null,null,null,null,null,null,null,null,null,null,null,null,null,null,null,null,null,null,null,null,null,null,null,null,null,null,null,null,null,null,null,null,null,null,null,null,null,null,null,null,null,0,0,0,0]
[null,null,null,null,null,null,null,null,null,null,null,null,null,null,null,null,null,null,null,null,null,null,null,null,null,null,null,null,null,null,null,null,null,null,null,null,null,null,null,null,null,0,0,0,0]
[null,null,null,null,null,null,null,null,null,null,null,null,null,null,null,null,null,null,null,null,null,null,null,null,null,null,null,null,null,null,null,null,null,null,null,null,null,null,null,null,null,0,0,0,0]
[null,null,null,null,null,null,null,null,null,null,null,null,null,null,null,null,null,null,null,null,null,null,null,null,null,null,null,null,null,null,null,null,null,null,null,null,null,null,null,null,null,0,0,0,0]
[null,null,null,null,null,null,null,null,null,null,null,null,null,null,null,null,null,null,null,null,null,null,null,null,null,null,null,null,null,null,null,null,null,null,null,null,null,null,null,null,null,0,0,0,0]
[null,null,null,null,null,null,null,null,null,null,null,null,null,null,null,null,null,null,null,null,null,null,null,null,null,null,null,null,null,null,null,null,null,null,null,null,null,null,null,null,null,0,0,0,0]
[null,null,null,null,null,null,null,null,null,null,null,null,null,null,null,null,null,null,null,null,null,null,null,null,null,null,null,null,null,null,null,null,null,null,null,null,null,null,null,null,null,0,0,0,0]
[null,null,null,null,null,null,null,null,null,null,null,null,null,null,null,null,null,null,null,null,null,null,null,null,null,null,null,null,null,null,null,null,null,null,null,null,null,null,null,null,null,0,0,0,0]
[null,null,null,null,null,null,null,null,null,null,null,null,null,null,null,null,null,null,null,null,null,null,null,null,null,null,null,null,null,null,null,null,null,null,null,null,null,null,null,null,null,0,0,0,0]
[null,null,null,null,null,null,null,null,null,null,null,null,null,null,null,null,null,null,null,null,null,null,null,null,null,null,null,null,null,null,null,null,null,null,null,null,null,null,null,null,null,0,0,0,0]
[null,null,null,null,null,null,null,null,null,null,null,null,null,null,null,null,null,null,null,null,null,null,null,null,null,null,null,null,null,null,null,null,null,null,null,null,null,null,null,null,null,0,0,0,0]
[null,null,null,null,null,null,null,null,null,null,null,null,null,null,null,null,null,null,null,null,null,null,null,null,null,null,null,null,null,null,null,null,null,null,null,null,null,null,null,null,null,0,0,0,0]
[null,null,null,null,null,null,null,null,null,null,null,null,null,null,null,null,null,null,null,null,null,null,null,null,null,null,null,null,null,null,null,null,null,null,null,null,null,null,null,null,null,0,0,0,0]
[null,null,null,null,null,null,null,null,null,null,null,null,null,null,null,null,null,null,null,null,null,null,null,null,null,null,null,null,null,null,null,null,null,null,null,null,null,null,null,null,null,0,0,0,0]
[null,null,null,null,null,null,null,null,null,null,null,null,null,null,null,null,null,null,null,null,null,null,null,null,null,null,null,null,null,null,null,null,null,null,null,null,null,null,null,null,null,0,0,0,0]
[null,null,null,null,null,null,null,null,null,null,null,null,null,null,null,null,null,null,null,null,null,null,null,null,null,null,null,null,null,null,null,null,null,null,null,null,null,null,null,null,null,0,0,0,0]
[null,null,null,null,null,null,null,null,null,null,null,null,null,null,null,null,null,null,null,null,null,null,null,null,null,null,null,null,null,null,null,null,null,null,null,null,null,null,null,null,null,0,0,0,0]
[null,null,null,null,null,null,null,null,null,null,null,null,null,null,null,null,null,null,null,null,null,null,null,null,null,null,null,null,null,null,null,null,null,null,null,null,null,null,null,null,null,0,0,0,0]
[null,null,null,null,null,null,null,null,null,null,null,null,null,null,null,null,null,null,null,null,null,null,null,null,null,null,null,null,null,null,null,null,null,null,null,null,null,null,null,null,null,0,0,0,0]
[null,null,null,null,null,null,null,null,null,null,null,null,null,null,null,null,null,null,null,null,null,null,null,null,null,null,null,null,null,null,null,null,null,null,null,null,null,null,null,null,null,0,0,0,0]
[null,null,null,null,null,null,null,null,null,null,null,null,null,null,null,null,null,null,null,null,null,null,null,null,null,null,null,null,null,null,null,null,null,null,null,null,null,null,null,null,null,0,0,0,0]
[null,null,null,null,null,null,null,null,null,null,null,null,null,null,null,null,null,null,null,null,null,null,null,null,null,null,null,null,null,null,null,null,null,null,null,null,null,null,null,null,null,0,0,0,0]
[null,null,null,null,null,null,null,null,null,null,null,null,null,null,null,null,null,null,null,null,null,null,null,null,null,null,null,null,null,null,null,null,null,null,null,null,null,null,null,null,null,0,0,0,0]
[null,null,null,null,null,null,null,null,null,null,null,null,null,null,null,null,null,null,null,null,null,null,null,null,null,null,null,null,null,null,null,null,null,null,null,null,null,null,null,null,null,0,0,0,0]
[null,null,null,null,null,null,null,null,null,null,null,null,null,null,null,null,null,null,null,null,null,null,null,null,null,null,null,null,null,null,null,null,null,null,null,null,null,null,null,null,null,0,0,0,0]
[null,null,null,null,null,null,null,null,null,null,null,null,null,null,null,null,null,null,null,null,null,null,null,null,null,null,null,null,null,null,null,null,null,null,null,null,null,null,null,null,null,0,0,0,0]
[null,null,null,null,null,null,null,null,null,null,null,null,null,null,null,null,null,null,null,null,null,null,null,null,null,null,null,null,null,null,null,null,null,null,null,null,null,null,null,null,null,0,0,0,0]
[null,null,null,null,null,null,null,null,null,null,null,null,null,null,null,null,null,null,null,null,null,null,null,null,null,null,null,null,null,null,null,null,null,null,null,null,null,null,null,null,null,0,0,0,0]
[null,null,null,null,null,null,null,null,null,null,null,null,null,null,null,null,null,null,null,null,null,null,null,null,null,null,null,null,null,null,null,null,null,null,null,null,null,null,null,null,null,0,0,0,0]
[null,null,null,null,null,null,null,null,null,null,null,null,null,null,null,null,null,null,null,null,null,null,null,null,null,null,null,null,null,null,null,null,null,null,null,null,null,null,null,null,null,0,0,0,0]
[null,null,null,null,null,null,null,null,null,null,null,null,null,null,null,null,null,null,null,null,null,null,null,null,null,null,null,null,null,null,null,null,null,null,null,null,null,null,null,null,null,0,0,0,0]
[null,null,null,null,null,null,null,null,null,null,null,null,null,null,null,null,null,null,null,null,null,null,null,null,null,null,null,null,null,null,null,null,null,null,null,null,null,null,null,null,null,0,0,0,0]
[null,null,null,null,null,null,null,null,null,null,null,null,null,null,null,null,null,null,null,null,null,null,null,null,null,null,null,null,null,null,null,null,null,null,null,null,null,null,null,null,null,0,0,0,0]
[null,null,null,null,null,null,null,null,null,null,null,null,null,null,null,null,null,null,null,null,null,null,null,null,null,null,null,null,null,null,null,null,null,null,null,null,null,null,null,null,null,0,0,0,0]
[null,null,null,null,null,null,null,null,null,null,null,null,null,null,null,null,null,null,null,null,null,null,null,null,null,null,null,null,null,null,null,null,null,null,null,null,null,null,null,null,null,0,0,0,0]
[null,null,null,null,null,null,null,null,null,null,null,null,null,null,null,null,null,null,null,null,null,null,null,null,null,null,null,null,null,null,null,null,null,null,null,null,null,null,null,null,null,0,0,0,0]
[null,null,null,null,null,null,null,null,null,null,null,null,null,null,null,null,null,null,null,null,null,null,null,null,null,null,null,null,null,null,null,null,null,null,null,null,null,null,null,null,null,0,0,0,0]
[null,null,null,null,null,null,null,null,null,null,null,null,null,null,null,null,null,null,null,null,null,null,null,null,null,null,null,null,null,null,null,null,null,null,null,null,null,null,null,null,null,0,0,0,0]
[null,null,null,null,null,null,null,null,null,null,null,null,null,null,null,null,null,null,null,null,null,null,null,null,null,null,null,null,null,null,null,null,null,null,null,null,null,null,null,null,null,0,0,0,0]
[null,null,null,null,null,null,null,null,null,null,null,null,null,null,null,null,null,null,null,null,null,null,null,null,null,null,null,null,null,null,null,null,null,null,null,null,null,null,null,null,null,0,0,0,0]
[null,null,null,null,null,null,null,null,null,null,null,null,null,null,null,null,null,null,null,null,null,null,null,null,null,null,null,null,null,null,null,null,null,null,null,null,null,null,null,null,null,0,0,0,0]
[null,null,null,null,null,null,null,null,null,null,null,null,null,null,null,null,null,null,null,null,null,null,null,null,null,null,null,null,null,null,null,null,null,null,null,null,null,null,null,null,null,0,0,0,0]
[null,null,null,null,null,null,null,null,null,null,null,null,null,null,null,null,null,null,null,null,null,null,null,null,null,null,null,null,null,null,null,null,null,null,null,null,null,null,null,null,null,0,0,0,0]
[null,null,null,null,null,null,null,null,null,null,null,null,null,null,null,null,null,null,null,null,null,null,null,null,null,null,null,null,null,null,null,null,null,null,null,null,null,null,null,null,null,0,0,0,0]
[null,null,null,null,null,null,null,null,null,null,null,null,null,null,null,null,null,null,null,null,null,null,null,null,null,null,null,null,null,null,null,null,null,null,null,null,null,null,null,null,null,0,0,0,0]
[null,null,null,null,null,null,null,null,null,null,null,null,null,null,null,null,null,null,null,null,null,null,null,null,null,null,null,null,null,null,null,null,null,null,null,null,null,null,null,null,null,0,0,0,0]
[null,null,null,null,null,null,null,null,null,null,null,null,null,null,null,null,null,null,null,null,null,null,null,null,null,null,null,null,null,null,null,null,null,null,null,null,null,null,null,null,null,0,0,0,0]
[null,null,null,null,null,null,null,null,null,null,null,null,null,null,null,null,null,null,null,null,null,null,null,null,null,null,null,null,null,null,null,null,null,null,null,null,null,null,null,null,null,0,0,0,0]
[null,null,null,null,null,null,null,null,null,null,null,null,null,null,null,null,null,null,null,null,null,null,null,null,null,null,null,null,null,null,null,null,null,null,null,null,null,null,null,null,null,0,0,0,0]
[null,null,null,null,null,null,null,null,null,null,null,null,null,null,null,null,null,null,null,null,null,null,null,null,null,null,null,null,null,null,null,null,null,null,null,null,null,null,null,null,null,0,0,0,0]
[null,null,null,null,null,null,null,null,null,null,null,null,null,null,null,null,null,null,null,null,null,null,null,null,null,null,null,null,null,null,null,null,null,null,null,null,null,null,null,null,null,0,0,0,0]
[null,null,null,null,null,null,null,null,null,null,null,null,null,null,null,null,null,null,null,null,null,null,null,null,null,null,null,null,null,null,null,null,null,null,null,null,null,null,null,null,null,0,0,0,0]
[null,null,null,null,null,null,null,null,null,null,null,null,null,null,null,null,null,null,null,null,null,null,null,null,null,null,null,null,null,null,null,null,null,null,null,null,null,null,null,null,null,0,0,0,0]
[null,null,null,null,null,null,null,null,null,null,null,null,null,null,null,null,null,null,null,null,null,null,null,null,null,null,null,null,null,null,null,null,null,null,null,null,null,null,null,null,null,0,0,0,0]
[null,null,null,null,null,null,null,null,null,null,null,null,null,null,null,null,null,null,null,null,null,null,null,null,null,null,null,null,null,null,null,null,null,null,null,null,null,null,null,null,null,0,0,0,0]
[null,null,null,null,null,null,null,null,null,null,null,null,null,null,null,null,null,null,null,null,null,null,null,null,null,null,null,null,null,null,null,null,null,null,null,null,null,null,null,null,null,0,0,0,0]
[null,null,null,null,null,null,null,null,null,null,null,null,null,null,null,null,null,null,null,null,null,null,null,null,null,null,null,null,null,null,null,null,null,null,null,null,null,null,null,null,null,0,0,0,0]
[null,null,null,null,null,null,null,null,null,null,null,null,null,null,null,null,null,null,null,null,null,null,null,null,null,null,null,null,null,null,null,null,null,null,null,null,null,null,null,null,null,0,0,0,0]
[null,null,null,null,null,null,null,null,null,null,null,null,null,null,null,null,null,null,null,null,null,null,null,null,null,null,null,null,null,null,null,null,null,null,null,null,null,null,null,null,null,0,0,0,0]
[null,null,null,null,null,null,null,null,null,null,null,null,null,null,null,null,null,null,null,null,null,null,null,null,null,null,null,null,null,null,null,null,null,null,null,null,null,null,null,null,null,0,0,0,0]
[null,null,null,null,null,null,null,null,null,null,null,null,null,null,null,null,null,null,null,null,null,null,null,null,null,null,null,null,null,null,null,null,null,null,null,null,null,null,null,null,null,0,0,0,0]
[null,null,null,null,null,null,null,null,null,null,null,null,null,null,null,null,null,null,null,null,null,null,null,null,null,null,null,null,null,null,null,null,null,null,null,null,null,null,null,null,null,0,0,0,0]
[null,null,null,null,null,null,null,null,null,null,null,null,null,null,null,null,null,null,null,null,null,null,null,null,null,null,null,null,null,null,null,null,null,null,null,null,null,null,null,null,null,0,0,0,0]
[null,null,null,null,null,null,null,null,null,null,null,null,null,null,null,null,null,null,null,null,null,null,null,null,null,null,null,null,null,null,null,null,null,null,null,null,null,null,null,null,null,{"$f":"IF(AH1859=\"Alimento\",AL1859/AG1859,0)","v":0},{"$f":"IF(AH1859=\"Personal\",AL1859/AG1859,0)","v":0},{"$f":"IF(AH1859=\"Dotación\",AL1859/AG1859,0)","v":0},{"$f":"SUM(AP1859:AR1859)","v":0}]
[null,null,null,null,null,null,null,null,null,null,null,null,null,null,null,null,null,null,null,null,null,null,null,null,null,null,null,null,null,null,null,null,null,null,null,null,null,null,null,null,null,0,0,0,0]
[null,null,null,null,null,null,null,null,null,null,null,null,null,null,null,null,null,null,null,null,null,null,null,null,null,null,null,null,null,null,null,null,null,null,null,null,null,null,null,null,null,0,0,0,0]
[null,null,null,null,null,null,null,null,null,null,null,null,null,null,null,null,null,null,null,null,null,null,null,null,null,null,null,null,null,null,null,null,null,null,null,null,null,null,null,null,null,0,0,0,0]
[null,null,null,null,null,null,null,null,null,null,null,null,null,null,null,null,null,null,null,null,null,null,null,null,null,null,null,null,null,null,null,null,null,null,null,null,null,null,null,null,null,0,0,0,0]
[null,null,null,null,null,null,null,null,null,null,null,null,null,null,null,null,null,null,null,null,null,null,null,null,null,null,null,null,null,null,null,null,null,null,null,null,null,null,null,null,null,0,0,0,0]
[null,null,null,null,null,null,null,null,null,null,null,null,null,null,null,null,null,null,null,null,null,null,null,null,null,null,null,null,null,null,null,null,null,null,null,null,null,null,null,null,null,0,0,0,0]
[null,null,null,null,null,null,null,null,null,null,null,null,null,null,null,null,null,null,null,null,null,null,null,null,null,null,null,null,null,null,null,null,null,null,null,null,null,null,null,null,null,0,0,0,0]
[null,null,null,null,null,null,null,null,null,null,null,null,null,null,null,null,null,null,null,null,null,null,null,null,null,null,null,null,null,null,null,null,null,null,null,null,null,null,null,null,null,0,0,0,0]
[null,null,null,null,null,null,null,null,null,null,null,null,null,null,null,null,null,null,null,null,null,null,null,null,null,null,null,null,null,null,null,null,null,null,null,null,null,null,null,null,null,0,0,0,0]
[null,null,null,null,null,null,null,null,null,null,null,null,null,null,null,null,null,null,null,null,null,null,null,null,null,null,null,null,null,null,null,null,null,null,null,null,null,null,null,null,null,0,0,0,0]
[null,null,null,null,null,null,null,null,null,null,null,null,null,null,null,null,null,null,null,null,null,null,null,null,null,null,null,null,null,null,null,null,null,null,null,null,null,null,null,null,null,0,0,0,0]
[null,null,null,null,null,null,null,null,null,null,null,null,null,null,null,null,null,null,null,null,null,null,null,null,null,null,null,null,null,null,null,null,null,null,null,null,null,null,null,null,null,0,0,0,0]
[null,null,null,null,null,null,null,null,null,null,null,null,null,null,null,null,null,null,null,null,null,null,null,null,null,null,null,null,null,null,null,null,null,null,null,null,null,null,null,null,null,0,0,0,0]
[null,null,null,null,null,null,null,null,null,null,null,null,null,null,null,null,null,null,null,null,null,null,null,null,null,null,null,null,null,null,null,null,null,null,null,null,null,null,null,null,null,0,0,0,0]
[null,null,null,null,null,null,null,null,null,null,null,null,null,null,null,null,null,null,null,null,null,null,null,null,null,null,null,null,null,null,null,null,null,null,null,null,null,null,null,null,null,0,0,0,0]
[null,null,null,null,null,null,null,null,null,null,null,null,null,null,null,null,null,null,null,null,null,null,null,null,null,null,null,null,null,null,null,null,null,null,null,null,null,null,null,null,null,0,0,0,0]
[null,null,null,null,null,null,null,null,null,null,null,null,null,null,null,null,null,null,null,null,null,null,null,null,null,null,null,null,null,null,null,null,null,null,null,null,null,null,null,null,null,0,0,0,0]
[null,null,null,null,null,null,null,null,null,null,null,null,null,null,null,null,null,null,null,null,null,null,null,null,null,null,null,null,null,null,null,null,null,null,null,null,null,null,null,null,null,0,0,0,0]
[null,null,null,null,null,null,null,null,null,null,null,null,null,null,null,null,null,null,null,null,null,null,null,null,null,null,null,null,null,null,null,null,null,null,null,null,null,null,null,null,null,0,0,0,0]
[null,null,null,null,null,null,null,null,null,null,null,null,null,null,null,null,null,null,null,null,null,null,null,null,null,null,null,null,null,null,null,null,null,null,null,null,null,null,null,null,null,0,0,0,0]
[null,null,null,null,null,null,null,null,null,null,null,null,null,null,null,null,null,null,null,null,null,null,null,null,null,null,null,null,null,null,null,null,null,null,null,null,null,null,null,null,null,0,0,0,0]
[null,null,null,null,null,null,null,null,null,null,null,null,null,null,null,null,null,null,null,null,null,null,null,null,null,null,null,null,null,null,null,null,null,null,null,null,null,null,null,null,null,0,0,0,0]
[null,null,null,null,null,null,null,null,null,null,null,null,null,null,null,null,null,null,null,null,null,null,null,null,null,null,null,null,null,null,null,null,null,null,null,null,null,null,null,null,null,0,0,0,0]
[null,null,null,null,null,null,null,null,null,null,null,null,null,null,null,null,null,null,null,null,null,null,null,null,null,null,null,null,null,null,null,null,null,null,null,null,null,null,null,null,null,0,0,0,0]
[null,null,null,null,null,null,null,null,null,null,null,null,null,null,null,null,null,null,null,null,null,null,null,null,null,null,null,null,null,null,null,null,null,null,null,null,null,null,null,null,null,0,0,0,0]
[null,null,null,null,null,null,null,null,null,null,null,null,null,null,null,null,null,null,null,null,null,null,null,null,null,null,null,null,null,null,null,null,null,null,null,null,null,null,null,null,null,0,0,0,0]
[null,null,null,null,null,null,null,null,null,null,null,null,null,null,null,null,null,null,null,null,null,null,null,null,null,null,null,null,null,null,null,null,null,null,null,null,null,null,null,null,null,{"$f":"IF(AH1987=\"Alimento\",AL1987/AG1987,0)","v":0},{"$f":"IF(AH1987=\"Personal\",AL1987/AG1987,0)","v":0},{"$f":"IF(AH1987=\"Dotación\",AL1987/AG1987,0)","v":0},{"$f":"SUM(AP1987:AR1987)","v":0}]
[null,null,null,null,null,null,null,null,null,null,null,null,null,null,null,null,null,null,null,null,null,null,null,null,null,null,null,null,null,null,null,null,null,null,null,null,null,null,null,null,null,0,0,0,0]
[null,null,null,null,null,null,null,null,null,null,null,null,null,null,null,null,null,null,null,null,null,null,null,null,null,null,null,null,null,null,null,null,null,null,null,null,null,null,null,null,null,0,0,0,0]
[null,null,null,null,null,null,null,null,null,null,null,null,null,null,null,null,null,null,null,null,null,null,null,null,null,null,null,null,null,null,null,null,null,null,null,null,null,null,null,null,null,0,0,0,0]
[null,null,null,null,null,null,null,null,null,null,null,null,null,null,null,null,null,null,null,null,null,null,null,null,null,null,null,null,null,null,null,null,null,null,null,null,null,null,null,null,null,0,0,0,0]
[null,null,null,null,null,null,null,null,null,null,null,null,null,null,null,null,null,null,null,null,null,null,null,null,null,null,null,null,null,null,null,null,null,null,null,null,null,null,null,null,null,0,0,0,0]
[null,null,null,null,null,null,null,null,null,null,null,null,null,null,null,null,null,null,null,null,null,null,null,null,null,null,null,null,null,null,null,null,null,null,null,null,null,null,null,null,null,0,0,0,0]
[null,null,null,null,null,null,null,null,null,null,null,null,null,null,null,null,null,null,null,null,null,null,null,null,null,null,null,null,null,null,null,null,null,null,null,null,null,null,null,null,null,0,0,0,0]
[null,null,null,null,null,null,null,null,null,null,null,null,null,null,null,null,null,null,null,null,null,null,null,null,null,null,null,null,null,null,null,null,null,null,null,null,null,null,null,null,null,0,0,0,0]
[null,null,null,null,null,null,null,null,null,null,null,null,null,null,null,null,null,null,null,null,null,null,null,null,null,null,null,null,null,null,null,null,null,null,null,null,null,null,null,null,null,0,0,0,0]
[null,null,null,null,null,null,null,null,null,null,null,null,null,null,null,null,null,null,null,null,null,null,null,null,null,null,null,null,null,null,null,null,null,null,null,null,null,null,null,null,null,0,0,0,0]
[null,null,null,null,null,null,null,null,null,null,null,null,null,null,null,null,null,null,null,null,null,null,null,null,null,null,null,null,null,null,null,null,null,null,null,null,null,null,null,null,null,0,0,0,0]
[null,null,null,null,null,null,null,null,null,null,null,null,null,null,null,null,null,null,null,null,null,null,null,null,null,null,null,null,null,null,null,null,null,null,null,null,null,null,null,null,null,0,0,0,0]
[null,null,null,null,null,null,null,null,null,null,null,null,null,null,null,null,null,null,null,null,null,null,null,null,null,null,null,null,null,null,null,null,null,null,null,null,null,null,null,null,null,0,0,0,0]
[null,null,null,null,null,null,null,null,null,null,null,null,null,null,null,null,null,null,null,null,null,null,null,null,null,null,null,null,null,null,null,null,null,null,null,null,null,null,null,null,null,0,0,0,0]
[null,null,null,null,null,null,null,null,null,null,null,null,null,null,null,null,null,null,null,null,null,null,null,null,null,null,null,null,null,null,null,null,null,null,null,null,null,null,null,null,null,0,0,0,0]
[null,null,null,null,null,null,null,null,null,null,null,null,null,null,null,null,null,null,null,null,null,null,null,null,null,null,null,null,null,null,null,null,null,null,null,null,null,null,null,null,null,0,0,0,0]
[null,null,null,null,null,null,null,null,null,null,null,null,null,null,null,null,null,null,null,null,null,null,null,null,null,null,null,null,null,null,null,null,null,null,null,null,null,null,null,null,null,0,0,0,0]
[null,null,null,null,null,null,null,null,null,null,null,null,null,null,null,null,null,null,null,null,null,null,null,null,null,null,null,null,null,null,null,null,null,null,null,null,null,null,null,null,null,0,0,0,0]
[null,null,null,null,null,null,null,null,null,null,null,null,null,null,null,null,null,null,null,null,null,null,null,null,null,null,null,null,null,null,null,null,null,null,null,null,null,null,null,null,null,0,0,0,0]
[null,null,null,null,null,null,null,null,null,null,null,null,null,null,null,null,null,null,null,null,null,null,null,null,null,null,null,null,null,null,null,null,null,null,null,null,null,null,null,null,null,0,0,0,0]
[null,null,null,null,null,null,null,null,null,null,null,null,null,null,null,null,null,null,null,null,null,null,null,null,null,null,null,null,null,null,null,null,null,null,null,null,null,null,null,null,null,0,0,0,0]
[null,null,null,null,null,null,null,null,null,null,null,null,null,null,null,null,null,null,null,null,null,null,null,null,null,null,null,null,null,null,null,null,null,null,null,null,null,null,null,null,null,0,0,0,0]
[null,null,null,null,null,null,null,null,null,null,null,null,null,null,null,null,null,null,null,null,null,null,null,null,null,null,null,null,null,null,null,null,null,null,null,null,null,null,null,null,null,0,0,0,0]
[null,null,null,null,null,null,null,null,null,null,null,null,null,null,null,null,null,null,null,null,null,null,null,null,null,null,null,null,null,null,null,null,null,null,null,null,null,null,null,null,null,0,0,0,0]
[null,null,null,null,null,null,null,null,null,null,null,null,null,null,null,null,null,null,null,null,null,null,null,null,null,null,null,null,null,null,null,null,null,null,null,null,null,null,null,null,null,0,0,0,0]
[null,null,null,null,null,null,null,null,null,null,null,null,null,null,null,null,null,null,null,null,null,null,null,null,null,null,null,null,null,null,null,null,null,null,null,null,null,null,null,null,null,0,0,0,0]
[null,null,null,null,null,null,null,null,null,null,null,null,null,null,null,null,null,null,null,null,null,null,null,null,null,null,null,null,null,null,null,null,null,null,null,null,null,null,null,null,null,0,0,0,0]
[null,null,null,null,null,null,null,null,null,null,null,null,null,null,null,null,null,null,null,null,null,null,null,null,null,null,null,null,null,null,null,null,null,null,null,null,null,null,null,null,null,0,0,0,0]
[null,null,null,null,null,null,null,null,null,null,null,null,null,null,null,null,null,null,null,null,null,null,null,null,null,null,null,null,null,null,null,null,null,null,null,null,null,null,null,null,null,0,0,0,0]
[null,null,null,null,null,null,null,null,null,null,null,null,null,null,null,null,null,null,null,null,null,null,null,null,null,null,null,null,null,null,null,null,null,null,null,null,null,null,null,null,null,0,0,0,0]
[null,null,null,null,null,null,null,null,null,null,null,null,null,null,null,null,null,null,null,null,null,null,null,null,null,null,null,null,null,null,null,null,null,null,null,null,null,null,null,null,null,0,0,0,0]
[null,null,null,null,null,null,null,null,null,null,null,null,null,null,null,null,null,null,null,null,null,null,null,null,null,null,null,null,null,null,null,null,null,null,null,null,null,null,null,null,null,0,0,0,0]
[null,null,null,null,null,null,null,null,null,null,null,null,null,null,null,null,null,null,null,null,null,null,null,null,null,null,null,null,null,null,null,null,null,null,null,null,null,null,null,null,null,0,0,0,0]
[null,null,null,null,null,null,null,null,null,null,null,null,null,null,null,null,null,null,null,null,null,null,null,null,null,null,null,null,null,null,null,null,null,null,null,null,null,null,null,null,null,0,0,0,0]
[null,null,null,null,null,null,null,null,null,null,null,null,null,null,null,null,null,null,null,null,null,null,null,null,null,null,null,null,null,null,null,null,null,null,null,null,null,null,null,null,null,0,0,0,0]
[null,null,null,null,null,null,null,null,null,null,null,null,null,null,null,null,null,null,null,null,null,null,null,null,null,null,null,null,null,null,null,null,null,null,null,null,null,null,null,null,null,0,0,0,0]
[null,null,null,null,null,null,null,null,null,null,null,null,null,null,null,null,null,null,null,null,null,null,null,null,null,null,null,null,null,null,null,null,null,null,null,null,null,null,null,null,null,0,0,0,0]
[null,null,null,null,null,null,null,null,null,null,null,null,null,null,null,null,null,null,null,null,null,null,null,null,null,null,null,null,null,null,null,null,null,null,null,null,null,null,null,null,null,0,0,0,0]
[null,null,null,null,null,null,null,null,null,null,null,null,null,null,null,null,null,null,null,null,null,null,null,null,null,null,null,null,null,null,null,null,null,null,null,null,null,null,null,null,null,0,0,0,0]
[null,null,null,null,null,null,null,null,null,null,null,null,null,null,null,null,null,null,null,null,null,null,null,null,null,null,null,null,null,null,null,null,null,null,null,null,null,null,null,null,null,0,0,0,0]
[null,null,null,null,null,null,null,null,null,null,null,null,null,null,null,null,null,null,null,null,null,null,null,null,null,null,null,null,null,null,null,null,null,null,null,null,null,null,null,null,null,0,0,0,0]
[null,null,null,null,null,null,null,null,null,null,null,null,null,null,null,null,null,null,null,null,null,null,null,null,null,null,null,null,null,null,null,null,null,null,null,null,null,null,null,null,null,0,0,0,0]
[null,null,null,null,null,null,null,null,null,null,null,null,null,null,null,null,null,null,null,null,null,null,null,null,null,null,null,null,null,null,null,null,null,null,null,null,null,null,null,null,null,0,0,0,0]
[null,null,null,null,null,null,null,null,null,null,null,null,null,null,null,null,null,null,null,null,null,null,null,null,null,null,null,null,null,null,null,null,null,null,null,null,null,null,null,null,null,0,0,0,0]
[null,null,null,null,null,null,null,null,null,null,null,null,null,null,null,null,null,null,null,null,null,null,null,null,null,null,null,null,null,null,null,null,null,null,null,null,null,null,null,null,null,0,0,0,0]
[null,null,null,null,null,null,null,null,null,null,null,null,null,null,null,null,null,null,null,null,null,null,null,null,null,null,null,null,null,null,null,null,null,null,null,null,null,null,null,null,null,0,0,0,0]
[null,null,null,null,null,null,null,null,null,null,null,null,null,null,null,null,null,null,null,null,null,null,null,null,null,null,null,null,null,null,null,null,null,null,null,null,null,null,null,null,null,0,0,0,0]
[null,null,null,null,null,null,null,null,null,null,null,null,null,null,null,null,null,null,null,null,null,null,null,null,null,null,null,null,null,null,null,null,null,null,null,null,null,null,null,null,null,0,0,0,0]
[null,null,null,null,null,null,null,null,null,null,null,null,null,null,null,null,null,null,null,null,null,null,null,null,null,null,null,null,null,null,null,null,null,null,null,null,null,null,null,null,null,0,0,0,0]
[null,null,null,null,null,null,null,null,null,null,null,null,null,null,null,null,null,null,null,null,null,null,null,null,null,null,null,null,null,null,null,null,null,null,null,null,null,null,null,null,null,0,0,0,0]
[null,null,null,null,null,null,null,null,null,null,null,null,null,null,null,null,null,null,null,null,null,null,null,null,null,null,null,null,null,null,null,null,null,null,null,null,null,null,null,null,null,0,0,0,0]
[null,null,null,null,null,null,null,null,null,null,null,null,null,null,null,null,null,null,null,null,null,null,null,null,null,null,null,null,null,null,null,null,null,null,null,null,null,null,null,null,null,0,0,0,0]
[null,null,null,null,null,null,null,null,null,null,null,null,null,null,null,null,null,null,null,null,null,null,null,null,null,null,null,null,null,null,null,null,null,null,null,null,null,null,null,null,null,0,0,0,0]
[null,null,null,null,null,null,null,null,null,null,null,null,null,null,null,null,null,null,null,null,null,null,null,null,null,null,null,null,null,null,null,null,null,null,null,null,null,null,null,null,null,0,0,0,0]
[null,null,null,null,null,null,null,null,null,null,null,null,null,null,null,null,null,null,null,null,null,null,null,null,null,null,null,null,null,null,null,null,null,null,null,null,null,null,null,null,null,0,0,0,0]
[null,null,null,null,null,null,null,null,null,null,null,null,null,null,null,null,null,null,null,null,null,null,null,null,null,null,null,null,null,null,null,null,null,null,null,null,null,null,null,null,null,0,0,0,0]
[null,null,null,null,null,null,null,null,null,null,null,null,null,null,null,null,null,null,null,null,null,null,null,null,null,null,null,null,null,null,null,null,null,null,null,null,null,null,null,null,null,0,0,0,0]
[null,null,null,null,null,null,null,null,null,null,null,null,null,null,null,null,null,null,null,null,null,null,null,null,null,null,null,null,null,null,null,null,null,null,null,null,null,null,null,null,null,0,0,0,0]
[null,null,null,null,null,null,null,null,null,null,null,null,null,null,null,null,null,null,null,null,null,null,null,null,null,null,null,null,null,null,null,null,null,null,null,null,null,null,null,null,null,0,0,0,0]
[null,null,null,null,null,null,null,null,null,null,null,null,null,null,null,null,null,null,null,null,null,null,null,null,null,null,null,null,null,null,null,null,null,null,null,null,null,null,null,null,null,0,0,0,0]
[null,null,null,null,null,null,null,null,null,null,null,null,null,null,null,null,null,null,null,null,null,null,null,null,null,null,null,null,null,null,null,null,null,null,null,null,null,null,null,null,null,0,0,0,0]
[null,null,null,null,null,null,null,null,null,null,null,null,null,null,null,null,null,null,null,null,null,null,null,null,null,null,null,null,null,null,null,null,null,null,null,null,null,null,null,null,null,0,0,0,0]
[null,null,null,null,null,null,null,null,null,null,null,null,null,null,null,null,null,null,null,null,null,null,null,null,null,null,null,null,null,null,null,null,null,null,null,null,null,null,null,null,null,0,0,0,0]
[null,null,null,null,null,null,null,null,null,null,null,null,null,null,null,null,null,null,null,null,null,null,null,null,null,null,null,null,null,null,null,null,null,null,null,null,null,null,null,null,null,0,0,0,0]
[null,null,null,null,null,null,null,null,null,null,null,null,null,null,null,null,null,null,null,null,null,null,null,null,null,null,null,null,null,null,null,null,null,null,null,null,null,null,null,null,null,0,0,0,0]
[null,null,null,null,null,null,null,null,null,null,null,null,null,null,null,null,null,null,null,null,null,null,null,null,null,null,null,null,null,null,null,null,null,null,null,null,null,null,null,null,null,0,0,0,0]
[null,null,null,null,null,null,null,null,null,null,null,null,null,null,null,null,null,null,null,null,null,null,null,null,null,null,null,null,null,null,null,null,null,null,null,null,null,null,null,null,null,{"$f":"IF(AH2307=\"Alimento\",AL2307/AG2307,0)","v":0},{"$f":"IF(AH2307=\"Personal\",AL2307/AG2307,0)","v":0},{"$f":"IF(AH2307=\"Dotación\",AL2307/AG2307,0)","v":0},{"$f":"SUM(AP2307:AR2307)","v":0}]
[null,null,null,null,null,null,null,null,null,null,null,null,null,null,null,null,null,null,null,null,null,null,null,null,null,null,null,null,null,null,null,null,null,null,null,null,null,null,null,null,null,0,0,0,0]
[null,null,null,null,null,null,null,null,null,null,null,null,null,null,null,null,null,null,null,null,null,null,null,null,null,null,null,null,null,null,null,null,null,null,null,null,null,null,null,null,null,0,0,0,0]
[null,null,null,null,null,null,null,null,null,null,null,null,null,null,null,null,null,null,null,null,null,null,null,null,null,null,null,null,null,null,null,null,null,null,null,null,null,null,null,null,null,0,0,0,0]
[null,null,null,null,null,null,null,null,null,null,null,null,null,null,null,null,null,null,null,null,null,null,null,null,null,null,null,null,null,null,null,null,null,null,null,null,null,null,null,null,null,0,0,0,0]
[null,null,null,null,null,null,null,null,null,null,null,null,null,null,null,null,null,null,null,null,null,null,null,null,null,null,null,null,null,null,null,null,null,null,null,null,null,null,null,null,null,0,0,0,0]
[null,null,null,null,null,null,null,null,null,null,null,null,null,null,null,null,null,null,null,null,null,null,null,null,null,null,null,null,null,null,null,null,null,null,null,null,null,null,null,null,null,0,0,0,0]
[null,null,null,null,null,null,null,null,null,null,null,null,null,null,null,null,null,null,null,null,null,null,null,null,null,null,null,null,null,null,null,null,null,null,null,null,null,null,null,null,null,0,0,0,0]
[null,null,null,null,null,null,null,null,null,null,null,null,null,null,null,null,null,null,null,null,null,null,null,null,null,null,null,null,null,null,null,null,null,null,null,null,null,null,null,null,null,0,0,0,0]
[null,null,null,null,null,null,null,null,null,null,null,null,null,null,null,null,null,null,null,null,null,null,null,null,null,null,null,null,null,null,null,null,null,null,null,null,null,null,null,null,null,0,0,0,0]
[null,null,null,null,null,null,null,null,null,null,null,null,null,null,null,null,null,null,null,null,null,null,null,null,null,null,null,null,null,null,null,null,null,null,null,null,null,null,null,null,null,0,0,0,0]
[null,null,null,null,null,null,null,null,null,null,null,null,null,null,null,null,null,null,null,null,null,null,null,null,null,null,null,null,null,null,null,null,null,null,null,null,null,null,null,null,null,0,0,0,0]
[null,null,null,null,null,null,null,null,null,null,null,null,null,null,null,null,null,null,null,null,null,null,null,null,null,null,null,null,null,null,null,null,null,null,null,null,null,null,null,null,null,0,0,0,0]
[null,null,null,null,null,null,null,null,null,null,null,null,null,null,null,null,null,null,null,null,null,null,null,null,null,null,null,null,null,null,null,null,null,null,null,null,null,null,null,null,null,0,0,0,0]
[null,null,null,null,null,null,null,null,null,null,null,null,null,null,null,null,null,null,null,null,null,null,null,null,null,null,null,null,null,null,null,null,null,null,null,null,null,null,null,null,null,0,0,0,0]
[null,null,null,null,null,null,null,null,null,null,null,null,null,null,null,null,null,null,null,null,null,null,null,null,null,null,null,null,null,null,null,null,null,null,null,null,null,null,null,null,null,0,0,0,0]
[null,null,null,null,null,null,null,null,null,null,null,null,null,null,null,null,null,null,null,null,null,null,null,null,null,null,null,null,null,null,null,null,null,null,null,null,null,null,null,null,null,0,0,0,0]
[null,null,null,null,null,null,null,null,null,null,null,null,null,null,null,null,null,null,null,null,null,null,null,null,null,null,null,null,null,null,null,null,null,null,null,null,null,null,null,null,null,0,0,0,0]
[null,null,null,null,null,null,null,null,null,null,null,null,null,null,null,null,null,null,null,null,null,null,null,null,null,null,null,null,null,null,null,null,null,null,null,null,null,null,null,null,null,0,0,0,0]
[null,null,null,null,null,null,null,null,null,null,null,null,null,null,null,null,null,null,null,null,null,null,null,null,null,null,null,null,null,null,null,null,null,null,null,null,null,null,null,null,null,0,0,0,0]
[null,null,null,null,null,null,null,null,null,null,null,null,null,null,null,null,null,null,null,null,null,null,null,null,null,null,null,null,null,null,null,null,null,null,null,null,null,null,null,null,null,0,0,0,0]
[null,null,null,null,null,null,null,null,null,null,null,null,null,null,null,null,null,null,null,null,null,null,null,null,null,null,null,null,null,null,null,null,null,null,null,null,null,null,null,null,null,0,0,0,0]
[null,null,null,null,null,null,null,null,null,null,null,null,null,null,null,null,null,null,null,null,null,null,null,null,null,null,null,null,null,null,null,null,null,null,null,null,null,null,null,null,null,0,0,0,0]
[null,null,null,null,null,null,null,null,null,null,null,null,null,null,null,null,null,null,null,null,null,null,null,null,null,null,null,null,null,null,null,null,null,null,null,null,null,null,null,null,null,0,0,0,0]
[null,null,null,null,null,null,null,null,null,null,null,null,null,null,null,null,null,null,null,null,null,null,null,null,null,null,null,null,null,null,null,null,null,null,null,null,null,null,null,null,null,0,0,0,0]
[null,null,null,null,null,null,null,null,null,null,null,null,null,null,null,null,null,null,null,null,null,null,null,null,null,null,null,null,null,null,null,null,null,null,null,null,null,null,null,null,null,0,0,0,0]
[null,null,null,null,null,null,null,null,null,null,null,null,null,null,null,null,null,null,null,null,null,null,null,null,null,null,null,null,null,null,null,null,null,null,null,null,null,null,null,null,null,0,0,0,0]
[null,null,null,null,null,null,null,null,null,null,null,null,null,null,null,null,null,null,null,null,null,null,null,null,null,null,null,null,null,null,null,null,null,null,null,null,null,null,null,null,null,{"$f":"IF(AH2435=\"Alimento\",AL2435/AG2435,0)","v":0},{"$f":"IF(AH2435=\"Personal\",AL2435/AG2435,0)","v":0},{"$f":"IF(AH2435=\"Dotación\",AL2435/AG2435,0)","v":0},{"$f":"SUM(AP2435:AR2435)","v":0}]
[null,null,null,null,null,null,null,null,null,null,null,null,null,null,null,null,null,null,null,null,null,null,null,null,null,null,null,null,null,null,null,null,null,null,null,null,null,null,null,null,null,0,0,0,0]
[null,null,null,null,null,null,null,null,null,null,null,null,null,null,null,null,null,null,null,null,null,null,null,null,null,null,null,null,null,null,null,null,null,null,null,null,null,null,null,null,null,0,0,0,0]
[null,null,null,null,null,null,null,null,null,null,null,null,null,null,null,null,null,null,null,null,null,null,null,null,null,null,null,null,null,null,null,null,null,null,null,null,null,null,null,null,null,0,0,0,0]
[null,null,null,null,null,null,null,null,null,null,null,null,null,null,null,null,null,null,null,null,null,null,null,null,null,null,null,null,null,null,null,null,null,null,null,null,null,null,null,null,null,0,0,0,0]
[null,null,null,null,null,null,null,null,null,null,null,null,null,null,null,null,null,null,null,null,null,null,null,null,null,null,null,null,null,null,null,null,null,null,null,null,null,null,null,null,null,0,0,0,0]
[null,null,null,null,null,null,null,null,null,null,null,null,null,null,null,null,null,null,null,null,null,null,null,null,null,null,null,null,null,null,null,null,null,null,null,null,null,null,null,null,null,0,0,0,0]
[null,null,null,null,null,null,null,null,null,null,null,null,null,null,null,null,null,null,null,null,null,null,null,null,null,null,null,null,null,null,null,null,null,null,null,null,null,null,null,null,null,0,0,0,0]
[null,null,null,null,null,null,null,null,null,null,null,null,null,null,null,null,null,null,null,null,null,null,null,null,null,null,null,null,null,null,null,null,null,null,null,null,null,null,null,null,null,0,0,0,0]
[null,null,null,null,null,null,null,null,null,null,null,null,null,null,null,null,null,null,null,null,null,null,null,null,null,null,null,null,null,null,null,null,null,null,null,null,null,null,null,null,null,0,0,0,0]
[null,null,null,null,null,null,null,null,null,null,null,null,null,null,null,null,null,null,null,null,null,null,null,null,null,null,null,null,null,null,null,null,null,null,null,null,null,null,null,null,null,0,0,0,0]
[null,null,null,null,null,null,null,null,null,null,null,null,null,null,null,null,null,null,null,null,null,null,null,null,null,null,null,null,null,null,null,null,null,null,null,null,null,null,null,null,null,0,0,0,0]
[null,null,null,null,null,null,null,null,null,null,null,null,null,null,null,null,null,null,null,null,null,null,null,null,null,null,null,null,null,null,null,null,null,null,null,null,null,null,null,null,null,0,0,0,0]
[null,null,null,null,null,null,null,null,null,null,null,null,null,null,null,null,null,null,null,null,null,null,null,null,null,null,null,null,null,null,null,null,null,null,null,null,null,null,null,null,null,0,0,0,0]
[null,null,null,null,null,null,null,null,null,null,null,null,null,null,null,null,null,null,null,null,null,null,null,null,null,null,null,null,null,null,null,null,null,null,null,null,null,null,null,null,null,0,0,0,0]
[null,null,null,null,null,null,null,null,null,null,null,null,null,null,null,null,null,null,null,null,null,null,null,null,null,null,null,null,null,null,null,null,null,null,null,null,null,null,null,null,null,0,0,0,0]
[null,null,null,null,null,null,null,null,null,null,null,null,null,null,null,null,null,null,null,null,null,null,null,null,null,null,null,null,null,null,null,null,null,null,null,null,null,null,null,null,null,0,0,0,0]
[null,null,null,null,null,null,null,null,null,null,null,null,null,null,null,null,null,null,null,null,null,null,null,null,null,null,null,null,null,null,null,null,null,null,null,null,null,null,null,null,null,0,0,0,0]
[null,null,null,null,null,null,null,null,null,null,null,null,null,null,null,null,null,null,null,null,null,null,null,null,null,null,null,null,null,null,null,null,null,null,null,null,null,null,null,null,null,0,0,0,0]
[null,null,null,null,null,null,null,null,null,null,null,null,null,null,null,null,null,null,null,null,null,null,null,null,null,null,null,null,null,null,null,null,null,null,null,null,null,null,null,null,null,0,0,0,0]
[null,null,null,null,null,null,null,null,null,null,null,null,null,null,null,null,null,null,null,null,null,null,null,null,null,null,null,null,null,null,null,null,null,null,null,null,null,null,null,null,null,0,0,0,0]
[null,null,null,null,null,null,null,null,null,null,null,null,null,null,null,null,null,null,null,null,null,null,null,null,null,null,null,null,null,null,null,null,null,null,null,null,null,null,null,null,null,0,0,0,0]
[null,null,null,null,null,null,null,null,null,null,null,null,null,null,null,null,null,null,null,null,null,null,null,null,null,null,null,null,null,null,null,null,null,null,null,null,null,null,null,null,null,0,0,0,0]
[null,null,null,null,null,null,null,null,null,null,null,null,null,null,null,null,null,null,null,null,null,null,null,null,null,null,null,null,null,null,null,null,null,null,null,null,null,null,null,null,null,0,0,0,0]
[null,null,null,null,null,null,null,null,null,null,null,null,null,null,null,null,null,null,null,null,null,null,null,null,null,null,null,null,null,null,null,null,null,null,null,null,null,null,null,null,null,0,0,0,0]
[null,null,null,null,null,null,null,null,null,null,null,null,null,null,null,null,null,null,null,null,null,null,null,null,null,null,null,null,null,null,null,null,null,null,null,null,null,null,null,null,null,0,0,0,0]
[null,null,null,null,null,null,null,null,null,null,null,null,null,null,null,null,null,null,null,null,null,null,null,null,null,null,null,null,null,null,null,null,null,null,null,null,null,null,null,null,null,0,0,0,0]
[null,null,null,null,null,null,null,null,null,null,null,null,null,null,null,null,null,null,null,null,null,null,null,null,null,null,null,null,null,null,null,null,null,null,null,null,null,null,null,null,null,{"$f":"IF(AH2563=\"Alimento\",AL2563/AG2563,0)","v":0},{"$f":"IF(AH2563=\"Personal\",AL2563/AG2563,0)","v":0},{"$f":"IF(AH2563=\"Dotación\",AL2563/AG2563,0)","v":0},{"$f":"SUM(AP2563:AR2563)","v":0}]
[null,null,null,null,null,null,null,null,null,null,null,null,null,null,null,null,null,null,null,null,null,null,null,null,null,null,null,null,null,null,null,null,null,null,null,null,null,null,null,null,null,0,0,0,0]
[null,null,null,null,null,null,null,null,null,null,null,null,null,null,null,null,null,null,null,null,null,null,null,null,null,null,null,null,null,null,null,null,null,null,null,null,null,null,null,null,null,0,0,0,0]
[null,null,null,null,null,null,null,null,null,null,null,null,null,null,null,null,null,null,null,null,null,null,null,null,null,null,null,null,null,null,null,null,null,null,null,null,null,null,null,null,null,0,0,0,0]
[null,null,null,null,null,null,null,null,null,null,null,null,null,null,null,null,null,null,null,null,null,null,null,null,null,null,null,null,null,null,null,null,null,null,null,null,null,null,null,null,null,0,0,0,0]
[null,null,null,null,null,null,null,null,null,null,null,null,null,null,null,null,null,null,null,null,null,null,null,null,null,null,null,null,null,null,null,null,null,null,null,null,null,null,null,null,null,0,0,0,0]
[null,null,null,null,null,null,null,null,null,null,null,null,null,null,null,null,null,null,null,null,null,null,null,null,null,null,null,null,null,null,null,null,null,null,null,null,null,null,null,null,null,0,0,0,0]
[null,null,null,null,null,null,null,null,null,null,null,null,null,null,null,null,null,null,null,null,null,null,null,null,null,null,null,null,null,null,null,null,null,null,null,null,null,null,null,null,null,0,0,0,0]
[null,null,null,null,null,null,null,null,null,null,null,null,null,null,null,null,null,null,null,null,null,null,null,null,null,null,null,null,null,null,null,null,null,null,null,null,null,null,null,null,null,0,0,0,0]
[null,null,null,null,null,null,null,null,null,null,null,null,null,null,null,null,null,null,null,null,null,null,null,null,null,null,null,null,null,null,null,null,null,null,null,null,null,null,null,null,null,0,0,0,0]
[null,null,null,null,null,null,null,null,null,null,null,null,null,null,null,null,null,null,null,null,null,null,null,null,null,null,null,null,null,null,null,null,null,null,null,null,null,null,null,null,null,0,0,0,0]
[null,null,null,null,null,null,null,null,null,null,null,null,null,null,null,null,null,null,null,null,null,null,null,null,null,null,null,null,null,null,null,null,null,null,null,null,null,null,null,null,null,0,0,0,0]
[null,null,null,null,null,null,null,null,null,null,null,null,null,null,null,null,null,null,null,null,null,null,null,null,null,null,null,null,null,null,null,null,null,null,null,null,null,null,null,null,null,0,0,0,0]
[null,null,null,null,null,null,null,null,null,null,null,null,null,null,null,null,null,null,null,null,null,null,null,null,null,null,null,null,null,null,null,null,null,null,null,null,null,null,null,null,null,0,0,0,0]
[null,null,null,null,null,null,null,null,null,null,null,null,null,null,null,null,null,null,null,null,null,null,null,null,null,null,null,null,null,null,null,null,null,null,null,null,null,null,null,null,null,0,0,0,0]
[null,null,null,null,null,null,null,null,null,null,null,null,null,null,null,null,null,null,null,null,null,null,null,null,null,null,null,null,null,null,null,null,null,null,null,null,null,null,null,null,null,0,0,0,0]
[null,null,null,null,null,null,null,null,null,null,null,null,null,null,null,null,null,null,null,null,null,null,null,null,null,null,null,null,null,null,null,null,null,null,null,null,null,null,null,null,null,0,0,0,0]
[null,null,null,null,null,null,null,null,null,null,null,null,null,null,null,null,null,null,null,null,null,null,null,null,null,null,null,null,null,null,null,null,null,null,null,null,null,null,null,null,null,0,0,0,0]
[null,null,null,null,null,null,null,null,null,null,null,null,null,null,null,null,null,null,null,null,null,null,null,null,null,null,null,null,null,null,null,null,null,null,null,null,null,null,null,null,null,0,0,0,0]
[null,null,null,null,null,null,null,null,null,null,null,null,null,null,null,null,null,null,null,null,null,null,null,null,null,null,null,null,null,null,null,null,null,null,null,null,null,null,null,null,null,0,0,0,0]
[null,null,null,null,null,null,null,null,null,null,null,null,null,null,null,null,null,null,null,null,null,null,null,null,null,null,null,null,null,null,null,null,null,null,null,null,null,null,null,null,null,0,0,0,0]
[null,null,null,null,null,null,null,null,null,null,null,null,null,null,null,null,null,null,null,null,null,null,null,null,null,null,null,null,null,null,null,null,null,null,null,null,null,null,null,null,null,0,0,0,0]
[null,null,null,null,null,null,null,null,null,null,null,null,null,null,null,null,null,null,null,null,null,null,null,null,null,null,null,null,null,null,null,null,null,null,null,null,null,null,null,null,null,0,0,0,0]
[null,null,null,null,null,null,null,null,null,null,null,null,null,null,null,null,null,null,null,null,null,null,null,null,null,null,null,null,null,null,null,null,null,null,null,null,null,null,null,null,null,0,0,0,0]
[null,null,null,null,null,null,null,null,null,null,null,null,null,null,null,null,null,null,null,null,null,null,null,null,null,null,null,null,null,null,null,null,null,null,null,null,null,null,null,null,null,0,0,0,0]
[null,null,null,null,null,null,null,null,null,null,null,null,null,null,null,null,null,null,null,null,null,null,null,null,null,null,null,null,null,null,null,null,null,null,null,null,null,null,null,null,null,0,0,0,0]
[null,null,null,null,null,null,null,null,null,null,null,null,null,null,null,null,null,null,null,null,null,null,null,null,null,null,null,null,null,null,null,null,null,null,null,null,null,null,null,null,null,0,0,0,0]
[null,null,null,null,null,null,null,null,null,null,null,null,null,null,null,null,null,null,null,null,null,null,null,null,null,null,null,null,null,null,null,null,null,null,null,null,null,null,null,null,null,0,0,0,0]
[null,null,null,null,null,null,null,null,null,null,null,null,null,null,null,null,null,null,null,null,null,null,null,null,null,null,null,null,null,null,null,null,null,null,null,null,null,null,null,null,null,0,0,0,0]
[null,null,null,null,null,null,null,null,null,null,null,null,null,null,null,null,null,null,null,null,null,null,null,null,null,null,null,null,null,null,null,null,null,null,null,null,null,null,null,null,null,0,0,0,0]
[null,null,null,null,null,null,null,null,null,null,null,null,null,null,null,null,null,null,null,null,null,null,null,null,null,null,null,null,null,null,null,null,null,null,null,null,null,null,null,null,null,0,0,0,0]
[null,null,null,null,null,null,null,null,null,null,null,null,null,null,null,null,null,null,null,null,null,null,null,null,null,null,null,null,null,null,null,null,null,null,null,null,null,null,null,null,null,0,0,0,0]
[null,null,null,null,null,null,null,null,null,null,null,null,null,null,null,null,null,null,null,null,null,null,null,null,null,null,null,null,null,null,null,null,null,null,null,null,null,null,null,null,null,0,0,0,0]
[null,null,null,null,null,null,null,null,null,null,null,null,null,null,null,null,null,null,null,null,null,null,null,null,null,null,null,null,null,null,null,null,null,null,null,null,null,null,null,null,null,0,0,0,0]
[null,null,null,null,null,null,null,null,null,null,null,null,null,null,null,null,null,null,null,null,null,null,null,null,null,null,null,null,null,null,null,null,null,null,null,null,null,null,null,null,null,0,0,0,0]
[null,null,null,null,null,null,null,null,null,null,null,null,null,null,null,null,null,null,null,null,null,null,null,null,null,null,null,null,null,null,null,null,null,null,null,null,null,null,null,null,null,0,0,0,0]
[null,null,null,null,null,null,null,null,null,null,null,null,null,null,null,null,null,null,null,null,null,null,null,null,null,null,null,null,null,null,null,null,null,null,null,null,null,null,null,null,null,0,0,0,0]
[null,null,null,null,null,null,null,null,null,null,null,null,null,null,null,null,null,null,null,null,null,null,null,null,null,null,null,null,null,null,null,null,null,null,null,null,null,null,null,null,null,0,0,0,0]
[null,null,null,null,null,null,null,null,null,null,null,null,null,null,null,null,null,null,null,null,null,null,null,null,null,null,null,null,null,null,null,null,null,null,null,null,null,null,null,null,null,0,0,0,0]
[null,null,null,null,null,null,null,null,null,null,null,null,null,null,null,null,null,null,null,null,null,null,null,null,null,null,null,null,null,null,null,null,null,null,null,null,null,null,null,null,null,0,0,0,0]
[null,null,null,null,null,null,null,null,null,null,null,null,null,null,null,null,null,null,null,null,null,null,null,null,null,null,null,null,null,null,null,null,null,null,null,null,null,null,null,null,null,0,0,0,0]
[null,null,null,null,null,null,null,null,null,null,null,null,null,null,null,null,null,null,null,null,null,null,null,null,null,null,null,null,null,null,null,null,null,null,null,null,null,null,null,null,null,0,0,0,0]
[null,null,null,null,null,null,null,null,null,null,null,null,null,null,null,null,null,null,null,null,null,null,null,null,null,null,null,null,null,null,null,null,null,null,null,null,null,null,null,null,null,0,0,0,0]
[null,null,null,null,null,null,null,null,null,null,null,null,null,null,null,null,null,null,null,null,null,null,null,null,null,null,null,null,null,null,null,null,null,null,null,null,null,null,null,null,null,0,0,0,0]
[null,null,null,null,null,null,null,null,null,null,null,null,null,null,null,null,null,null,null,null,null,null,null,null,null,null,null,null,null,null,null,null,null,null,null,null,null,null,null,null,null,0,0,0,0]
[null,null,null,null,null,null,null,null,null,null,null,null,null,null,null,null,null,null,null,null,null,null,null,null,null,null,null,null,null,null,null,null,null,null,null,null,null,null,null,null,null,0,0,0,0]
[null,null,null,null,null,null,null,null,null,null,null,null,null,null,null,null,null,null,null,null,null,null,null,null,null,null,null,null,null,null,null,null,null,null,null,null,null,null,null,null,null,0,0,0,0]
[null,null,null,null,null,null,null,null,null,null,null,null,null,null,null,null,null,null,null,null,null,null,null,null,null,null,null,null,null,null,null,null,null,null,null,null,null,null,null,null,null,0,0,0,0]
[null,null,null,null,null,null,null,null,null,null,null,null,null,null,null,null,null,null,null,null,null,null,null,null,null,null,null,null,null,null,null,null,null,null,null,null,null,null,null,null,null,0,0,0,0]
[null,null,null,null,null,null,null,null,null,null,null,null,null,null,null,null,null,null,null,null,null,null,null,null,null,null,null,null,null,null,null,null,null,null,null,null,null,null,null,null,null,0,0,0,0]
[null,null,null,null,null,null,null,null,null,null,null,null,null,null,null,null,null,null,null,null,null,null,null,null,null,null,null,null,null,null,null,null,null,null,null,null,null,null,null,null,null,0,0,0,0]
[null,null,null,null,null,null,null,null,null,null,null,null,null,null,null,null,null,null,null,null,null,null,null,null,null,null,null,null,null,null,null,null,null,null,null,null,null,null,null,null,null,0,0,0,0]
[null,null,null,null,null,null,null,null,null,null,null,null,null,null,null,null,null,null,null,null,null,null,null,null,null,null,null,null,null,null,null,null,null,null,null,null,null,null,null,null,null,0,0,0,0]
[null,null,null,null,null,null,null,null,null,null,null,null,null,null,null,null,null,null,null,null,null,null,null,null,null,null,null,null,null,null,null,null,null,null,null,null,null,null,null,null,null,0,0,0,0]
[null,null,null,null,null,null,null,null,null,null,null,null,null,null,null,null,null,null,null,null,null,null,null,null,null,null,null,null,null,null,null,null,null,null,null,null,null,null,null,null,null,0,0,0,0]
[null,null,null,null,null,null,null,null,null,null,null,null,null,null,null,null,null,null,null,null,null,null,null,null,null,null,null,null,null,null,null,null,null,null,null,null,null,null,null,null,null,0,0,0,0]
[null,null,null,null,null,null,null,null,null,null,null,null,null,null,null,null,null,null,null,null,null,null,null,null,null,null,null,null,null,null,null,null,null,null,null,null,null,null,null,null,null,0,0,0,0]
[null,null,null,null,null,null,null,null,null,null,null,null,null,null,null,null,null,null,null,null,null,null,null,null,null,null,null,null,null,null,null,null,null,null,null,null,null,null,null,null,null,0,0,0,0]
[null,null,null,null,null,null,null,null,null,null,null,null,null,null,null,null,null,null,null,null,null,null,null,null,null,null,null,null,null,null,null,null,null,null,null,null,null,null,null,null,null,0,0,0,0]
[null,null,null,null,null,null,null,null,null,null,null,null,null,null,null,null,null,null,null,null,null,null,null,null,null,null,null,null,null,null,null,null,null,null,null,null,null,null,null,null,null,0,0,0,0]
[null,null,null,null,null,null,null,null,null,null,null,null,null,null,null,null,null,null,null,null,null,null,null,null,null,null,null,null,null,null,null,null,null,null,null,null,null,null,null,null,null,0,0,0,0]
[null,null,null,null,null,null,null,null,null,null,null,null,null,null,null,null,null,null,null,null,null,null,null,null,null,null,null,null,null,null,null,null,null,null,null,null,null,null,null,null,null,0,0,0,0]
[null,null,null,null,null,null,null,null,null,null,null,null,null,null,null,null,null,null,null,null,null,null,null,null,null,null,null,null,null,null,null,null,null,null,null,null,null,null,null,null,null,0,0,0,0]
[null,null,null,null,null,null,null,null,null,null,null,null,null,null,null,null,null,null,null,null,null,null,null,null,null,null,null,null,null,null,null,null,null,null,null,null,null,null,null,null,null,0,0,0,0]
[null,null,null,null,null,null,null,null,null,null,null,null,null,null,null,null,null,null,null,null,null,null,null,null,null,null,null,null,null,null,null,null,null,null,null,null,null,null,null,null,null,0,0,0,0]
[null,null,null,null,null,null,null,null,null,null,null,null,null,null,null,null,null,null,null,null,null,null,null,null,null,null,null,null,null,null,null,null,null,null,null,null,null,null,null,null,null,0,0,0,0]
[null,null,null,null,null,null,null,null,null,null,null,null,null,null,null,null,null,null,null,null,null,null,null,null,null,null,null,null,null,null,null,null,null,null,null,null,null,null,null,null,null,0,0,0,0]
[null,null,null,null,null,null,null,null,null,null,null,null,null,null,null,null,null,null,null,null,null,null,null,null,null,null,null,null,null,null,null,null,null,null,null,null,null,null,null,null,null,0,0,0,0]
[null,null,null,null,null,null,null,null,null,null,null,null,null,null,null,null,null,null,null,null,null,null,null,null,null,null,null,null,null,null,null,null,null,null,null,null,null,null,null,null,null,0,0,0,0]
[null,null,null,null,null,null,null,null,null,null,null,null,null,null,null,null,null,null,null,null,null,null,null,null,null,null,null,null,null,null,null,null,null,null,null,null,null,null,null,null,null,0,0,0,0]
[null,null,null,null,null,null,null,null,null,null,null,null,null,null,null,null,null,null,null,null,null,null,null,null,null,null,null,null,null,null,null,null,null,null,null,null,null,null,null,null,null,0,0,0,0]
[null,null,null,null,null,null,null,null,null,null,null,null,null,null,null,null,null,null,null,null,null,null,null,null,null,null,null,null,null,null,null,null,null,null,null,null,null,null,null,null,null,0,0,0,0]
[null,null,null,null,null,null,null,null,null,null,null,null,null,null,null,null,null,null,null,null,null,null,null,null,null,null,null,null,null,null,null,null,null,null,null,null,null,null,null,null,null,0,0,0,0]
[null,null,null,null,null,null,null,null,null,null,null,null,null,null,null,null,null,null,null,null,null,null,null,null,null,null,null,null,null,null,null,null,null,null,null,null,null,null,null,null,null,{"$f":"IF(AH2883=\"Alimento\",AL2883/AG2883,0)","v":0},{"$f":"IF(AH2883=\"Personal\",AL2883/AG2883,0)","v":0},{"$f":"IF(AH2883=\"Dotación\",AL2883/AG2883,0)","v":0},{"$f":"SUM(AP2883:AR2883)","v":0}]
[null,null,null,null,null,null,null,null,null,null,null,null,null,null,null,null,null,null,null,null,null,null,null,null,null,null,null,null,null,null,null,null,null,null,null,null,null,null,null,null,null,0,0,0,0]
[null,null,null,null,null,null,null,null,null,null,null,null,null,null,null,null,null,null,null,null,null,null,null,null,null,null,null,null,null,null,null,null,null,null,null,null,null,null,null,null,null,0,0,0,0]
[null,null,null,null,null,null,null,null,null,null,null,null,null,null,null,null,null,null,null,null,null,null,null,null,null,null,null,null,null,null,null,null,null,null,null,null,null,null,null,null,null,0,0,0,0]
[null,null,null,null,null,null,null,null,null,null,null,null,null,null,null,null,null,null,null,null,null,null,null,null,null,null,null,null,null,null,null,null,null,null,null,null,null,null,null,null,null,0,0,0,0]
[null,null,null,null,null,null,null,null,null,null,null,null,null,null,null,null,null,null,null,null,null,null,null,null,null,null,null,null,null,null,null,null,null,null,null,null,null,null,null,null,null,0,0,0,0]
[null,null,null,null,null,null,null,null,null,null,null,null,null,null,null,null,null,null,null,null,null,null,null,null,null,null,null,null,null,null,null,null,null,null,null,null,null,null,null,null,null,0,0,0,0]
[null,null,null,null,null,null,null,null,null,null,null,null,null,null,null,null,null,null,null,null,null,null,null,null,null,null,null,null,null,null,null,null,null,null,null,null,null,null,null,null,null,0,0,0,0]
[null,null,null,null,null,null,null,null,null,null,null,null,null,null,null,null,null,null,null,null,null,null,null,null,null,null,null,null,null,null,null,null,null,null,null,null,null,null,null,null,null,0,0,0,0]
[null,null,null,null,null,null,null,null,null,null,null,null,null,null,null,null,null,null,null,null,null,null,null,null,null,null,null,null,null,null,null,null,null,null,null,null,null,null,null,null,null,0,0,0,0]
[null,null,null,null,null,null,null,null,null,null,null,null,null,null,null,null,null,null,null,null,null,null,null,null,null,null,null,null,null,null,null,null,null,null,null,null,null,null,null,null,null,0,0,0,0]
[null,null,null,null,null,null,null,null,null,null,null,null,null,null,null,null,null,null,null,null,null,null,null,null,null,null,null,null,null,null,null,null,null,null,null,null,null,null,null,null,null,0,0,0,0]
[null,null,null,null,null,null,null,null,null,null,null,null,null,null,null,null,null,null,null,null,null,null,null,null,null,null,null,null,null,null,null,null,null,null,null,null,null,null,null,null,null,0,0,0,0]
[null,null,null,null,null,null,null,null,null,null,null,null,null,null,null,null,null,null,null,null,null,null,null,null,null,null,null,null,null,null,null,null,null,null,null,null,null,null,null,null,null,0,0,0,0]
[null,null,null,null,null,null,null,null,null,null,null,null,null,null,null,null,null,null,null,null,null,null,null,null,null,null,null,null,null,null,null,null,null,null,null,null,null,null,null,null,null,0,0,0,0]
[null,null,null,null,null,null,null,null,null,null,null,null,null,null,null,null,null,null,null,null,null,null,null,null,null,null,null,null,null,null,null,null,null,null,null,null,null,null,null,null,null,0,0,0,0]
[null,null,null,null,null,null,null,null,null,null,null,null,null,null,null,null,null,null,null,null,null,null,null,null,null,null,null,null,null,null,null,null,null,null,null,null,null,null,null,null,null,0,0,0,0]
[null,null,null,null,null,null,null,null,null,null,null,null,null,null,null,null,null,null,null,null,null,null,null,null,null,null,null,null,null,null,null,null,null,null,null,null,null,null,null,null,null,0,0,0,0]
[null,null,null,null,null,null,null,null,null,null,null,null,null,null,null,null,null,null,null,null,null,null,null,null,null,null,null,null,null,null,null,null,null,null,null,null,null,null,null,null,null,0,0,0,0]
[null,null,null,null,null,null,null,null,null,null,null,null,null,null,null,null,null,null,null,null,null,null,null,null,null,null,null,null,null,null,null,null,null,null,null,null,null,null,null,null,null,0,0,0,0]
[null,null,null,null,null,null,null,null,null,null,null,null,null,null,null,null,null,null,null,null,null,null,null,null,null,null,null,null,null,null,null,null,null,null,null,null,null,null,null,null,null,0,0,0,0]
[null,null,null,null,null,null,null,null,null,null,null,null,null,null,null,null,null,null,null,null,null,null,null,null,null,null,null,null,null,null,null,null,null,null,null,null,null,null,null,null,null,0,0,0,0]
[null,null,null,null,null,null,null,null,null,null,null,null,null,null,null,null,null,null,null,null,null,null,null,null,null,null,null,null,null,null,null,null,null,null,null,null,null,null,null,null,null,0,0,0,0]
[null,null,null,null,null,null,null,null,null,null,null,null,null,null,null,null,null,null,null,null,null,null,null,null,null,null,null,null,null,null,null,null,null,null,null,null,null,null,null,null,null,0,0,0,0]
[null,null,null,null,null,null,null,null,null,null,null,null,null,null,null,null,null,null,null,null,null,null,null,null,null,null,null,null,null,null,null,null,null,null,null,null,null,null,null,null,null,0,0,0,0]
[null,null,null,null,null,null,null,null,null,null,null,null,null,null,null,null,null,null,null,null,null,null,null,null,null,null,null,null,null,null,null,null,null,null,null,null,null,null,null,null,null,0,0,0,0]
[null,null,null,null,null,null,null,null,null,null,null,null,null,null,null,null,null,null,null,null,null,null,null,null,null,null,null,null,null,null,null,null,null,null,null,null,null,null,null,null,null,0,0,0,0]
[null,null,null,null,null,null,null,null,null,null,null,null,null,null,null,null,null,null,null,null,null,null,null,null,null,null,null,null,null,null,null,null,null,null,null,null,null,null,null,null,null,0,0,0,0]
[null,null,null,null,null,null,null,null,null,null,null,null,null,null,null,null,null,null,null,null,null,null,null,null,null,null,null,null,null,null,null,null,null,null,null,null,null,null,null,null,null,0,0,0,0]
[null,null,null,null,null,null,null,null,null,null,null,null,null,null,null,null,null,null,null,null,null,null,null,null,null,null,null,null,null,null,null,null,null,null,null,null,null,null,null,null,null,0,0,0,0]
[null,null,null,null,null,null,null,null,null,null,null,null,null,null,null,null,null,null,null,null,null,null,null,null,null,null,null,null,null,null,null,null,null,null,null,null,null,null,null,null,null,0,0,0,0]
[null,null,null,null,null,null,null,null,null,null,null,null,null,null,null,null,null,null,null,null,null,null,null,null,null,null,null,null,null,null,null,null,null,null,null,null,null,null,null,null,null,0,0,0,0]
[null,null,null,null,null,null,null,null,null,null,null,null,null,null,null,null,null,null,null,null,null,null,null,null,null,null,null,null,null,null,null,null,null,null,null,null,null,null,null,null,null,0,0,0,0]
[null,null,null,null,null,null,null,null,null,null,null,null,null,null,null,null,null,null,null,null,null,null,null,null,null,null,null,null,null,null,null,null,null,null,null,null,null,null,null,null,null,0,0,0,0]
[null,null,null,null,null,null,null,null,null,null,null,null,null,null,null,null,null,null,null,null,null,null,null,null,null,null,null,null,null,null,null,null,null,null,null,null,null,null,null,null,null,0,0,0,0]
[null,null,null,null,null,null,null,null,null,null,null,null,null,null,null,null,null,null,null,null,null,null,null,null,null,null,null,null,null,null,null,null,null,null,null,null,null,null,null,null,null,0,0,0,0]
[null,null,null,null,null,null,null,null,null,null,null,null,null,null,null,null,null,null,null,null,null,null,null,null,null,null,null,null,null,null,null,null,null,null,null,null,null,null,null,null,null,0,0,0,0]
[null,null,null,null,null,null,null,null,null,null,null,null,null,null,null,null,null,null,null,null,null,null,null,null,null,null,null,null,null,null,null,null,null,null,null,null,null,null,null,null,null,0,0,0,0]
[null,null,null,null,null,null,null,null,null,null,null,null,null,null,null,null,null,null,null,null,null,null,null,null,null,null,null,null,null,null,null,null,null,null,null,null,null,null,null,null,null,0,0,0,0]
[null,null,null,null,null,null,null,null,null,null,null,null,null,null,null,null,null,null,null,null,null,null,null,null,null,null,null,null,null,null,null,null,null,null,null,null,null,null,null,null,null,0,0,0,0]
[null,null,null,null,null,null,null,null,null,null,null,null,null,null,null,null,null,null,null,null,null,null,null,null,null,null,null,null,null,null,null,null,null,null,null,null,null,null,null,null,null,0,0,0,0]
[null,null,null,null,null,null,null,null,null,null,null,null,null,null,null,null,null,null,null,null,null,null,null,null,null,null,null,null,null,null,null,null,null,null,null,null,null,null,null,null,null,0,0,0,0]
[null,null,null,null,null,null,null,null,null,null,null,null,null,null,null,null,null,null,null,null,null,null,null,null,null,null,null,null,null,null,null,null,null,null,null,null,null,null,null,null,null,0,0,0,0]
[null,null,null,null,null,null,null,null,null,null,null,null,null,null,null,null,null,null,null,null,null,null,null,null,null,null,null,null,null,null,null,null,null,null,null,null,null,null,null,null,null,0,0,0,0]
[null,null,null,null,null,null,null,null,null,null,null,null,null,null,null,null,null,null,null,null,null,null,null,null,null,null,null,null,null,null,null,null,null,null,null,null,null,null,null,null,null,0,0,0,0]
[null,null,null,null,null,null,null,null,null,null,null,null,null,null,null,null,null,null,null,null,null,null,null,null,null,null,null,null,null,null,null,null,null,null,null,null,null,null,null,null,null,0,0,0,0]
[null,null,null,null,null,null,null,null,null,null,null,null,null,null,null,null,null,null,null,null,null,null,null,null,null,null,null,null,null,null,null,null,null,null,null,null,null,null,null,null,null,0,0,0,0]
[null,null,null,null,null,null,null,null,null,null,null,null,null,null,null,null,null,null,null,null,null,null,null,null,null,null,null,null,null,null,null,null,null,null,null,null,null,null,null,null,null,0,0,0,0]
[null,null,null,null,null,null,null,null,null,null,null,null,null,null,null,null,null,null,null,null,null,null,null,null,null,null,null,null,null,null,null,null,null,null,null,null,null,null,null,null,null,0,0,0,0]
[null,null,null,null,null,null,null,null,null,null,null,null,null,null,null,null,null,null,null,null,null,null,null,null,null,null,null,null,null,null,null,null,null,null,null,null,null,null,null,null,null,0,0,0,0]
[null,null,null,null,null,null,null,null,null,null,null,null,null,null,null,null,null,null,null,null,null,null,null,null,null,null,null,null,null,null,null,null,null,null,null,null,null,null,null,null,null,0,0,0,0]
[null,null,null,null,null,null,null,null,null,null,null,null,null,null,null,null,null,null,null,null,null,null,null,null,null,null,null,null,null,null,null,null,null,null,null,null,null,null,null,null,null,0,0,0,0]
[null,null,null,null,null,null,null,null,null,null,null,null,null,null,null,null,null,null,null,null,null,null,null,null,null,null,null,null,null,null,null,null,null,null,null,null,null,null,null,null,null,0,0,0,0]
[null,null,null,null,null,null,null,null,null,null,null,null,null,null,null,null,null,null,null,null,null,null,null,null,null,null,null,null,null,null,null,null,null,null,null,null,null,null,null,null,null,0,0,0,0]
[null,null,null,null,null,null,null,null,null,null,null,null,null,null,null,null,null,null,null,null,null,null,null,null,null,null,null,null,null,null,null,null,null,null,null,null,null,null,null,null,null,0,0,0,0]
[null,null,null,null,null,null,null,null,null,null,null,null,null,null,null,null,null,null,null,null,null,null,null,null,null,null,null,null,null,null,null,null,null,null,null,null,null,null,null,null,null,0,0,0,0]
[null,null,null,null,null,null,null,null,null,null,null,null,null,null,null,null,null,null,null,null,null,null,null,null,null,null,null,null,null,null,null,null,null,null,null,null,null,null,null,null,null,0,0,0,0]
[null,null,null,null,null,null,null,null,null,null,null,null,null,null,null,null,null,null,null,null,null,null,null,null,null,null,null,null,null,null,null,null,null,null,null,null,null,null,null,null,null,0,0,0,0]
[null,null,null,null,null,null,null,null,null,null,null,null,null,null,null,null,null,null,null,null,null,null,null,null,null,null,null,null,null,null,null,null,null,null,null,null,null,null,null,null,null,0,0,0,0]
[null,null,null,null,null,null,null,null,null,null,null,null,null,null,null,null,null,null,null,null,null,null,null,null,null,null,null,null,null,null,null,null,null,null,null,null,null,null,null,null,null,0,0,0,0]
[null,null,null,null,null,null,null,null,null,null,null,null,null,null,null,null,null,null,null,null,null,null,null,null,null,null,null,null,null,null,null,null,null,null,null,null,null,null,null,null,null,0,0,0,0]
[null,null,null,null,null,null,null,null,null,null,null,null,null,null,null,null,null,null,null,null,null,null,null,null,null,null,null,null,null,null,null,null,null,null,null,null,null,null,null,null,null,0,0,0,0]
[null,null,null,null,null,null,null,null,null,null,null,null,null,null,null,null,null,null,null,null,null,null,null,null,null,null,null,null,null,null,null,null,null,null,null,null,null,null,null,null,null,0,0,0,0]
[null,null,null,null,null,null,null,null,null,null,null,null,null,null,null,null,null,null,null,null,null,null,null,null,null,null,null,null,null,null,null,null,null,null,null,null,null,null,null,null,null,0,0,0,0]
[null,null,null,null,null,null,null,null,null,null,null,null,null,null,null,null,null,null,null,null,null,null,null,null,null,null,null,null,null,null,null,null,null,null,null,null,null,null,null,null,null,{"$f":"IF(AH2947=\"Alimento\",AL2947/AG2947,0)","v":0},{"$f":"IF(AH2947=\"Personal\",AL2947/AG2947,0)","v":0},{"$f":"IF(AH2947=\"Dotación\",AL2947/AG2947,0)","v":0},{"$f":"SUM(AP2947:AR2947)","v":0}]
[null,null,null,null,null,null,null,null,null,null,null,null,null,null,null,null,null,null,null,null,null,null,null,null,null,null,null,null,null,null,null,null,null,null,null,null,null,null,null,null,null,0,0,0,0]
[null,null,null,null,null,null,null,null,null,null,null,null,null,null,null,null,null,null,null,null,null,null,null,null,null,null,null,null,null,null,null,null,null,null,null,null,null,null,null,null,null,0,0,0,0]
[null,null,null,null,null,null,null,null,null,null,null,null,null,null,null,null,null,null,null,null,null,null,null,null,null,null,null,null,null,null,null,null,null,null,null,null,null,null,null,null,null,0,0,0,0]
[null,null,null,null,null,null,null,null,null,null,null,null,null,null,null,null,null,null,null,null,null,null,null,null,null,null,null,null,null,null,null,null,null,null,null,null,null,null,null,null,null,0,0,0,0]
[null,null,null,null,null,null,null,null,null,null,null,null,null,null,null,null,null,null,null,null,null,null,null,null,null,null,null,null,null,null,null,null,null,null,null,null,null,null,null,null,null,0,0,0,0]
[null,null,null,null,null,null,null,null,null,null,null,null,null,null,null,null,null,null,null,null,null,null,null,null,null,null,null,null,null,null,null,null,null,null,null,null,null,null,null,null,null,0,0,0,0]
[null,null,null,null,null,null,null,null,null,null,null,null,null,null,null,null,null,null,null,null,null,null,null,null,null,null,null,null,null,null,null,null,null,null,null,null,null,null,null,null,null,0,0,0,0]
[null,null,null,null,null,null,null,null,null,null,null,null,null,null,null,null,null,null,null,null,null,null,null,null,null,null,null,null,null,null,null,null,null,null,null,null,null,null,null,null,null,0,0,0,0]
[null,null,null,null,null,null,null,null,null,null,null,null,null,null,null,null,null,null,null,null,null,null,null,null,null,null,null,null,null,null,null,null,null,null,null,null,null,null,null,null,null,0,0,0,0]
[null,null,null,null,null,null,null,null,null,null,null,null,null,null,null,null,null,null,null,null,null,null,null,null,null,null,null,null,null,null,null,null,null,null,null,null,null,null,null,null,null,0,0,0,0]
[null,null,null,null,null,null,null,null,null,null,null,null,null,null,null,null,null,null,null,null,null,null,null,null,null,null,null,null,null,null,null,null,null,null,null,null,null,null,null,null,null,0,0,0,0]
[null,null,null,null,null,null,null,null,null,null,null,null,null,null,null,null,null,null,null,null,null,null,null,null,null,null,null,null,null,null,null,null,null,null,null,null,null,null,null,null,null,0,0,0,0]
[null,null,null,null,null,null,null,null,null,null,null,null,null,null,null,null,null,null,null,null,null,null,null,null,null,null,null,null,null,null,null,null,null,null,null,null,null,null,null,null,null,0,0,0,0]
[null,null,null,null,null,null,null,null,null,null,null,null,null,null,null,null,null,null,null,null,null,null,null,null,null,null,null,null,null,null,null,null,null,null,null,null,null,null,null,null,null,0,0,0,0]
[null,null,null,null,null,null,null,null,null,null,null,null,null,null,null,null,null,null,null,null,null,null,null,null,null,null,null,null,null,null,null,null,null,null,null,null,null,null,null,null,null,0,0,0,0]
[null,null,null,null,null,null,null,null,null,null,null,null,null,null,null,null,null,null,null,null,null,null,null,null,null,null,null,null,null,null,null,null,null,null,null,null,null,null,null,null,null,0,0,0,0]
[null,null,null,null,null,null,null,null,null,null,null,null,null,null,null,null,null,null,null,null,null,null,null,null,null,null,null,null,null,null,null,null,null,null,null,null,null,null,null,null,null,0,0,0,0]
[null,null,null,null,null,null,null,null,null,null,null,null,null,null,null,null,null,null,null,null,null,null,null,null,null,null,null,null,null,null,null,null,null,null,null,null,null,null,null,null,null,0,0,0,0]
[null,null,null,null,null,null,null,null,null,null,null,null,null,null,null,null,null,null,null,null,null,null,null,null,null,null,null,null,null,null,null,null,null,null,null,null,null,null,null,null,null,0,0,0,0]
[null,null,null,null,null,null,null,null,null,null,null,null,null,null,null,null,null,null,null,null,null,null,null,null,null,null,null,null,null,null,null,null,null,null,null,null,null,null,null,null,null,0,0,0,0]
[null,null,null,null,null,null,null,null,null,null,null,null,null,null,null,null,null,null,null,null,null,null,null,null,null,null,null,null,null,null,null,null,null,null,null,null,null,null,null,null,null,0,0,0,0]
[null,null,null,null,null,null,null,null,null,null,null,null,null,null,null,null,null,null,null,null,null,null,null,null,null,null,null,null,null,null,null,null,null,null,null,null,null,null,null,null,null,0,0,0,0]
[null,null,null,null,null,null,null,null,null,null,null,null,null,null,null,null,null,null,null,null,null,null,null,null,null,null,null,null,null,null,null,null,null,null,null,null,null,null,null,null,null,0,0,0,0]
[null,null,null,null,null,null,null,null,null,null,null,null,null,null,null,null,null,null,null,null,null,null,null,null,null,null,null,null,null,null,null,null,null,null,null,null,null,null,null,null,null,0,0,0,0]
[null,null,null,null,null,null,null,null,null,null,null,null,null,null,null,null,null,null,null,null,null,null,null,null,null,null,null,null,null,null,null,null,null,null,null,null,null,null,null,null,null,0,0,0,0]
[null,null,null,null,null,null,null,null,null,null,null,null,null,null,null,null,null,null,null,null,null,null,null,null,null,null,null,null,null,null,null,null,null,null,null,null,null,null,null,null,null,0,0,0,0]
[null,null,null,null,null,null,null,null,null,null,null,null,null,null,null,null,null,null,null,null,null,null,null,null,null,null,null,null,null,null,null,null,null,null,null,null,null,null,null,null,null,0,0,0,0]
[null,null,null,null,null,null,null,null,null,null,null,null,null,null,null,null,null,null,null,null,null,null,null,null,null,null,null,null,null,null,null,null,null,null,null,null,null,null,null,null,null,0,0,0,0]
[null,null,null,null,null,null,null,null,null,null,null,null,null,null,null,null,null,null,null,null,null,null,null,null,null,null,null,null,null,null,null,null,null,null,null,null,null,null,null,null,null,0,0,0,0]
[null,null,null,null,null,null,null,null,null,null,null,null,null,null,null,null,null,null,null,null,null,null,null,null,null,null,null,null,null,null,null,null,null,null,null,null,null,null,null,null,null,0,0,0,0]
[null,null,null,null,null,null,null,null,null,null,null,null,null,null,null,null,null,null,null,null,null,null,null,null,null,null,null,null,null,null,null,null,null,null,null,null,null,null,null,null,null,0,0,0,0]
[null,null,null,null,null,null,null,null,null,null,null,null,null,null,null,null,null,null,null,null,null,null,null,null,null,null,null,null,null,null,null,null,null,null,null,null,null,null,null,null,null,0,0,0,0]
[null,null,null,null,null,null,null,null,null,null,null,null,null,null,null,null,null,null,null,null,null,null,null,null,null,null,null,null,null,null,null,null,null,null,null,null,null,null,null,null,null,0,0,0,0]
[null,null,null,null,null,null,null,null,null,null,null,null,null,null,null,null,null,null,null,null,null,null,null,null,null,null,null,null,null,null,null,null,null,null,null,null,null,null,null,null,null,0,0,0,0]
[null,null,null,null,null,null,null,null,null,null,null,null,null,null,null,null,null,null,null,null,null,null,null,null,null,null,null,null,null,null,null,null,null,null,null,null,null,null,null,null,null,0,0,0,0]
[null,null,null,null,null,null,null,null,null,null,null,null,null,null,null,null,null,null,null,null,null,null,null,null,null,null,null,null,null,null,null,null,null,null,null,null,null,null,null,null,null,0,0,0,0]
[null,null,null,null,null,null,null,null,null,null,null,null,null,null,null,null,null,null,null,null,null,null,null,null,null,null,null,null,null,null,null,null,null,null,null,null,null,null,null,null,null,0,0,0,0]
[null,null,null,null,null,null,null,null,null,null,null,null,null,null,null,null,null,null,null,null,null,null,null,null,null,null,null,null,null,null,null,null,null,null,null,null,null,null,null,null,null,0,0,0,0]
[null,null,null,null,null,null,null,null,null,null,null,null,null,null,null,null,null,null,null,null,null,null,null,null,null,null,null,null,null,null,null,null,null,null,null,null,null,null,null,null,null,0,0,0,0]
[null,null,null,null,null,null,null,null,null,null,null,null,null,null,null,null,null,null,null,null,null,null,null,null,null,null,null,null,null,null,null,null,null,null,null,null,null,null,null,null,null,0,0,0,0]
[null,null,null,null,null,null,null,null,null,null,null,null,null,null,null,null,null,null,null,null,null,null,null,null,null,null,null,null,null,null,null,null,null,null,null,null,null,null,null,null,null,0,0,0,0]
[null,null,null,null,null,null,null,null,null,null,null,null,null,null,null,null,null,null,null,null,null,null,null,null,null,null,null,null,null,null,null,null,null,null,null,null,null,null,null,null,null,0,0,0,0]
[null,null,null,null,null,null,null,null,null,null,null,null,null,null,null,null,null,null,null,null,null,null,null,null,null,null,null,null,null,null,null,null,null,null,null,null,null,null,null,null,null,0,0,0,0]
[null,null,null,null,null,null,null,null,null,null,null,null,null,null,null,null,null,null,null,null,null,null,null,null,null,null,null,null,null,null,null,null,null,null,null,null,null,null,null,null,null,0,0,0,0]
[null,null,null,null,null,null,null,null,null,null,null,null,null,null,null,null,null,null,null,null,null,null,null,null,null,null,null,null,null,null,null,null,null,null,null,null,null,null,null,null,null,0,0,0,0]
[null,null,null,null,null,null,null,null,null,null,null,null,null,null,null,null,null,null,null,null,null,null,null,null,null,null,null,null,null,null,null,null,null,null,null,null,null,null,null,null,null,0,0,0,0]
[null,null,null,null,null,null,null,null,null,null,null,null,null,null,null,null,null,null,null,null,null,null,null,null,null,null,null,null,null,null,null,null,null,null,null,null,null,null,null,null,null,0,0,0,0]
[null,null,null,null,null,null,null,null,null,null,null,null,null,null,null,null,null,null,null,null,null,null,null,null,null,null,null,null,null,null,null,null,null,null,null,null,null,null,null,null,null,0,0,0,0]
[null,null,null,null,null,null,null,null,null,null,null,null,null,null,null,null,null,null,null,null,null,null,null,null,null,null,null,null,null,null,null,null,null,null,null,null,null,null,null,null,null,0,0,0,0]
[null,null,null,null,null,null,null,null,null,null,null,null,null,null,null,null,null,null,null,null,null,null,null,null,null,null,null,null,null,null,null,null,null,null,null,null,null,null,null,null,null,0,0,0,0]
[null,null,null,null,null,null,null,null,null,null,null,null,null,null,null,null,null,null,null,null,null,null,null,null,null,null,null,null,null,null,null,null,null,null,null,null,null,null,null,null,null,0,0,0,0]
[null,null,null,null,null,null,null,null,null,null,null,null,null,null,null,null,null,null,null,null,null,null,null,null,null,null,null,null,null,null,null,null,null,null,null,null,null,null,null,null,null,0,{"$f":"IF(AH2999=\"Personal\",AL2999/AG2999,0)","v":0},0,0]
[null,null,null,null,null,null,null,null,null,null,null,null,null,null,null,null,null,null,null,null,null,null,null,null,null,null,null,null,null,null,null,null,null,null,null,null,null,null,null,null,null,{"$f":"IF(AH3000=\"Alimento\",AL3000/AG3000,0)","v":0},{"$f":"IF(AH3000=\"Personal\",AL3000/AG3000,0)","v":0},{"$f":"IF(AH3000=\"Dotación\",AL3000/AG3000,0)","v":0},{"$f":"SUM(AP3000:AR3000)","v":0}]

{"sheet":"Departamentos","index":1,"n_rows":34,"n_cols":2,"rows_kept":34,"cut":false,"hidden":true,"merged":[]}
["CODIGO DEPARTAMENTO","DEPARTAMENTO"]
[1,"Amazonas"]
[2,"Antioquia"]
[3,"Arauca"]
[4,"Archipiélago de San Andrés, Providencia y Santa Catalina"]
[5,"Atlántico"]
[6,"Bogotá D.C."]
[7,"Bolívar"]
[8,"Boyacá"]
[9,"Caldas"]
[10,"Caquetá"]
[11,"Casanare"]
[12,"Cauca"]
[13,"Cesar"]
[14,"Chocó"]
[15,"Córdoba"]
[16,"Cundinamarca"]
[17,"Guainía"]
[18,"Guaviare"]
[19,"Huila"]
[20,"La Guajira"]
[21,"Magdalena"]
[22,"Meta"]
[23,"Nariño"]
[24,"Norte de Santander"]
[25,"Putumayo"]
[26,"Quindío"]
[27,"Risaralda"]
[28,"Santander"]
[29,"Sucre"]
[30,"Tolima"]
[31,"Valle del Cauca"]
[32,"Vaupés"]
[33,"Vichada"]

{"sheet":"Municipios","index":2,"n_rows":1241,"n_cols":4,"rows_kept":1241,"cut":false,"hidden":true,"merged":[]}
["CODIGO DEPARTAMENTO","CODIGO MUNICIPIO","MUNICIPIO"]
[1,1,"El Encanto",1]
[1,1,"La Chorrera",2]
[1,1,"La Pedrera",3]
[1,1,"La Victoria",4]
[1,1,"Leticia",5]
[1,1,"Miriti Paraná",6]
[1,1,"Puerto Alegría",7]
[1,1,"Puerto Arica",8]
[1,1,"Puerto Nariño",9]
[1,1,"Puerto Santander",10]
[1,1,"Tarapacá",11]
[2,2,"Abejorral",12]
[2,2,"Abriaquí",13]
[2,2,"Alejandría",14]
[2,2,"Amagá",15]
[2,2,"Amalfi",16]
[2,2,"Andes",17]
[2,2,"Angelópolis",18]
[2,2,"Angostura",19]
[2,2,"Anorí",20]
[2,2,"Anza",21]
[2,2,"Apartadó",22]
[2,2,"Arboletes",23]
[2,2,"Argelia",24]
[2,2,"Armenia",25]
[2,2,"Barbosa",26]
[2,2,"Bello",27]
[2,2,"Belmira",28]
[2,2,"Betania",29]
[2,2,"Betulia",30]
[2,2,"Briceño",31]
[2,2,"Buriticá",32]
[2,2,"Caicedo",33]
[2,2,"Caldas",34]
[2,2,"Campamento",35]
[2,2,"Caracolí",36]
[2,2,"Caramanta",37]
[2,2,"Carepa",38]
[2,2,"Carolina",39]
[2,2,"Caucasia",40]
[2,2,"Cañasgordas",41]
[2,2,"Chigorodó",42]
[2,2,"Cisneros",43]
[2,2,"Ciudad Bolívar",44]
[2,2,"Cocorná",45]
[2,2,"Concepción",46]
[2,2,"Concordia",47]
[2,2,"Copacabana",48]
[2,2,"Cáceres",49]
[2,2,"Dabeiba",50]
[2,2,"Don Matías",51]
[2,2,"Ebéjico",52]
[2,2,"El Bagre",53]
[2,2,"El Carmen de Viboral",54]
[2,2,"El Santuario",55]
[2,2,"Entrerrios",56]
[2,2,"Envigado",57]
[2,2,"Fredonia",58]
[2,2,"Frontino",59]
[2,2,"Giraldo",60]
[2,2,"Girardota",61]
[2,2,"Granada",62]
[2,2,"Guadalupe",63]
[2,2,"Guarne",64]
[2,2,"Guatapé",65]
[2,2,"Gómez Plata",66]
[2,2,"Heliconia",67]
[2,2,"Hispania",68]
[2,2,"Itagui",69]
[2,2,"Ituango",70]
[2,2,"Jardín",71]
[2,2,"Jericó",72]
[2,2,"La Ceja",73]
[2,2,"La Estrella",74]
[2,2,"La Pintada",75]
[2,2,"La Unión",76]
[2,2,"Liborina",77]
[2,2,"Maceo",78]
[2,2,"Marinilla",79]
[2,2,"Medellín",80]
[2,2,"Montebello",81]
[2,2,"Murindó",82]
[2,2,"Mutatá",83]
[2,2,"Nariño",84]
[2,2,"Nechí",85]
[2,2,"Necoclí",86]
[2,2,"Olaya",87]
[2,2,"Peque",88]
[2,2,"Peñol",89]
[2,2,"Pueblorrico",90]
[2,2,"Puerto Berrío",91]
[2,2,"Puerto Nare",92]
[2,2,"Puerto Triunfo",93]
[2,2,"Remedios",94]
[2,2,"Retiro",95]
[2,2,"Rionegro",96]
[2,2,"Sabanalarga",97]
[2,2,"Sabaneta",98]
[2,2,"Salgar",99]
[2,2,"San Andrés de Cuerquía",100]
[2,2,"San Carlos",101]
[2,2,"San Francisco",102]
[2,2,"San Jerónimo",103]
[2,2,"San José de La Montaña",104]
[2,2,"San Juan de Urabá",105]
[2,2,"San Luis",106]
[2,2,"San Pedro",107]
[2,2,"San Pedro de Uraba",108]
[2,2,"San Rafael",109]
[2,2,"San Roque",110]
[2,2,"San Vicente",111]
[2,2,"Santa Bárbara",112]
[2,2,"Santa Rosa de Osos",113]
[2,2,"Santafé de Antioquia",114]
[2,2,"Santo Domingo",115]
[2,2,"Segovia",116]
[2,2,"Sonsón",117]
[2,2,"Sopetrán",118]
[2,2,"Tarazá",119]
[2,2,"Tarso",120]
[2,2,"Titiribí",121]
[2,2,"Toledo",122]
[2,2,"Turbo",123]
[2,2,"Támesis",124]
[2,2,"Uramita",125]
[2,2,"Urrao",126]
[2,2,"Valdivia",127]
[2,2,"Valparaíso",128]
[2,2,"Vegachí",129]
[2,2,"Venecia",130]
[2,2,"Vigía del Fuerte",131]
[2,2,"Yalí",132]
[2,2,"Yarumal",133]
[2,2,"Yolombó",134]
[2,2,"Yondó",135]
[2,2,"Zaragoza",136]
[3,3,"Arauca",137]
[3,3,"Arauquita",138]
[3,3,"Cravo Norte",139]
[3,3,"Fortul",140]
[3,3,"Puerto Rondón",141]
[3,3,"Saravena",142]
[3,3,"Tame",143]
[4,4,"Providencia",144]
[4,4,"San Andrés",145]
[5,5,"Baranoa",146]
[5,5,"Barranquilla",147]
[5,5,"Campo de La Cruz",148]
[5,5,"Candelaria",149]
[5,5,"Galapa",150]
[5,5,"Juan de Acosta",151]
[5,5,"Luruaco",152]
[5,5,"Malambo",153]
[5,5,"Manatí",154]
[5,5,"Palmar de Varela",155]
[5,5,"Piojó",156]
[5,5,"Polonuevo",157]
[5,5,"Ponedera",158]
[5,5,"Puerto Colombia",159]
[5,5,"Repelón",160]
[5,5,"Sabanagrande",161]
[5,5,"Sabanalarga",162]
[5,5,"Santa Lucía",163]
[5,5,"Santo Tomás",164]
[5,5,"Soledad",165]
[5,5,"Suan",166]
[5,5,"Tubará",167]
[5,5,"Usiacurí",168]
[6,6,"Agua de Dios",169]
[6,6,"Albán",170]
[6,6,"Anapoima",171]
[6,6,"Anolaima",172]
[6,6,"Apulo",173]
[6,6,"Arbeláez",174]
[6,6,"Beltrán",175]
[6,6,"Bituima",176]
[6,6,"Bogotá D.C.",177]
[6,6,"Bojacá",178]
[6,6,"Cabrera",179]
[6,6,"Cachipay",180]
[6,6,"Cajicá",181]
[6,6,"Caparrapí",182]
[6,6,"Caqueza",183]
[6,6,"Carmen de Carupa",184]
[6,6,"Chaguaní",185]
[6,6,"Chipaque",186]
[6,6,"Choachí",187]
[6,6,"Chocontá",188]
[6,6,"Chía",189]
[6,6,"Cogua",190]
[6,6,"Cota",191]
[6,6,"Cucunubá",192]
[6,6,"El Colegio",193]
[6,6,"El Peñón",194]
[6,6,"El Rosal",195]
[6,6,"Facatativá",196]
[6,6,"Fomeque",197]
[6,6,"Fosca",198]
[6,6,"Funza",199]
[6,6,"Fusagasugá",200]
[6,6,"Fúquene",201]
[6,6,"Gachalá",202]
[6,6,"Gachancipá",203]
[6,6,"Gachetá",204]
[6,6,"Gama",205]
[6,6,"Girardot",206]
[6,6,"Granada",207]
[6,6,"Guachetá",208]
[6,6,"Guaduas",209]
[6,6,"Guasca",210]
[6,6,"Guataquí",211]
[6,6,"Guatavita",212]
[6,6,"Guayabal de Siquima",213]
[6,6,"Guayabetal",214]
[6,6,"Gutiérrez",215]
[6,6,"Jerusalén",216]
[6,6,"Junín",217]
[6,6,"La Calera",218]
[6,6,"La Mesa",219]
[6,6,"La Palma",220]
[6,6,"La Peña",221]
[6,6,"La Vega",222]
[6,6,"Lenguazaque",223]
[6,6,"Machetá",224]
[6,6,"Madrid",225]
[6,6,"Manta",226]
[6,6,"Medina",227]
[6,6,"Mosquera",228]
[6,6,"Nariño",229]
[6,6,"Nemocón",230]
[6,6,"Nilo",231]
[6,6,"Nimaima",232]
[6,6,"Nocaima",233]
[6,6,"Pacho",234]
[6,6,"Paime",235]
[6,6,"Pandi",236]
[6,6,"Paratebueno",237]
[6,6,"Pasca",238]
[6,6,"Puerto Salgar",239]
[6,6,"Pulí",240]
[6,6,"Quebradanegra",241]
[6,6,"Quetame",242]
[6,6,"Quipile",243]
[6,6,"Ricaurte",244]
[6,6,"San Antonio del Tequendama",245]
[6,6,"San Bernardo",246]
[6,6,"San Cayetano",247]
[6,6,"San Francisco",248]
[6,6,"San Juan de Río Seco",249]
[6,6,"Sasaima",250]
[6,6,"Sesquilé",251]
[6,6,"Sibaté",252]
[6,6,"Silvania",253]
[6,6,"Simijaca",254]
[6,6,"Soacha",255]
[6,6,"Sopó",256]
[6,6,"Subachoque",257]
[6,6,"Suesca",258]
[6,6,"Supatá",259]
[6,6,"Susa",260]
[6,6,"Sutatausa",261]
[6,6,"Tabio",262]
[6,6,"Tausa",263]
[6,6,"Tena",264]
[6,6,"Tenjo",265]
[6,6,"Tibacuy",266]
[6,6,"Tibirita",267]
[6,6,"Tocaima",268]
[6,6,"Tocancipá",269]
[6,6,"Topaipí",270]
[6,6,"Ubalá",271]
[6,6,"Ubaque",272]
[6,6,"Une",273]
[6,6,"Útica",274]
[6,6,"Venecia",275]
[6,6,"Vergara",276]
[6,6,"Vianí",277]
[6,6,"Villa de San Diego de Ubaté",278]
[6,6,"Villagómez",279]
[6,6,"Villapinzón",280]
[6,6,"Villeta",281]
[6,6,"Viotá",282]
[6,6,"Yacopí",283]
[6,6,"Zipacón",284]
[6,6,"Zipaquirá",285]
[7,7,"Achí",286]
[7,7,"Altos del Rosario",287]
[7,7,"Arenal",288]
[7,7,"Arjona",289]
[7,7,"Arroyohondo",290]
[7,7,"Barranco de Loba",291]
[7,7,"Calamar",292]
[7,7,"Cantagallo",293]
[7,7,"Cartagena",294]
[7,7,"Cicuco",295]
[7,7,"Clemencia",296]
[7,7,"Córdoba",297]
[7,7,"El Carmen de Bolívar",298]
[7,7,"El Guamo",299]
[7,7,"El Peñón",300]
[7,7,"Hatillo de Loba",301]
[7,7,"Magangué",302]
[7,7,"Mahates",303]
[7,7,"Margarita",304]
[7,7,"María la Baja",305]
[7,7,"Mompós",306]
[7,7,"Montecristo",307]
[7,7,"Morales",308]
[7,7,"Norosí",309]
[7,7,"Pinillos",310]
[7,7,"Regidor",311]
[7,7,"Río Viejo",312]
[7,7,"San Cristóbal",313]
[7,7,"San Estanislao",314]
[7,7,"San Fernando",315]
[7,7,"San Jacinto",316]
[7,7,"San Jacinto del Cauca",317]
[7,7,"San Juan Nepomuceno",318]
[7,7,"San Martín de Loba",319]
[7,7,"San Pablo",320]
[7,7,"Santa Catalina",321]
[7,7,"Santa Rosa",322]
[7,7,"Santa Rosa del Sur",323]
[7,7,"Simití",324]
[7,7,"Soplaviento",325]
[7,7,"Talaigua Nuevo",326]
[7,7,"Tiquisio",327]
[7,7,"Turbaco",328]
[7,7,"Turbaná",329]
[7,7,"Villanueva",330]
[7,7,"Zambrano",331]
[8,8,"Almeida",332]
[8,8,"Aquitania",333]
[8,8,"Arcabuco",334]
[8,8,"Belén",335]
[8,8,"Berbeo",336]
[8,8,"Betéitiva",337]
[8,8,"Boavita",338]
[8,8,"Boyacá",339]
[8,8,"Briceño",340]
[8,8,"Buena Vista",341]
[8,8,"Busbanzá",342]
[8,8,"Caldas",343]
[8,8,"Campohermoso",344]
[8,8,"Cerinza",345]
[8,8,"Chinavita",346]
[8,8,"Chiquinquirá",347]
[8,8,"Chiscas",348]
[8,8,"Chita",349]
[8,8,"Chitaraque",350]
[8,8,"Chivatá",351]
[8,8,"Chivor",352]
[8,8,"Chíquiza",353]
[8,8,"Ciénega",354]
[8,8,"Coper",355]
[8,8,"Corrales",356]
[8,8,"Covarachía",357]
[8,8,"Cubará",358]
[8,8,"Cucaita",359]
[8,8,"Cuítiva",360]
[8,8,"Cómbita",361]
[8,8,"Duitama",362]
[8,8,"El Cocuy",363]
[8,8,"El Espino",364]
[8,8,"Firavitoba",365]
[8,8,"Floresta",366]
[8,8,"Gachantivá",367]
[8,8,"Gameza",368]
[8,8,"Garagoa",369]
[8,8,"Guacamayas",370]
[8,8,"Guateque",371]
[8,8,"Guayatá",372]
[8,8,"Güicán",373]
[8,8,"Iza",374]
[8,8,"Jenesano",375]
[8,8,"Jericó",376]
[8,8,"La Capilla",377]
[8,8,"La Uvita",378]
[8,8,"La Victoria",379]
[8,8,"Labranzagrande",380]
[8,8,"Macanal",381]
[8,8,"Maripí",382]
[8,8,"Miraflores",383]
[8,8,"Mongua",384]
[8,8,"Monguí",385]
[8,8,"Moniquirá",386]
[8,8,"Motavita",387]
[8,8,"Muzo",388]
[8,8,"Nobsa",389]
[8,8,"Nuevo Colón",390]
[8,8,"Oicatá",391]
[8,8,"Otanche",392]
[8,8,"Pachavita",393]
[8,8,"Paipa",394]
[8,8,"Pajarito",395]
[8,8,"Panqueba",396]
[8,8,"Pauna",397]
[8,8,"Paya",398]
[8,8,"Paz de Río",399]
[8,8,"Pesca",400]
[8,8,"Pisba",401]
[8,8,"Puerto Boyacá",402]
[8,8,"Páez",403]
[8,8,"Quípama",404]
[8,8,"Ramiriquí",405]
[8,8,"Rondón",406]
[8,8,"Ráquira",407]
[8,8,"Saboyá",408]
[8,8,"Samacá",409]
[8,8,"San Eduardo",410]
[8,8,"San José de Pare",411]
[8,8,"San Luis de Gaceno",412]
[8,8,"San Mateo",413]
[8,8,"San Miguel de Sema",414]
[8,8,"San Pablo de Borbur",415]
[8,8,"Santa María",416]
[8,8,"Santa Rosa de Viterbo",417]
[8,8,"Santa Sofía",418]
[8,8,"Santana",419]
[8,8,"Sativanorte",420]
[8,8,"Sativasur",421]
[8,8,"Siachoque",422]
[8,8,"Soatá",423]
[8,8,"Socha",424]
[8,8,"Socotá",425]
[8,8,"Sogamoso",426]
[8,8,"Somondoco",427]
[8,8,"Sora",428]
[8,8,"Soracá",429]
[8,8,"Sotaquirá",430]
[8,8,"Susacón",431]
[8,8,"Sutamarchán",432]
[8,8,"Sutatenza",433]
[8,8,"Sáchica",434]
[8,8,"Tasco",435]
[8,8,"Tenza",436]
[8,8,"Tibaná",437]
[8,8,"Tibasosa",438]
[8,8,"Tinjacá",439]
[8,8,"Tipacoque",440]
[8,8,"Toca",441]
[8,8,"Togüí",442]
[8,8,"Tota",443]
[8,8,"Tunja",444]
[8,8,"Tununguá",445]
[8,8,"Turmequé",446]
[8,8,"Tuta",447]
[8,8,"Tutazá",448]
[8,8,"Tópaga",449]
[8,8,"Umbita",450]
[8,8,"Ventaquemada",451]
[8,8,"Villa de Leyva",452]
[8,8,"Viracachá",453]
[8,8,"Zetaquira",454]
[9,9,"Aguadas",455]
[9,9,"Anserma",456]
[9,9,"Aranzazu",457]
[9,9,"Belalcázar",458]
[9,9,"Chinchiná",459]
[9,9,"Filadelfia",460]
[9,9,"La Dorada",461]
[9,9,"La Merced",462]
[9,9,"Manizales",463]
[9,9,"Manzanares",464]
[9,9,"Marmato",465]
[9,9,"Marquetalia",466]
[9,9,"Marulanda",467]
[9,9,"Neira",468]
[9,9,"Norcasia",469]
[9,9,"Palestina",470]
[9,9,"Pensilvania",471]
[9,9,"Pácora",472]
[9,9,"Riosucio",473]
[9,9,"Risaralda",474]
[9,9,"Salamina",475]
[9,9,"Samaná",476]
[9,9,"San José",477]
[9,9,"Supía",478]
[9,9,"Victoria",479]
[9,9,"Villamaría",480]
[9,9,"Viterbo",481]
[10,10,"Albania",482]
[10,10,"Belén de Los Andaquíes",483]
[10,10,"Cartagena del Chairá",484]
[10,10,"Curillo",485]
[10,10,"El Doncello",486]
[10,10,"El Paujil",487]
[10,10,"Florencia",488]
[10,10,"La Montañita",489]
[10,10,"Milán",490]
[10,10,"Morelia",491]
[10,10,"Puerto Rico",492]
[10,10,"San José del Fragua",493]
[10,10,"San Vicente del Caguán",494]
[10,10,"Solano",495]
[10,10,"Solita",496]
[10,10,"Valparaíso",497]
[11,11,"Aguazul",498]
[11,11,"Chámeza",499]
[11,11,"Hato Corozal",500]
[11,11,"La Salina",501]
[11,11,"Maní",502]
[11,11,"Monterrey",503]
[11,11,"Nunchía",504]
[11,11,"Orocué",505]
[11,11,"Paz de Ariporo",506]
[11,11,"Pore",507]
[11,11,"Recetor",508]
[11,11,"Sabanalarga",509]
[11,11,"San Luis de Gaceno",510]
[11,11,"Sácama",511]
[11,11,"Tauramena",512]
[11,11,"Trinidad",513]
[11,11,"Támara",514]
[11,11,"Villanueva",515]
[11,11,"Yopal",516]
[12,12,"Almaguer",517]
[12,12,"Argelia",518]
[12,12,"Balboa",519]
[12,12,"Bolívar",520]
[12,12,"Buenos Aires",521]
[12,12,"Cajibío",522]
[12,12,"Caldono",523]
[12,12,"Caloto",524]
[12,12,"Corinto",525]
[12,12,"El Tambo",526]
[12,12,"Florencia",527]
[12,12,"Guachené",528]
[12,12,"Guapi",529]
[12,12,"Inzá",530]
[12,12,"Jambaló",531]
[12,12,"La Sierra",532]
[12,12,"La Vega",533]
[12,12,"López",534]
[12,12,"Mercaderes",535]
[12,12,"Miranda",536]
[12,12,"Morales",537]
[12,12,"Padilla",538]
[12,12,"Patía",539]
[12,12,"Piamonte",540]
[12,12,"Piendamó",541]
[12,12,"Popayán",542]
[12,12,"Puerto Tejada",543]
[12,12,"Puracé",544]
[12,12,"Páez",545]
[12,12,"Rosas",546]
[12,12,"San Sebastián",547]
[12,12,"Santa Rosa",548]
[12,12,"Santander de Quilichao",549]
[12,12,"Silvia",550]
[12,12,"Sotara",551]
[12,12,"Sucre",552]
[12,12,"Suárez",553]
[12,12,"Timbiquí",554]
[12,12,"Timbío",555]
[12,12,"Toribío",556]
[12,12,"Totoró",557]
[12,12,"Villa Rica",558]
[13,13,"Aguachica",559]
[13,13,"Agustín Codazzi",560]
[13,13,"Astrea",561]
[13,13,"Becerril",562]
[13,13,"Bosconia",563]
[13,13,"Chimichagua",564]
[13,13,"Chiriguaná",565]
[13,13,"Curumaní",566]
[13,13,"El Copey",567]
[13,13,"El Paso",568]
[13,13,"Gamarra",569]
[13,13,"González",570]
[13,13,"La Gloria",571]
[13,13,"La Jagua de Ibirico",572]
[13,13,"La Paz",573]
[13,13,"Manaure Balcón del Cesar",574]
[13,13,"Pailitas",575]
[13,13,"Pelaya",576]
[13,13,"Pueblo Bello",577]
[13,13,"Río de Oro",578]
[13,13,"San Alberto",579]
[13,13,"San Diego",580]
[13,13,"San Martín",581]
[13,13,"Tamalameque",582]
[13,13,"Valledupar",583]
[14,14,"Acandí",584]
[14,14,"Alto Baudo",585]
[14,14,"Atrato",586]
[14,14,"Bagadó",587]
[14,14,"Bahía Solano",588]
[14,14,"Bajo Baudó",589]
[14,14,"Belén de Bajirá",590]
[14,14,"Bojayá",591]
[14,14,"Carmen del Darien",592]
[14,14,"Condoto",593]
[14,14,"Cértegui",594]
[14,14,"El Cantón del San Pablo",595]
[14,14,"El Carmen de Atrato",596]
[14,14,"El Litoral del San Juan",597]
[14,14,"Istmina",598]
[14,14,"Juradó",599]
[14,14,"Lloró",600]
[14,14,"Medio Atrato",601]
[14,14,"Medio Baudó",602]
[14,14,"Medio San Juan",603]
[14,14,"Nuquí",604]
[14,14,"Nóvita",605]
[14,14,"Quibdó",606]
[14,14,"Riosucio",607]
[14,14,"Río Iro",608]
[14,14,"Río Quito",609]
[14,14,"San José del Palmar",610]
[14,14,"Sipí",611]
[14,14,"Tadó",612]
[14,14,"Unguía",613]
[14,14,"Unión Panamericana",614]
[15,15,"Ayapel",615]
[15,15,"Buenavista",616]
[15,15,"Canalete",617]
[15,15,"Cereté",618]
[15,15,"Chimá",619]
[15,15,"Chinú",620]
[15,15,"Ciénaga de Oro",621]
[15,15,"Cotorra",622]
[15,15,"La Apartada",623]
[15,15,"Lorica",624]
[15,15,"Los Córdobas",625]
[15,15,"Momil",626]
[15,15,"Montelíbano",627]
[15,15,"Montería",628]
[15,15,"Moñitos",629]
[15,15,"Planeta Rica",630]
[15,15,"Pueblo Nuevo",631]
[15,15,"Puerto Escondido",632]
[15,15,"Puerto Libertador",633]
[15,15,"Purísima",634]
[15,15,"Sahagún",635]
[15,15,"San Andrés de Sotavento",636]
[15,15,"San Antero",637]
[15,15,"San Bernardo del Viento",638]
[15,15,"San Carlos",639]
[15,15,"San José de Uré",640]
[15,15,"San Pelayo",641]
[15,15,"Tierralta",642]
[15,15,"Tuchín",643]
[15,15,"Valencia",644]
[16,16,"Agua de Dios",645]
[16,16,"Albán",646]
[16,16,"Anapoima",647]
[16,16,"Anolaima",648]
[16,16,"Apulo",649]
[16,16,"Arbeláez",650]
[16,16,"Beltrán",651]
[16,16,"Bituima",652]
[16,16,"Bogotá D.C.",653]
[16,16,"Bojacá",654]
[16,16,"Cabrera",655]
[16,16,"Cachipay",656]
[16,16,"Cajicá",657]
[16,16,"Caparrapí",658]
[16,16,"Caqueza",659]
[16,16,"Carmen de Carupa",660]
[16,16,"Chaguaní",661]
[16,16,"Chipaque",662]
[16,16,"Choachí",663]
[16,16,"Chocontá",664]
[16,16,"Chía",665]
[16,16,"Cogua",666]
[16,16,"Cota",667]
[16,16,"Cucunubá",668]
[16,16,"El Colegio",669]
[16,16,"El Peñón",670]
[16,16,"El Rosal",671]
[16,16,"Facatativá",672]
[16,16,"Fomeque",673]
[16,16,"Fosca",674]
[16,16,"Funza",675]
[16,16,"Fusagasugá",676]
[16,16,"Fúquene",677]
[16,16,"Gachalá",678]
[16,16,"Gachancipá",679]
[16,16,"Gachetá",680]
[16,16,"Gama",681]
[16,16,"Girardot",682]
[16,16,"Granada",683]
[16,16,"Guachetá",684]
[16,16,"Guaduas",685]
[16,16,"Guasca",686]
[16,16,"Guataquí",687]
[16,16,"Guatavita",688]
[16,16,"Guayabal de Siquima",689]
[16,16,"Guayabetal",690]
[16,16,"Gutiérrez",691]
[16,16,"Jerusalén",692]
[16,16,"Junín",693]
[16,16,"La Calera",694]
[16,16,"La Mesa",695]
[16,16,"La Palma",696]
[16,16,"La Peña",697]
[16,16,"La Vega",698]
[16,16,"Lenguazaque",699]
[16,16,"Machetá",700]
[16,16,"Madrid",701]
[16,16,"Manta",702]
[16,16,"Medina",703]
[16,16,"Mosquera",704]
[16,16,"Nariño",705]
[16,16,"Nemocón",706]
[16,16,"Nilo",707]
[16,16,"Nimaima",708]
[16,16,"Nocaima",709]
[16,16,"Pacho",710]
[16,16,"Paime",711]
[16,16,"Pandi",712]
[16,16,"Paratebueno",713]
[16,16,"Pasca",714]
[16,16,"Puerto Salgar",715]
[16,16,"Pulí",716]
[16,16,"Quebradanegra",717]
[16,16,"Quetame",718]
[16,16,"Quipile",719]
[16,16,"Ricaurte",720]
[16,16,"San Antonio del Tequendama",721]
[16,16,"San Bernardo",722]
[16,16,"San Cayetano",723]
[16,16,"San Francisco",724]
[16,16,"San Juan de Río Seco",725]
[16,16,"Sasaima",726]
[16,16,"Sesquilé",727]
[16,16,"Sibaté",728]
[16,16,"Silvania",729]
[16,16,"Simijaca",730]
[16,16,"Soacha",731]
[16,16,"Sopó",732]
[16,16,"Subachoque",733]
[16,16,"Suesca",734]
[16,16,"Supatá",735]
[16,16,"Susa",736]
[16,16,"Sutatausa",737]
[16,16,"Tabio",738]
[16,16,"Tausa",739]
[16,16,"Tena",740]
[16,16,"Tenjo",741]
[16,16,"Tibacuy",742]
[16,16,"Tibirita",743]
[16,16,"Tocaima",744]
[16,16,"Tocancipá",745]
[16,16,"Topaipí",746]
[16,16,"Ubalá",747]
[16,16,"Ubaque",748]
[16,16,"Une",749]
[16,16,"Útica",750]
[16,16,"Venecia",751]
[16,16,"Vergara",752]
[16,16,"Vianí",753]
[16,16,"Villa de San Diego de Ubaté",754]
[16,16,"Villagómez",755]
[16,16,"Villapinzón",756]
[16,16,"Villeta",757]
[16,16,"Viotá",758]
[16,16,"Yacopí",759]
[16,16,"Zipacón",760]
[16,16,"Zipaquirá",761]
[17,17,"Barranco Minas",762]
[17,17,"Cacahual",763]
[17,17,"Inírida",764]
[17,17,"La Guadalupe",765]
[17,17,"Mapiripana",766]
[17,17,"Morichal",767]
[17,17,"Pana Pana",768]
[17,17,"Puerto Colombia",769]
[17,17,"San Felipe",770]
[18,18,"Calamar",771]
[18,18,"El Retorno",772]
[18,18,"Miraflores",773]
[18,18,"San José del Guaviare",774]
[19,19,"Acevedo",775]
[19,19,"Agrado",776]
[19,19,"Aipe",777]
[19,19,"Algeciras",778]
[19,19,"Altamira",779]
[19,19,"Baraya",780]
[19,19,"Campoalegre",781]
[19,19,"Colombia",782]
[19,19,"Elías",783]
[19,19,"Garzón",784]
[19,19,"Gigante",785]
[19,19,"Guadalupe",786]
[19,19,"Hobo",787]
[19,19,"Iquira",788]
[19,19,"Isnos",789]
[19,19,"La Argentina",790]
[19,19,"La Plata",791]
[19,19,"Neiva",792]
[19,19,"Nátaga",793]
[19,19,"Oporapa",794]
[19,19,"Paicol",795]
[19,19,"Palermo",796]
[19,19,"Palestina",797]
[19,19,"Pital",798]
[19,19,"Pitalito",799]
[19,19,"Rivera",800]
[19,19,"Saladoblanco",801]
[19,19,"San Agustín",802]
[19,19,"Santa María",803]
[19,19,"Suaza",804]
[19,19,"Tarqui",805]
[19,19,"Tello",806]
[19,19,"Teruel",807]
[19,19,"Tesalia",808]
[19,19,"Timaná",809]
[19,19,"Villavieja",810]
[19,19,"Yaguará",811]
[20,20,"Albania",812]
[20,20,"Barrancas",813]
[20,20,"Dibula",814]
[20,20,"Distracción",815]
[20,20,"El Molino",816]
[20,20,"Fonseca",817]
[20,20,"Hatonuevo",818]
[20,20,"La Jagua del Pilar",819]
[20,20,"Maicao",820]
[20,20,"Manaure",821]
[20,20,"Riohacha",822]
[20,20,"San Juan del Cesar",823]
[20,20,"Uribia",824]
[20,20,"Urumita",825]
[20,20,"Villanueva",826]
[21,21,"Algarrobo",827]
[21,21,"Aracataca",828]
[21,21,"Ariguaní",829]
[21,21,"Cerro San Antonio",830]
[21,21,"Chivolo",831]
[21,21,"Ciénaga",832]
[21,21,"Concordia",833]
[21,21,"El Banco",834]
[21,21,"El Piñon",835]
[21,21,"El Retén",836]
[21,21,"Fundación",837]
[21,21,"Guamal",838]
[21,21,"Nueva Granada",839]
[21,21,"Pedraza",840]
[21,21,"Pijiño del Carmen",841]
[21,21,"Pivijay",842]
[21,21,"Plato",843]
[21,21,"Pueblo Viejo",844]
[21,21,"Remolino",845]
[21,21,"Sabanas de San Angel",846]
[21,21,"Salamina",847]
[21,21,"San Sebastián de Buenavista",848]
[21,21,"San Zenón",849]
[21,21,"Santa Ana",850]
[21,21,"Santa Bárbara de Pinto",851]
[21,21,"Santa Marta",852]
[21,21,"Sitionuevo",853]
[21,21,"Tenerife",854]
[21,21,"Zapayán",855]
[21,21,"Zona Bananera",856]
[22,22,"Acacias",857]
[22,22,"Barranca de Upía",858]
[22,22,"Cabuyaro",859]
[22,22,"Castilla la Nueva",860]
[22,22,"Cubarral",861]
[22,22,"Cumaral",862]
[22,22,"El Calvario",863]
[22,22,"El Castillo",864]
[22,22,"El Dorado",865]
[22,22,"Fuente de Oro",866]
[22,22,"Granada",867]
[22,22,"Guamal",868]
[22,22,"La Macarena",869]
[22,22,"Lejanías",870]
[22,22,"Mapiripán",871]
[22,22,"Mesetas",872]
[22,22,"Puerto Concordia",873]
[22,22,"Puerto Gaitán",874]
[22,22,"Puerto Lleras",875]
[22,22,"Puerto López",876]
[22,22,"Puerto Rico",877]
[22,22,"Restrepo",878]
[22,22,"San Carlos de Guaroa",879]
[22,22,"San Juan de Arama",880]
[22,22,"San Juanito",881]
[22,22,"San Martín",882]
[22,22,"Uribe",883]
[22,22,"Villavicencio",884]
[22,22,"Vista Hermosa",885]
[23,23,"Albán",886]
[23,23,"Aldana",887]
[23,23,"Ancuyá",888]
[23,23,"Arboleda",889]
[23,23,"Barbacoas",890]
[23,23,"Belén",891]
[23,23,"Buesaco",892]
[23,23,"Chachagüí",893]
[23,23,"Colón",894]
[23,23,"Consaca",895]
[23,23,"Contadero",896]
[23,23,"Cuaspud",897]
[23,23,"Cumbal",898]
[23,23,"Cumbitara",899]
[23,23,"Córdoba",900]
[23,23,"El Charco",901]
[23,23,"El Peñol",902]
[23,23,"El Rosario",903]
[23,23,"El Tablón de Gómez",904]
[23,23,"El Tambo",905]
[23,23,"Francisco Pizarro",906]
[23,23,"Funes",907]
[23,23,"Guachucal",908]
[23,23,"Guaitarilla",909]
[23,23,"Gualmatán",910]
[23,23,"Iles",911]
[23,23,"Imués",912]
[23,23,"Ipiales",913]
[23,23,"La Cruz",914]
[23,23,"La Florida",915]
[23,23,"La Llanada",916]
[23,23,"La Tola",917]
[23,23,"La Unión",918]
[23,23,"Leiva",919]
[23,23,"Linares",920]
[23,23,"Los Andes",921]
[23,23,"Magüí",922]
[23,23,"Mallama",923]
[23,23,"Mosquera",924]
[23,23,"Nariño",925]
[23,23,"Olaya Herrera",926]
[23,23,"Ospina",927]
[23,23,"Pasto",928]
[23,23,"Policarpa",929]
[23,23,"Potosí",930]
[23,23,"Providencia",931]
[23,23,"Puerres",932]
[23,23,"Pupiales",933]
[23,23,"Ricaurte",934]
[23,23,"Roberto Payán",935]
[23,23,"Samaniego",936]
[23,23,"San Andrés de Tumaco",937]
[23,23,"San Bernardo",938]
[23,23,"San Lorenzo",939]
[23,23,"San Pablo",940]
[23,23,"San Pedro de Cartago",941]
[23,23,"Sandoná",942]
[23,23,"Santa Bárbara",943]
[23,23,"Santacruz",944]
[23,23,"Sapuyes",945]
[23,23,"Taminango",946]
[23,23,"Tangua",947]
[23,23,"Túquerres",948]
[23,23,"Yacuanquer",949]
[24,24,"Abrego",950]
[24,24,"Arboledas",951]
[24,24,"Bochalema",952]
[24,24,"Bucarasica",953]
[24,24,"Cachirá",954]
[24,24,"Chinácota",955]
[24,24,"Chitagá",956]
[24,24,"Convención",957]
[24,24,"Cucutilla",958]
[24,24,"Cácota",959]
[24,24,"Cúcuta",960]
[24,24,"Durania",961]
[24,24,"El Carmen",962]
[24,24,"El Tarra",963]
[24,24,"El Zulia",964]
[24,24,"Gramalote",965]
[24,24,"Hacarí",966]
[24,24,"Herrán",967]
[24,24,"La Esperanza",968]
[24,24,"La Playa",969]
[24,24,"Labateca",970]
[24,24,"Los Patios",971]
[24,24,"Lourdes",972]
[24,24,"Mutiscua",973]
[24,24,"Ocaña",974]
[24,24,"Pamplona",975]
[24,24,"Pamplonita",976]
[24,24,"Puerto Santander",977]
[24,24,"Ragonvalia",978]
[24,24,"Salazar",979]
[24,24,"San Calixto",980]
[24,24,"San Cayetano",981]
[24,24,"Santiago",982]
[24,24,"Sardinata",983]
[24,24,"Silos",984]
[24,24,"Teorama",985]
[24,24,"Tibú",986]
[24,24,"Toledo",987]
[24,24,"Villa Caro",988]
[24,24,"Villa del Rosario",989]
[25,25,"Colón",990]
[25,25,"Leguízamo",991]
[25,25,"Mocoa",992]
[25,25,"Orito",993]
[25,25,"Puerto Asís",994]
[25,25,"Puerto Caicedo",995]
[25,25,"Puerto Guzmán",996]
[25,25,"San Francisco",997]
[25,25,"San Miguel",998]
[25,25,"Santiago",999]
[25,25,"Sibundoy",1000]
[25,25,"Valle de Guamez",1001]
[25,25,"Villagarzón",1002]
[26,26,"Armenia",1003]
[26,26,"Buenavista",1004]
[26,26,"Calarcá",1005]
[26,26,"Circasia",1006]
[26,26,"Córdoba",1007]
[26,26,"Filandia",1008]
[26,26,"Génova",1009]
[26,26,"La Tebaida",1010]
[26,26,"Montenegro",1011]
[26,26,"Pijao",1012]
[26,26,"Quimbaya",1013]
[26,26,"Salento",1014]
[27,27,"Apía",1015]
[27,27,"Balboa",1016]
[27,27,"Belén de Umbría",1017]
[27,27,"Dosquebradas",1018]
[27,27,"Guática",1019]
[27,27,"La Celia",1020]
[27,27,"La Virginia",1021]
[27,27,"Marsella",1022]
[27,27,"Mistrató",1023]
[27,27,"Pereira",1024]
[27,27,"Pueblo Rico",1025]
[27,27,"Quinchía",1026]
[27,27,"Santa Rosa de Cabal",1027]
[27,27,"Santuario",1028]
[28,28,"Aguada",1029]
[28,28,"Albania",1030]
[28,28,"Aratoca",1031]
[28,28,"Barbosa",1032]
[28,28,"Barichara",1033]
[28,28,"Barrancabermeja",1034]
[28,28,"Betulia",1035]
[28,28,"Bolívar",1036]
[28,28,"Bucaramanga",1037]
[28,28,"Cabrera",1038]
[28,28,"California",1039]
[28,28,"Capitanejo",1040]
[28,28,"Carcasí",1041]
[28,28,"Cepitá",1042]
[28,28,"Cerrito",1043]
[28,28,"Charalá",1044]
[28,28,"Charta",1045]
[28,28,"Chimá",1046]
[28,28,"Chipatá",1047]
[28,28,"Cimitarra",1048]
[28,28,"Concepción",1049]
[28,28,"Confines",1050]
[28,28,"Contratación",1051]
[28,28,"Coromoro",1052]
[28,28,"Curití",1053]
[28,28,"El Carmen de Chucurí",1054]
[28,28,"El Guacamayo",1055]
[28,28,"El Peñón",1056]
[28,28,"El Playón",1057]
[28,28,"Encino",1058]
[28,28,"Enciso",1059]
[28,28,"Floridablanca",1060]
[28,28,"Florián",1061]
[28,28,"Galán",1062]
[28,28,"Gambita",1063]
[28,28,"Girón",1064]
[28,28,"Guaca",1065]
[28,28,"Guadalupe",1066]
[28,28,"Guapotá",1067]
[28,28,"Guavatá",1068]
[28,28,"Güepsa",1069]
[28,28,"Hato",1070]
[28,28,"Jesús María",1071]
[28,28,"Jordán",1072]
[28,28,"La Belleza",1073]
[28,28,"La Paz",1074]
[28,28,"Landázuri",1075]
[28,28,"Lebríja",1076]
[28,28,"Los Santos",1077]
[28,28,"Macaravita",1078]
[28,28,"Matanza",1079]
[28,28,"Mogotes",1080]
[28,28,"Molagavita",1081]
[28,28,"Málaga",1082]
[28,28,"Ocamonte",1083]
[28,28,"Oiba",1084]
[28,28,"Onzaga",1085]
[28,28,"Palmar",1086]
[28,28,"Palmas del Socorro",1087]
[28,28,"Piedecuesta",1088]
[28,28,"Pinchote",1089]
[28,28,"Puente Nacional",1090]
[28,28,"Puerto Parra",1091]
[28,28,"Puerto Wilches",1092]
[28,28,"Páramo",1093]
[28,28,"Rionegro",1094]
[28,28,"Sabana de Torres",1095]
[28,28,"San Andrés",1096]
[28,28,"San Benito",1097]
[28,28,"San Gil",1098]
[28,28,"San Joaquín",1099]
[28,28,"San José de Miranda",1100]
[28,28,"San Miguel",1101]
[28,28,"San Vicente de Chucurí",1102]
[28,28,"Santa Bárbara",1103]
[28,28,"Santa Helena del Opón",1104]
[28,28,"Simacota",1105]
[28,28,"Socorro",1106]
[28,28,"Suaita",1107]
[28,28,"Sucre",1108]
[28,28,"Suratá",1109]
[28,28,"Tona",1110]
[28,28,"Valle de San José",1111]
[28,28,"Vetas",1112]
[28,28,"Villanueva",1113]
[28,28,"Vélez",1114]
[28,28,"Zapatoca",1115]
[29,29,"Buenavista",1116]
[29,29,"Caimito",1117]
[29,29,"Chalán",1118]
[29,29,"Colosó",1119]
[29,29,"Corozal",1120]
[29,29,"Coveñas",1121]
[29,29,"El Roble",1122]
[29,29,"Galeras",1123]
[29,29,"Guaranda",1124]
[29,29,"La Unión",1125]
[29,29,"Los Palmitos",1126]
[29,29,"Majagual",1127]
[29,29,"Morroa",1128]
[29,29,"Ovejas",1129]
[29,29,"Palmito",1130]
[29,29,"Sampués",1131]
[29,29,"San Benito Abad",1132]
[29,29,"San Juan de Betulia",1133]
[29,29,"San Luis de Sincé",1134]
[29,29,"San Marcos",1135]
[29,29,"San Onofre",1136]
[29,29,"San Pedro",1137]
[29,29,"Santiago de Tolú",1138]
[29,29,"Sincelejo",1139]
[29,29,"Sucre",1140]
[29,29,"Tolú Viejo",1141]
[30,30,"Alpujarra",1142]
[30,30,"Alvarado",1143]
[30,30,"Ambalema",1144]
[30,30,"Anzoátegui",1145]
[30,30,"Armero",1146]
[30,30,"Ataco",1147]
[30,30,"Cajamarca",1148]
[30,30,"Carmen de Apicalá",1149]
[30,30,"Casabianca",1150]
[30,30,"Chaparral",1151]
[30,30,"Coello",1152]
[30,30,"Coyaima",1153]
[30,30,"Cunday",1154]
[30,30,"Dolores",1155]
[30,30,"Espinal",1156]
[30,30,"Falan",1157]
[30,30,"Flandes",1158]
[30,30,"Fresno",1159]
[30,30,"Guamo",1160]
[30,30,"Herveo",1161]
[30,30,"Honda",1162]
[30,30,"Ibagué",1163]
[30,30,"Icononzo",1164]
[30,30,"Lérida",1165]
[30,30,"Líbano",1166]
[30,30,"Mariquita",1167]
[30,30,"Melgar",1168]
[30,30,"Murillo",1169]
[30,30,"Natagaima",1170]
[30,30,"Ortega",1171]
[30,30,"Palocabildo",1172]
[30,30,"Piedras",1173]
[30,30,"Planadas",1174]
[30,30,"Prado",1175]
[30,30,"Purificación",1176]
[30,30,"Rio Blanco",1177]
[30,30,"Roncesvalles",1178]
[30,30,"Rovira",1179]
[30,30,"Saldaña",1180]
[30,30,"San Antonio",1181]
[30,30,"San Luis",1182]
[30,30,"Santa Isabel",1183]
[30,30,"Suárez",1184]
[30,30,"Valle de San Juan",1185]
[30,30,"Venadillo",1186]
[30,30,"Villahermosa",1187]
[30,30,"Villarrica",1188]
[31,31,"Alcalá",1189]
[31,31,"Andalucía",1190]
[31,31,"Ansermanuevo",1191]
[31,31,"Argelia",1192]
[31,31,"Bolívar",1193]
[31,31,"Buenaventura",1194]
[31,31,"Bugalagrande",1195]
[31,31,"Caicedonia",1196]
[31,31,"Cali",1197]
[31,31,"Calima",1198]
[31,31,"Candelaria",1199]
[31,31,"Cartago",1200]
[31,31,"Dagua",1201]
[31,31,"El Cairo",1202]
[31,31,"El Cerrito",1203]
[31,31,"El Dovio",1204]
[31,31,"El Águila",1205]
[31,31,"Florida",1206]
[31,31,"Ginebra",1207]
[31,31,"Guacarí",1208]
[31,31,"Guadalajara de Buga",1209]
[31,31,"Jamundí",1210]
[31,31,"La Cumbre",1211]
[31,31,"La Unión",1212]
[31,31,"La Victoria",1213]
[31,31,"Obando",1214]
[31,31,"Palmira",1215]
[31,31,"Pradera",1216]
[31,31,"Restrepo",1217]
[31,31,"Riofrío",1218]
[31,31,"Roldanillo",1219]
[31,31,"San Pedro",1220]
[31,31,"Sevilla",1221]
[31,31,"Toro",1222]
[31,31,"Trujillo",1223]
[31,31,"Tuluá",1224]
[31,31,"Ulloa",1225]
[31,31,"Versalles",1226]
[31,31,"Vijes",1227]
[31,31,"Yotoco",1228]
[31,31,"Yumbo",1229]
[31,31,"Zarzal",1230]
[32,32,"Caruru",1231]
[32,32,"Mitú",1232]
[32,32,"Pacoa",1233]
[32,32,"Papunaua",1234]
[32,32,"Taraira",1235]
[32,32,"Yavaraté",1236]
[33,33,"Cumaribo",1237]
[33,33,"La Primavera",1238]
[33,33,"Puerto Carreño",1239]
[33,33,"Santa Rosalía",1240]

{"sheet":"Medidas","index":3,"n_rows":14,"n_cols":7,"rows_kept":14,"cut":false,"hidden":true,"merged":[]}
["UNIDAD DE    MEDIDA",null,"TIPO DE COMPRAS",null,"PORCENTAJE",null,"MESES"]
["Kilos",null,"Alimento",null,10,null,"Diciembre_2020"]
["Litros",null,"Personal",null,20,null,"Enero"]
["Persona",null,"Dotación",null,null,null,"Febrero"]
["Unidades",null,null,null,null,null,"Marzo"]
[null,null,null,null,null,null,"Abril"]
[null,null,null,null,null,null,"Mayo"]
[null,null,null,null,null,null,"Junio"]
[null,null,null,null,null,null,"Julio"]
[null,null,null,null,null,null,"Agosto"]
[null,null,null,null,null,null,"Septiembre"]
[null,null,null,null,null,null,"Octubre"]
[null,null,null,null,null,null,"Noviembre"]
[null,null,null,null,null,null,"Diciembre"]

{"sheet":"Productos","index":4,"n_rows":156,"n_cols":138,"rows_kept":156,"cut":false,"hidden":true,"merged":[]}
["PRODUCTO (AMAZONAS)","CODIGO",null,null,"31. TALENTO HUMANO","CODIGO",null,null,"32. DOTACION","CODIGO",null,null,"PRODUCTO (ANTIOQUIA)","CODIGO",null,null,"PRODUCTO (ARAUCA)","CODIGO",null,null,"PRODUCTO (ARCH. SAN ANDRES Y PROVIDENCIA)","CODIGO",null,null,"PRODUCTO (ATLANTICO)","CODIGO",null,null,"PRODUCTO (BOGOTA D.C.)","CODIGO",null,null,"PRODUCTO (BOLIVAR)","CODIGO",null,null,"PRODUCTO (BOYACA)","CODIGO",null,null,"PRODUCTO (CALDAS)","CODIGO",null,null,"PRODUCTO (CAQUETA)","CODIGO",null,null,"PRODUCTO (CASANARE)","CODIGO",null,null,"PRODUCTO (CAUCA)","CODIGO",null,null,"PRODUCTO (CESAR)","CODIGO",null,null,"PRODUCTO (CHOCO)","CODIGO",null,null,"PRODUCTO (CORDOBA)","CODIGO",null,null,"PRODUCTO (CUNDINAMARCA)","CODIGO",null,null,"PRODUCTO (GUAINIA)","CODIGO",null,null,"PRODUCTO (GUAVIARE)","CODIGO",null,null,"PRODUCTO (HUILA)","CODIGO",null,null,"PRODUCTO (LA GUAJIRA)","CODIGO",null,null,"PRODUCTO (MAGDALENA)","CODIGO",null,null,"PRODUCTO (META)","CODIGO",null,null,"PRODUCTO (NARIÑO)","CODIGO",null,null,"PRODUCTO (NORTE DE SANTANDER)","CODIGO",null,null,"PRODUCTO (PUTUMAYO)","CODIGO",null,null,"PRODUCTO (QUINDIO)","CODIGO",null,null,"PRODUCTO (RISARALDA)","CODIGO",null,null,"PRODUCTO (SANTANDER)","CODIGO",null,null,"PRODUCTO (SUCRE)","CODIGO",null,null,"PRODUCTO (TOLIMA)","CODIGO",null,null,"PRODUCTO (VALLE DEL CAUCA)","CODIGO",null,null,"PRODUCTO (VAUPES)","CODIGO",null,null,"PRODUCTO (VICHADA)","CODIGO"]
["Ahuyama",2002,null,null,"Administrador(a) de Empresas",3101,null,null,"Elementos de Aseo Personal",3201,null,null,"Aceite",101,null,null,"Aguacate",1302,null,null,"Ahuyama",2002,null,null,"Aceite",101,null,null,"Aceite",101,null,null,"Aceite",101,null,null,"Achira",1401,null,null,"Aguacate",1302,null,null,"Aguacate",1302,null,null,"Aguacate",1302,null,null,"Acelga",2001,null,null,"Aceite",101,null,null,"Achiote",2801,null,null,"Aguacate",1302,null,null,"Aceite",101,null,null,"Ají",2003,null,null,"Arroz",802,null,null,"Achira",1401,null,null,"Achiote",2801,null,null,"Aceite",101,null,null,"Aceite",101,null,null,"Acelga",2001,null,null,"Aceite",101,null,null,"Aguacate",1302,null,null,"Acelga",2001,null,null,"Aceite",101,null,null,"Aceite",101,null,null,"Aceite",101,null,null,"Aceite",101,null,null,"Aborrajados",1201,null,null,"Ají",2003,null,null,"Aguacate",1302]
["Ají",2003,null,null,"Antropólogo(a)",3102,null,null,"Implementos de Limpieza y Desinfección",3202,null,null,"Acelga",2001,null,null,"Arroz",802,null,null,"Banano",1309,null,null,"Aguacate",1302,null,null,"Acelga",2001,null,null,"Aguacate",1302,null,null,"Agraz",1301,null,null,"Ahuyama",2002,null,null,"Ahuyama",2002,null,null,"Ahuyama",2002,null,null,"Achira",1401,null,null,"Aguacate",1302,null,null,"Aguacate",1302,null,null,"Ahuyama",2002,null,null,"Acelga",2001,null,null,"Asai",1306,null,null,"Cacao",601,null,null,"Aguacate",1302,null,null,"Aguacate",1302,null,null,"Ahuyama",2002,null,null,"Achira",1401,null,null,"Achira",1401,null,null,"Acelga",2001,null,null,"Arazá",1305,null,null,"Aguacate",1302,null,null,"Aguacate",1302,null,null,"Aguacate",1302,null,null,"Aguacate",1302,null,null,"Aguacate",1302,null,null,"Aceite",101,null,null,"Arroz",802,null,null,"Ahuyama",2002]
["Arazá",1305,null,null,"Contador(a) Público(a)",3103,null,null,"Material Didáctico",3203,null,null,"Achiote",2801,null,null,"Cacao",601,null,null,"Batata",3002,null,null,"Ahuyama",2002,null,null,"Achira",1401,null,null,"Ahuyama",2002,null,null,"Aguacate",1302,null,null,"Albahaca",2701,null,null,"Ají",2003,null,null,"Arazá",1305,null,null,"Aguacate",1302,null,null,"Ahuyama",2002,null,null,"Ají",2003,null,null,"Ají",2003,null,null,"Achira",1401,null,null,"Bocadillo",1104,null,null,"Carne de cerdo",702,null,null,"Ahuyama",2002,null,null,"Ahuyama",2002,null,null,"Ají",2003,null,null,"Aguacate",1302,null,null,"Aguacate",1302,null,null,"Aguacate",1302,null,null,"Arroz",802,null,null,"Ahuyama",2002,null,null,"Arepa de chócolo",303,null,null,"Ahuyama",2002,null,null,"Ahuyama",2002,null,null,"Ahuyama",2002,null,null,"Acelga",2001,null,null,"Cacao",601,null,null,"Ají",2003]
["Asai",1306,null,null,"Economista",3104,null,null,"Ropa de Cama",3204,null,null,"Agraz",1301,null,null,"Carne de cerdo",702,null,null,"Berenjena",2006,null,null,"Ají",2003,null,null,"Agraz",1301,null,null,"Ají",2003,null,null,"Ahuyama",2002,null,null,"Alfajor",1402,null,null,"Arazá",1305,null,null,"Arepa de maíz",304,null,null,"Ahuyama",2002,null,null,"Ají",2003,null,null,"Ajonjolí",2401,null,null,"Ajonjolí",2401,null,null,"Agraz",1301,null,null,"Cacao",601,null,null,"Carne de pollo",703,null,null,"Arepa de maíz",304,null,null,"Ají",2003,null,null,"Ajonjolí",2401,null,null,"Ahuyama",2002,null,null,"Ahuyama",2002,null,null,"Ahuyama",2002,null,null,"Arveja",2301,null,null,"Arepa de maíz",304,null,null,"Arepa de maíz",304,null,null,"Ají",2003,null,null,"Ají",2003,null,null,"Ají",2003,null,null,"Aguacate",1302,null,null,"Carne de cerdo",702,null,null,"Arroz",802]
["Boruga",701,null,null,"Enfermera(o) Profesional",3105,null,null,"Uniformes",3205,null,null,"Aguacate",1302,null,null,"Carne de pollo",703,null,null,"Bizcocho",2502,null,null,"Albahaca",2701,null,null,"Aguacate",1302,null,null,"Ajonjolí",2401,null,null,"Ají",2003,null,null,"Arepa de chócolo",303,null,null,"Arepa de maíz",304,null,null,"Arracacha",3001,null,null,"Ají",2003,null,null,"Arepa de maíz",304,null,null,"Albahaca",2701,null,null,"Almidón de yuca ",201,null,null,"Aguacate",1302,null,null,"Carne de cerdo",702,null,null,"Carne de res",704,null,null,"Arracacha",3001,null,null,"Ajonjolí",2401,null,null,"Arroz",802,null,null,"Arazá",1305,null,null,"Ají",2003,null,null,"Ají",2003,null,null,"Cacao",601,null,null,"Arequipe",1101,null,null,"Arracacha",3001,null,null,"Ajo",2004,null,null,"Ajonjolí",2401,null,null,"Ajonjolí",2401,null,null,"Ahuyama",2002,null,null,"Carne de pollo",703,null,null,"Cacao",601]
["Cachama ",2603,null,null,"Ingeniero(a) de Alimentos",3106,null,null,"Vestuario para Niños",3206,null,null,"Ahuyama",2002,null,null,"Carne de res",704,null,null,"Carne de cerdo ",702,null,null,"Almidón de Yuca",201,null,null,"Ahuyama",2002,null,null,"Arepa de maíz",304,null,null,"Ajo",2004,null,null,"Arepa de maíz",304,null,null,"Arequipe",1101,null,null,"Arroz",802,null,null,"Ajo",2004,null,null,"Arequipe",1101,null,null,"Arepa de maíz",304,null,null,"Arepa de chócolo",303,null,null,"Ahuyama",2002,null,null,"Carne de pollo",703,null,null,"Chontaduro",1318,null,null,"Arroz",802,null,null,"Arracacha",3001,null,null,"Banano",1309,null,null,"Arepa de maíz",304,null,null,"Ajo",2004,null,null,"Ajo",2004,null,null,"Carne de cerdo",702,null,null,"Arracacha",3001,null,null,"Arveja",2301,null,null,"Apio",2005,null,null,"Almidón de yuca",201,null,null,"Arepa de maíz",304,null,null,"Ají",2003,null,null,"Carne de res",704,null,null,"Carne de cerdo",702]
["Caimo",1313,null,null,"Ingeniero(a) de Sistemas",3107,null,null,null,null,null,null,"Ají",2003,null,null,"Chocolate de mesa",901,null,null,"Carne de pollo",703,null,null,"Almojábana",2501,null,null,"Ajo",2004,null,null,"Arroz",802,null,null,"Almojábana",2501,null,null,"Arequipe",1101,null,null,"Asai",1306,null,null,"Arveja",2301,null,null,"Albahaca",2701,null,null,"Arroz",802,null,null,"Arroz",802,null,null,"Arepa de maíz",304,null,null,"Ajo",2004,null,null,"Carne de res",704,null,null,"Galleta de panadería",2507,null,null,"Arveja",2301,null,null,"Arroz",802,null,null,"Berenjena",2006,null,null,"Arroz",802,null,null,"Albahaca",2701,null,null,"Apio",2005,null,null,"Carne de pollo",703,null,null,"Arveja",2301,null,null,"Azúcar",501,null,null,"Arepa de maíz",304,null,null,"Arroz",802,null,null,"Arequipe",1101,null,null,"Almidón de yuca",201,null,null,"Chontaduro",1318,null,null,"Carne de pollo",703]
["Carne de cerdo",702,null,null,"Ingeniero(a) Industrial ",3108,null,null,null,null,null,null,"Ajo",2004,null,null,"Cítricos",1320,null,null,"Carne de res",704,null,null,"Anón",1303,null,null,"Albahaca",2701,null,null,"Berenjena",2006,null,null,"Arándano",1304,null,null,"Arveja",2301,null,null,"Bananito",1308,null,null,"Banano",1309,null,null,"Almidón de yuca",201,null,null,"Banano",1309,null,null,"Badea",1307,null,null,"Arequipe",1101,null,null,"Albahaca",2701,null,null,"Casabe",306,null,null,"Huevo",2101,null,null,"Badea",1307,null,null,"Banano",1309,null,null,"Cacao",601,null,null,"Arveja",2301,null,null,"Almidón de yuca",201,null,null,"Arepa de maíz",304,null,null,"Carne de res",704,null,null,"Avena líquida ",401,null,null,"Bananito",1308,null,null,"Arequipe",1101,null,null,"Batata",3002,null,null,"Arracacha",3001,null,null,"Almojábana",2501,null,null,"Huevo",2101,null,null,"Carne de res",704]
["Carne de pollo",703,null,null,"Lic. en Artes Escénicas",3109,null,null,null,null,null,null,"Alfajor",1402,null,null,"Cuajada",2201,null,null,"Galleta de panadería",2507,null,null,"Arepa de maíz",304,null,null,"Alfajor",1402,null,null,"Cacao",601,null,null,"Arazá",1305,null,null,"Banano",1309,null,null,"Banano",1309,null,null,"Cacao",601,null,null,"Arepa de maíz",304,null,null,"Cacao",601,null,null,"Bananito",1308,null,null,"Arroz",802,null,null,"Alfajor",1402,null,null,"Copoazú",1322,null,null,"Maíz",808,null,null,"Banano",1309,null,null,"Cacao",601,null,null,"Carne de cerdo",702,null,null,"Avena líquida",401,null,null,"Arepa de maíz",304,null,null,"Arequipe",1101,null,null,"Chocolate de mesa",901,null,null,"Banano",1309,null,null,"Banano",1309,null,null,"Arracacha",3001,null,null,"Berenjena",2006,null,null,"Arroz",802,null,null,"Arazá",1305,null,null,"Maíz",808,null,null,"Cilantro",2012]
["Carne de res",704,null,null,"Lic. en Artes Musicales",3110,null,null,null,null,null,null,"Almidón de yuca ",201,null,null,"Galleta de panadería",2507,null,null,"Guanábana",1332,null,null,"Arroz",802,null,null,"Almojábana",2501,null,null,"Carne de cerdo",702,null,null,"Arepa de maíz",304,null,null,"Bocadillo",1104,null,null,"Bocadillo",1104,null,null,"Carne de cerdo",702,null,null,"Arracacha",3001,null,null,"Carne de cerdo",702,null,null,"Banano",1309,null,null,"Avena líquida",401,null,null,"Almojábana",2501,null,null,"Galleta de panadería",2507,null,null,"Panela",502,null,null,"Bocadillo",1104,null,null,"Carne de cerdo",702,null,null,"Carne de pollo",703,null,null,"Banano",1309,null,null,"Arequipe",1101,null,null,"Arracacha",3001,null,null,"Chontaduro",1318,null,null,"Berenjena",2006,null,null,"Brownies",1404,null,null,"Arroz",802,null,null,"Bolitas de leche",1106,null,null,"Arveja",2301,null,null,"Arepa de chócolo",303,null,null,"Ñame",3004,null,null,"Fríjol",2304]
["Casabe",306,null,null,"Lic. en Artes Plásticas",3111,null,null,null,null,null,null,"Almojábana",2501,null,null,"Huevo",2101,null,null,"Huevo",2101,null,null,"Banano",1309,null,null,"Anón",1303,null,null,"Carne de pollo",703,null,null,"Arequipe",1101,null,null,"Brevo",1311,null,null,"Cacao",601,null,null,"Carne de pollo",703,null,null,"Arroz",802,null,null,"Carne de pollo",703,null,null,"Borojó",1310,null,null,"Batata",3002,null,null,"Anón",1303,null,null,"Huevo",2101,null,null,"Patilla",1354,null,null,"Cacao",601,null,null,"Carne de chivo",706,null,null,"Carne de res",704,null,null,"Cacao",601,null,null,"Arracacha",3001,null,null,"Arroz",802,null,null,"Copoazú",1322,null,null,"Cacao",601,null,null,"Cacao",601,null,null,"Arveja",2301,null,null,"Cacao",601,null,null,"Bananito",1308,null,null,"Arepa de maíz",304,null,null,"Panela",502,null,null,"Huevo",2101]
["Chocolates del Amazonas",902,null,null,"Lic. en Desarrollo Familiar",3112,null,null,null,null,null,null,"Apio",2005,null,null,"Kumis",2202,null,null,"Limón",1337,null,null,"Berenjena",2006,null,null,"Apio",2005,null,null,"Carne de res",704,null,null,"Arracacha",3001,null,null,"Cacao",601,null,null,"Carne de cerdo",702,null,null,"Carne de res",704,null,null,"Arveja",2301,null,null,"Carne de res",704,null,null,"Cacao",601,null,null,"Berenjena",2006,null,null,"Apio",2005,null,null,"Maíz",808,null,null,"Pescado",2607,null,null,"Carne de cerdo",702,null,null,"Carne de pollo",703,null,null,"Cilantro",2012,null,null,"Carne de cerdo",702,null,null,"Arroz",802,null,null,"Arveja",2301,null,null,"Cuajada",2201,null,null,"Carne de cerdo",702,null,null,"Carne de cerdo",702,null,null,"Avena",803,null,null,"Carne de cerdo",702,null,null,"Banano",1309,null,null,"Arequipe",1101,null,null,"Pescado",2607,null,null,"Lima",1336]
["Chontaduro",1318,null,null,"Lic. en Educación Artística y Cultural",3113,null,null,null,null,null,null,"Arepa de chócolo",303,null,null,"Maíz",808,null,null,"Maíz",808,null,null,"Cacao",601,null,null,"Arándano",1304,null,null,"Chocolate de mesa",901,null,null,"Arroz",802,null,null,"Carne de cerdo",702,null,null,"Carne de pollo",703,null,null,"Cebolla de rama",2010,null,null,"Avena líquida",401,null,null,"Cebolla de bulbo",2009,null,null,"Carne de cerdo",702,null,null,"Cacao",601,null,null,"Arándano",1304,null,null,"Naranja",1349,null,null,"Piña",1356,null,null,"Carne de pollo",703,null,null,"Carne de res",704,null,null,"Cítricos",1320,null,null,"Carne de pollo",703,null,null,"Arveja",2301,null,null,"Avena líquida",401,null,null,"Cúrcuma",2803,null,null,"Carne de pollo",703,null,null,"Carne de pollo",703,null,null,"Badea",1307,null,null,"Carne de pollo",703,null,null,"Bizcocho",2502,null,null,"Arracacha",3001,null,null,"Piña",1356,null,null,"Maíz",808]
["Cilantro",2012,null,null,"Lic. en Educación Básica",3114,null,null,null,null,null,null,"Arepa de maíz",304,null,null,"Maracuyá",1345,null,null,"Mandarina",1341,null,null,"Carne de cerdo",702,null,null,"Arepa de chócolo",303,null,null,"Cilantro",2012,null,null,"Arveja",2301,null,null,"Carne de pollo",703,null,null,"Carne de res",704,null,null,"Cítricos",1320,null,null,"Azúcar",501,null,null,"Cebolla de rama",2010,null,null,"Carne de pollo",703,null,null,"Calabaza",1314,null,null,"Arepa de chócolo",303,null,null,"Pescado",2607,null,null,"Plátano",3006,null,null,"Carne de res",704,null,null,"Coco",1321,null,null,"Coco",1321,null,null,"Carne de res",704,null,null,"Asai",1306,null,null,"Bananito",1308,null,null,"Dulces de frutas exóticas",1112,null,null,"Carne de res",704,null,null,"Carne de res",704,null,null,"Bananito",1308,null,null,"Carne de res",704,null,null,"Bocachico",2602,null,null,"Arroz",802,null,null,"Plátano",3006,null,null,"Maracuyá",1345]
["Copoazú",1322,null,null,"Lic. en Educación Campesina y Rural",3115,null,null,null,null,null,null,"Arepa de yuca",305,null,null,"Panela",502,null,null,"Mango",1342,null,null,"Carne de pollo",703,null,null,"Arepa de maíz",304,null,null,"Ciruela",1319,null,null,"Avena",803,null,null,"Carne de res",704,null,null,"Cebolla de rama",2010,null,null,"Dulce de yuca",1111,null,null,"Banano",1309,null,null,"Cilantro",2012,null,null,"Carne de res",704,null,null,"Carne de cerdo",702,null,null,"Arepa de maíz",304,null,null,"Piña",1356,null,null,"Productos de panadería",2519,null,null,"Cebolla de bulbo",2009,null,null,"Fríjol",2304,null,null,"Col",2013,null,null,"Chontaduro",1318,null,null,"Bananito",1308,null,null,"Banano",1309,null,null,"Fríjol",2304,null,null,"Cebolla de rama",2010,null,null,"Cebolla de rama",2010,null,null,"Banano",1309,null,null,"Coco",1321,null,null,"Cacao",601,null,null,"Arveja",2301,null,null,"Yuca",3008,null,null,"Marañón",1346]
["Fariña",1701,null,null,"Lic. en Educación Comunitaria",3116,null,null,null,null,null,null,"Arequipe",1101,null,null,"Papaya",1352,null,null,"Maracuyá",1345,null,null,"Carne de res",704,null,null,"Arequipe",1101,null,null,"Cítricos",1320,null,null,"Bananito",1308,null,null,"Cebolla de bulbo",2009,null,null,"Chontaduro",1318,null,null,"Fríjol",2304,null,null,"Bocadillo",1104,null,null,"Cítricos",1320,null,null,"Cebolla de rama",2010,null,null,"Carne de pollo",703,null,null,"Arequipe",1101,null,null,"Plátano",3006,null,null,"Queso",2208,null,null,"Cebolla de rama",2010,null,null,"Galleta de panadería",2507,null,null,"Fríjol",2304,null,null,"Cítricos",1320,null,null,"Banano",1309,null,null,"Brevo",1311,null,null,"Frutas en almíbar",1114,null,null,"Chontaduro",1318,null,null,"Champiñón",1901,null,null,"Bizcocho",2502,null,null,"Col",2013,null,null,"Carne de cerdo",702,null,null,"Avena líquida",401,null,null,null,null,null,null,"Melón",1347]
["fríjol",2304,null,null,"Lic. en Educación Especial",3117,null,null,null,null,null,null,"Arracacha",3001,null,null,"Pescado",2607,null,null,"Melón",1347,null,null,"Cebolla de rama",2010,null,null,"Arracacha",3001,null,null,"Cocadas",1109,null,null,"Banano",1309,null,null,"Cebolla de rama",2010,null,null,"Cilantro",2012,null,null,"Galleta de panadería",2507,null,null,"Brócoli",2007,null,null,"Fríjol",2304,null,null,"Chontaduro",1318,null,null,"Carne de res",704,null,null,"Arracacha",3001,null,null,"Productos de panadería",2519,null,null,"Yuca",3008,null,null,"Chocolate de mesa",901,null,null,"Huevo",2101,null,null,"Galleta de panadería",2507,null,null,"Fríjol",2304,null,null,"Batata",3002,null,null,"Brócoli",2007,null,null,"Galleta de panadería",2507,null,null,"Cilantro",2012,null,null,"Chirimoya",1316,null,null,"Bocadillo",1104,null,null,"Cuajada",2201,null,null,"Carne de pollo",703,null,null,"Azúcar",501,null,null,null,null,null,null,"Naranja",1349]
["Galleta de panadería",2507,null,null,"Lic. en Educación Física, Recreación y Deporte",3118,null,null,null,null,null,null,"Arroz",802,null,null,"Piña",1356,null,null,"Naranja",1349,null,null,"Cebollín",2011,null,null,"Arroz",802,null,null,"Coco",1321,null,null,"Bocadillo",1104,null,null,"Chocolate de mesa",901,null,null,"Copoazú",1322,null,null,"Guanábana",1332,null,null,"Cacao",601,null,null,"Galleta de panadería",2507,null,null,"Cilantro",2012,null,null,"Chocolate de mesa",901,null,null,"Arroz",802,null,null,"Yuca",3008,null,null,null,null,null,null,"Cholupa",1317,null,null,"Lima",1336,null,null,"Guayaba",1333,null,null,"Galleta de panadería",2507,null,null,"Bizcocho",2502,null,null,"Cacao",601,null,null,"Galleta tipo industrial ",1407,null,null,"Cítricos",1320,null,null,"Chontaduro",1318,null,null,"Cacao",601,null,null,"Diabolines",1406,null,null,"Carne de res",704,null,null,"Bananito",1308,null,null,null,null,null,null,"Panela",502]
["Gelatina",1501,null,null,"Lic. en Educación Infantil",3119,null,null,null,null,null,null,"Arveja verde",2302,null,null,"Plátano",3006,null,null,"Ñame",3004,null,null,"Cilantro",2012,null,null,"Arveja",2301,null,null,"Dulces",1113,null,null,"Borojó",1310,null,null,"Chontaduro",1318,null,null,"Cuajada",2201,null,null,"Guayaba",1333,null,null,"Cardamomo",2702,null,null,"Galleta tipo industrial",1407,null,null,"Coco",1321,null,null,"Cilantro",2012,null,null,"Arveja",2301,null,null,null,null,null,null,null,null,null,null,"Cítricos",1320,null,null,"Limón",1337,null,null,"Huevo",2101,null,null,"Galleta tipo industrial",1407,null,null,"Bocadillo",1104,null,null,"Carne de cerdo",702,null,null,"Granadilla",1330,null,null,"Cocadas",1109,null,null,"Cilantro",2012,null,null,"Carne de cerdo",702,null,null,"Fríjol",2304,null,null,"Cebolla de rama",2010,null,null,"Banano",1309,null,null,null,null,null,null,"Patilla",1354]
["Helado",1801,null,null,"Lic. en Educación Inicial",3120,null,null,null,null,null,null,"Avena líquida",401,null,null,"Productos de panadería",2519,null,null,"Papaya",1352,null,null,"Ciruela",1319,null,null,"Avena líquida",401,null,null,"Fríjol",2304,null,null,"Brevo",1311,null,null,"Cilantro",2012,null,null,"Cuchuco de maíz",807,null,null,"Harina de plátano",1710,null,null,"Carne de cerdo",702,null,null,"Guanábana",1332,null,null,"Fríjol",2304,null,null,"Coco",1321,null,null,"Avena líquida",401,null,null,null,null,null,null,null,null,null,null,"Cuajada",2201,null,null,"Lulo",1338,null,null,"Kumis",2202,null,null,"Guanábana",1332,null,null,"Borojó",1310,null,null,"Carne de pollo",703,null,null,"Huevo",2101,null,null,"Dulce de leche",1110,null,null,"Cuajada",2201,null,null,"Carne de pollo",703,null,null,"Galleta de panadería",2507,null,null,"Chocolate de mesa",901,null,null,"Berenjena",2006,null,null,null,null,null,null,"Pescado",2607]
["Huevo",2101,null,null,"Lic. en Educación para la Primera Infancia",3121,null,null,null,null,null,null,"Bananito",1308,null,null,"Queso",2208,null,null,"Patilla",1354,null,null,"Cocadas",1109,null,null,"Banano",1309,null,null,"Galleta de panadería",2507,null,null,"Brócoli",2007,null,null,"Cítricos",1320,null,null,"Dulce de leche",1110,null,null,"Huevo",2101,null,null,"Carne de pollo",703,null,null,"Huevo",2101,null,null,"Guanábana",1332,null,null,"Diabolines",1406,null,null,"Banano",1309,null,null,null,null,null,null,null,null,null,null,"Cuchuco de maíz",807,null,null,"Maíz",808,null,null,"Leche líquida UHT",2205,null,null,"Guayaba",1333,null,null,"Brevo",1311,null,null,"Carne de res",704,null,null,"Kumis",2202,null,null,"Dulces",1113,null,null,"Dulces",1113,null,null,"Carne de res",704,null,null,"Guanábana",1332,null,null,"Chúcula",903,null,null,"Bocadillo",1104,null,null,null,null,null,null,"Piña",1356]
["Humitas",310,null,null,"Lic. en Educación Popular",3122,null,null,null,null,null,null,"Banano",1309,null,null,"Sábila",2903,null,null,"Pepino cohombro",2024,null,null,"Coco",1321,null,null,"Barquillos",1403,null,null,"Guanábana",1332,null,null,"Cacao",601,null,null,"Cocadas",1109,null,null,"Dulces",1113,null,null,"Kumis",2202,null,null,"Carne de res",704,null,null,"Kumis",2202,null,null,"Guayaba",1333,null,null,"Dulces",1113,null,null,"Barquillos",1403,null,null,null,null,null,null,null,null,null,null,"Curuba",1323,null,null,"Malanga",3003,null,null,"Lulo",1338,null,null,"Harina de arroz",1705,null,null,"Brócoli",2007,null,null,"Cebolla de bulbo",2009,null,null,"Lulo",1338,null,null,"Fécula de maíz",1702,null,null,"Envuelto de maíz",307,null,null,"Cebolla de bulbo",2009,null,null,"Guayaba",1333,null,null,"Cilantro",2012,null,null,"Borojó",1310,null,null,null,null,null,null,"Plátano",3006]
["Limón",1337,null,null,"Lic. en Educación Preescolar",3123,null,null,null,null,null,null,"Barra de chocolate",1102,null,null,"Sacha inchi",2402,null,null,"Pescado",2607,null,null,"Col",2013,null,null,"Bizcocho",2502,null,null,"Guayaba",1333,null,null,"Caducifolios",1312,null,null,"Cuajada",2201,null,null,"Fresa",1328,null,null,"Limón",1337,null,null,"Cebolla de rama",2010,null,null,"Leche en polvo",2204,null,null,"Habichuela",2309,null,null,"Fríjol",2304,null,null,"Bizcocho",2502,null,null,null,null,null,null,null,null,null,null,"Durazno",1325,null,null,"Mango",1342,null,null,"Maíz",808,null,null,"Huevo",2101,null,null,"Cacao",601,null,null,"Cebolla de rama",2010,null,null,"Maíz",808,null,null,"Fresa",1328,null,null,"Envuelto de mazorca",308,null,null,"Cebolla de rama",2010,null,null,"Habichuela",2309,null,null,"Ciruela",1319,null,null,"Brevo",1311,null,null,null,null,null,null,"Sacha inchi",2402]
["Maíz",808,null,null,"Lic. en Etnoeducación",3124,null,null,null,null,null,null,"Blanqueado",1103,null,null,"Yogurt",2210,null,null,"Piña",1356,null,null,"Dulces",1113,null,null,"Bocadillo",1104,null,null,"Hortalizas varias",2019,null,null,"Calabacín",2008,null,null,"Dulce de leche",1110,null,null,"Fríjol",2304,null,null,"Lulo",1338,null,null,"Chirimoya",1316,null,null,"Leche líquida UHT",2205,null,null,"Huevo",2101,null,null,"Galleta de panadería",2507,null,null,"Bocadillo",1104,null,null,null,null,null,null,null,null,null,null,"Fríjol",2304,null,null,"Maracuyá",1345,null,null,"Mango",1342,null,null,"Kumis",2202,null,null,"Carne de cerdo",702,null,null,"Cilantro",2012,null,null,"Malanga",3003,null,null,"Fríjol",2304,null,null,"Fécula de maíz",1702,null,null,"Champiñón",1901,null,null,"Huevo",2101,null,null,"Cítricos",1320,null,null,"Cacao",601,null,null,null,null,null,null,"Soya",2312]
["Mojojoy",705,null,null,"Lic. en Literatura",3125,null,null,null,null,null,null,"Bocadillo de guayaba",1105,null,null,"Yuca",3008,null,null,"Plátano",3006,null,null,"Fríjol",2304,null,null,"Brevo",1311,null,null,"Huevo",2101,null,null,"Carne de cerdo",702,null,null,"Dulces",1113,null,null,"Galleta de panadería",2507,null,null,"Maíz",808,null,null,"Chontaduro",1318,null,null,"Lulo",1338,null,null,"Jengibre",2804,null,null,"Galleta tipo industrial",1407,null,null,"Brevo",1311,null,null,null,null,null,null,null,null,null,null,"Galleta de panadería",2507,null,null,"Melón",1347,null,null,"Maracuyá",1345,null,null,"Limón",1337,null,null,"Carne de Cuy",707,null,null,"Ciruela",1319,null,null,"Mermelada de frutas exóticas",1118,null,null,"Galleta de panadería",2507,null,null,"Fécula de plátano",1703,null,null,"Chirimoya",1316,null,null,"Limón",1337,null,null,"Cuajada",2201,null,null,"Calabacín",2008,null,null,null,null,null,null,"Yuca",3008]
["Naranja",1349,null,null,"Lic. en Pedagogía Infantil",3126,null,null,null,null,null,null,"Borojó",1310,null,null,null,null,null,null,"Productos de panadería",2519,null,null,"Galleta de panadería",2507,null,null,"Brócoli",2007,null,null,"Leche en polvo",2204,null,null,"Carne de pollo",703,null,null,"Espárrago",2015,null,null,"Huevo",2101,null,null,"Malanga",3003,null,null,"Cilantro",2012,null,null,"Maíz",808,null,null,"Limón",1337,null,null,"Guanábana",1332,null,null,"Brócoli",2007,null,null,null,null,null,null,null,null,null,null,"Granadilla",1330,null,null,"Naranja",1349,null,null,"Melón",1347,null,null,"Lulo",1338,null,null,"Carne de pollo",703,null,null,"Cítricos",1320,null,null,"Mora",1348,null,null,"Granadilla",1330,null,null,"Fresa",1328,null,null,"Chocolate de mesa",901,null,null,"Maíz",808,null,null,"Cuchuco de maíz",807,null,null,"Carne de cerdo",702]
["Panela",502,null,null,"Médico General",3127,null,null,null,null,null,null,"Brevo",1311,null,null,null,null,null,null,"Tortas",2521,null,null,"Galleta tipo industrial",1407,null,null,"Brownies",1404,null,null,"Leche líquida UHT",2205,null,null,"Carne de res",704,null,null,"Feijoa",1326,null,null,"Kumis",2202,null,null,"Mandarina",1341,null,null,"Cimarrón",2802,null,null,"Malanga",3003,null,null,"Lulo",1338,null,null,"Guandul",2307,null,null,"Brownies",1404,null,null,null,null,null,null,null,null,null,null,"Guanábana",1332,null,null,"Ñame",3004,null,null,"Naranja",1349,null,null,"Maíz",808,null,null,"Carne de res",704,null,null,"Coliflor",2014,null,null,"Naranja",1349,null,null,"Guanábana",1332,null,null,"Fríjol",2304,null,null,"Cilantro",2012,null,null,"Mango",1342,null,null,"Dulce de leche",1110,null,null,"Carne de pollo",703]
["Pepino cohombro",2024,null,null,"Nutricionista Dietista",3128,null,null,null,null,null,null,"Brócoli",2007,null,null,null,null,null,null,"Yuca",3008,null,null,"Gelatina",1501,null,null,"Buñuelos",2504,null,null,"Limón",1337,null,null,"Cebada",804,null,null,"Fresa",1328,null,null,"Limón",1337,null,null,"Mango",1342,null,null,"Cítricos",1320,null,null,"Mango",1342,null,null,"Maíz",808,null,null,"Guayaba",1333,null,null,"Buñuelos",2504,null,null,null,null,null,null,null,null,null,null,"Guayaba",1333,null,null,"Panela",502,null,null,"Ñame",3004,null,null,"Mandarina",1341,null,null,"Cebada",804,null,null,"Cuchuco de cebada",806,null,null,"Palmito",2022,null,null,"Guayaba",1333,null,null,"Galleta de panadería",2507,null,null,"Cítricos",1320,null,null,"Maracuyá",1345,null,null,"Dulces",1113,null,null,"Carne de res",704]
["Pescado (Otros)",2608,null,null,"Profesional en Desarrollo Familiar",3129,null,null,null,null,null,null,"Brownies",1404,null,null,null,null,null,null,null,null,null,null,"Guanábana",1332,null,null,"Cacao",601,null,null,"Lomos de atún",2604,null,null,"Cebada perlada",805,null,null,"Fríjol",2304,null,null,"Lulo",1338,null,null,"Mangostino",1343,null,null,"Cocadas",1109,null,null,"Maracuyá",1345,null,null,"Malanga",3003,null,null,"Habichuela",2309,null,null,"Cacao",601,null,null,null,null,null,null,null,null,null,null,"Gulupa",1334,null,null,"Papaya",1352,null,null,"Pan de yuca",2514,null,null,"Mangostino",1343,null,null,"Cebolla de bulbo",2009,null,null,"Cuchuco de maíz",807,null,null,"Panela",502,null,null,"Gulupa",1334,null,null,"Galleta tipo industrial",1407,null,null,"Cocadas",1109,null,null,"Melón",1347,null,null,"Fresa",1328,null,null,"Cebolla de bulbo",2009]
["Pimentón",2026,null,null,"Psicólogo(a)",3130,null,null,null,null,null,null,"Cacao",601,null,null,null,null,null,null,null,null,null,null,"Guandul",2307,null,null,"Caducifolios",1312,null,null,"Maíz",808,null,null,"Cebolla de bulbo",2009,null,null,"Frutales varios",1329,null,null,"Maíz",808,null,null,"Maracuyá",1345,null,null,"Coco",1321,null,null,"Melón",1347,null,null,"Maracuyá",1345,null,null,"Harina de maíz precocida",1708,null,null,"Caducifolios",1312,null,null,null,null,null,null,null,null,null,null,"Habichuela",2309,null,null,"Patilla",1354,null,null,"Papaya",1352,null,null,"Maracuyá",1345,null,null,"Cebolla de rama",2010,null,null,"Curuba",1323,null,null,"Papa",3005,null,null,"Habichuela",2309,null,null,"Gelatina de pata",1502,null,null,"Coco",1321,null,null,"Naranja",1349,null,null,"Fríjol",2304,null,null,"Cebolla de rama",2010]
["Piña Amazónica",1357,null,null,"Psicopedagogo(a)",3131,null,null,null,null,null,null,"Cachama",2603,null,null,null,null,null,null,null,null,null,null,"Guayaba",1333,null,null,"Calabacín",2008,null,null,"Mango",1342,null,null,"Cebolla de rama",2010,null,null,"Galleta de panadería",2507,null,null,"Mandarina",1341,null,null,"Melón",1347,null,null,"Coliflor",2014,null,null,"Mora",1348,null,null,"Mora",1348,null,null,"Hortalizas varias",2019,null,null,"Calabacín",2008,null,null,null,null,null,null,null,null,null,null,"Helado",1801,null,null,"Pescado",2607,null,null,"Patilla",1354,null,null,"Melón",1347,null,null,"Chirimoya",1316,null,null,"Durazno",1325,null,null,"Pescado",2607,null,null,"Hortalizas de hoja",2018,null,null,"Granadilla",1330,null,null,"Cuajada",2201,null,null,"Ñame",3004,null,null,"Galleta de panadería",2507,null,null,"Cernido de guayaba",1107]
["Pirarucú",2609,null,null,"Sociólogo(a)",3132,null,null,null,null,null,null,"Calabacín",2008,null,null,null,null,null,null,null,null,null,null,"Habichuela",2309,null,null,"Calabaza",1314,null,null,"Melón",1347,null,null,"Chamba",1315,null,null,"Galleta tipo industrial ",1407,null,null,"Maní",2311,null,null,"Mora",1348,null,null,"Dulce de leche",1110,null,null,"Ñame",3004,null,null,"Naranja",1349,null,null,"Huevo",2101,null,null,"Calabaza",1314,null,null,null,null,null,null,null,null,null,null,"Hortalizas de hoja",2018,null,null,"Plátano",3006,null,null,"Pescado",2607,null,null,"Mora",1348,null,null,"Chocolate de mesa",901,null,null,"Espinaca",2016,null,null,"Pimienta",2807,null,null,"Huevo",2101,null,null,"Guanábana",1332,null,null,"Curuba",1323,null,null,"Panela",502,null,null,"Granadilla",1330,null,null,"Chontaduro",1318]
["Plátano",3006,null,null,"Trabajador(a) Social",3133,null,null,null,null,null,null,"Calado",1405,null,null,null,null,null,null,null,null,null,null,"Harina 7 granos",1704,null,null,"Carne de cerdo",702,null,null,"Naranja",1349,null,null,"Chirimoya",1316,null,null,"Gelatina",1501,null,null,"Naranja",1349,null,null,"Naranja",1349,null,null,"Dulces",1113,null,null,"Panela",502,null,null,"Ñame",3004,null,null,"Kumis",2202,null,null,"Carne de cerdo",702,null,null,null,null,null,null,null,null,null,null,"Huevo",2101,null,null,"Productos de panadería",2519,null,null,"Plátano",3006,null,null,"Naranja",1349,null,null,"Chontaduro",1318,null,null,"Fresa",1328,null,null,"Piña",1356,null,null,"Jengibre",2804,null,null,"Guayaba",1333,null,null,"Dulce de leche",1110,null,null,"Papaya",1352,null,null,"Guanábana",1332,null,null,"Cilantro",2012]
["Productos de panadería",2519,null,null,null,null,null,null,null,null,null,null,"Cardamomo",2702,null,null,null,null,null,null,null,null,null,null,"Harina de arroz",1705,null,null,"Carne de pollo",703,null,null,"Níspero",1350,null,null,"Chúcula",903,null,null,"Gelatina de pata",1502,null,null,"Ñame",3004,null,null,"Ñame",3004,null,null,"Espinaca",2016,null,null,"Papaya",1352,null,null,"Panela",502,null,null,"Leche en polvo",2204,null,null,"Carne de pollo",703,null,null,null,null,null,null,null,null,null,null,"Kumis",2202,null,null,"Queso",2208,null,null,"Productos de panadería",2519,null,null,"Pan de arroz",2511,null,null,"Cilantro",2012,null,null,"Fríjol",2304,null,null,"Plátano",3006,null,null,"Kumis",2202,null,null,"Gulupa",1334,null,null,"Dulces",1113,null,null,"Patilla",1354,null,null,"Guayaba",1333,null,null,"Cimarrón",2802]
["Pulpa de fruta",1360,null,null,null,null,null,null,null,null,null,null,"Carne de cerdo",702,null,null,null,null,null,null,null,null,null,null,"Harina de maíz precocida",1708,null,null,"Carne de res",704,null,null,"Ñame",3004,null,null,"Cilantro",2012,null,null,"Granadilla",1330,null,null,"Panela",502,null,null,"Panela",502,null,null,"Fresa",1328,null,null,"Patilla",1354,null,null,"Pepino cohombro",2024,null,null,"Leche líquida UHT",2205,null,null,"Carne de res",704,null,null,null,null,null,null,null,null,null,null,"Leche líquida UHT",2205,null,null,"Sal",3301,null,null,"Queso",2208,null,null,"Panela",502,null,null,"Cimarrón",2802,null,null,"Galleta de panadería",2507,null,null,"Productos de panadería",2519,null,null,"Leche condensada",2203,null,null,"Habichuela",2309,null,null,"Durazno",1325,null,null,"Pepino cohombro",2024,null,null,"Gulupa",1334,null,null,"Cítricos",1320]
["Uva caimarona",1366,null,null,null,null,null,null,null,null,null,null,"Carne de pollo",703,null,null,null,null,null,null,null,null,null,null,"Helado",1801,null,null,"Cebada",804,null,null,"Panela",502,null,null,"Ciruela",1319,null,null,"Guanábana",1332,null,null,"Patilla",1354,null,null,"Papaya",1352,null,null,"Fríjol",2304,null,null,"Pescado",2607,null,null,"Pescado",2607,null,null,"Limón",1337,null,null,"Cebada",804,null,null,null,null,null,null,null,null,null,null,"Lulo",1338,null,null,"Tomate",2030,null,null,"Rosquillas",2520,null,null,"Panelita de leche",1120,null,null,"Ciruela",1319,null,null,"Galleta tipo industrial",1407,null,null,"Queso",2208,null,null,"Lechuga",2020,null,null,"Harina de maíz",1707,null,null,"Espinaca",2016,null,null,"Pescado",2607,null,null,"Habichuela",2309,null,null,"Cocadas",1109]
["Yogurt",2210,null,null,null,null,null,null,null,null,null,null,"Carne de res",704,null,null,null,null,null,null,null,null,null,null,"Huevo",2101,null,null,"Cebolla de bulbo",2009,null,null,"Papaya",1352,null,null,"Cítricos",1320,null,null,"Guayaba",1333,null,null,"Pescado",2607,null,null,"Patilla",1354,null,null,"Galleta de panadería",2507,null,null,"Pimentón",2026,null,null,"Piña",1356,null,null,"Maíz",808,null,null,"Cebolla de bulbo",2009,null,null,null,null,null,null,null,null,null,null,"Maíz",808,null,null,"Tomate de árbol",1363,null,null,"Tomate",2030,null,null,"Papaya",1352,null,null,"Cítricos",1320,null,null,"Gelatina",1501,null,null,"Sacha inchi",2402,null,null,"Limón",1337,null,null,"Hortalizas varias",2019,null,null,"Feijoa",1326,null,null,"Piña",1356,null,null,"Harina de arroz",1705,null,null,"Coco",1321]
["Yuca",3008,null,null,null,null,null,null,null,null,null,null,"Cebolla de bulbo",2009,null,null,null,null,null,null,null,null,null,null,"Leche en polvo",2204,null,null,"Cebolla de rama",2010,null,null,"Patilla",1354,null,null,"Cuajada",2201,null,null,"Gulupa",1334,null,null,"Piña",1356,null,null,"Pescado",2607,null,null,"Galleta tipo industrial ",1407,null,null,"Piña",1356,null,null,"Plátano",3006,null,null,"Mango",1342,null,null,"Cebolla de rama",2010,null,null,null,null,null,null,null,null,null,null,"Mango",1342,null,null,"Yuca",3008,null,null,"Tomate de árbol",1363,null,null,"Patilla",1354,null,null,"Coco",1321,null,null,"Granadilla",1330,null,null,"Tomate de árbol",1363,null,null,"Lulo",1338,null,null,"Huevo",2101,null,null,"Fresa",1328,null,null,"Plátano",3006,null,null,"Harina de plátano",1710,null,null,"Cuajada",2201]
[null,null,null,null,null,null,null,null,null,null,null,null,"Cebolla de rama",2010,null,null,null,null,null,null,null,null,null,null,"Leche líquida UHT",2205,null,null,"Chachafruto",2303,null,null,"Pepino cohombro",2024,null,null,"Cuchuco de maíz",807,null,null,"Habichuela",2309,null,null,"Plátano",3006,null,null,"Piña",1356,null,null,"Garbanzo",2306,null,null,"Plátano",3006,null,null,"Tomate",2030,null,null,"Maracuyá",1345,null,null,"Chachafruto",2303,null,null,null,null,null,null,null,null,null,null,"Manjar blanco",1115,null,null,null,null,null,null,"Tortas",2521,null,null,"Pescado",2607,null,null,"Coliflor",2014,null,null,"Guanábana",1332,null,null,"Yogurt ",2210,null,null,"Macadamia",1339,null,null,"Kumis",2202,null,null,"Fríjol",2304,null,null,"Postres",1122,null,null,"Hortalizas varias",2019,null,null,"Cuchuco de maíz",807]
[null,null,null,null,null,null,null,null,null,null,null,null,"Cebollín",2011,null,null,null,null,null,null,null,null,null,null,"Limón",1337,null,null,"Champiñón",1901,null,null,"Pescado",2607,null,null,"Curuba",1323,null,null,"Hortalizas varias",2019,null,null,"Ponqué",2518,null,null,"Pitahaya",1358,null,null,"Granadilla",1330,null,null,"Productos de panadería",2519,null,null,"Yuca",3008,null,null,"Marañón",1346,null,null,"Champiñón",1901,null,null,null,null,null,null,null,null,null,null,"Maracuyá",1345,null,null,null,null,null,null,"Yogurt",2210,null,null,"Piña",1356,null,null,"Cuajada",2201,null,null,"Guayaba",1333,null,null,"Yuca",3008,null,null,"Maíz",808,null,null,"Lechuga",2020,null,null,"Galleta de panadería",2507,null,null,"Productos de panadería",2519,null,null,"Huevo",2101,null,null,"Curuba",1323]
[null,null,null,null,null,null,null,null,null,null,null,null,"Champiñón",1901,null,null,null,null,null,null,null,null,null,null,"Lomos de atún",2604,null,null,"Chirimoya",1316,null,null,"Pimentón",2026,null,null,"Dátil",1324,null,null,"Huevo",2101,null,null,"Productos de panadería",2519,null,null,"Plátano",3006,null,null,"Guama",1331,null,null,"Pulpa de fruta",1360,null,null,"Zapote",1367,null,null,"Naranja",1349,null,null,"Chirimoya",1316,null,null,null,null,null,null,null,null,null,null,"Melón",1347,null,null,null,null,null,null,"Yuca",3008,null,null,"Plantas aromáticas",2705,null,null,"Cuchuco de maíz",807,null,null,"Gulupa",1334,null,null,null,null,null,null,"Mandarina",1341,null,null,"Lima",1336,null,null,"Galleta tipo industrial",1407,null,null,"Pulpa de fruta",1360,null,null,"Kumis",2202,null,null,"Dulce de leche",1110]
[null,null,null,null,null,null,null,null,null,null,null,null,"Chocolate de mesa",901,null,null,null,null,null,null,null,null,null,null,"Maíz",808,null,null,"Chocolate de mesa",901,null,null,"Piña",1356,null,null,"Dulce de leche",1110,null,null,"Kumis",2202,null,null,"Queso",2208,null,null,"Productos de panadería",2519,null,null,"Guanábana",1332,null,null,"Queso",2208,null,null,null,null,null,null,"Níspero",1350,null,null,"Chocolate de mesa",901,null,null,null,null,null,null,null,null,null,null,"Mezcla de cereales para coladas",1712,null,null,null,null,null,null,null,null,null,null,"Plátano",3006,null,null,"Curuba",1323,null,null,"Haba",2308,null,null,null,null,null,null,"Mangostino",1343,null,null,"Limón",1337,null,null,"Granadilla",1330,null,null,"Queso",2208,null,null,"Leche en polvo",2204,null,null,"Dulces",1113]
[null,null,null,null,null,null,null,null,null,null,null,null,"Chocolatina",1108,null,null,null,null,null,null,null,null,null,null,"Mango",1342,null,null,"Chocolatina",1108,null,null,"Pitahaya",1358,null,null,"Durazno",1325,null,null,"Leche en polvo",2204,null,null,"Sacha inchi",2402,null,null,"Pulpa de fruta",1360,null,null,"Guayaba",1333,null,null,"Rosquitas",1411,null,null,null,null,null,null,"Ñame",3004,null,null,"Chocolatina",1108,null,null,null,null,null,null,null,null,null,null,"Mora",1348,null,null,null,null,null,null,null,null,null,null,"Productos de panadería",2519,null,null,"Dulces",1113,null,null,"Habichuela",2309,null,null,null,null,null,null,"Manjar blanco",1115,null,null,"Lulo",1338,null,null,"Guanábana",1332,null,null,"Rosquillas",2520,null,null,"Leche líquida UHT",2205,null,null,"Durazno",1325]
[null,null,null,null,null,null,null,null,null,null,null,null,"Cilantro",2012,null,null,null,null,null,null,null,null,null,null,"Maní",2311,null,null,"Cilantro",2012,null,null,"Plátano",3006,null,null,"Envuelto de maíz",307,null,null,"Leche líquida UHT",2205,null,null,"Tomate",2030,null,null,"Queso",2208,null,null,"Gulupa",1334,null,null,"Sacha inchi",2402,null,null,null,null,null,null,"Panela",502,null,null,"Cilantro",2012,null,null,null,null,null,null,null,null,null,null,"Panela",502,null,null,null,null,null,null,null,null,null,null,"Pulpa de fruta",1360,null,null,"Durazno",1325,null,null,"Harina 7 granos",1704,null,null,null,null,null,null,"Maracuyá",1345,null,null,"Maíz",808,null,null,"Guayaba",1333,null,null,"Suero",2209,null,null,"Lima",1336,null,null,"Envuelto de choclo",309]
[null,null,null,null,null,null,null,null,null,null,null,null,"Cítricos",1320,null,null,null,null,null,null,null,null,null,null,"Marañón",1346,null,null,"Ciruela",1319,null,null,"Pomelo",1359,null,null,"Feijoa",1326,null,null,"Lechuga",2020,null,null,"Tomate de árbol",1363,null,null,"Sábila",2903,null,null,"Haba",2308,null,null,"Suero",2209,null,null,null,null,null,null,"Papaya",1352,null,null,"Ciruela",1319,null,null,null,null,null,null,null,null,null,null,"Papa",3005,null,null,null,null,null,null,null,null,null,null,"Queso",2208,null,null,"Fécula de maíz",1702,null,null,"Harina de maíz",1707,null,null,null,null,null,null,"Mezcla para preparar buñuelos",1713,null,null,"Mandarina",1341,null,null,"Gulupa",1334,null,null,"Tortas",2521,null,null,"Limón",1337,null,null,"Fécula de maíz",1702]
[null,null,null,null,null,null,null,null,null,null,null,null,"Coco",1321,null,null,null,null,null,null,null,null,null,null,"Melón",1347,null,null,"Cítricos",1320,null,null,"Postres",1122,null,null,"Fresa",1328,null,null,"Lulo",1338,null,null,"Tortas",2521,null,null,"Sacha inchi",2402,null,null,"Habichuela",2309,null,null,"Tomate",2030,null,null,null,null,null,null,"Patilla",1354,null,null,"Cítricos",1320,null,null,null,null,null,null,null,null,null,null,"Papaya",1352,null,null,null,null,null,null,null,null,null,null,"Sacha inchi",2402,null,null,"Feijoa",1326,null,null,"Hortalizas de hoja",2018,null,null,null,null,null,null,"Mora",1348,null,null,"Mangostino",1343,null,null,"Haba",2308,null,null,"Yuca",3008,null,null,"Lulo",1338,null,null,"Fécula de plátano",1703]
[null,null,null,null,null,null,null,null,null,null,null,null,"Colaciones",2505,null,null,null,null,null,null,null,null,null,null,"Naranja",1349,null,null,"Cocadas",1109,null,null,"Productos de panadería",2519,null,null,"fríjol",2304,null,null,"Maíz",808,null,null,"Yogurt",2210,null,null,"Soya",2312,null,null,"Harina de maíz",1707,null,null,"Tomate de árbol",1363,null,null,null,null,null,null,"Pepino cohombro",2024,null,null,"Cocadas",1109,null,null,null,null,null,null,null,null,null,null,"Patilla",1354,null,null,null,null,null,null,null,null,null,null,"Soya",2312,null,null,"Fresa",1328,null,null,"Huevo",2101,null,null,null,null,null,null,"Naranja",1349,null,null,"Maní",2311,null,null,"Habichuela",2309,null,null,"Zapote",1367,null,null,"Maíz",808,null,null,"Fresa",1328]
[null,null,null,null,null,null,null,null,null,null,null,null,"Coliflor",2014,null,null,null,null,null,null,null,null,null,null,"Ñame",3004,null,null,"Coco",1321,null,null,"Queso",2208,null,null,"Galleta de panadería",2507,null,null,"Mango",1342,null,null,"Yuca",3008,null,null,"Tomate",2030,null,null,"Harina de millo",1709,null,null,"Tortas",2521,null,null,null,null,null,null,"Pescado",2607,null,null,"Coco",1321,null,null,null,null,null,null,null,null,null,null,"Pepino cohombro",2024,null,null,null,null,null,null,null,null,null,null,"Tomate",2030,null,null,"Fríjol",2304,null,null,"Kumis",2202,null,null,null,null,null,null,"Panderitos",1410,null,null,"Maracuyá",1345,null,null,"Harina de maíz precocida",1708,null,null,null,null,null,null,"Mandarina",1341,null,null,"Fríjol",2304]
[null,null,null,null,null,null,null,null,null,null,null,null,"Cúrcuma",2803,null,null,null,null,null,null,null,null,null,null,"Pan de yuca",2514,null,null,"Coliflor",2014,null,null,"Sorgo",811,null,null,"Galleta tipo industrial",1407,null,null,"Mangostino",1343,null,null,null,null,null,null,"Yogurt",2210,null,null,"Hortalizas varias",2019,null,null,"Yogurt",2210,null,null,null,null,null,null,"Piña",1356,null,null,"Coliflor",2014,null,null,null,null,null,null,null,null,null,null,"Pescado (Otros)",2608,null,null,null,null,null,null,null,null,null,null,"Tomate de árbol",1363,null,null,"Galleta de panadería",2507,null,null,"Leche condensada",2203,null,null,null,null,null,null,"Panela",502,null,null,"Mora",1348,null,null,"Hortalizas varias",2019,null,null,null,null,null,null,"Mango",1342,null,null,"Galleta de panadería",2507]
[null,null,null,null,null,null,null,null,null,null,null,null,"Dulces ",1113,null,null,null,null,null,null,null,null,null,null,"Panelita de leche",1120,null,null,"Compota industrial",1001,null,null,"Suero",2209,null,null,"Garbanzo",2306,null,null,"Maracuyá",1345,null,null,null,null,null,null,"Yuca",3008,null,null,"Huevo",2101,null,null,"Yuca",3008,null,null,null,null,null,null,"Plantas aromáticas",2705,null,null,"Compota industrial",1001,null,null,null,null,null,null,null,null,null,null,"Pimentón",2026,null,null,null,null,null,null,null,null,null,null,"Tortas",2521,null,null,"Gelatina de pata",1502,null,null,"Leche líquida UHT",2205,null,null,null,null,null,null,"Panelita de leche",1120,null,null,"Naranja",1349,null,null,"Huevo",2101,null,null,null,null,null,null,"Mangostino",1343,null,null,"Galleta tipo industrial",1407]
[null,null,null,null,null,null,null,null,null,null,null,null,"Espinaca",2016,null,null,null,null,null,null,null,null,null,null,"Papaya",1352,null,null,"Cotudos",2506,null,null,"Tomate",2030,null,null,"Granadilla",1330,null,null,"Mora",1348,null,null,null,null,null,null,null,null,null,null,"Kumis",2202,null,null,null,null,null,null,null,null,null,null,"Plátano",3006,null,null,"Cotudos",2506,null,null,null,null,null,null,null,null,null,null,"Piña",1356,null,null,null,null,null,null,null,null,null,null,"Uva",1365,null,null,"Granadilla",1330,null,null,"Leche saborizada",2206,null,null,null,null,null,null,"Papaya",1352,null,null,"Panela",502,null,null,"Kumis",2202,null,null,null,null,null,null,"Maní",2311,null,null,"Galleta wafer",1408]
[null,null,null,null,null,null,null,null,null,null,null,null,"Fécula de maíz",1702,null,null,null,null,null,null,null,null,null,null,"Pastas alimenticias",809,null,null,"Cuajada",2201,null,null,"Tortas",2521,null,null,"Guanábana",1332,null,null,"Pandebono",2516,null,null,null,null,null,null,null,null,null,null,"Leche líquida UHT",2205,null,null,null,null,null,null,null,null,null,null,"Ponqué",2518,null,null,"Cuajada",2201,null,null,null,null,null,null,null,null,null,null,"Pitahaya",1357,null,null,null,null,null,null,null,null,null,null,"Yogurt",2210,null,null,"Guanábana",1332,null,null,"Lechuga",2020,null,null,null,null,null,null,"Pepino cohombro",2024,null,null,"Papaya",1352,null,null,"Leche condensada",2203,null,null,null,null,null,null,"Manjar blanco",1115,null,null,"Gelatina",1501]
[null,null,null,null,null,null,null,null,null,null,null,null,"Fresa",1328,null,null,null,null,null,null,null,null,null,null,"Patilla",1354,null,null,"Cuchuco de cebada",806,null,null,"Yogurt",2210,null,null,"Guandul",2307,null,null,"Panela",502,null,null,null,null,null,null,null,null,null,null,"Lechuga",2020,null,null,null,null,null,null,null,null,null,null,"Productos de panadería",2519,null,null,"Cuchuco de cebada",806,null,null,null,null,null,null,null,null,null,null,"Plátano",3006,null,null,null,null,null,null,null,null,null,null,"Yuca",3008,null,null,"Guayaba",1333,null,null,"Lulo",1338,null,null,null,null,null,null,"Pescado (Otros)",2608,null,null,"Pepino cohombro",2024,null,null,"Leche en polvo",2204,null,null,null,null,null,null,"Mantecada",2508,null,null,"Gelatina de pata",1502]
[null,null,null,null,null,null,null,null,null,null,null,null,"Fríjol",2304,null,null,null,null,null,null,null,null,null,null,"Pescado",2607,null,null,"Cuchuco de maíz",807,null,null,"Yuca",3008,null,null,"Guatila",2017,null,null,"Papa",3005,null,null,null,null,null,null,null,null,null,null,"Limón",1337,null,null,null,null,null,null,null,null,null,null,"Pulpa de fruta",1360,null,null,"Cuchuco de maíz",807,null,null,null,null,null,null,null,null,null,null,"Productos de panadería",2519,null,null,null,null,null,null,null,null,null,null,"Zapote",1367,null,null,"Gulupa",1334,null,null,"Maíz",808,null,null,null,null,null,null,"Pimentón",2026,null,null,"Pescado (Otros)",2608,null,null,"Leche líquida UHT",2205,null,null,null,null,null,null,"Maracuyá",1345,null,null,"Granadilla",1330]
[null,null,null,null,null,null,null,null,null,null,null,null,"Galleta de panadería",2507,null,null,null,null,null,null,null,null,null,null,"Pimentón",2026,null,null,"Curuba",1323,null,null,"Zapote",1367,null,null,"Guayaba",1333,null,null,"Papaya",1352,null,null,null,null,null,null,null,null,null,null,"Lulo",1338,null,null,null,null,null,null,null,null,null,null,"Queso",2208,null,null,"Curuba",1323,null,null,null,null,null,null,null,null,null,null,"Pulpa de fruta",1360,null,null,null,null,null,null,null,null,null,null,null,null,null,null,"Haba",2308,null,null,"Mango",1342,null,null,null,null,null,null,"Piña",1356,null,null,"Pimentón",2026,null,null,"Lima",1336,null,null,null,null,null,null,"Melón",1347,null,null,"Guanábana",1332]
[null,null,null,null,null,null,null,null,null,null,null,null,"Galleta tipo industrial",1407,null,null,null,null,null,null,null,null,null,null,"Plátano",3006,null,null,"Dulce de leche",1110,null,null,null,null,null,null,"Gulupa",1334,null,null,"Patilla",1354,null,null,null,null,null,null,null,null,null,null,"Maíz",808,null,null,null,null,null,null,null,null,null,null,"Rosquitas ",1411,null,null,"Dulce de leche",1110,null,null,null,null,null,null,null,null,null,null,"Queso",2208,null,null,null,null,null,null,null,null,null,null,null,null,null,null,"Habichuela",2309,null,null,"Manjar blanco",1115,null,null,null,null,null,null,"Pitahaya",1358,null,null,"Piña",1356,null,null,"Limón",1337,null,null,null,null,null,null,"Mezcla de cereales",1711,null,null,"Guayaba",1333]
[null,null,null,null,null,null,null,null,null,null,null,null,"Gelatina",1501,null,null,null,null,null,null,null,null,null,null,"Pomelo",1359,null,null,"Dulces",1113,null,null,null,null,null,null,"Haba",2308,null,null,"Pepino cohombro",2024,null,null,null,null,null,null,null,null,null,null,"Malanga",3003,null,null,null,null,null,null,null,null,null,null,"Suero",2209,null,null,"Dulces",1113,null,null,null,null,null,null,null,null,null,null,"Sorgo",811,null,null,null,null,null,null,null,null,null,null,null,null,null,null,"Huevo",2101,null,null,"Manzana",1344,null,null,null,null,null,null,"Plantas aromáticas",2705,null,null,"Pitahaya",1358,null,null,"Lulo",1338,null,null,null,null,null,null,"Mojarra",2605,null,null,"Habichuela",2309]
[null,null,null,null,null,null,null,null,null,null,null,null,"Gelatina de pata",1502,null,null,null,null,null,null,null,null,null,null,"Postres",1122,null,null,"Durazno",1325,null,null,null,null,null,null,"Habichuela",2309,null,null,"Pescado",2607,null,null,null,null,null,null,null,null,null,null,"Mandarina",1341,null,null,null,null,null,null,null,null,null,null,"Tortas",2521,null,null,"Durazno",1325,null,null,null,null,null,null,null,null,null,null,"Tilapia",2610,null,null,null,null,null,null,null,null,null,null,null,null,null,null,"Kumis",2202,null,null,"Maracuyá",1345,null,null,null,null,null,null,"Plátano",3006,null,null,"Plantas aromáticas ",2705,null,null,"Maíz",808,null,null,null,null,null,null,"Mora",1348,null,null,"Harina de arroz",1705]
[null,null,null,null,null,null,null,null,null,null,null,null,"Granadilla",1330,null,null,null,null,null,null,null,null,null,null,"Pulpa de fruta",1360,null,null,"Envuelto de maíz",307,null,null,null,null,null,null,"Harina 7 granos",1704,null,null,"Pimentón",2026,null,null,null,null,null,null,null,null,null,null,"Mango",1342,null,null,null,null,null,null,null,null,null,null,"Yogurt",2210,null,null,"Envuelto de maíz",307,null,null,null,null,null,null,null,null,null,null,"Tomate",2030,null,null,null,null,null,null,null,null,null,null,null,null,null,null,"Leche líquida UHT",2205,null,null,"Melón",1347,null,null,null,null,null,null,"Productos de panadería",2519,null,null,"Plantas medicinales",2901,null,null,"Malanga",3003,null,null,null,null,null,null,"Naranja",1349,null,null,"Harina de maíz precocida",1708]
[null,null,null,null,null,null,null,null,null,null,null,null,"Guanábana",1332,null,null,null,null,null,null,null,null,null,null,"Queso",2208,null,null,"Envuelto de mazorca",308,null,null,null,null,null,null,"Harina de maíz",1707,null,null,"Piña",1356,null,null,null,null,null,null,null,null,null,null,"Maní",2311,null,null,null,null,null,null,null,null,null,null,"Yuca",3008,null,null,"Envuelto de mazorca",308,null,null,null,null,null,null,null,null,null,null,"Tomate de árbol",1363,null,null,null,null,null,null,null,null,null,null,null,null,null,null,"Lechuga",2020,null,null,"Mermelada",1117,null,null,null,null,null,null,"Pulpa de fruta",1360,null,null,"Plátano",3006,null,null,"Mamoncillo",1340,null,null,null,null,null,null,"Nicuro",2606,null,null,"Harina de plátano",1710]
[null,null,null,null,null,null,null,null,null,null,null,null,"Guayaba",1333,null,null,null,null,null,null,null,null,null,null,"Rosquillas",2520,null,null,"Espinaca",2016,null,null,null,null,null,null,"Helado",1801,null,null,"Plantas aromáticas",2705,null,null,null,null,null,null,null,null,null,null,"Manjar blanco",1115,null,null,null,null,null,null,null,null,null,null,"Zapote",1367,null,null,"Espinaca",2016,null,null,null,null,null,null,null,null,null,null,"Uva",1365,null,null,null,null,null,null,null,null,null,null,null,null,null,null,"Limón",1337,null,null,"Mora",1348,null,null,null,null,null,null,"Queso",2208,null,null,"Productos de panadería",2519,null,null,"Mandarina",1341,null,null,null,null,null,null,"Panela",502,null,null,"Helado",1801]
[null,null,null,null,null,null,null,null,null,null,null,null,"Gulupa",1334,null,null,null,null,null,null,null,null,null,null,"Sorgo",811,null,null,"Feijoa",1326,null,null,null,null,null,null,"Herpo",1409,null,null,"Plátano",3006,null,null,null,null,null,null,null,null,null,null,"Maracuyá",1345,null,null,null,null,null,null,null,null,null,null,null,null,null,null,"Feijoa",1326,null,null,null,null,null,null,null,null,null,null,"Yogurt",2210,null,null,null,null,null,null,null,null,null,null,null,null,null,null,"Lulo",1338,null,null,"Panela ",502,null,null,null,null,null,null,"Sábila",2903,null,null,"Pulpa de fruta",1360,null,null,"Mango",1342,null,null,null,null,null,null,"Panelita de leche",1120,null,null,"Hortalizas varias",2019]
[null,null,null,null,null,null,null,null,null,null,null,null,"Habichuela",2309,null,null,null,null,null,null,null,null,null,null,"Tomate",2030,null,null,"Frambuesa",1327,null,null,null,null,null,null,"Higo",1335,null,null,"Ponqué",2518,null,null,null,null,null,null,null,null,null,null,"Melón",1347,null,null,null,null,null,null,null,null,null,null,null,null,null,null,"Frambuesa",1327,null,null,null,null,null,null,null,null,null,null,"Yuca",3008,null,null,null,null,null,null,null,null,null,null,null,null,null,null,"Maíz",808,null,null,"Papa",3005,null,null,null,null,null,null,"Soya",2312,null,null,"Queso",2208,null,null,"Manjar blanco",1115,null,null,null,null,null,null,"Papa",3005,null,null,"Huevo",2101]
[null,null,null,null,null,null,null,null,null,null,null,null,"Harina de maíz",1707,null,null,null,null,null,null,null,null,null,null,"Tomillo",2808,null,null,"Fresa",1328,null,null,null,null,null,null,"Hortalizas varias",2019,null,null,"Productos de panadería",2519,null,null,null,null,null,null,null,null,null,null,"Mora",1348,null,null,null,null,null,null,null,null,null,null,null,null,null,null,"Fresa",1328,null,null,null,null,null,null,null,null,null,null,null,null,null,null,null,null,null,null,null,null,null,null,null,null,null,null,"Malanga",3003,null,null,"Papaya",1352,null,null,null,null,null,null,"Tomate",2030,null,null,"Sábila",2903,null,null,"Maracuyá",1345,null,null,null,null,null,null,"Papaya",1352,null,null,"Kumis",2202]
[null,null,null,null,null,null,null,null,null,null,null,null,"Helado",1801,null,null,null,null,null,null,null,null,null,null,"Tortas",2521,null,null,"Fríjol",2304,null,null,null,null,null,null,"Huevo",2101,null,null,"Pulpa de fruta",1360,null,null,null,null,null,null,null,null,null,null,"Naranja",1349,null,null,null,null,null,null,null,null,null,null,null,null,null,null,"Fríjol",2304,null,null,null,null,null,null,null,null,null,null,null,null,null,null,null,null,null,null,null,null,null,null,null,null,null,null,"Mango",1342,null,null,"Pastas alimenticias",809,null,null,null,null,null,null,"Tomate de árbol",1363,null,null,"Soya",2312,null,null,"Melón",1347,null,null,null,null,null,null,"Patilla",1354,null,null,"Leche condensada",2203]
[null,null,null,null,null,null,null,null,null,null,null,null,"Higo",1335,null,null,null,null,null,null,null,null,null,null,"Yuca",3008,null,null,"Galleta de panadería",2507,null,null,null,null,null,null,"Kumis",2202,null,null,"Queso",2208,null,null,null,null,null,null,null,null,null,null,"Panela",502,null,null,null,null,null,null,null,null,null,null,null,null,null,null,"Galleta de panadería",2507,null,null,null,null,null,null,null,null,null,null,null,null,null,null,null,null,null,null,null,null,null,null,null,null,null,null,"Maní",2311,null,null,"Patilla",1354,null,null,null,null,null,null,"Trucha",2611,null,null,"Tomate",2030,null,null,"Mermelada",1117,null,null,null,null,null,null,"Pepino cohombro",2024,null,null,"Leche líquida UHT",2205]
[null,null,null,null,null,null,null,null,null,null,null,null,"Hortalizas varias ",2019,null,null,null,null,null,null,null,null,null,null,null,null,null,null,"Galleta tipo industrial",1407,null,null,null,null,null,null,"Laurel",2805,null,null,"Remolacha",2028,null,null,null,null,null,null,null,null,null,null,"Panelita de leche",1120,null,null,null,null,null,null,null,null,null,null,null,null,null,null,"Galleta tipo industrial",1407,null,null,null,null,null,null,null,null,null,null,null,null,null,null,null,null,null,null,null,null,null,null,null,null,null,null,"Manzana",1344,null,null,"Pepino cohombro",2024,null,null,null,null,null,null,"Yogurt",2210,null,null,"Tomate de árbol",1363,null,null,"Mora",1348,null,null,null,null,null,null,"Pescado (Otros)",2608,null,null,"Lechuga",2020]
[null,null,null,null,null,null,null,null,null,null,null,null,"Huevo",2101,null,null,null,null,null,null,null,null,null,null,null,null,null,null,"Garbanzo",2306,null,null,null,null,null,null,"Lechuga",2020,null,null,"Repollo",2029,null,null,null,null,null,null,null,null,null,null,"Papa",3005,null,null,null,null,null,null,null,null,null,null,null,null,null,null,"Garbanzo",2306,null,null,null,null,null,null,null,null,null,null,null,null,null,null,null,null,null,null,null,null,null,null,null,null,null,null,"Maracuyá",1345,null,null,"Perejil",2806,null,null,null,null,null,null,"Yuca",3008,null,null,"Trucha",2611,null,null,"Naranja",1349,null,null,null,null,null,null,"Piña",1356,null,null,"Lulo",1338]
[null,null,null,null,null,null,null,null,null,null,null,null,"Huevo de codorniz",2102,null,null,null,null,null,null,null,null,null,null,null,null,null,null,"Gelatina",1501,null,null,null,null,null,null,"Limón",1337,null,null,"Sábila",2903,null,null,null,null,null,null,null,null,null,null,"Papaya",1352,null,null,null,null,null,null,null,null,null,null,null,null,null,null,"Gelatina",1501,null,null,null,null,null,null,null,null,null,null,null,null,null,null,null,null,null,null,null,null,null,null,null,null,null,null,"Melón",1347,null,null,"Pimentón",2026,null,null,null,null,null,null,null,null,null,null,"Yogurt",2210,null,null,"Níspero",1350,null,null,null,null,null,null,"Pitahaya",1358,null,null,"Macadamia",1339]
[null,null,null,null,null,null,null,null,null,null,null,null,"Kumis",2202,null,null,null,null,null,null,null,null,null,null,null,null,null,null,"Gelatina de pata",1502,null,null,null,null,null,null,"Lulo",1338,null,null,"Tomate",2030,null,null,null,null,null,null,null,null,null,null,"Pastas alimenticias",809,null,null,null,null,null,null,null,null,null,null,null,null,null,null,"Gelatina de pata",1502,null,null,null,null,null,null,null,null,null,null,null,null,null,null,null,null,null,null,null,null,null,null,null,null,null,null,"Mora",1348,null,null,"Piña",1356,null,null,null,null,null,null,null,null,null,null,"Yuca",3008,null,null,"Noni",1351,null,null,null,null,null,null,"Plantas aromáticas",2705,null,null,"Maíz",808]
[null,null,null,null,null,null,null,null,null,null,null,null,"Leche en polvo",2204,null,null,null,null,null,null,null,null,null,null,null,null,null,null,"Granadilla",1330,null,null,null,null,null,null,"Maíz",808,null,null,"Tomate de árbol",1363,null,null,null,null,null,null,null,null,null,null,"Patilla",1354,null,null,null,null,null,null,null,null,null,null,null,null,null,null,"Granadilla",1330,null,null,null,null,null,null,null,null,null,null,null,null,null,null,null,null,null,null,null,null,null,null,null,null,null,null,"Naranja",1349,null,null,"Plantas aromáticas",2705,null,null,null,null,null,null,null,null,null,null,null,null,null,null,"Panela",502,null,null,null,null,null,null,"Plátano",3006,null,null,"Malanga",3003]
[null,null,null,null,null,null,null,null,null,null,null,null,"Leche líquida UHT",2205,null,null,null,null,null,null,null,null,null,null,null,null,null,null,"Guanábana",1332,null,null,null,null,null,null,"Malanga",3003,null,null,"Tortas",2521,null,null,null,null,null,null,null,null,null,null,"Pepa de pan",2023,null,null,null,null,null,null,null,null,null,null,null,null,null,null,"Guanábana",1332,null,null,null,null,null,null,null,null,null,null,null,null,null,null,null,null,null,null,null,null,null,null,null,null,null,null,"Ñame",3004,null,null,"Plátano",3006,null,null,null,null,null,null,null,null,null,null,null,null,null,null,"Panelita de leche",1120,null,null,null,null,null,null,"Ponqué",2518,null,null,"Mango",1342]
[null,null,null,null,null,null,null,null,null,null,null,null,"Leche saborizada",2206,null,null,null,null,null,null,null,null,null,null,null,null,null,null,"Guatila",2017,null,null,null,null,null,null,"Mandarina",1341,null,null,"Yogurt",2210,null,null,null,null,null,null,null,null,null,null,"Pepino cohombro",2024,null,null,null,null,null,null,null,null,null,null,null,null,null,null,"Guatila",2017,null,null,null,null,null,null,null,null,null,null,null,null,null,null,null,null,null,null,null,null,null,null,null,null,null,null,"Panela",502,null,null,"Productos de panadería",2519,null,null,null,null,null,null,null,null,null,null,null,null,null,null,"Papa",3005,null,null,null,null,null,null,"Productos de panadería",2519,null,null,"Maní",2311]
[null,null,null,null,null,null,null,null,null,null,null,null,"Lechuga",2020,null,null,null,null,null,null,null,null,null,null,null,null,null,null,"Guayaba",1333,null,null,null,null,null,null,"Mango",1342,null,null,"Zanahoria",2031,null,null,null,null,null,null,null,null,null,null,"Pescado (Otros)",2608,null,null,null,null,null,null,null,null,null,null,null,null,null,null,"Guayaba",1333,null,null,null,null,null,null,null,null,null,null,null,null,null,null,null,null,null,null,null,null,null,null,null,null,null,null,"Papa",3005,null,null,"Pulpa de fruta",1360,null,null,null,null,null,null,null,null,null,null,null,null,null,null,"Papaya",1352,null,null,null,null,null,null,"Pulpa de fruta",1360,null,null,"Manjar blanco",1115]
[null,null,null,null,null,null,null,null,null,null,null,null,"Lima",1336,null,null,null,null,null,null,null,null,null,null,null,null,null,null,"Gulupa",1334,null,null,null,null,null,null,"Mangostino",1343,null,null,null,null,null,null,null,null,null,null,null,null,null,null,"Pimentón",2026,null,null,null,null,null,null,null,null,null,null,null,null,null,null,"Gulupa",1334,null,null,null,null,null,null,null,null,null,null,null,null,null,null,null,null,null,null,null,null,null,null,null,null,null,null,"Papaya",1352,null,null,"Queso",2208,null,null,null,null,null,null,null,null,null,null,null,null,null,null,"Pastas alimenticias",809,null,null,null,null,null,null,"Queso",2208,null,null,"Maracuyá",1345]
[null,null,null,null,null,null,null,null,null,null,null,null,"Limón",1337,null,null,null,null,null,null,null,null,null,null,null,null,null,null,"Haba",2308,null,null,null,null,null,null,"Maní",2311,null,null,null,null,null,null,null,null,null,null,null,null,null,null,"Piña",1356,null,null,null,null,null,null,null,null,null,null,null,null,null,null,"Haba",2308,null,null,null,null,null,null,null,null,null,null,null,null,null,null,null,null,null,null,null,null,null,null,null,null,null,null,"Pastas alimenticias",809,null,null,"Remolacha",2028,null,null,null,null,null,null,null,null,null,null,null,null,null,null,"Patilla",1354,null,null,null,null,null,null,"Repollo",2029,null,null,"Melón",1347]
[null,null,null,null,null,null,null,null,null,null,null,null,"Lulo",1338,null,null,null,null,null,null,null,null,null,null,null,null,null,null,"Habichuela",2309,null,null,null,null,null,null,"Mantecada",2508,null,null,null,null,null,null,null,null,null,null,null,null,null,null,"Pitahaya",1358,null,null,null,null,null,null,null,null,null,null,null,null,null,null,"Habichuela",2309,null,null,null,null,null,null,null,null,null,null,null,null,null,null,null,null,null,null,null,null,null,null,null,null,null,null,"Patilla",1354,null,null,"Repollo",2029,null,null,null,null,null,null,null,null,null,null,null,null,null,null,"Pepino cohombro",2024,null,null,null,null,null,null,"Rosquillas",2520,null,null,"Mermelada",1117]
[null,null,null,null,null,null,null,null,null,null,null,null,"Maíz",808,null,null,null,null,null,null,null,null,null,null,null,null,null,null,"Harina de cereales",1706,null,null,null,null,null,null,"Manzana",1344,null,null,null,null,null,null,null,null,null,null,null,null,null,null,"Plantas aromáticas",2705,null,null,null,null,null,null,null,null,null,null,null,null,null,null,"Harina de cereales",1706,null,null,null,null,null,null,null,null,null,null,null,null,null,null,null,null,null,null,null,null,null,null,null,null,null,null,"Pepa de pan",2023,null,null,"Tomate",2030,null,null,null,null,null,null,null,null,null,null,null,null,null,null,"Pepino guiso",2025,null,null,null,null,null,null,"Sorgo",811,null,null,"Mora",1348]
[null,null,null,null,null,null,null,null,null,null,null,null,"Malanga",3003,null,null,null,null,null,null,null,null,null,null,null,null,null,null,"Harina de maíz precocida",1708,null,null,null,null,null,null,"Maracuyá",1345,null,null,null,null,null,null,null,null,null,null,null,null,null,null,"Plátano",3006,null,null,null,null,null,null,null,null,null,null,null,null,null,null,"Harina de maíz precocida",1707,null,null,null,null,null,null,null,null,null,null,null,null,null,null,null,null,null,null,null,null,null,null,null,null,null,null,"Pepino cohombro",2024,null,null,"Tomate de árbol",1363,null,null,null,null,null,null,null,null,null,null,null,null,null,null,"Pescado",2607,null,null,null,null,null,null,"Tilapia",2610,null,null,"Pan de yuca",2514]
[null,null,null,null,null,null,null,null,null,null,null,null,"Mamoncillo",1340,null,null,null,null,null,null,null,null,null,null,null,null,null,null,"Harina de plátano",1710,null,null,null,null,null,null,"Melón",1347,null,null,null,null,null,null,null,null,null,null,null,null,null,null,"Ponqué",2518,null,null,null,null,null,null,null,null,null,null,null,null,null,null,"Harina de plátano",1710,null,null,null,null,null,null,null,null,null,null,null,null,null,null,null,null,null,null,null,null,null,null,null,null,null,null,"Pescado (Otros)",2608,null,null,"Trigo",812,null,null,null,null,null,null,null,null,null,null,null,null,null,null,"Pimentón",2026,null,null,null,null,null,null,"Tomate",2030,null,null,"Panela",502]
[null,null,null,null,null,null,null,null,null,null,null,null,"Mandarina",1341,null,null,null,null,null,null,null,null,null,null,null,null,null,null,"Herpo",1409,null,null,null,null,null,null,"Mermelada",1117,null,null,null,null,null,null,null,null,null,null,null,null,null,null,"Productos de panadería",2519,null,null,null,null,null,null,null,null,null,null,null,null,null,null,"Herpo",1409,null,null,null,null,null,null,null,null,null,null,null,null,null,null,null,null,null,null,null,null,null,null,null,null,null,null,"Pimentón",2026,null,null,"Uchuva",1364,null,null,null,null,null,null,null,null,null,null,null,null,null,null,"Piña",1356,null,null,null,null,null,null,"Tomate de árbol",1363,null,null,"Panelita de leche",1120]
[null,null,null,null,null,null,null,null,null,null,null,null,"Mango",1342,null,null,null,null,null,null,null,null,null,null,null,null,null,null,"Hortalizas de hoja",2018,null,null,null,null,null,null,"Mojarra",2605,null,null,null,null,null,null,null,null,null,null,null,null,null,null,"Pulpa de fruta",1360,null,null,null,null,null,null,null,null,null,null,null,null,null,null,"Hortalizas de hoja",2018,null,null,null,null,null,null,null,null,null,null,null,null,null,null,null,null,null,null,null,null,null,null,null,null,null,null,"Pimienta",2807,null,null,"Yogurt",2210,null,null,null,null,null,null,null,null,null,null,null,null,null,null,"Pitahaya",1358,null,null,null,null,null,null,"Tortas",2521,null,null,"Papa",3005]
[null,null,null,null,null,null,null,null,null,null,null,null,"Maní",2311,null,null,null,null,null,null,null,null,null,null,null,null,null,null,"Huevo",2101,null,null,null,null,null,null,"Mora",1348,null,null,null,null,null,null,null,null,null,null,null,null,null,null,"Queso",2208,null,null,null,null,null,null,null,null,null,null,null,null,null,null,"Huevo",2101,null,null,null,null,null,null,null,null,null,null,null,null,null,null,null,null,null,null,null,null,null,null,null,null,null,null,"Piña",1356,null,null,"Yuca",3008,null,null,null,null,null,null,null,null,null,null,null,null,null,null,"Plantas aromáticas",2705,null,null,null,null,null,null,"Uchuva",1364,null,null,"Papaya",1352]
[null,null,null,null,null,null,null,null,null,null,null,null,"Manjar blanco",1115,null,null,null,null,null,null,null,null,null,null,null,null,null,null,"Kumis",2202,null,null,null,null,null,null,"Nabo",2021,null,null,null,null,null,null,null,null,null,null,null,null,null,null,"Quinua",810,null,null,null,null,null,null,null,null,null,null,null,null,null,null,"Kumis",2202,null,null,null,null,null,null,null,null,null,null,null,null,null,null,null,null,null,null,null,null,null,null,null,null,null,null,"Plátano",3006,null,null,"Zanahoria",2031,null,null,null,null,null,null,null,null,null,null,null,null,null,null,"Plátano",3006,null,null,null,null,null,null,"Yogurt",2210,null,null,"Pastas alimenticias",809]
[null,null,null,null,null,null,null,null,null,null,null,null,"Maracuyá",1345,null,null,null,null,null,null,null,null,null,null,null,null,null,null,"Leche condensada",2203,null,null,null,null,null,null,"Naranja",1349,null,null,null,null,null,null,null,null,null,null,null,null,null,null,"Repollo",2029,null,null,null,null,null,null,null,null,null,null,null,null,null,null,"Leche condensada",2203,null,null,null,null,null,null,null,null,null,null,null,null,null,null,null,null,null,null,null,null,null,null,null,null,null,null,"Ponqué",2518,null,null,"Zapote",1367,null,null,null,null,null,null,null,null,null,null,null,null,null,null,"Productos de panadería",2519,null,null,null,null,null,null,"Yuca",3008,null,null,"Patilla",1354]
[null,null,null,null,null,null,null,null,null,null,null,null,"Mermelada ",1117,null,null,null,null,null,null,null,null,null,null,null,null,null,null,"Leche en polvo",2204,null,null,null,null,null,null,"Panela",502,null,null,null,null,null,null,null,null,null,null,null,null,null,null,"Sábila",2903,null,null,null,null,null,null,null,null,null,null,null,null,null,null,"Leche en polvo",2204,null,null,null,null,null,null,null,null,null,null,null,null,null,null,null,null,null,null,null,null,null,null,null,null,null,null,"Productos de panadería",2519,null,null,null,null,null,null,null,null,null,null,null,null,null,null,null,null,null,null,"Pulpa de fruta",1360,null,null,null,null,null,null,"Zanahoria",2031,null,null,"Pepino cohombro",2024]
[null,null,null,null,null,null,null,null,null,null,null,null,"Mora",1348,null,null,null,null,null,null,null,null,null,null,null,null,null,null,"Leche líquida UHT",2205,null,null,null,null,null,null,"Panelita de leche",1120,null,null,null,null,null,null,null,null,null,null,null,null,null,null,"Sacha inchi",2402,null,null,null,null,null,null,null,null,null,null,null,null,null,null,"Leche líquida UHT",2205,null,null,null,null,null,null,null,null,null,null,null,null,null,null,null,null,null,null,null,null,null,null,null,null,null,null,"Pulpa de fruta",1360,null,null,null,null,null,null,null,null,null,null,null,null,null,null,null,null,null,null,"Queso",2208,null,null,null,null,null,null,null,null,null,null,"Perejil",2806]
[null,null,null,null,null,null,null,null,null,null,null,null,"Naranja",1349,null,null,null,null,null,null,null,null,null,null,null,null,null,null,"Leche saborizada",2206,null,null,null,null,null,null,"Papa",3005,null,null,null,null,null,null,null,null,null,null,null,null,null,null,"Soya",2312,null,null,null,null,null,null,null,null,null,null,null,null,null,null,"Leche saborizada",2206,null,null,null,null,null,null,null,null,null,null,null,null,null,null,null,null,null,null,null,null,null,null,null,null,null,null,"Queso",2208,null,null,null,null,null,null,null,null,null,null,null,null,null,null,null,null,null,null,"Raíces chinas ",1601,null,null,null,null,null,null,null,null,null,null,"Pescado",2607]
[null,null,null,null,null,null,null,null,null,null,null,null,"Ñame",3004,null,null,null,null,null,null,null,null,null,null,null,null,null,null,"Lechuga",2020,null,null,null,null,null,null,"Papaya",1352,null,null,null,null,null,null,null,null,null,null,null,null,null,null,"Tangelo",1362,null,null,null,null,null,null,null,null,null,null,null,null,null,null,"Lechuga",2020,null,null,null,null,null,null,null,null,null,null,null,null,null,null,null,null,null,null,null,null,null,null,null,null,null,null,"Quinua",810,null,null,null,null,null,null,null,null,null,null,null,null,null,null,null,null,null,null,"Rosquillas",2520,null,null,null,null,null,null,null,null,null,null,"Pimentón",2026]
[null,null,null,null,null,null,null,null,null,null,null,null,"Pandebono",2516,null,null,null,null,null,null,null,null,null,null,null,null,null,null,"Limón",1337,null,null,null,null,null,null,"Papayuela",1353,null,null,null,null,null,null,null,null,null,null,null,null,null,null,"Tomate",2030,null,null,null,null,null,null,null,null,null,null,null,null,null,null,"Limón",1337,null,null,null,null,null,null,null,null,null,null,null,null,null,null,null,null,null,null,null,null,null,null,null,null,null,null,"Repollo",2029,null,null,null,null,null,null,null,null,null,null,null,null,null,null,null,null,null,null,"Sacha inchi",2402,null,null,null,null,null,null,null,null,null,null,"Piña",1356]
[null,null,null,null,null,null,null,null,null,null,null,null,"Panela",502,null,null,null,null,null,null,null,null,null,null,null,null,null,null,"Limonaria",2703,null,null,null,null,null,null,"Patilla",1354,null,null,null,null,null,null,null,null,null,null,null,null,null,null,"Tomate de árbol",1363,null,null,null,null,null,null,null,null,null,null,null,null,null,null,"Limonaria",2703,null,null,null,null,null,null,null,null,null,null,null,null,null,null,null,null,null,null,null,null,null,null,null,null,null,null,"Rosquillas",2520,null,null,null,null,null,null,null,null,null,null,null,null,null,null,null,null,null,null,"Sorgo",811,null,null,null,null,null,null,null,null,null,null,"Pitahaya",1358]
[null,null,null,null,null,null,null,null,null,null,null,null,"Panelita de leche",1120,null,null,null,null,null,null,null,null,null,null,null,null,null,null,"Lulo",1338,null,null,null,null,null,null,"Pepino cohombro",2024,null,null,null,null,null,null,null,null,null,null,null,null,null,null,"Tortas",2521,null,null,null,null,null,null,null,null,null,null,null,null,null,null,"Lulo",1338,null,null,null,null,null,null,null,null,null,null,null,null,null,null,null,null,null,null,null,null,null,null,null,null,null,null,"Sábila",2903,null,null,null,null,null,null,null,null,null,null,null,null,null,null,null,null,null,null,"Tangelo",1362,null,null,null,null,null,null,null,null,null,null,"Plantas aromáticas",2705]
[null,null,null,null,null,null,null,null,null,null,null,null,"Papa",3005,null,null,null,null,null,null,null,null,null,null,null,null,null,null,"Maíz",808,null,null,null,null,null,null,"Pepino guiso",2025,null,null,null,null,null,null,null,null,null,null,null,null,null,null,"Trigo",812,null,null,null,null,null,null,null,null,null,null,null,null,null,null,"Maíz",808,null,null,null,null,null,null,null,null,null,null,null,null,null,null,null,null,null,null,null,null,null,null,null,null,null,null,"Tomate",2030,null,null,null,null,null,null,null,null,null,null,null,null,null,null,null,null,null,null,"Tomate",2030,null,null,null,null,null,null,null,null,null,null,"Plátano",3006]
[null,null,null,null,null,null,null,null,null,null,null,null,"Papaya",1352,null,null,null,null,null,null,null,null,null,null,null,null,null,null,"Mandarina",1341,null,null,null,null,null,null,"Pera",1355,null,null,null,null,null,null,null,null,null,null,null,null,null,null,"Trucha",2611,null,null,null,null,null,null,null,null,null,null,null,null,null,null,"Mandarina",1341,null,null,null,null,null,null,null,null,null,null,null,null,null,null,null,null,null,null,null,null,null,null,null,null,null,null,"Tomate de árbol",1363,null,null,null,null,null,null,null,null,null,null,null,null,null,null,null,null,null,null,"Tomate de árbol",1363,null,null,null,null,null,null,null,null,null,null,"Ponqué",2518]
[null,null,null,null,null,null,null,null,null,null,null,null,"Pastas alimenticias ",809,null,null,null,null,null,null,null,null,null,null,null,null,null,null,"Mango",1342,null,null,null,null,null,null,"Pescado (Otros)",2608,null,null,null,null,null,null,null,null,null,null,null,null,null,null,"Ulluco",3007,null,null,null,null,null,null,null,null,null,null,null,null,null,null,"Mango",1342,null,null,null,null,null,null,null,null,null,null,null,null,null,null,null,null,null,null,null,null,null,null,null,null,null,null,"Tortas",2521,null,null,null,null,null,null,null,null,null,null,null,null,null,null,null,null,null,null,"Tortas",2521,null,null,null,null,null,null,null,null,null,null,"Productos de panadería",2519]
[null,null,null,null,null,null,null,null,null,null,null,null,"Patilla",1354,null,null,null,null,null,null,null,null,null,null,null,null,null,null,"Maní",2311,null,null,null,null,null,null,"Pimentón",2026,null,null,null,null,null,null,null,null,null,null,null,null,null,null,"Uva",1365,null,null,null,null,null,null,null,null,null,null,null,null,null,null,"Maní",2311,null,null,null,null,null,null,null,null,null,null,null,null,null,null,null,null,null,null,null,null,null,null,null,null,null,null,"Trigo",812,null,null,null,null,null,null,null,null,null,null,null,null,null,null,null,null,null,null,"Trigo",812,null,null,null,null,null,null,null,null,null,null,"Pulpa de fruta",1360]
[null,null,null,null,null,null,null,null,null,null,null,null,"Pepino cohombro",2024,null,null,null,null,null,null,null,null,null,null,null,null,null,null,"Manjar blanco",1115,null,null,null,null,null,null,"Piña",1356,null,null,null,null,null,null,null,null,null,null,null,null,null,null,"Yogurt",2210,null,null,null,null,null,null,null,null,null,null,null,null,null,null,"Manjar blanco",1115,null,null,null,null,null,null,null,null,null,null,null,null,null,null,null,null,null,null,null,null,null,null,null,null,null,null,"Trucha",2611,null,null,null,null,null,null,null,null,null,null,null,null,null,null,null,null,null,null,"Uchuva",1364,null,null,null,null,null,null,null,null,null,null,"Queso",2208]
[null,null,null,null,null,null,null,null,null,null,null,null,"Pescado (Otros)",2608,null,null,null,null,null,null,null,null,null,null,null,null,null,null,"Mantecada ",2508,null,null,null,null,null,null,"Pitahaya",1358,null,null,null,null,null,null,null,null,null,null,null,null,null,null,"Yuca",3008,null,null,null,null,null,null,null,null,null,null,null,null,null,null,"Mantecada ",2508,null,null,null,null,null,null,null,null,null,null,null,null,null,null,null,null,null,null,null,null,null,null,null,null,null,null,"Uchuva",1364,null,null,null,null,null,null,null,null,null,null,null,null,null,null,null,null,null,null,"Uva",1365,null,null,null,null,null,null,null,null,null,null,"Repollo",2029]
[null,null,null,null,null,null,null,null,null,null,null,null,"Pimentón",2026,null,null,null,null,null,null,null,null,null,null,null,null,null,null,"Manzana",1344,null,null,null,null,null,null,"Plantas aromáticas",2705,null,null,null,null,null,null,null,null,null,null,null,null,null,null,"Zanahoria",2031,null,null,null,null,null,null,null,null,null,null,null,null,null,null,"Manzana",1344,null,null,null,null,null,null,null,null,null,null,null,null,null,null,null,null,null,null,null,null,null,null,null,null,null,null,"Ulluco",3007,null,null,null,null,null,null,null,null,null,null,null,null,null,null,null,null,null,null,"Yogurt",2210,null,null,null,null,null,null,null,null,null,null,"Rosquillas",2520]
[null,null,null,null,null,null,null,null,null,null,null,null,"Piña",1356,null,null,null,null,null,null,null,null,null,null,null,null,null,null,"Maracuyá",1345,null,null,null,null,null,null,"Plantas medicinales",2901,null,null,null,null,null,null,null,null,null,null,null,null,null,null,null,null,null,null,null,null,null,null,null,null,null,null,null,null,null,null,"Maracuyá",1345,null,null,null,null,null,null,null,null,null,null,null,null,null,null,null,null,null,null,null,null,null,null,null,null,null,null,"Yogurt",2210,null,null,null,null,null,null,null,null,null,null,null,null,null,null,null,null,null,null,"Yuca",3008,null,null,null,null,null,null,null,null,null,null,"Sábila",2903]
[null,null,null,null,null,null,null,null,null,null,null,null,"Plantas aromáticas ",2705,null,null,null,null,null,null,null,null,null,null,null,null,null,null,"Menta",2704,null,null,null,null,null,null,"Plátano",3006,null,null,null,null,null,null,null,null,null,null,null,null,null,null,null,null,null,null,null,null,null,null,null,null,null,null,null,null,null,null,"Menta",2704,null,null,null,null,null,null,null,null,null,null,null,null,null,null,null,null,null,null,null,null,null,null,null,null,null,null,"Yuca",3008,null,null,null,null,null,null,null,null,null,null,null,null,null,null,null,null,null,null,"Zanahoria",2031,null,null,null,null,null,null,null,null,null,null,"Sacha inchi",2402]
[null,null,null,null,null,null,null,null,null,null,null,null,"Plantas medicinales",2901,null,null,null,null,null,null,null,null,null,null,null,null,null,null,"Merengues",1116,null,null,null,null,null,null,"Productos de panadería",2519,null,null,null,null,null,null,null,null,null,null,null,null,null,null,null,null,null,null,null,null,null,null,null,null,null,null,null,null,null,null,"Merengues",1116,null,null,null,null,null,null,null,null,null,null,null,null,null,null,null,null,null,null,null,null,null,null,null,null,null,null,"Zanahoria",2031,null,null,null,null,null,null,null,null,null,null,null,null,null,null,null,null,null,null,"Zapote",1367,null,null,null,null,null,null,null,null,null,null,"Sorgo",811]
[null,null,null,null,null,null,null,null,null,null,null,null,"Plátano",3006,null,null,null,null,null,null,null,null,null,null,null,null,null,null,"Mermelada",1117,null,null,null,null,null,null,"Pulpa de fruta",1360,null,null,null,null,null,null,null,null,null,null,null,null,null,null,null,null,null,null,null,null,null,null,null,null,null,null,null,null,null,null,"Mermelada",1117,null,null,null,null,null,null,null,null,null,null,null,null,null,null,null,null,null,null,null,null,null,null,null,null,null,null,"Zapote",1367,null,null,null,null,null,null,null,null,null,null,null,null,null,null,null,null,null,null,null,null,null,null,null,null,null,null,null,null,null,null,"Soya",2312]
[null,null,null,null,null,null,null,null,null,null,null,null,"Postre de leche",1121,null,null,null,null,null,null,null,null,null,null,null,null,null,null,"Mezcla para preparar coladas",1714,null,null,null,null,null,null,"Queso",2208,null,null,null,null,null,null,null,null,null,null,null,null,null,null,null,null,null,null,null,null,null,null,null,null,null,null,null,null,null,null,"Mezcla para preparar coladas",1714,null,null,null,null,null,null,null,null,null,null,null,null,null,null,null,null,null,null,null,null,null,null,null,null,null,null,null,null,null,null,null,null,null,null,null,null,null,null,null,null,null,null,null,null,null,null,null,null,null,null,null,null,null,null,null,null,null,null,"Stevia",2904]
[null,null,null,null,null,null,null,null,null,null,null,null,"Productos de panadería",2519,null,null,null,null,null,null,null,null,null,null,null,null,null,null,"Mezcla para preparar natilla",1715,null,null,null,null,null,null,"Quinua",810,null,null,null,null,null,null,null,null,null,null,null,null,null,null,null,null,null,null,null,null,null,null,null,null,null,null,null,null,null,null,"Mezcla para preparar natilla",1715,null,null,null,null,null,null,null,null,null,null,null,null,null,null,null,null,null,null,null,null,null,null,null,null,null,null,null,null,null,null,null,null,null,null,null,null,null,null,null,null,null,null,null,null,null,null,null,null,null,null,null,null,null,null,null,null,null,null,"Té",2707]
[null,null,null,null,null,null,null,null,null,null,null,null,"Pulpa de fruta",1360,null,null,null,null,null,null,null,null,null,null,null,null,null,null,"Mora",1348,null,null,null,null,null,null,"Remolacha",2028,null,null,null,null,null,null,null,null,null,null,null,null,null,null,null,null,null,null,null,null,null,null,null,null,null,null,null,null,null,null,"Mora",1348,null,null,null,null,null,null,null,null,null,null,null,null,null,null,null,null,null,null,null,null,null,null,null,null,null,null,null,null,null,null,null,null,null,null,null,null,null,null,null,null,null,null,null,null,null,null,null,null,null,null,null,null,null,null,null,null,null,null,"Tomate",2030]
[null,null,null,null,null,null,null,null,null,null,null,null,"Queso",2208,null,null,null,null,null,null,null,null,null,null,null,null,null,null,"Nabo",2021,null,null,null,null,null,null,"Repollo",2029,null,null,null,null,null,null,null,null,null,null,null,null,null,null,null,null,null,null,null,null,null,null,null,null,null,null,null,null,null,null,"Nabo",2021,null,null,null,null,null,null,null,null,null,null,null,null,null,null,null,null,null,null,null,null,null,null,null,null,null,null,null,null,null,null,null,null,null,null,null,null,null,null,null,null,null,null,null,null,null,null,null,null,null,null,null,null,null,null,null,null,null,null,"Tomate de árbol",1363]
[null,null,null,null,null,null,null,null,null,null,null,null,"Raíces chinas",1601,null,null,null,null,null,null,null,null,null,null,null,null,null,null,"Naranja",1349,null,null,null,null,null,null,"Sábila",2903,null,null,null,null,null,null,null,null,null,null,null,null,null,null,null,null,null,null,null,null,null,null,null,null,null,null,null,null,null,null,"Naranja",1349,null,null,null,null,null,null,null,null,null,null,null,null,null,null,null,null,null,null,null,null,null,null,null,null,null,null,null,null,null,null,null,null,null,null,null,null,null,null,null,null,null,null,null,null,null,null,null,null,null,null,null,null,null,null,null,null,null,null,"Tortas",2521]
[null,null,null,null,null,null,null,null,null,null,null,null,"Remolacha",2028,null,null,null,null,null,null,null,null,null,null,null,null,null,null,"Ñame",3004,null,null,null,null,null,null,"Sacha inchi",2402,null,null,null,null,null,null,null,null,null,null,null,null,null,null,null,null,null,null,null,null,null,null,null,null,null,null,null,null,null,null,"Ñame",3004,null,null,null,null,null,null,null,null,null,null,null,null,null,null,null,null,null,null,null,null,null,null,null,null,null,null,null,null,null,null,null,null,null,null,null,null,null,null,null,null,null,null,null,null,null,null,null,null,null,null,null,null,null,null,null,null,null,null,"Uva",1365]
[null,null,null,null,null,null,null,null,null,null,null,null,"Repollo",2029,null,null,null,null,null,null,null,null,null,null,null,null,null,null,"Obleas",1119,null,null,null,null,null,null,"Tomate",2030,null,null,null,null,null,null,null,null,null,null,null,null,null,null,null,null,null,null,null,null,null,null,null,null,null,null,null,null,null,null,"Obleas",1119,null,null,null,null,null,null,null,null,null,null,null,null,null,null,null,null,null,null,null,null,null,null,null,null,null,null,null,null,null,null,null,null,null,null,null,null,null,null,null,null,null,null,null,null,null,null,null,null,null,null,null,null,null,null,null,null,null,null,"Yogurt",2210]
[null,null,null,null,null,null,null,null,null,null,null,null,"Rosquillas",2520,null,null,null,null,null,null,null,null,null,null,null,null,null,null,"Pan de yuca",2514,null,null,null,null,null,null,"Tomate de árbol",1363,null,null,null,null,null,null,null,null,null,null,null,null,null,null,null,null,null,null,null,null,null,null,null,null,null,null,null,null,null,null,"Pan de yuca",2514,null,null,null,null,null,null,null,null,null,null,null,null,null,null,null,null,null,null,null,null,null,null,null,null,null,null,null,null,null,null,null,null,null,null,null,null,null,null,null,null,null,null,null,null,null,null,null,null,null,null,null,null,null,null,null,null,null,null,"Yuca",3008]
[null,null,null,null,null,null,null,null,null,null,null,null,"Sábila",2903,null,null,null,null,null,null,null,null,null,null,null,null,null,null,"Panela",502,null,null,null,null,null,null,"Tortas",2521,null,null,null,null,null,null,null,null,null,null,null,null,null,null,null,null,null,null,null,null,null,null,null,null,null,null,null,null,null,null,"Panela",502,null,null,null,null,null,null,null,null,null,null,null,null,null,null,null,null,null,null,null,null,null,null,null,null,null,null,null,null,null,null,null,null,null,null,null,null,null,null,null,null,null,null,null,null,null,null,null,null,null,null,null,null,null,null,null,null,null,null,"Zanahoria",2031]
[null,null,null,null,null,null,null,null,null,null,null,null,"Sacha inchi",2402,null,null,null,null,null,null,null,null,null,null,null,null,null,null,"Panelita de leche",1120,null,null,null,null,null,null,"Trigo",812,null,null,null,null,null,null,null,null,null,null,null,null,null,null,null,null,null,null,null,null,null,null,null,null,null,null,null,null,null,null,"Panelita de leche",1120,null,null,null,null,null,null,null,null,null,null,null,null,null,null,null,null,null,null,null,null,null,null,null,null,null,null,null,null,null,null,null,null,null,null,null,null,null,null,null,null,null,null,null,null,null,null,null,null,null,null,null,null,null,null,null,null,null,null,"Zapote",1367]
[null,null,null,null,null,null,null,null,null,null,null,null,"Stevia",2904,null,null,null,null,null,null,null,null,null,null,null,null,null,null,"Papa",3005,null,null,null,null,null,null,"Trucha",2611,null,null,null,null,null,null,null,null,null,null,null,null,null,null,null,null,null,null,null,null,null,null,null,null,null,null,null,null,null,null,"Papa",3005]
[null,null,null,null,null,null,null,null,null,null,null,null,"Tamarindo",1361,null,null,null,null,null,null,null,null,null,null,null,null,null,null,"Papaya",1352,null,null,null,null,null,null,"Uchuva",1364,null,null,null,null,null,null,null,null,null,null,null,null,null,null,null,null,null,null,null,null,null,null,null,null,null,null,null,null,null,null,"Papaya",1352]
[null,null,null,null,null,null,null,null,null,null,null,null,"Tangelo",1362,null,null,null,null,null,null,null,null,null,null,null,null,null,null,"Papayuela",1353,null,null,null,null,null,null,"Uva",1365,null,null,null,null,null,null,null,null,null,null,null,null,null,null,null,null,null,null,null,null,null,null,null,null,null,null,null,null,null,null,"Papayuela",1353]
[null,null,null,null,null,null,null,null,null,null,null,null,"Tilapia",2610,null,null,null,null,null,null,null,null,null,null,null,null,null,null,"Pastas alimenticias",809,null,null,null,null,null,null,"Yogurt",2210,null,null,null,null,null,null,null,null,null,null,null,null,null,null,null,null,null,null,null,null,null,null,null,null,null,null,null,null,null,null,"Pastas alimenticias",809]
[null,null,null,null,null,null,null,null,null,null,null,null,"Tomate",2030,null,null,null,null,null,null,null,null,null,null,null,null,null,null,"Pasteles ",2517,null,null,null,null,null,null,"Yuca",3008,null,null,null,null,null,null,null,null,null,null,null,null,null,null,null,null,null,null,null,null,null,null,null,null,null,null,null,null,null,null,"Pasteles ",2517]
[null,null,null,null,null,null,null,null,null,null,null,null,"Tomate de árbol",1363,null,null,null,null,null,null,null,null,null,null,null,null,null,null,"Patilla",1354,null,null,null,null,null,null,"Zanahoria",2031,null,null,null,null,null,null,null,null,null,null,null,null,null,null,null,null,null,null,null,null,null,null,null,null,null,null,null,null,null,null,"Patilla",1354]
[null,null,null,null,null,null,null,null,null,null,null,null,"Tortas",2521,null,null,null,null,null,null,null,null,null,null,null,null,null,null,"Pepino cohombro",2024,null,null,null,null,null,null,"Zapote",1367,null,null,null,null,null,null,null,null,null,null,null,null,null,null,null,null,null,null,null,null,null,null,null,null,null,null,null,null,null,null,"Pepino cohombro",2024]
[null,null,null,null,null,null,null,null,null,null,null,null,"Trucha",2611,null,null,null,null,null,null,null,null,null,null,null,null,null,null,"Pepino guiso",2025,null,null,null,null,null,null,null,null,null,null,null,null,null,null,null,null,null,null,null,null,null,null,null,null,null,null,null,null,null,null,null,null,null,null,null,null,null,null,"Pepino guiso",2025]
[null,null,null,null,null,null,null,null,null,null,null,null,"Uchuva",1364,null,null,null,null,null,null,null,null,null,null,null,null,null,null,"Perejil",2806,null,null,null,null,null,null,null,null,null,null,null,null,null,null,null,null,null,null,null,null,null,null,null,null,null,null,null,null,null,null,null,null,null,null,null,null,null,null,"Perejil",2806]
[null,null,null,null,null,null,null,null,null,null,null,null,"Uva",1365,null,null,null,null,null,null,null,null,null,null,null,null,null,null,"Pescado (Otros)",2608,null,null,null,null,null,null,null,null,null,null,null,null,null,null,null,null,null,null,null,null,null,null,null,null,null,null,null,null,null,null,null,null,null,null,null,null,null,null,"Pescado (Otros)",2608]
[null,null,null,null,null,null,null,null,null,null,null,null,"Yogurt",2210,null,null,null,null,null,null,null,null,null,null,null,null,null,null,"Pimentón",2026,null,null,null,null,null,null,null,null,null,null,null,null,null,null,null,null,null,null,null,null,null,null,null,null,null,null,null,null,null,null,null,null,null,null,null,null,null,null,"Pimentón",2026]
[null,null,null,null,null,null,null,null,null,null,null,null,"Yuca",3008,null,null,null,null,null,null,null,null,null,null,null,null,null,null,"Piña",1356,null,null,null,null,null,null,null,null,null,null,null,null,null,null,null,null,null,null,null,null,null,null,null,null,null,null,null,null,null,null,null,null,null,null,null,null,null,null,"Piña",1356]
[null,null,null,null,null,null,null,null,null,null,null,null,"Zanahoria",2031,null,null,null,null,null,null,null,null,null,null,null,null,null,null,"Pitahaya",1358,null,null,null,null,null,null,null,null,null,null,null,null,null,null,null,null,null,null,null,null,null,null,null,null,null,null,null,null,null,null,null,null,null,null,null,null,null,null,"Pitahaya",1358]
[null,null,null,null,null,null,null,null,null,null,null,null,"Zapote",1367,null,null,null,null,null,null,null,null,null,null,null,null,null,null,"Plantas aromáticas",2705,null,null,null,null,null,null,null,null,null,null,null,null,null,null,null,null,null,null,null,null,null,null,null,null,null,null,null,null,null,null,null,null,null,null,null,null,null,null,"Plantas aromáticas",2705]
[null,null,null,null,null,null,null,null,null,null,null,null,null,null,null,null,null,null,null,null,null,null,null,null,null,null,null,null,"Plátano",3006,null,null,null,null,null,null,null,null,null,null,null,null,null,null,null,null,null,null,null,null,null,null,null,null,null,null,null,null,null,null,null,null,null,null,null,null,null,null,"Plátano",3006]
[null,null,null,null,null,null,null,null,null,null,null,null,null,null,null,null,null,null,null,null,null,null,null,null,null,null,null,null,"Ponqué",2518,null,null,null,null,null,null,null,null,null,null,null,null,null,null,null,null,null,null,null,null,null,null,null,null,null,null,null,null,null,null,null,null,null,null,null,null,null,null,"Ponqué",2518]
[null,null,null,null,null,null,null,null,null,null,null,null,null,null,null,null,null,null,null,null,null,null,null,null,null,null,null,null,"Postres",1122,null,null,null,null,null,null,null,null,null,null,null,null,null,null,null,null,null,null,null,null,null,null,null,null,null,null,null,null,null,null,null,null,null,null,null,null,null,null,"Postres",1122]
[null,null,null,null,null,null,null,null,null,null,null,null,null,null,null,null,null,null,null,null,null,null,null,null,null,null,null,null,"Productos de panadería",2519,null,null,null,null,null,null,null,null,null,null,null,null,null,null,null,null,null,null,null,null,null,null,null,null,null,null,null,null,null,null,null,null,null,null,null,null,null,null,"Productos de panadería",2519]
[null,null,null,null,null,null,null,null,null,null,null,null,null,null,null,null,null,null,null,null,null,null,null,null,null,null,null,null,"Pulpa de fruta",1360,null,null,null,null,null,null,null,null,null,null,null,null,null,null,null,null,null,null,null,null,null,null,null,null,null,null,null,null,null,null,null,null,null,null,null,null,null,null,"Pulpa de fruta",1360]
[null,null,null,null,null,null,null,null,null,null,null,null,null,null,null,null,null,null,null,null,null,null,null,null,null,null,null,null,"Queso",2208,null,null,null,null,null,null,null,null,null,null,null,null,null,null,null,null,null,null,null,null,null,null,null,null,null,null,null,null,null,null,null,null,null,null,null,null,null,null,"Queso",2208]
[null,null,null,null,null,null,null,null,null,null,null,null,null,null,null,null,null,null,null,null,null,null,null,null,null,null,null,null,"Quinua",810,null,null,null,null,null,null,null,null,null,null,null,null,null,null,null,null,null,null,null,null,null,null,null,null,null,null,null,null,null,null,null,null,null,null,null,null,null,null,"Quinua",810]
[null,null,null,null,null,null,null,null,null,null,null,null,null,null,null,null,null,null,null,null,null,null,null,null,null,null,null,null,"Rábano",2027,null,null,null,null,null,null,null,null,null,null,null,null,null,null,null,null,null,null,null,null,null,null,null,null,null,null,null,null,null,null,null,null,null,null,null,null,null,null,"Rábano",2027]
[null,null,null,null,null,null,null,null,null,null,null,null,null,null,null,null,null,null,null,null,null,null,null,null,null,null,null,null,"Raíces chinas",1601,null,null,null,null,null,null,null,null,null,null,null,null,null,null,null,null,null,null,null,null,null,null,null,null,null,null,null,null,null,null,null,null,null,null,null,null,null,null,"Raíces chinas",1601]
[null,null,null,null,null,null,null,null,null,null,null,null,null,null,null,null,null,null,null,null,null,null,null,null,null,null,null,null,"Remolacha",2028,null,null,null,null,null,null,null,null,null,null,null,null,null,null,null,null,null,null,null,null,null,null,null,null,null,null,null,null,null,null,null,null,null,null,null,null,null,null,"Remolacha",2028]
[null,null,null,null,null,null,null,null,null,null,null,null,null,null,null,null,null,null,null,null,null,null,null,null,null,null,null,null,"Repollo",2029,null,null,null,null,null,null,null,null,null,null,null,null,null,null,null,null,null,null,null,null,null,null,null,null,null,null,null,null,null,null,null,null,null,null,null,null,null,null,"Repollo",2029]
[null,null,null,null,null,null,null,null,null,null,null,null,null,null,null,null,null,null,null,null,null,null,null,null,null,null,null,null,"Romero",2706,null,null,null,null,null,null,null,null,null,null,null,null,null,null,null,null,null,null,null,null,null,null,null,null,null,null,null,null,null,null,null,null,null,null,null,null,null,null,"Romero",2706]
[null,null,null,null,null,null,null,null,null,null,null,null,null,null,null,null,null,null,null,null,null,null,null,null,null,null,null,null,"Ruda",2902,null,null,null,null,null,null,null,null,null,null,null,null,null,null,null,null,null,null,null,null,null,null,null,null,null,null,null,null,null,null,null,null,null,null,null,null,null,null,"Ruda",2902]
[null,null,null,null,null,null,null,null,null,null,null,null,null,null,null,null,null,null,null,null,null,null,null,null,null,null,null,null,"Sábila",2903,null,null,null,null,null,null,null,null,null,null,null,null,null,null,null,null,null,null,null,null,null,null,null,null,null,null,null,null,null,null,null,null,null,null,null,null,null,null,"Sábila",2903]
[null,null,null,null,null,null,null,null,null,null,null,null,null,null,null,null,null,null,null,null,null,null,null,null,null,null,null,null,"Sacha inchi",2402,null,null,null,null,null,null,null,null,null,null,null,null,null,null,null,null,null,null,null,null,null,null,null,null,null,null,null,null,null,null,null,null,null,null,null,null,null,null,"Sacha inchi",2402]
[null,null,null,null,null,null,null,null,null,null,null,null,null,null,null,null,null,null,null,null,null,null,null,null,null,null,null,null,"Sorgo",811,null,null,null,null,null,null,null,null,null,null,null,null,null,null,null,null,null,null,null,null,null,null,null,null,null,null,null,null,null,null,null,null,null,null,null,null,null,null,"Sorgo",811]
[null,null,null,null,null,null,null,null,null,null,null,null,null,null,null,null,null,null,null,null,null,null,null,null,null,null,null,null,"Tomate",2030,null,null,null,null,null,null,null,null,null,null,null,null,null,null,null,null,null,null,null,null,null,null,null,null,null,null,null,null,null,null,null,null,null,null,null,null,null,null,"Tomate",2030]
[null,null,null,null,null,null,null,null,null,null,null,null,null,null,null,null,null,null,null,null,null,null,null,null,null,null,null,null,"Tomate de árbol",1363,null,null,null,null,null,null,null,null,null,null,null,null,null,null,null,null,null,null,null,null,null,null,null,null,null,null,null,null,null,null,null,null,null,null,null,null,null,null,"Tomate de árbol",1363]
[null,null,null,null,null,null,null,null,null,null,null,null,null,null,null,null,null,null,null,null,null,null,null,null,null,null,null,null,"Tomillo",2808,null,null,null,null,null,null,null,null,null,null,null,null,null,null,null,null,null,null,null,null,null,null,null,null,null,null,null,null,null,null,null,null,null,null,null,null,null,null,"Tomillo",2808]
[null,null,null,null,null,null,null,null,null,null,null,null,null,null,null,null,null,null,null,null,null,null,null,null,null,null,null,null,"Tortas",2521,null,null,null,null,null,null,null,null,null,null,null,null,null,null,null,null,null,null,null,null,null,null,null,null,null,null,null,null,null,null,null,null,null,null,null,null,null,null,"Tortas",2521]
[null,null,null,null,null,null,null,null,null,null,null,null,null,null,null,null,null,null,null,null,null,null,null,null,null,null,null,null,"Tortillas",311,null,null,null,null,null,null,null,null,null,null,null,null,null,null,null,null,null,null,null,null,null,null,null,null,null,null,null,null,null,null,null,null,null,null,null,null,null,null,"Tortillas",311]
[null,null,null,null,null,null,null,null,null,null,null,null,null,null,null,null,null,null,null,null,null,null,null,null,null,null,null,null,"Trigo",812,null,null,null,null,null,null,null,null,null,null,null,null,null,null,null,null,null,null,null,null,null,null,null,null,null,null,null,null,null,null,null,null,null,null,null,null,null,null,"Trigo",812]
[null,null,null,null,null,null,null,null,null,null,null,null,null,null,null,null,null,null,null,null,null,null,null,null,null,null,null,null,"Trucha",2611,null,null,null,null,null,null,null,null,null,null,null,null,null,null,null,null,null,null,null,null,null,null,null,null,null,null,null,null,null,null,null,null,null,null,null,null,null,null,"Trucha",2611]
[null,null,null,null,null,null,null,null,null,null,null,null,null,null,null,null,null,null,null,null,null,null,null,null,null,null,null,null,"Uchuva",1364,null,null,null,null,null,null,null,null,null,null,null,null,null,null,null,null,null,null,null,null,null,null,null,null,null,null,null,null,null,null,null,null,null,null,null,null,null,null,"Uchuva",1364]
[null,null,null,null,null,null,null,null,null,null,null,null,null,null,null,null,null,null,null,null,null,null,null,null,null,null,null,null,"Yogurt",2210,null,null,null,null,null,null,null,null,null,null,null,null,null,null,null,null,null,null,null,null,null,null,null,null,null,null,null,null,null,null,null,null,null,null,null,null,null,null,"Yogurt",2210]
[null,null,null,null,null,null,null,null,null,null,null,null,null,null,null,null,null,null,null,null,null,null,null,null,null,null,null,null,"Yuca",3008,null,null,null,null,null,null,null,null,null,null,null,null,null,null,null,null,null,null,null,null,null,null,null,null,null,null,null,null,null,null,null,null,null,null,null,null,null,null,"Yuca",3008]
[null,null,null,null,null,null,null,null,null,null,null,null,null,null,null,null,null,null,null,null,null,null,null,null,null,null,null,null,"Zanahoria",2031,null,null,null,null,null,null,null,null,null,null,null,null,null,null,null,null,null,null,null,null,null,null,null,null,null,null,null,null,null,null,null,null,null,null,null,null,null,null,"Zanahoria",2031]
[null,null,null,null,null,null,null,null,null,null,null,null,null,null,null,null,null,null,null,null,null,null,null,null,null,null,null,null,"Zapote",1367,null,null,null,null,null,null,null,null,null,null,null,null,null,null,null,null,null,null,null,null,null,null,null,null,null,null,null,null,null,null,null,null,null,null,null,null,null,null,"Zapote",1367]

{"sheet":"Filtro","index":5,"n_rows":8,"n_cols":11,"rows_kept":8,"cut":false,"hidden":false,"merged":[[0,8,5,10]]}
["REGIONAL:",null,"No. CUPOS ASIGNADOS:",null,"Porcentajes de Cumplimiento","Reportado (%)","Validado (%)","NOTAS: "]
["No. DE CONTRATO:",null,"% DE COMPRA LOCAL: ",null,"Alimento "]
["NOMBRE DEL OPERADOR:",null,"VALOR TOTAL DEL CONTRATO:",null,"Personal"]
["FECHA DE INICIO:",null,"TIEMPO DE EJECUCIÓN (MESES):",null,"Dotación "]
["PROGRAMA:",null,"ÚLTIMO MES VALIDADO:",null,"Total"]
["MODALIDAD:",null,"NOMBRE DEL SUPERVISOR: "]
["SERVICIO:",null,"FECHA Y HORA DE VALIDACIÓN: ",null,"USUARIO:"]
["No.","Mes","Valor Ejecutado Mensual ($)","Tipo de Compra","Producto/Profesión","Unidad de Medida","Cantidad","Valor Total de Compra/Salario Mensual ($)","Municipio del proveedor/ Lugar de nacimiento del profesional","Nombre del proveedor/profesional","Código"]

{"sheet":"Consolidado","index":6,"n_rows":1,"n_cols":23,"rows_kept":1,"cut":false,"hidden":false,"merged":[]}
["Regional","No. Contrato","Fecha de Inicio","Nombre del Operador","Programa","Modalidad","Servicio Atendido","No. Cupos Asignados","Valor Total del Contrato ($)","Tiempo de Ejecución (Meses)","Porcentaje de Compra Local","Supervisor","No.","Mes","Valor Ejecutado Mensual ($)","Tipo de Compra","Producto/Profesión","Unidad de Medida","Cantidad","Valor Total de Compra/Salario Mensual ($)","Municipio del proveedor/ Lugar de nacimiento del profesional","Nombre del proveedor/profesional","Código"]

{"sheet":"Programas","index":7,"n_rows":14,"n_cols":5,"rows_kept":14,"cut":false,"hidden":true,"merged":[]}
["CODIGO DE PROGRAMA","PROGRAMA"]
[1,"ADOLESCENCIA Y JUVENTUD"]
[2,"FAMILIA Y COMUNIDADES",null,null,"NIÑEZ Y ADOLESCENCIA"]
[3,"INFANCIA"]
[4,"NUTRICIÓN",null,null,"1. ADOLESCENCIA"]
[5,"PRIMERA INFANCIA",null,null,"1.1. Generaciones Sacúdete"]
[6,"PROTECCIÓN ",null,null,"1.2 Generaciones Sacúdete Étnicos"]
[null,null,null,null,"1.3 Otras formas de atención"]
[]
[null,null,null,null,"3. INFANCIA"]
[null,null,null,null,"3.1. Generaciones 2.0"]
[null,null,null,null,"3.2. Generaciones Étnicas"]
[null,null,null,null,"3.3 Fortalecimiento de las capacidades de niños, niñas y adolescentes con discapacidad y sus familias "]
[null,null,null,null,"3.4. Prevención específica"]

{"sheet":"Modalidad","index":8,"n_rows":22,"n_cols":3,"rows_kept":22,"cut":false,"hidden":true,"merged":[]}
["CODIGO DE PROGRAMA","CODIGO DE MODALIDAD","MODALIDAD"]
[1,1,"GENERACIONES SACÚDETE"]
[1,2,"GENERACIONES SACÚDETE ÉTNICOS"]
[1,3,"OTRAS FORMAS DE ATENCIÓN"]
[2,1,"ACOMPAÑAMIENTO FAMILIAR Y COMUNITARIO"]
[2,2,"COMUNIDADES ÉTNICAS"]
[3,1,"GENERACIONES 2.0"]
[3,2,"GENERACIONES ÉTNICAS"]
[3,3,"FORTALECIMIENTO DE CAPACIDADES DE NIÑOS, NIÑAS Y ADOLESCENTES CON DISCAPACIDAD Y SUS FAMILIAS "]
[3,4,"PREVENCIÓN ESPECÍFICA"]
[4,1,"ATENCIÓN Y PREVENCIÓN A LA DESNUTRICIÓN"]
[5,1,"COMUNITARIA"]
[5,2,"FAMILIAR"]
[5,3,"INSTITUCIONAL "]
[5,4,"PROPIA E INTERCULTURAL"]
[6,1,"APOYO Y FORTALECIMIENTO A LA FAMILIA"]
[6,2,"APOYO Y FORTALECIMIENTO EN MEDIO DIFERENTE AL DE LA FAMILIA"]
[6,3,"UBICACIÓN INICIAL"]
[6,4,"UNIDADES MÓVILES"]
[6,5,"VICTIMA DE CONFLICTO ARMADO"]
[6,6,"VULNERABILIDAD O ADOPTABILIDAD"]
[6,7,"RESTABLECIMIENTO EN LA ADMINISTRACIÓN DE JUSTICIA"]

{"sheet":"Servicios","index":9,"n_rows":86,"n_cols":10,"rows_kept":86,"cut":false,"hidden":true,"merged":[]}
["CODIGO DE PROGRAMA","CODIGO DE MODALIDAD","CODIGO DE SERVICIO","SERVICIO"]
[1,1,1,"Generaciones Sacúdete",null,null,null,null,null,"PRIMERA INFANCIA"]
[1,2,1,"Generaciones Sacúdete Étnicos",null,null,null,null,null,"INSTITUCIONAL"]
[1,3,1,"Otras Formas de Atención",null,null,null,null,"CDI","Centros de Desarrollo Infantil (CDI)"]
[2,1,1,"Mi Familia Rural",null,null,null,null,"HI","Hogares Infantiles (HI)"]
[2,1,2,"Mi Familia Urbana",null,null,null,null,"Hogares Empresariales","Hogares Empresariales"]
[2,2,1,"Territorios Étnicos con Bienestar",null,null,null,null,"HCB Múltiples","Hogares Comunitarios de Bienestar Múltiple (HCB) Múltiples"]
[3,1,1,"Generaciones 2.0",null,null,null,null,"DIER","Desarrollo Infantil en Establecimientos de Reclusión (DIER)"]
[3,2,1,"Generaciones Étnicas",null,null,null,null,null,"FAMILIAR "]
[3,3,1,"Fortalecimiento de Capacidades de Niños, Niñas y Adolescentes con Discapacidad y sus Familias ",null,null,null,null,"DIMF","Desarrollo Infantil en Medio Familiar (DIMF)"]
[3,4,1,"Prevención Específica",null,null,null,null,"HCB FAMI","Hogares Comunitarios de Bienestar Familiar - Familia, Mujer e Infancia (HCB FAMI)"]
[4,1,1,"1.000 Días para Cambiar el Mundo",null,null,null,null,null,"COMUNITARIA"]
[4,1,2,"CRN - Centros de Recuperación Nutricional",null,null,null,null,"HCB","Hogares Comunitarios de Bienestar Familiar (HCB)"]
[4,1,3,"UBAs - Unidades de Búsqueda Activa",null,null,null,null,"HCB Agrupados","Hogares Comunitarios de Bienestar Agrupados (HCB) Agrupados "]
[5,1,1,"HCB ",null,null,null,null,"HCB Integrales","Hogares Comunitarios de Bienestar Integrales (HCB) Integrales"]
[5,1,2,"HCB Agrupados",null,null,null,null,"UBAS Fijas e Itinerantes","Unidades Básicas de Atención Fija e Itinerante (UBAS) Fijas e Itinerantes"]
[5,1,3,"HCB Integrales",null,null,null,null,"Propia e Intercultural","PROPIA E INTERCULTURAL "]
[5,1,4,"UBAS - Unidades Básicas de Atención Fijas e Itinerantes ",null,null,null,null,null,"PROTECCIÓN"]
[5,2,1,"DIMF - Desarrollo Infantil en Medio Familiar",null,null,null,null,null,"UBICACIÓN INICIAL "]
[5,2,2,"HCB FAMI ",null,null,null,null,null,"Centro de Emergencia"]
[5,3,1,"CDI - Centro de Desarrollo Infantil ",null,null,null,null,null,"Hogar de Paso"]
[5,3,2,"CDI Familiar",null,null,null,null,null,"APOYO Y FORTALECIMIENTO A LA FAMILIA"]
[5,3,3,"DIER - Desarrollo Infantil en Establecimientos de Reclusión",null,null,null,null,null,"Intervención de Apoyo - Apoyo Psicosocial "]
[5,3,4,"HCB Múltiples ",null,null,null,null,"Externado Media Jornada","Externado Media Jornada"]
[5,3,5,"HI - Hogar Infantil",null,null,null,null,"Externado Jornada Completa","Externado Jornada Completa"]
[5,3,6,"Hogares Empresariales",null,null,null,null,null,"Hogar Gestor"]
[5,4,1,"Propia e Intercultural",null,null,null,null,null,"APOYO Y FORTALECIMIENTO EN MEDIO DIFERENTE AL DE LA FAMILIA "]
[6,1,1,"Externado Jornada Completa - Vulneración",null,null,null,null,null,"Hogar Sustituto"]
[6,1,2,"Externado Jornada Completa - Consumo Habitual de Sustancias Psicoactivas",null,null,null,null,"Internado","Internado"]
[6,1,3,"Externado Media Jornada con Alta Permanencia en Calle",null,null,null,null,null,"Casa Hogar"]
[6,1,4,"Externado Media Jornada - Consumo Social de Sustancias Psicoactiavas ",null,null,null,null,null,"Casa de Acogida"]
[6,1,5,"Externado Media Jornada en Situación de Trabajo Infantil ",null,null,null,null,null,"Casa de Protección"]
[6,1,6,"Externado Media Jornada - Vulneración  ",null,null,null,null,null,"Casa Universitaria"]
[6,1,7,"Hogar Gestor - Discapacidad",null,null,null,null,null,"Centros de Emergencia"]
[6,1,8,"Intervención de Apoyo - Apoyo Psicológico Especializado de Acuerdo con el Concepto de la Autoridad Administrativa",null,null,null,null,null,"SISTEMA DE RESPONSABILIDAD PENAL PARA ADOLESCENTES"]
[6,1,9,"Intervención de Apoyo - Apoyo Psicológico Especializado para Niños, Niñas y Adolescentes Víctimas de Violencia Sexual Dentro y Fuera del Conflicto Armado",null,null,null,null,null,"Centros Privativos de Libertad"]
[6,1,10,"Intervención de Apoyo - Apoyo Psicosocial con Alta Permanencia en Calle",null,null,null,null,null,"NUTRICIÓN"]
[6,1,11,"Intervención de Apoyo - Apoyo Psicosocial con Consumo Experimental de Sustancias Psicoactivas",null,null,null,null,"CRN","Centros de Recuperación Nutricional (CRN)"]
[6,1,12,"Intervención de Apoyo - Apoyo Psicosocial con Discapacidad",null,null,null,null,"1000 Días","1000 Días para Cambiar el Mundo"]
[6,1,13,"Intervención de Apoyo - Apoyo Psicosocial en Situación de Trabajo Infantil",null,null,null,null,null,"NIÑEZ Y ADOLESCENCIA"]
[6,1,14,"Intervención de Apoyo - Apoyo Psicosocial - Vulneración",null,null,null,null,null,"Generaciones con Bienestar"]
[6,1,15,"Intervención de Apoyo - Violencia sexual ",null,null,null,null,null,"Generaciones Sacúdete"]
[6,2,1,"Casa de Acogida"]
[6,2,2,"Casa de Protección"]
[6,2,3,"Casa Hogar"]
[6,2,4,"Casa Universitaria"]
[6,2,5,"Hogar Sustituto"]
[6,2,6,"Internado"]
[6,3,1,"Centro de Emergencia"]
[6,3,2,"Hogar de Paso"]
[6,4,1,"Unidades Móviles"]
[6,5,1,"Casa de Protección"]
[6,5,2,"Hogar Gestor - Desplazamiento Forzado con Discapacidad - Auto 006 de 2009"]
[6,5,3,"Hogar Gestor para Víctimas en el Marco del Conflicto Armado con Discapacidad y/o Enfermedad de Cuidado Especial"]
[6,5,4,"Hogar Gestor para Víctimas en el Marco del Conflicto Armado sin Discapacidad ni Enfermedad de Cuidado Especial"]
[6,5,5,"Hogar Sustituto Tutor"]
[6,6,1,"Casa Hogar - Vulneración"]
[6,6,2,"Casa Universitaria"]
[6,6,3,"Hogar Sustituto ICBF - Discapacidad"]
[6,6,4,"Hogar Sustituto ICBF - Vulneración"]
[6,6,5,"Hogar Sustituto ONG - Discapacidad"]
[6,6,6,"Hogar Sustituto ONG - Vulneración"]
[6,6,7,"Internado - Discapacidad Mental Cognitiva"]
[6,6,8,"Internado - Discapacidad Mental Psicosocial"]
[6,6,9,"Internado - Gestantes y/o en Período de Lactancia"]
[6,6,10,"Internado - Situación de Vida en Calle"]
[6,6,11,"Internado - Violencia Sexual"]
[6,6,12,"Internado con Consumo Problemático y/o Abusivo de Sustancias Psicoactivas"]
[6,6,13,"Internado Preparación para la Vida Independiente"]
[6,6,14,"Internado Vulneración"]
[6,6,15,"Internado Vulneración de 0 a 8 Años"]
[6,7,1,"Apoyo Post Institucional"]
[6,7,2,"Centro de Atención Especializado"]
[6,7,3,"Centro de Emergencia Restablecimiento en Administración de Justicia"]
[6,7,4,"Centro de Internamiento Preventivo"]
[6,7,5,"Centro Transitorio"]
[6,7,6,"Detención Domiciliaria Hogar"]
[6,7,7,"Externado Jornada Completa Restablecimiento en Administración de Justicia"]
[6,7,8,"Externado Media Jornada Restablecimiento en Administración de Justicia"]
[6,7,9,"Internado Restablecimiento en Administración de Justicia"]
[6,7,10,"Intervención de Apoyo Restablecimiento en Administración de Justicia"]
[6,7,11,"Libertad Asisitida/Vigilada"]
[6,7,12,"Prestación de Servicios a la Comunidad"]
[6,7,13,"Semicerrado-Externado Jornada Completa"]
[6,7,14,"Semicerrado-Externado Media Jornada"]
[6,7,15,"Semicerrado-Internado"]

{"sheet":"ControlAcceso","index":10,"n_rows":1,"n_cols":5,"rows_kept":1,"cut":false,"hidden":true,"merged":[]}
["Fecha y Hora","Usuario",null,null,"Usuario Actual"]